Workbook

Sheet Interfaz
C5: POBLACIÓN ASIGNADA 2024 SEGÚN CENSOS INEI - RENIEC - PN - CNV
C10: RED INTEGRADA DE SALUD HUAURA OYÓN
C22: Elaboración: Área de Estadística - RIS Huaura Oyón.
C23: NOTA: LA POBLACION ESTIMADA DE EDADES SIMPLES Y GRUPOS DE EDAD DE DISTRITOS, CORRESPONDEN A CIFRAS REFERENCIALES HASTA OBTENER LAS CIFRAS DE LAS PROYECCIONES DEL INEI
C24: FUENTE: CENSO NACIONAL XI DE POBLACION Y VI DE VIVIENDA 2017/- BOLETIN DEMOGRAFICO Nº 26,37, 39 / RENIEC / Padrón Nominal / CNV
C25: La población de 0-5 años corresponden a una proyección de la poblacion del Padrón Nominal (cifras preliminares) /corte al mes de Diciembre 2021.
C26: OFICINA DE GESTION DE LA INFORMACIÓN - MINISTERIO DE SALUD
R27: Versión1.021

Sheet Poblacion
C1: 1 | D1: 2 | E1: 3 | F1: 4 | G1: 5 | H1: 6 | I1: 7 | J1: 8 | K1: 9 | L1: 10 | M1: 11 | N1: 12 | O1: 13 | P1: 14 | Q1: 15 | R1: 16 | S1: 17 | T1: 18 | U1: 19 | V1: 20 | W1: 21 | X1: 22 | Y1: 23 | Z1: 24 | AA1: 25 | AB1: 26 | AC1: 27 | AD1: 28 | AE1: 29 | AF1: 30 | AG1: 31 | AH1: 32 | AI1: 33 | AJ1: 34 | AK1: 35 | AL1: 36 | AM1: 37 | AN1: 38 | AO1: 39 | AP1: 40 | AQ1: 41 | AR1: 42 | AS1: 43 | AT1: 44 | AU1: 45 | AV1: 46 | AW1: 47 | AX1: 48 | AY1: 49 | AZ1: 50 | BA1: 51 | BB1: 52 | BC1: 53 | BD1: 54 | BE1: 55 | BF1: 56 | BG1: 57 | BH1: 58 | BI1: 59 | BJ1: 60 | BK1: 61 | BL1: 62 | BM1: 63 | BN1: 64 | BO1: 65 | BP1: 66 | BQ1: 67 | BR1: 68 | BS1: 69 | BT1: 70 | BU1: 71 | BV1: 72 | BW1: 73 | BX1: 74 | BY1: 75 | BZ1: 76 | CA1: 77 | CB1: 78 | CC1: 79 | CD1: 80 | CE1: 81 | CF1: 82 | CG1: 83 | CH1: 84 | CI1: 85 | CJ1: 86 | CK1: 87 | CL1: 88 | CM1: 89 | CN1: 90 | CO1: 91 | CP1: 92 | CQ1: 93 | CR1: 94 | CS1: 95 | CT1: 96 | CU1: 97 | CV1: 98 | CW1: 99 | CX1: 100 | CY1: 101 | CZ1: 102 | DA1: 103 | DB1: 104 | DC1: 105 | DD1: 106 | DE1: 107 | DF1: 108 | DG1: 109 | DH1: 110 | DI1: 111 | DJ1: 112 | DK1: 113 | DL1: 114 | DM1: 115 | DN1: 116 | DO1: 117 | DP1: 118 | DQ1: 119 | DR1: 120 | DS1: 121 | DT1: 122
S2: POBLACIÓN ESTIMADA POR GRUPOS DE EDAD, SEGÚN PROVINCIAS DISTRITOS Y ESTABLECIMIENTOS DE SALUD
S3: RED INTEGRADA DE SALUD HUAURA OYON - AÑO 2024 | CK3: MAS GRUPOS DE EDAD
S4: EDADES PUNTUALES Y GRUPOS DE EDAD | DK4: Varones
C5: N° | E5: DIRECCION DE SALUD | F5: TOTAL GENERAL | H5: TOTAL MASCULINO | I5: TOTAL FEMENINO | K5: EDAD | M5: EDAD | O5: EDAD | Q5: EDAD | S5: EDAD | U5: EDAD | W5: EDAD | Y5: EDAD | AA5: EDAD | AC5: EDAD | AE5: EDAD | AG5: EDAD | AI5: EDAD | AK5: EDAD | AM5: EDAD | AO5: EDAD | AQ5: EDAD | AS5: EDAD | AU5: EDAD | AW5: EDAD | AY5: EDAD | BA5: EDAD | BC5: EDAD | BE5: EDAD | BG5: EDAD | BI5: EDAD | BK5: EDAD | BM5: EDAD | BO5: EDAD | BQ5: EDAD | BS5: EDAD | BU5: EDAD | BW5: EDAD | BY5: EDADES ESPECIALES | CD5: NACIMIENTOS | CE5: POBLACION FEMENINA TOTAL | CF5: POBLACION FEMENINA | CI5: GESTANTES ESPERADAS | CK5: menor de 1 Año | CL5: Pre escolar (1-4) | CM5: Niño (0 - 11) | CN5: Escolar (05 - 17) | CO5: Adolescente (12 - 17) | CP5: Adulto Joven (18 - 29) | CQ5: Adulto (30-59) | CR5: Adu.Mayor (60 a MAS) | CT5: Escolar (05 - 09) | CU5: Adolescente (10 - 19) | CV5: Adulto (20-59) | CX5: Poblacion: PADRON NOMINAL al 31_12_2023 | DE5: OTROS GRUPOS ESPECIALES (CONVENIO) | DK5: Población Hombres Adolescentes (14 -17 años) | DL5: Población Hombres (18 - 59 años) | DM5: (0 -13 años) | DO5: (14 -17 años) | DQ5: (18 -59 años) | DS5: (60 años a màs)
A6: UBIGEO | E6: PROVINCIA | K6: 0 | M6: 1 | O6: 2 | Q6: 3 | S6: 4 | U6: 5 | W6: 6 | Y6: 7 | AA6: 8 | AC6: 9 | AE6: 10 | AG6: 11 | AI6: 12 | AK6: 13 | AM6: 14 | AO6: 15 | AQ6: 16 | AS6: 17 | AU6: 18 | AW6: 19 | AY6: 20 - 24 | BA6: 25 - 29 | BC6: 30 - 34 | BE6: 35 - 39 | BG6: 40 - 44 | BI6: 45 - 49 | BK6: 50 - 54 | BM6: 55 - 59 | BO6: 60 - 64 | BQ6: 65 - 69 | BS6: 70 - 74 | BU6: 75 - 79 | BW6: 80 y ++ | BZ6: 0-5 MESES | CB6: 6-11 MESES | CX6: 0A | CY6: 1A | CZ6: 2A | DA6: 3A | DB6: 4A | DC6: 5A | DE6: 25 - 64 (Cancer) | DG6: 50 - 64 (PAP) | DH6: 30 - 49 (IVVA) | DI6: 15 - 49 (MEF)
B7: Microredes | D7: RENAES | E7: DISTRITO | K7: M | L7: F | M7: M | N7: F | O7: M | P7: F | Q7: M | R7: F | S7: M | T7: F | U7: M | V7: F | W7: M | X7: F | Y7: M | Z7: F | AA7: M | AB7: F | AC7: M | AD7: F | AE7: M | AF7: F | AG7: M | AH7: F | AI7: M | AJ7: F | AK7: M | AL7: F | AM7: M | AN7: F | AO7: M | AP7: F | AQ7: M | AR7: F | AS7: M | AT7: F | AU7: M | AV7: F | AW7: M | AX7: F | AY7: M | AZ7: F | BA7: M | BB7: F | BC7: M | BD7: F | BE7: M | BF7: F | BG7: M | BH7: F | BI7: M | BJ7: F | BK7: M | BL7: F | BM7: M | BN7: F | BO7: M | BP7: F | BQ7: M | BR7: F | BS7: M | BT7: F | BU7: M | BV7: F | BW7: M | BX7: F | BY7: 28 DIAS | BZ7: M | CA7: F | CB7: M | CC7: F | CF7: 10 - 14 | CG7: 15 - 19 | CH7: 20 - 49 | DE7: M | DF7: F | DM7: M | DN7: F | DO7: M | DP7: F | DQ7: M | DR7: F | DS7: M | DT7: F
A8: 150000 | C8: 1 | E8: HUAURA - OYON | F8: 282245 | H8: 136079 | I8: 146166 | K8: 1791 | L8: 1800 | M8: 1773 | N8: 1770 | O8: 1814 | P8: 1806 | Q8: 1951 | R8: 1882 | S8: 2088 | T8: 1956 | U8: 2111 | V8: 2012 | W8: 2395 | X8: 2513 | Y8: 2473 | Z8: 2490 | AA8: 2410 | AB8: 2565 | AC8: 2351 | AD8: 2478 | AE8: 2344 | AF8: 2300 | AG8: 2343 | AH8: 2404 | AI8: 2495 | AJ8: 2485 | AK8: 2365 | AL8: 2479 | AM8: 2234 | AN8: 2284 | AO8: 2226 | AP8: 2403 | AQ8: 2183 | AR8: 2286 | AS8: 2098 | AT8: 2220 | AU8: 2126 | AV8: 2155 | AW8: 1998 | AX8: 2151 | AY8: 10163 | AZ8: 10755 | BA8: 11460 | BB8: 12646 | BC8: 10442 | BD8: 11647 | BE8: 10023 | BF8: 10979 | BG8: 9181 | BH8: 9858 | BI8: 8430 | BJ8: 9184 | BK8: 7433 | BL8: 8087 | BM8: 6413 | BN8: 7097 | BO8: 5390 | BP8: 5833 | BQ8: 4382 | BR8: 4867 | BS8: 3450 | BT8: 3769 | BU8: 2489 | BV8: 2872 | BW8: 3254 | BX8: 4133 | BY8: 205 | BZ8: 850 | CA8: 821 | CB8: 941 | CC8: 979 | CD8: 4778 | CE8: 0 | CF8: 11952 | CG8: 11215 | CH8: 65069 | CI8: 7591 | CK8: =K8+L8 -> 3591 | CL8: =SUM(M8:T8) -> 15040 | CM8: =SUM(K8:AH8) -> 51820 | CN8: =SUM(U8:AT8) -> 60947 | CO8: =SUM(AI8:AT8) -> 27758 | CP8: =SUM(AU8:BB8) -> 53454 | CQ8: =SUM(BC8:BN8) -> 108774 | CR8: =SUM(BO8:BX8) -> 40439 | CT8: =SUM(U8:AD8) -> 23798 | CU8: =SUM(AE8:AX8) -> 45579 | CV8: =SUM(AY8:BX8) -> 194237 | CX8: 3591 | CY8: 3543 | CZ8: 3620 | DA8: 3833 | DB8: 4044 | DC8: 4123 | DE8: =BA8+BC8+BE8+BG8+BI8+BK8+BM8+BO8 -> 68772 | DF8: =BB8+BD8+BF8+BH8+BJ8+BL8+BN8+BP8 -> 75331 | DG8: =BL8+BN8+BP8 -> 21017 | DH8: =BD8+BF8+BH8+BJ8 -> 41668 | DI8: =AP8+AR8+AT8+AV8+AX8+AZ8+BB8+BD8+BF8+BH8+BJ8 -> 76284 | DK8: =AM8+AO8+AQ8+AS8 -> 8741 | DL8: =AU8+AW8+AY8+BA8+BC8+BE8+BG8+BI8+BK8+BM8 -> 77669 | DM8: =K8+M8+O8+Q8+S8+U8+W8+Y8+AA8+AC8+AE8+AG8+AI8+AK8 -> 30704 | DN8: =L8+N8+P8+R8+T8+V8+X8+Z8+AB8+AD8+AF8+AH8+AJ8+AL8 -> 30940 | DO8: =AM8+AO8+AQ8+AS8 -> 8741 | DP8: =AN8+AP8+AR8+AT8 -> 9193 | DQ8: =AU8+AW8+AY8+BA8+BC8+BE8+BG8+BK8+BM8+BI8 -> 77669 | DR8: =AV8+AX8+AZ8+BB8+BD8+BF8+BH8+BL8+BN8+BJ8 -> 84559 | DS8: =BO8+BQ8+BS8+BU8+BW8 -> 18965 | DT8: =BP8+BR8+BT8+BV8+BX8 -> 21474
A9: 150800 | C9: 2 | D9: 150800 | E9: PROVINCIA HUAURA | F9: 264367 | H9: 127484 | I9: 136883 | K9: 1674 | L9: 1682 | M9: 1667 | N9: 1653 | O9: 1712 | P9: 1696 | Q9: 1836 | R9: 1768 | S9: 1958 | T9: 1838 | U9: 1978 | V9: 1873 | W9: 2249 | X9: 2365 | Y9: 2325 | Z9: 2334 | AA9: 2273 | AB9: 2392 | AC9: 2187 | AD9: 2306 | AE9: 2169 | AF9: 2120 | AG9: 2166 | AH9: 2221 | AI9: 2313 | AJ9: 2273 | AK9: 2166 | AL9: 2277 | AM9: 2073 | AN9: 2105 | AO9: 2039 | AP9: 2197 | AQ9: 2010 | AR9: 2076 | AS9: 1929 | AT9: 2052 | AU9: 1965 | AV9: 2001 | AW9: 1862 | AX9: 2008 | AY9: 9506 | AZ9: 10064 | BA9: 10788 | BB9: 11919 | BC9: 9851 | BD9: 10958 | BE9: 9432 | BF9: 10325 | BG9: 8677 | BH9: 9361 | BI9: 7922 | BJ9: 8685 | BK9: 6975 | BL9: 7600 | BM9: 6030 | BN9: 6675 | BO9: 5039 | BP9: 5475 | BQ9: 4108 | BR9: 4576 | BS9: 3229 | BT9: 3540 | BU9: 2336 | BV9: 2672 | BW9: 3040 | BX9: 3796 | BY9: 181 | BZ9: 796 | CA9: 766 | CB9: 878 | CC9: 916 | CD9: 4456 | CE9: 0 | CF9: 10996 | CG9: 10334 | CH9: 61312 | CI9: 7142 | CK9: =K9+L9 -> 3356 | CL9: =SUM(M9:T9) -> 14128 | CM9: =SUM(K9:AH9) -> 48442 | CN9: =SUM(U9:AT9) -> 56468 | CO9: =SUM(AI9:AT9) -> 25510 | CP9: =SUM(AU9:BB9) -> 50113 | CQ9: =SUM(BC9:BN9) -> 102491 | CR9: =SUM(BO9:BX9) -> 37811 | CT9: =SUM(U9:AD9) -> 22282 | CU9: =SUM(AE9:AX9) -> 42022 | CV9: =SUM(AY9:BX9) -> 182579 | CX9: 3356 | CY9: 3320 | CZ9: 3408 | DA9: 3604 | DB9: 3796 | DC9: 3851 | DE9: =BA9+BC9+BE9+BG9+BI9+BK9+BM9+BO9 -> 64714 | DF9: =BB9+BD9+BF9+BH9+BJ9+BL9+BN9+BP9 -> 70998 | DG9: =BL9+BN9+BP9 -> 19750 | DH9: =BD9+BF9+BH9+BJ9 -> 39329 | DI9: =AP9+AR9+AT9+AV9+AX9+AZ9+BB9+BD9+BF9+BH9+BJ9 -> 71646 | DK9: =AM9+AO9+AQ9+AS9 -> 8051 | DL9: =AU9+AW9+AY9+BA9+BC9+BE9+BG9+BI9+BK9+BM9 -> 73008 | DM9: =K9+M9+O9+Q9+S9+U9+W9+Y9+AA9+AC9+AE9+AG9+AI9+AK9 -> 28673 | DN9: =L9+N9+P9+R9+T9+V9+X9+Z9+AB9+AD9+AF9+AH9+AJ9+AL9 -> 28798 | DO9: =AM9+AO9+AQ9+AS9 -> 8051 | DP9: =AN9+AP9+AR9+AT9 -> 8430 | DQ9: =AU9+AW9+AY9+BA9+BC9+BE9+BG9+BK9+BM9+BI9 -> 73008 | DR9: =AV9+AX9+AZ9+BB9+BD9+BF9+BH9+BL9+BN9+BJ9 -> 79596 | DS9: =BO9+BQ9+BS9+BU9+BW9 -> 17752 | DT9: =BP9+BR9+BT9+BV9+BX9 -> 20059
A10: 150801 | C10: 3 | D10: 150802 | E10: DISTRITO HUACHO | F10: 75089 | H10: 36163 | I10: 38926 | K10: 325 | L10: 338 | M10: 373 | N10: 347 | O10: 334 | P10: 336 | Q10: 386 | R10: 384 | S10: 494 | T10: 443 | U10: 459 | V10: 427 | W10: 599 | X10: 626 | Y10: 629 | Z10: 584 | AA10: 625 | AB10: 669 | AC10: 605 | AD10: 642 | AE10: 593 | AF10: 569 | AG10: 594 | AH10: 560 | AI10: 578 | AJ10: 589 | AK10: 574 | AL10: 597 | AM10: 534 | AN10: 546 | AO10: 542 | AP10: 578 | AQ10: 543 | AR10: 548 | AS10: 527 | AT10: 539 | AU10: 571 | AV10: 518 | AW10: 509 | AX10: 515 | AY10: 2578 | AZ10: 2601 | BA10: 2822 | BB10: 3181 | BC10: 2646 | BD10: 2968 | BE10: 2669 | BF10: 2826 | BG10: 2548 | BH10: 2739 | BI10: 2389 | BJ10: 2614 | BK10: 2213 | BL10: 2407 | BM10: 1945 | BN10: 2181 | BO10: 1667 | BP10: 1881 | BQ10: 1412 | BR10: 1594 | BS10: 1074 | BT10: 1288 | BU10: 752 | BV10: 912 | BW10: 1054 | BX10: 1379 | BY10: 39 | BZ10: 147 | CA10: 140 | CB10: 178 | CC10: 198 | CD10: 902 | CE10: 0 | CF10: 2861 | CG10: 2698 | CH10: 16929 | CI10: 1483 | CK10: 663 | CL10: 3097 | CM10: 11941 | CN10: 14876 | CO10: 6695 | CP10: 13295 | CQ10: 30145 | CR10: 13013 | CT10: 5865 | CU10: 11124 | CV10: 54340 | CX10: 663 | CY10: 720 | CZ10: 670 | DA10: 770 | DB10: 937 | DC10: 886 | DE10: 18899 | DF10: 20797 | DG10: 6469 | DH10: 11147 | DI10: 19627 | DK10: 2146 | DL10: 20890 | DM10: 7168 | DN10: 7111 | DO10: 2146 | DP10: 2211 | DQ10: 20890 | DR10: 22550 | DS10: 5959 | DT10: 7054
B11: 00 | C11: 4 | D11: 7639 | E11: HOSPITAL HUACHO | F11: 54061 | H11: 26035 | I11: 28026 | K11: 234 | L11: 243 | M11: 269 | N11: 250 | O11: 240 | P11: 242 | Q11: 278 | R11: 276 | S11: 356 | T11: 319 | U11: 330 | V11: 307 | W11: 431 | X11: 451 | Y11: 453 | Z11: 420 | AA11: 450 | AB11: 482 | AC11: 436 | AD11: 462 | AE11: 427 | AF11: 410 | AG11: 428 | AH11: 403 | AI11: 416 | AJ11: 424 | AK11: 413 | AL11: 430 | AM11: 384 | AN11: 393 | AO11: 390 | AP11: 416 | AQ11: 391 | AR11: 395 | AS11: 379 | AT11: 388 | AU11: 411 | AV11: 373 | AW11: 366 | AX11: 371 | AY11: 1856 | AZ11: 1873 | BA11: 2032 | BB11: 2290 | BC11: 1905 | BD11: 2137 | BE11: 1922 | BF11: 2035 | BG11: 1835 | BH11: 1972 | BI11: 1720 | BJ11: 1882 | BK11: 1593 | BL11: 1733 | BM11: 1400 | BN11: 1570 | BO11: 1200 | BP11: 1354 | BQ11: 1017 | BR11: 1148 | BS11: 773 | BT11: 927 | BU11: 541 | BV11: 657 | BW11: 759 | BX11: 993 | BY11: 28 | BZ11: 106 | CA11: 101 | CB11: 128 | CC11: 143 | CD11: 649 | CF11: 2060 | CG11: 1943 | CH11: 12189 | CI11: 1068 | CK11: 477 | CL11: 2230 | CM11: 8597 | CN11: 10709 | CO11: 4819 | CP11: 9572 | CQ11: 21704 | CR11: 9369 | CT11: 4222 | CU11: 8008 | CV11: 39124 | CX11: 477 | CY11: 519 | CZ11: 482 | DA11: 554 | DB11: 675 | DC11: 637 | DE11: 13607 | DF11: 14973 | DG11: 4657 | DH11: 8026 | DI11: 14132 | DK11: 1544 | DL11: 15040 | DM11: 5161 | DN11: 5119 | DO11: 1544 | DP11: 1592 | DQ11: 15040 | DR11: 16236 | DS11: 4290 | DT11: 5079
B12: 02 | C12: 5 | D12: 5679 | E12: C.S. MANZANARES | F12: 21028 | H12: 10128 | I12: 10900 | K12: 91 | L12: 95 | M12: 104 | N12: 97 | O12: 94 | P12: 94 | Q12: 108 | R12: 108 | S12: 138 | T12: 124 | U12: 129 | V12: 120 | W12: 168 | X12: 175 | Y12: 176 | Z12: 164 | AA12: 175 | AB12: 187 | AC12: 169 | AD12: 180 | AE12: 166 | AF12: 159 | AG12: 166 | AH12: 157 | AI12: 162 | AJ12: 165 | AK12: 161 | AL12: 167 | AM12: 150 | AN12: 153 | AO12: 152 | AP12: 162 | AQ12: 152 | AR12: 153 | AS12: 148 | AT12: 151 | AU12: 160 | AV12: 145 | AW12: 143 | AX12: 144 | AY12: 722 | AZ12: 728 | BA12: 790 | BB12: 891 | BC12: 741 | BD12: 831 | BE12: 747 | BF12: 791 | BG12: 713 | BH12: 767 | BI12: 669 | BJ12: 732 | BK12: 620 | BL12: 674 | BM12: 545 | BN12: 611 | BO12: 467 | BP12: 527 | BQ12: 395 | BR12: 446 | BS12: 301 | BT12: 361 | BU12: 211 | BV12: 255 | BW12: 295 | BX12: 386 | BY12: 11 | BZ12: 41 | CA12: 39 | CB12: 50 | CC12: 55 | CD12: 253 | CF12: 801 | CG12: 755 | CH12: 4740 | CI12: 415 | CK12: 186 | CL12: 867 | CM12: 3344 | CN12: 4167 | CO12: 1876 | CP12: 3723 | CQ12: 8441 | CR12: 3644 | CT12: 1643 | CU12: 3116 | CV12: 15216 | CX12: 186 | CY12: 201 | CZ12: 188 | DA12: 216 | DB12: 262 | DC12: 249 | DE12: 5292 | DF12: 5824 | DG12: 1812 | DH12: 3121 | DI12: 5495 | DK12: 602 | DL12: 5850 | DM12: 2007 | DN12: 1992 | DO12: 602 | DP12: 619 | DQ12: 5850 | DR12: 6314 | DS12: 1669 | DT12: 1975
A13: 150802 | C13: 6 | D13: 150802 | E13: DISTRITO AMBAR | F13: 2428 | H13: 1182 | I13: 1246 | K13: 16 | L13: 22 | M13: 15 | N13: 22 | O13: 26 | P13: 27 | Q13: 18 | R13: 13 | S13: 24 | T13: 20 | U13: 19 | V13: 19 | W13: 15 | X13: 13 | Y13: 19 | Z13: 12 | AA13: 22 | AB13: 18 | AC13: 20 | AD13: 16 | AE13: 14 | AF13: 15 | AG13: 18 | AH13: 20 | AI13: 25 | AJ13: 18 | AK13: 16 | AL13: 19 | AM13: 16 | AN13: 22 | AO13: 13 | AP13: 22 | AQ13: 16 | AR13: 11 | AS13: 15 | AT13: 20 | AU13: 20 | AV13: 15 | AW13: 19 | AX13: 23 | AY13: 96 | AZ13: 97 | BA13: 88 | BB13: 108 | BC13: 66 | BD13: 90 | BE13: 81 | BF13: 109 | BG13: 70 | BH13: 66 | BI13: 74 | BJ13: 74 | BK13: 59 | BL13: 69 | BM13: 64 | BN13: 51 | BO13: 47 | BP13: 54 | BQ13: 54 | BR13: 54 | BS13: 41 | BT13: 31 | BU13: 42 | BV13: 18 | BW13: 34 | BX13: 58 | BY13: 5 | BZ13: 8 | CA13: 9 | CB13: 8 | CC13: 13 | CD13: 65 | CE13: 0 | CF13: 94 | CG13: 91 | CH13: 544 | CI13: 138 | CK13: 38 | CL13: 165 | CM13: 443 | CN13: 453 | CO13: 213 | CP13: 466 | CQ13: 873 | CR13: 433 | CT13: 173 | CU13: 357 | CV13: 1695 | CX13: 38 | CY13: 37 | CZ13: 53 | DA13: 31 | DB13: 44 | DC13: 38 | DE13: 549 | DF13: 621 | DG13: 174 | DH13: 339 | DI13: 635 | DK13: 60 | DL13: 637 | DM13: 267 | DN13: 254 | DO13: 60 | DP13: 75 | DQ13: 637 | DR13: 702 | DS13: 218 | DT13: 215
B14: 01 | C14: 7 | D14: 5680 | E14: C.S. AMBAR | F14: 1528 | H14: 742 | I14: 786 | K14: 10 | L14: 14 | M14: 9 | N14: 14 | O14: 16 | P14: 17 | Q14: 11 | R14: 8 | S14: 15 | T14: 13 | U14: 12 | V14: 12 | W14: 9 | X14: 8 | Y14: 12 | Z14: 8 | AA14: 14 | AB14: 11 | AC14: 13 | AD14: 10 | AE14: 9 | AF14: 9 | AG14: 11 | AH14: 13 | AI14: 16 | AJ14: 11 | AK14: 10 | AL14: 12 | AM14: 10 | AN14: 14 | AO14: 8 | AP14: 14 | AQ14: 10 | AR14: 7 | AS14: 9 | AT14: 13 | AU14: 13 | AV14: 9 | AW14: 12 | AX14: 14 | AY14: 60 | AZ14: 61 | BA14: 55 | BB14: 68 | BC14: 42 | BD14: 57 | BE14: 51 | BF14: 69 | BG14: 44 | BH14: 42 | BI14: 47 | BJ14: 47 | BK14: 37 | BL14: 43 | BM14: 40 | BN14: 32 | BO14: 30 | BP14: 34 | BQ14: 34 | BR14: 34 | BS14: 26 | BT14: 20 | BU14: 26 | BV14: 11 | BW14: 21 | BX14: 37 | BY14: 3 | BZ14: 5 | CA14: 6 | CB14: 5 | CC14: 8 | CD14: 41 | CF14: 59 | CG14: 57 | CH14: 344 | CI14: 87 | CK14: 24 | CL14: 103 | CM14: 278 | CN14: 285 | CO14: 134 | CP14: 292 | CQ14: 551 | CR14: 273 | CT14: 109 | CU14: 224 | CV14: 1068 | CX14: 24 | CY14: 23 | CZ14: 33 | DA14: 19 | DB14: 28 | DC14: 24 | DE14: 346 | DF14: 392 | DG14: 109 | DH14: 215 | DI14: 401 | DK14: 37 | DL14: 401 | DM14: 167 | DN14: 160 | DO14: 37 | DP14: 48 | DQ14: 401 | DR14: 442 | DS14: 137 | DT14: 136
B15: 01 | C15: 8 | D15: 5681 | E15: P.S. AYNACA | F15: 900 | H15: 440 | I15: 460 | K15: 6 | L15: 8 | M15: 6 | N15: 8 | O15: 10 | P15: 10 | Q15: 7 | R15: 5 | S15: 9 | T15: 7 | U15: 7 | V15: 7 | W15: 6 | X15: 5 | Y15: 7 | Z15: 4 | AA15: 8 | AB15: 7 | AC15: 7 | AD15: 6 | AE15: 5 | AF15: 6 | AG15: 7 | AH15: 7 | AI15: 9 | AJ15: 7 | AK15: 6 | AL15: 7 | AM15: 6 | AN15: 8 | AO15: 5 | AP15: 8 | AQ15: 6 | AR15: 4 | AS15: 6 | AT15: 7 | AU15: 7 | AV15: 6 | AW15: 7 | AX15: 9 | AY15: 36 | AZ15: 36 | BA15: 33 | BB15: 40 | BC15: 24 | BD15: 33 | BE15: 30 | BF15: 40 | BG15: 26 | BH15: 24 | BI15: 27 | BJ15: 27 | BK15: 22 | BL15: 26 | BM15: 24 | BN15: 19 | BO15: 17 | BP15: 20 | BQ15: 20 | BR15: 20 | BS15: 15 | BT15: 11 | BU15: 16 | BV15: 7 | BW15: 13 | BX15: 21 | BY15: 2 | BZ15: 3 | CA15: 3 | CB15: 3 | CC15: 5 | CD15: 24 | CF15: 35 | CG15: 34 | CH15: 200 | CI15: 51 | CK15: 14 | CL15: 62 | CM15: 165 | CN15: 168 | CO15: 79 | CP15: 174 | CQ15: 322 | CR15: 160 | CT15: 64 | CU15: 133 | CV15: 627 | CX15: 14 | CY15: 14 | CZ15: 20 | DA15: 12 | DB15: 16 | DC15: 14 | DE15: 203 | DF15: 229 | DG15: 65 | DH15: 124 | DI15: 234 | DK15: 23 | DL15: 236 | DM15: 100 | DN15: 94 | DO15: 23 | DP15: 27 | DQ15: 236 | DR15: 260 | DS15: 81 | DT15: 79
A16: 150803 | C16: 9 | D16: 150803 | E16: DISTRITO CARQUIN | F16: 9351 | H16: 4508 | I16: 4843 | K16: 43 | L16: 49 | M16: 45 | N16: 57 | O16: 47 | P16: 36 | Q16: 52 | R16: 39 | S16: 47 | T16: 56 | U16: 41 | V16: 51 | W16: 73 | X16: 81 | Y16: 91 | Z16: 78 | AA16: 84 | AB16: 81 | AC16: 76 | AD16: 88 | AE16: 75 | AF16: 78 | AG16: 95 | AH16: 88 | AI16: 85 | AJ16: 81 | AK16: 97 | AL16: 95 | AM16: 73 | AN16: 89 | AO16: 85 | AP16: 82 | AQ16: 91 | AR16: 95 | AS16: 67 | AT16: 78 | AU16: 54 | AV16: 65 | AW16: 57 | AX16: 71 | AY16: 348 | AZ16: 369 | BA16: 368 | BB16: 385 | BC16: 351 | BD16: 416 | BE16: 364 | BF16: 371 | BG16: 325 | BH16: 383 | BI16: 296 | BJ16: 311 | BK16: 237 | BL16: 258 | BM16: 225 | BN16: 248 | BO16: 186 | BP16: 175 | BQ16: 128 | BR16: 162 | BS16: 125 | BT16: 126 | BU16: 76 | BV16: 90 | BW16: 101 | BX16: 111 | BY16: 5 | BZ16: 22 | CA16: 23 | CB16: 21 | CC16: 26 | CD16: 123 | CE16: 0 | CF16: 431 | CG16: 391 | CH16: 2235 | CI16: 172 | CK16: 92 | CL16: 379 | CM16: 1551 | CN16: 2098 | CO16: 1018 | CP16: 1717 | CQ16: 3785 | CR16: 1280 | CT16: 744 | CU16: 1601 | CV16: 6535 | CX16: 92 | CY16: 102 | CZ16: 83 | DA16: 91 | DB16: 103 | DC16: 92 | DE16: 2352 | DF16: 2547 | DG16: 681 | DH16: 1481 | DI16: 2626 | DK16: 316 | DL16: 2625 | DM16: 951 | DN16: 958 | DO16: 316 | DP16: 344 | DQ16: 2625 | DR16: 2877 | DS16: 616 | DT16: 664
B17: 02 | C17: 10 | D17: 5664 | E17: P.S. CARQUIN | F17: 9351 | H17: 4508 | I17: 4843 | K17: 43 | L17: 49 | M17: 45 | N17: 57 | O17: 47 | P17: 36 | Q17: 52 | R17: 39 | S17: 47 | T17: 56 | U17: 41 | V17: 51 | W17: 73 | X17: 81 | Y17: 91 | Z17: 78 | AA17: 84 | AB17: 81 | AC17: 76 | AD17: 88 | AE17: 75 | AF17: 78 | AG17: 95 | AH17: 88 | AI17: 85 | AJ17: 81 | AK17: 97 | AL17: 95 | AM17: 73 | AN17: 89 | AO17: 85 | AP17: 82 | AQ17: 91 | AR17: 95 | AS17: 67 | AT17: 78 | AU17: 54 | AV17: 65 | AW17: 57 | AX17: 71 | AY17: 348 | AZ17: 369 | BA17: 368 | BB17: 385 | BC17: 351 | BD17: 416 | BE17: 364 | BF17: 371 | BG17: 325 | BH17: 383 | BI17: 296 | BJ17: 311 | BK17: 237 | BL17: 258 | BM17: 225 | BN17: 248 | BO17: 186 | BP17: 175 | BQ17: 128 | BR17: 162 | BS17: 125 | BT17: 126 | BU17: 76 | BV17: 90 | BW17: 101 | BX17: 111 | BY17: 5 | BZ17: 22 | CA17: 23 | CB17: 21 | CC17: 26 | CD17: 123 | CF17: 431 | CG17: 391 | CH17: 2235 | CI17: 172 | CK17: 92 | CL17: 379 | CM17: 1551 | CN17: 2098 | CO17: 1018 | CP17: 1717 | CQ17: 3785 | CR17: 1280 | CT17: 744 | CU17: 1601 | CV17: 6535 | CX17: 92 | CY17: 102 | CZ17: 83 | DA17: 91 | DB17: 103 | DC17: 92 | DE17: 2352 | DF17: 2547 | DG17: 681 | DH17: 1481 | DI17: 2626 | DK17: 316 | DL17: 2625 | DM17: 951 | DN17: 958 | DO17: 316 | DP17: 344 | DQ17: 2625 | DR17: 2877 | DS17: 616 | DT17: 664
A18: 150804 | C18: 11 | D18: 150804 | E18: DISTRITO CHECRAS | F18: 896 | H18: 429 | I18: 467 | K18: 3 | L18: 5 | M18: 2 | N18: 3 | O18: 4 | P18: 6 | Q18: 3 | R18: 2 | S18: 4 | T18: 3 | U18: 2 | V18: 7 | W18: 3 | X18: 4 | Y18: 8 | Z18: 3 | AA18: 3 | AB18: 4 | AC18: 7 | AD18: 2 | AE18: 3 | AF18: 4 | AG18: 6 | AH18: 7 | AI18: 5 | AJ18: 11 | AK18: 11 | AL18: 3 | AM18: 5 | AN18: 7 | AO18: 7 | AP18: 8 | AQ18: 18 | AR18: 11 | AS18: 10 | AT18: 8 | AU18: 4 | AV18: 9 | AW18: 7 | AX18: 1 | AY18: 19 | AZ18: 31 | BA18: 31 | BB18: 27 | BC18: 17 | BD18: 22 | BE18: 19 | BF18: 24 | BG18: 24 | BH18: 15 | BI18: 23 | BJ18: 15 | BK18: 25 | BL18: 32 | BM18: 32 | BN18: 29 | BO18: 24 | BP18: 24 | BQ18: 27 | BR18: 30 | BS18: 24 | BT18: 29 | BU18: 12 | BV18: 22 | BW18: 37 | BX18: 59 | BY18: 3 | BZ18: 3 | CA18: 3 | CB18: 0 | CC18: 2 | CD18: 13 | CE18: 0 | CF18: 32 | CG18: 37 | CH18: 134 | CI18: 24 | CK18: 8 | CL18: 27 | CM18: 98 | CN18: 167 | CO18: 104 | CP18: 129 | CQ18: 277 | CR18: 288 | CT18: 43 | CU18: 145 | CV18: 673 | CX18: 8 | CY18: 5 | CZ18: 10 | DA18: 5 | DB18: 7 | DC18: 9 | DE18: 195 | DF18: 188 | DG18: 85 | DH18: 76 | DI18: 171 | DK18: 40 | DL18: 201 | DM18: 64 | DN18: 64 | DO18: 40 | DP18: 34 | DQ18: 201 | DR18: 205 | DS18: 124 | DT18: 164
B19: 05 | C19: 12 | D19: 5663 | E19: P.S. PUÑUN | F19: 896 | H19: 429 | I19: 467 | K19: 3 | L19: 5 | M19: 2 | N19: 3 | O19: 4 | P19: 6 | Q19: 3 | R19: 2 | S19: 4 | T19: 3 | U19: 2 | V19: 7 | W19: 3 | X19: 4 | Y19: 8 | Z19: 3 | AA19: 3 | AB19: 4 | AC19: 7 | AD19: 2 | AE19: 3 | AF19: 4 | AG19: 6 | AH19: 7 | AI19: 5 | AJ19: 11 | AK19: 11 | AL19: 3 | AM19: 5 | AN19: 7 | AO19: 7 | AP19: 8 | AQ19: 18 | AR19: 11 | AS19: 10 | AT19: 8 | AU19: 4 | AV19: 9 | AW19: 7 | AX19: 1 | AY19: 19 | AZ19: 31 | BA19: 31 | BB19: 27 | BC19: 17 | BD19: 22 | BE19: 19 | BF19: 24 | BG19: 24 | BH19: 15 | BI19: 23 | BJ19: 15 | BK19: 25 | BL19: 32 | BM19: 32 | BN19: 29 | BO19: 24 | BP19: 24 | BQ19: 27 | BR19: 30 | BS19: 24 | BT19: 29 | BU19: 12 | BV19: 22 | BW19: 37 | BX19: 59 | BY19: 3 | BZ19: 3 | CA19: 3 | CB19: 0 | CC19: 2 | CD19: 13 | CF19: 32 | CG19: 37 | CH19: 134 | CI19: 24 | CK19: 8 | CL19: 27 | CM19: 98 | CN19: 167 | CO19: 104 | CP19: 129 | CQ19: 277 | CR19: 288 | CT19: 43 | CU19: 145 | CV19: 673 | CX19: 8 | CY19: 5 | CZ19: 10 | DA19: 5 | DB19: 7 | DC19: 9 | DE19: 195 | DF19: 188 | DG19: 85 | DH19: 76 | DI19: 171 | DK19: 40 | DL19: 201 | DM19: 64 | DN19: 64 | DO19: 40 | DP19: 34 | DQ19: 201 | DR19: 205 | DS19: 124 | DT19: 164
A20: 150805 | C20: 13 | D20: 150805 | E20: DISTRITO HUALMAY | F20: 30830 | H20: 14850 | I20: 15980 | K20: 200 | L20: 190 | M20: 191 | N20: 187 | O20: 175 | P20: 170 | Q20: 194 | R20: 186 | S20: 208 | T20: 205 | U20: 223 | V20: 236 | W20: 245 | X20: 259 | Y20: 279 | Z20: 298 | AA20: 285 | AB20: 270 | AC20: 262 | AD20: 287 | AE20: 256 | AF20: 242 | AG20: 235 | AH20: 243 | AI20: 271 | AJ20: 261 | AK20: 258 | AL20: 272 | AM20: 233 | AN20: 263 | AO20: 228 | AP20: 253 | AQ20: 213 | AR20: 235 | AS20: 234 | AT20: 232 | AU20: 248 | AV20: 230 | AW20: 184 | AX20: 231 | AY20: 1146 | AZ20: 1200 | BA20: 1275 | BB20: 1414 | BC20: 1187 | BD20: 1232 | BE20: 1116 | BF20: 1276 | BG20: 1021 | BH20: 1117 | BI20: 1003 | BJ20: 1064 | BK20: 875 | BL20: 850 | BM20: 706 | BN20: 768 | BO20: 554 | BP20: 596 | BQ20: 448 | BR20: 542 | BS20: 343 | BT20: 390 | BU20: 260 | BV20: 340 | BW20: 294 | BX20: 441 | BY20: 16 | BZ20: 89 | CA20: 85 | CB20: 111 | CC20: 105 | CD20: 510 | CE20: 0 | CF20: 1281 | CG20: 1181 | CH20: 7303 | CI20: 667 | CK20: 390 | CL20: 1516 | CM20: 5526 | CN20: 6573 | CO20: 2953 | CP20: 5928 | CQ20: 12215 | CR20: 4208 | CT20: 2644 | CU20: 4822 | CV20: 21458 | CX20: 390 | CY20: 378 | CZ20: 345 | DA20: 380 | DB20: 413 | DC20: 459 | DE20: 7737 | DF20: 8317 | DG20: 2214 | DH20: 4689 | DI20: 8484 | DK20: 908 | DL20: 8761 | DM20: 3282 | DN20: 3306 | DO20: 908 | DP20: 983 | DQ20: 8761 | DR20: 9382 | DS20: 1899 | DT20: 2309
B21: 02 | C21: 14 | D21: 5665 | E21: C.S. HUALMAY | F21: 14801 | H21: 7129 | I21: 7672 | K21: 96 | L21: 92 | M21: 91 | N21: 90 | O21: 84 | P21: 82 | Q21: 93 | R21: 89 | S21: 100 | T21: 98 | U21: 107 | V21: 113 | W21: 118 | X21: 125 | Y21: 134 | Z21: 143 | AA21: 136 | AB21: 130 | AC21: 126 | AD21: 138 | AE21: 123 | AF21: 116 | AG21: 112 | AH21: 117 | AI21: 130 | AJ21: 125 | AK21: 124 | AL21: 130 | AM21: 112 | AN21: 126 | AO21: 110 | AP21: 122 | AQ21: 102 | AR21: 112 | AS21: 113 | AT21: 111 | AU21: 119 | AV21: 110 | AW21: 89 | AX21: 111 | AY21: 550 | AZ21: 576 | BA21: 612 | BB21: 679 | BC21: 570 | BD21: 591 | BE21: 535 | BF21: 613 | BG21: 490 | BH21: 536 | BI21: 482 | BJ21: 511 | BK21: 420 | BL21: 408 | BM21: 339 | BN21: 369 | BO21: 266 | BP21: 286 | BQ21: 215 | BR21: 260 | BS21: 165 | BT21: 188 | BU21: 124 | BV21: 164 | BW21: 142 | BX21: 211 | BY21: 8 | BZ21: 43 | CA21: 40 | CB21: 53 | CC21: 50 | CD21: 245 | CF21: 614 | CG21: 566 | CH21: 3506 | CI21: 320 | CK21: 188 | CL21: 727 | CM21: 2653 | CN21: 3155 | CO21: 1417 | CP21: 2846 | CQ21: 5864 | CR21: 2021 | CT21: 1270 | CU21: 2314 | CV21: 10302 | CX21: 188 | CY21: 181 | CZ21: 166 | DA21: 182 | DB21: 198 | DC21: 220 | DE21: 3714 | DF21: 3993 | DG21: 1063 | DH21: 2251 | DI21: 4072 | DK21: 437 | DL21: 4206 | DM21: 1574 | DN21: 1588 | DO21: 437 | DP21: 471 | DQ21: 4206 | DR21: 4504 | DS21: 912 | DT21: 1109
B22: 02 | C22: 15 | D22: 5666 | E22: P.S. DGO. MANDAMIENTO | F22: 11096 | H22: 5345 | I22: 5751 | K22: 72 | L22: 68 | M22: 69 | N22: 67 | O22: 63 | P22: 61 | Q22: 70 | R22: 67 | S22: 75 | T22: 74 | U22: 80 | V22: 85 | W22: 88 | X22: 93 | Y22: 100 | Z22: 107 | AA22: 103 | AB22: 97 | AC22: 94 | AD22: 103 | AE22: 92 | AF22: 87 | AG22: 85 | AH22: 87 | AI22: 98 | AJ22: 94 | AK22: 93 | AL22: 98 | AM22: 84 | AN22: 95 | AO22: 82 | AP22: 91 | AQ22: 77 | AR22: 85 | AS22: 84 | AT22: 84 | AU22: 89 | AV22: 83 | AW22: 66 | AX22: 83 | AY22: 413 | AZ22: 432 | BA22: 459 | BB22: 509 | BC22: 427 | BD22: 444 | BE22: 402 | BF22: 459 | BG22: 368 | BH22: 402 | BI22: 361 | BJ22: 383 | BK22: 315 | BL22: 306 | BM22: 254 | BN22: 276 | BO22: 199 | BP22: 215 | BQ22: 161 | BR22: 195 | BS22: 123 | BT22: 140 | BU22: 94 | BV22: 122 | BW22: 105 | BX22: 159 | BY22: 6 | BZ22: 32 | CA22: 31 | CB22: 40 | CC22: 38 | CD22: 183 | CF22: 461 | CG22: 426 | CH22: 2629 | CI22: 240 | CK22: 140 | CL22: 546 | CM22: 1987 | CN22: 2366 | CO22: 1065 | CP22: 2134 | CQ22: 4397 | CR22: 1513 | CT22: 950 | CU22: 1737 | CV22: 7723 | CX22: 140 | CY22: 136 | CZ22: 124 | DA22: 137 | DB22: 149 | DC22: 165 | DE22: 2785 | DF22: 2994 | DG22: 797 | DH22: 1688 | DI22: 3055 | DK22: 327 | DL22: 3154 | DM22: 1182 | DN22: 1188 | DO22: 327 | DP22: 355 | DQ22: 3154 | DR22: 3377 | DS22: 682 | DT22: 831
B23: 02 | C23: 16 | D23: 5667 | E23: P.S. CAMPO ALEGRE | F23: 4933 | H23: 2376 | I23: 2557 | K23: 32 | L23: 30 | M23: 31 | N23: 30 | O23: 28 | P23: 27 | Q23: 31 | R23: 30 | S23: 33 | T23: 33 | U23: 36 | V23: 38 | W23: 39 | X23: 41 | Y23: 45 | Z23: 48 | AA23: 46 | AB23: 43 | AC23: 42 | AD23: 46 | AE23: 41 | AF23: 39 | AG23: 38 | AH23: 39 | AI23: 43 | AJ23: 42 | AK23: 41 | AL23: 44 | AM23: 37 | AN23: 42 | AO23: 36 | AP23: 40 | AQ23: 34 | AR23: 38 | AS23: 37 | AT23: 37 | AU23: 40 | AV23: 37 | AW23: 29 | AX23: 37 | AY23: 183 | AZ23: 192 | BA23: 204 | BB23: 226 | BC23: 190 | BD23: 197 | BE23: 179 | BF23: 204 | BG23: 163 | BH23: 179 | BI23: 160 | BJ23: 170 | BK23: 140 | BL23: 136 | BM23: 113 | BN23: 123 | BO23: 89 | BP23: 95 | BQ23: 72 | BR23: 87 | BS23: 55 | BT23: 62 | BU23: 42 | BV23: 54 | BW23: 47 | BX23: 71 | BY23: 2 | BZ23: 14 | CA23: 14 | CB23: 18 | CC23: 17 | CD23: 82 | CF23: 206 | CG23: 189 | CH23: 1168 | CI23: 107 | CK23: 62 | CL23: 243 | CM23: 886 | CN23: 1052 | CO23: 471 | CP23: 948 | CQ23: 1954 | CR23: 674 | CT23: 424 | CU23: 771 | CV23: 3433 | CX23: 62 | CY23: 61 | CZ23: 55 | DA23: 61 | DB23: 66 | DC23: 74 | DE23: 1238 | DF23: 1330 | DG23: 354 | DH23: 750 | DI23: 1357 | DK23: 144 | DL23: 1401 | DM23: 526 | DN23: 530 | DO23: 144 | DP23: 157 | DQ23: 1401 | DR23: 1501 | DS23: 305 | DT23: 369
A24: 150806 | C24: 17 | D24: 150806 | E24: DISTRITO HUAURA | F24: 40247 | H24: 19414 | I24: 20833 | K24: 272 | L24: 276 | M24: 259 | N24: 241 | O24: 239 | P24: 241 | Q24: 304 | R24: 271 | S24: 318 | T24: 308 | U24: 317 | V24: 279 | W24: 361 | X24: 406 | Y24: 379 | Z24: 339 | AA24: 360 | AB24: 351 | AC24: 340 | AD24: 347 | AE24: 352 | AF24: 361 | AG24: 351 | AH24: 378 | AI24: 356 | AJ24: 378 | AK24: 326 | AL24: 354 | AM24: 319 | AN24: 340 | AO24: 306 | AP24: 335 | AQ24: 299 | AR24: 367 | AS24: 278 | AT24: 322 | AU24: 294 | AV24: 324 | AW24: 295 | AX24: 318 | AY24: 1447 | AZ24: 1566 | BA24: 1791 | BB24: 1902 | BC24: 1676 | BD24: 1717 | BE24: 1427 | BF24: 1586 | BG24: 1378 | BH24: 1429 | BI24: 1150 | BJ24: 1340 | BK24: 998 | BL24: 1204 | BM24: 874 | BN24: 1000 | BO24: 740 | BP24: 772 | BQ24: 537 | BR24: 590 | BS24: 408 | BT24: 442 | BU24: 290 | BV24: 304 | BW24: 373 | BX24: 445 | BY24: 35 | BZ24: 128 | CA24: 120 | CB24: 144 | CC24: 156 | CD24: 637 | CE24: 0 | CF24: 1811 | CG24: 1666 | CH24: 9540 | CI24: 1020 | CK24: 548 | CL24: 2181 | CM24: 7650 | CN24: 8901 | CO24: 3980 | CP24: 7937 | CQ24: 15779 | CR24: 4901 | CT24: 3479 | CU24: 6653 | CV24: 27386 | CX24: 548 | CY24: 500 | CZ24: 480 | DA24: 575 | DB24: 626 | DC24: 596 | DE24: 10034 | DF24: 10950 | DG24: 2976 | DH24: 6072 | DI24: 11206 | DK24: 1202 | DL24: 11330 | DM24: 4534 | DN24: 4530 | DO24: 1202 | DP24: 1364 | DQ24: 11330 | DR24: 12386 | DS24: 2348 | DT24: 2553
B25: 01 | C25: 18 | D25: 5682 | E25: C.S. HUAURA | F25: 18113 | H25: 8734 | I25: 9379 | K25: 122 | L25: 124 | M25: 116 | N25: 109 | O25: 108 | P25: 109 | Q25: 138 | R25: 122 | S25: 143 | T25: 138 | U25: 143 | V25: 126 | W25: 162 | X25: 183 | Y25: 171 | Z25: 153 | AA25: 162 | AB25: 157 | AC25: 153 | AD25: 157 | AE25: 158 | AF25: 162 | AG25: 157 | AH25: 170 | AI25: 160 | AJ25: 170 | AK25: 147 | AL25: 159 | AM25: 143 | AN25: 153 | AO25: 138 | AP25: 151 | AQ25: 134 | AR25: 165 | AS25: 125 | AT25: 145 | AU25: 132 | AV25: 146 | AW25: 132 | AX25: 143 | AY25: 652 | AZ25: 705 | BA25: 806 | BB25: 856 | BC25: 754 | BD25: 773 | BE25: 643 | BF25: 713 | BG25: 620 | BH25: 643 | BI25: 516 | BJ25: 603 | BK25: 449 | BL25: 543 | BM25: 393 | BN25: 450 | BO25: 333 | BP25: 347 | BQ25: 242 | BR25: 266 | BS25: 183 | BT25: 199 | BU25: 131 | BV25: 138 | BW25: 168 | BX25: 201 | BY25: 16 | BZ25: 58 | CA25: 54 | CB25: 65 | CC25: 70 | CD25: 287 | CF25: 814 | CG25: 750 | CH25: 4293 | CI25: 459 | CK25: 246 | CL25: 983 | CM25: 3443 | CN25: 4004 | CO25: 1790 | CP25: 3572 | CQ25: 7100 | CR25: 2208 | CT25: 1567 | CU25: 2990 | CV25: 12327 | CX25: 246 | CY25: 225 | CZ25: 217 | DA25: 260 | DB25: 281 | DC25: 269 | DE25: 4514 | DF25: 4928 | DG25: 1340 | DH25: 2732 | DI25: 5043 | DK25: 540 | DL25: 5097 | DM25: 2040 | DN25: 2039 | DO25: 540 | DP25: 614 | DQ25: 5097 | DR25: 5575 | DS25: 1057 | DT25: 1151
B26: 01 | C26: 19 | D26: 5686 | E26: P.S. HUMAYA | F26: 3625 | H26: 1748 | I26: 1877 | K26: 24 | L26: 25 | M26: 23 | N26: 22 | O26: 22 | P26: 22 | Q26: 27 | R26: 24 | S26: 29 | T26: 28 | U26: 29 | V26: 25 | W26: 32 | X26: 37 | Y26: 34 | Z26: 31 | AA26: 32 | AB26: 32 | AC26: 31 | AD26: 31 | AE26: 32 | AF26: 32 | AG26: 32 | AH26: 34 | AI26: 32 | AJ26: 34 | AK26: 29 | AL26: 32 | AM26: 29 | AN26: 31 | AO26: 28 | AP26: 30 | AQ26: 27 | AR26: 33 | AS26: 25 | AT26: 29 | AU26: 26 | AV26: 29 | AW26: 27 | AX26: 29 | AY26: 130 | AZ26: 141 | BA26: 161 | BB26: 171 | BC26: 151 | BD26: 155 | BE26: 128 | BF26: 143 | BG26: 124 | BH26: 129 | BI26: 104 | BJ26: 121 | BK26: 90 | BL26: 108 | BM26: 79 | BN26: 90 | BO26: 67 | BP26: 69 | BQ26: 48 | BR26: 53 | BS26: 37 | BT26: 40 | BU26: 26 | BV26: 27 | BW26: 33 | BX26: 40 | BY26: 3 | BZ26: 12 | CA26: 11 | CB26: 13 | CC26: 14 | CD26: 57 | CF26: 163 | CG26: 150 | CH26: 860 | CI26: 92 | CK26: 49 | CL26: 197 | CM26: 690 | CN26: 803 | CO26: 359 | CP26: 714 | CQ26: 1422 | CR26: 440 | CT26: 314 | CU26: 600 | CV26: 2465 | CX26: 49 | CY26: 45 | CZ26: 44 | DA26: 51 | DB26: 57 | DC26: 54 | DE26: 904 | DF26: 986 | DG26: 267 | DH26: 548 | DI26: 1010 | DK26: 109 | DL26: 1020 | DM26: 408 | DN26: 409 | DO26: 109 | DP26: 123 | DQ26: 1020 | DR26: 1116 | DS26: 211 | DT26: 229
B27: 01 | C27: 20 | D27: 5683 | E27: P.S. VILCAHUAURA | F27: 3214 | H27: 1552 | I27: 1662 | K27: 22 | L27: 22 | M27: 21 | N27: 19 | O27: 19 | P27: 19 | Q27: 24 | R27: 22 | S27: 25 | T27: 25 | U27: 25 | V27: 22 | W27: 29 | X27: 32 | Y27: 30 | Z27: 27 | AA27: 29 | AB27: 28 | AC27: 27 | AD27: 28 | AE27: 28 | AF27: 29 | AG27: 28 | AH27: 30 | AI27: 28 | AJ27: 30 | AK27: 26 | AL27: 28 | AM27: 26 | AN27: 27 | AO27: 24 | AP27: 27 | AQ27: 24 | AR27: 29 | AS27: 22 | AT27: 26 | AU27: 24 | AV27: 26 | AW27: 24 | AX27: 25 | AY27: 116 | AZ27: 125 | BA27: 143 | BB27: 152 | BC27: 134 | BD27: 137 | BE27: 114 | BF27: 127 | BG27: 110 | BH27: 114 | BI27: 92 | BJ27: 107 | BK27: 80 | BL27: 96 | BM27: 70 | BN27: 80 | BO27: 59 | BP27: 62 | BQ27: 43 | BR27: 47 | BS27: 33 | BT27: 35 | BU27: 23 | BV27: 24 | BW27: 30 | BX27: 35 | BY27: 3 | BZ27: 10 | CA27: 10 | CB27: 12 | CC27: 12 | CD27: 51 | CF27: 144 | CG27: 133 | CH27: 762 | CI27: 82 | CK27: 44 | CL27: 174 | CM27: 610 | CN27: 709 | CO27: 317 | CP27: 635 | CQ27: 1261 | CR27: 391 | CT27: 277 | CU27: 531 | CV27: 2188 | CX27: 44 | CY27: 40 | CZ27: 38 | DA27: 46 | DB27: 50 | DC27: 47 | DE27: 802 | DF27: 875 | DG27: 238 | DH27: 485 | DI27: 895 | DK27: 96 | DL27: 907 | DM27: 361 | DN27: 361 | DO27: 96 | DP27: 109 | DQ27: 907 | DR27: 989 | DS27: 188 | DT27: 203
B28: 01 | C28: 21 | D28: 5684 | E28: P.S. PEÑICO | F28: 403 | H28: 196 | I28: 207 | K28: 3 | L28: 3 | M28: 3 | N28: 2 | O28: 2 | P28: 2 | Q28: 3 | R28: 3 | S28: 3 | T28: 3 | U28: 3 | V28: 3 | W28: 4 | X28: 4 | Y28: 4 | Z28: 3 | AA28: 4 | AB28: 4 | AC28: 3 | AD28: 3 | AE28: 4 | AF28: 4 | AG28: 4 | AH28: 4 | AI28: 4 | AJ28: 4 | AK28: 3 | AL28: 4 | AM28: 3 | AN28: 3 | AO28: 3 | AP28: 3 | AQ28: 3 | AR28: 4 | AS28: 3 | AT28: 3 | AU28: 3 | AV28: 3 | AW28: 3 | AX28: 3 | AY28: 14 | AZ28: 16 | BA28: 18 | BB28: 19 | BC28: 17 | BD28: 17 | BE28: 14 | BF28: 16 | BG28: 14 | BH28: 14 | BI28: 12 | BJ28: 13 | BK28: 10 | BL28: 12 | BM28: 9 | BN28: 10 | BO28: 7 | BP28: 8 | BQ28: 5 | BR28: 6 | BS28: 4 | BT28: 4 | BU28: 3 | BV28: 3 | BW28: 4 | BX28: 4 | BY28: 0 | BZ28: 1 | CA28: 1 | CB28: 1 | CC28: 2 | CD28: 6 | CF28: 19 | CG28: 16 | CH28: 95 | CI28: 10 | CK28: 6 | CL28: 21 | CM28: 78 | CN28: 91 | CO28: 40 | CP28: 79 | CQ28: 158 | CR28: 48 | CT28: 35 | CU28: 68 | CV28: 273 | CX28: 6 | CY28: 5 | CZ28: 4 | DA28: 6 | DB28: 6 | DC28: 6 | DE28: 101 | DF28: 109 | DG28: 30 | DH28: 60 | DI28: 111 | DK28: 12 | DL28: 114 | DM28: 47 | DN28: 46 | DO28: 12 | DP28: 13 | DQ28: 114 | DR28: 123 | DS28: 23 | DT28: 25
B29: 01 | C29: 22 | D29: 5685 | E29: P.S. EL SOCORRO | F29: 14892 | H29: 7184 | I29: 7708 | K29: 101 | L29: 102 | M29: 96 | N29: 89 | O29: 88 | P29: 89 | Q29: 112 | R29: 100 | S29: 118 | T29: 114 | U29: 117 | V29: 103 | W29: 134 | X29: 150 | Y29: 140 | Z29: 125 | AA29: 133 | AB29: 130 | AC29: 126 | AD29: 128 | AE29: 130 | AF29: 134 | AG29: 130 | AH29: 140 | AI29: 132 | AJ29: 140 | AK29: 121 | AL29: 131 | AM29: 118 | AN29: 126 | AO29: 113 | AP29: 124 | AQ29: 111 | AR29: 136 | AS29: 103 | AT29: 119 | AU29: 109 | AV29: 120 | AW29: 109 | AX29: 118 | AY29: 535 | AZ29: 579 | BA29: 663 | BB29: 704 | BC29: 620 | BD29: 635 | BE29: 528 | BF29: 587 | BG29: 510 | BH29: 529 | BI29: 426 | BJ29: 496 | BK29: 369 | BL29: 445 | BM29: 323 | BN29: 370 | BO29: 274 | BP29: 286 | BQ29: 199 | BR29: 218 | BS29: 151 | BT29: 164 | BU29: 107 | BV29: 112 | BW29: 138 | BX29: 165 | BY29: 13 | BZ29: 47 | CA29: 44 | CB29: 53 | CC29: 58 | CD29: 236 | CF29: 671 | CG29: 617 | CH29: 3530 | CI29: 377 | CK29: 203 | CL29: 806 | CM29: 2829 | CN29: 3294 | CO29: 1474 | CP29: 2937 | CQ29: 5838 | CR29: 1814 | CT29: 1286 | CU29: 2464 | CV29: 10133 | CX29: 203 | CY29: 185 | CZ29: 177 | DA29: 212 | DB29: 232 | DC29: 220 | DE29: 3713 | DF29: 4052 | DG29: 1101 | DH29: 2247 | DI29: 4147 | DK29: 445 | DL29: 4192 | DM29: 1678 | DN29: 1675 | DO29: 445 | DP29: 505 | DQ29: 4192 | DR29: 4583 | DS29: 869 | DT29: 945
A30: 150807 | C30: 23 | D30: 150807 | E30: DISTRITO LEONCIO PRADO | F30: 2234 | H30: 1086 | I30: 1148 | K30: 19 | L30: 17 | M30: 19 | N30: 20 | O30: 20 | P30: 13 | Q30: 28 | R30: 15 | S30: 13 | T30: 13 | U30: 15 | V30: 9 | W30: 10 | X30: 19 | Y30: 13 | Z30: 12 | AA30: 13 | AB30: 17 | AC30: 13 | AD30: 20 | AE30: 13 | AF30: 13 | AG30: 16 | AH30: 19 | AI30: 14 | AJ30: 19 | AK30: 17 | AL30: 23 | AM30: 13 | AN30: 20 | AO30: 22 | AP30: 17 | AQ30: 16 | AR30: 23 | AS30: 16 | AT30: 16 | AU30: 20 | AV30: 20 | AW30: 20 | AX30: 17 | AY30: 99 | AZ30: 108 | BA30: 65 | BB30: 87 | BC30: 91 | BD30: 81 | BE30: 77 | BF30: 81 | BG30: 71 | BH30: 66 | BI30: 71 | BJ30: 70 | BK30: 54 | BL30: 61 | BM30: 50 | BN30: 43 | BO30: 46 | BP30: 51 | BQ30: 51 | BR30: 55 | BS30: 27 | BT30: 26 | BU30: 20 | BV30: 28 | BW30: 34 | BX30: 49 | BY30: 2 | BZ30: 8 | CA30: 6 | CB30: 11 | CC30: 11 | CD30: 59 | CE30: 0 | CF30: 94 | CG30: 93 | CH30: 493 | CI30: 117 | CK30: 36 | CL30: 141 | CM30: 379 | CN30: 418 | CO30: 216 | CP30: 436 | CQ30: 816 | CR30: 387 | CT30: 141 | CU30: 354 | CV30: 1562 | CX30: 36 | CY30: 39 | CZ30: 33 | DA30: 43 | DB30: 26 | DC30: 24 | DE30: 525 | DF30: 540 | DG30: 155 | DH30: 298 | DI30: 586 | DK30: 67 | DL30: 618 | DM30: 223 | DN30: 229 | DO30: 67 | DP30: 76 | DQ30: 618 | DR30: 634 | DS30: 178 | DT30: 209
B31: 03 | C31: 24 | D31: 5778 | E31: P.S. AUQUIMARCA | F31: 118 | H31: 60 | I31: 58 | K31: 1 | L31: 1 | M31: 1 | N31: 1 | O31: 1 | P31: 1 | Q31: 1 | R31: 1 | S31: 1 | T31: 1 | U31: 1 | V31: 0 | W31: 1 | X31: 1 | Y31: 1 | Z31: 1 | AA31: 1 | AB31: 1 | AC31: 1 | AD31: 1 | AE31: 1 | AF31: 1 | AG31: 1 | AH31: 1 | AI31: 1 | AJ31: 1 | AK31: 1 | AL31: 1 | AM31: 1 | AN31: 1 | AO31: 1 | AP31: 1 | AQ31: 1 | AR31: 1 | AS31: 1 | AT31: 1 | AU31: 1 | AV31: 1 | AW31: 1 | AX31: 1 | AY31: 5 | AZ31: 5 | BA31: 3 | BB31: 4 | BC31: 5 | BD31: 4 | BE31: 4 | BF31: 4 | BG31: 4 | BH31: 3 | BI31: 4 | BJ31: 4 | BK31: 3 | BL31: 3 | BM31: 3 | BN31: 2 | BO31: 2 | BP31: 3 | BQ31: 3 | BR31: 3 | BS31: 1 | BT31: 1 | BU31: 1 | BV31: 1 | BW31: 2 | BX31: 2 | BY31: 0 | BZ31: 0 | CA31: 0 | CB31: 1 | CC31: 1 | CD31: 3 | CF31: 5 | CG31: 5 | CH31: 24 | CI31: 6 | CK31: 2 | CL31: 8 | CM31: 23 | CN31: 25 | CO31: 12 | CP31: 21 | CQ31: 43 | CR31: 19 | CT31: 9 | CU31: 20 | CV31: 79 | CX31: 2 | CY31: 2 | CZ31: 2 | DA31: 2 | DB31: 2 | DC31: 1 | DE31: 28 | DF31: 27 | DG31: 8 | DH31: 15 | DI31: 29 | DK31: 4 | DL31: 33 | DM31: 14 | DN31: 13 | DO31: 4 | DP31: 4 | DQ31: 33 | DR31: 31 | DS31: 9 | DT31: 10
B32: 03 | C32: 25 | D32: 5779 | E32: P.S. PARAN | F32: 778 | H32: 378 | I32: 400 | K32: 7 | L32: 6 | M32: 7 | N32: 7 | O32: 7 | P32: 4 | Q32: 10 | R32: 5 | S32: 4 | T32: 4 | U32: 5 | V32: 3 | W32: 3 | X32: 7 | Y32: 4 | Z32: 4 | AA32: 4 | AB32: 6 | AC32: 4 | AD32: 7 | AE32: 4 | AF32: 4 | AG32: 6 | AH32: 7 | AI32: 4 | AJ32: 7 | AK32: 6 | AL32: 8 | AM32: 4 | AN32: 7 | AO32: 8 | AP32: 6 | AQ32: 6 | AR32: 8 | AS32: 6 | AT32: 6 | AU32: 7 | AV32: 7 | AW32: 7 | AX32: 6 | AY32: 35 | AZ32: 38 | BA32: 23 | BB32: 30 | BC32: 32 | BD32: 28 | BE32: 27 | BF32: 28 | BG32: 25 | BH32: 23 | BI32: 25 | BJ32: 25 | BK32: 19 | BL32: 21 | BM32: 18 | BN32: 15 | BO32: 16 | BP32: 18 | BQ32: 18 | BR32: 19 | BS32: 9 | BT32: 9 | BU32: 7 | BV32: 10 | BW32: 11 | BX32: 17 | BY32: 0 | BZ32: 3 | CA32: 2 | CB32: 4 | CC32: 4 | CD32: 21 | CF32: 33 | CG32: 33 | CH32: 172 | CI32: 41 | CK32: 13 | CL32: 48 | CM32: 129 | CN32: 144 | CO32: 76 | CP32: 153 | CQ32: 286 | CR32: 134 | CT32: 47 | CU32: 124 | CV32: 546 | CX32: 13 | CY32: 14 | CZ32: 11 | DA32: 15 | DB32: 8 | DC32: 8 | DE32: 185 | DF32: 188 | DG32: 54 | DH32: 104 | DI32: 205 | DK32: 24 | DL32: 218 | DM32: 75 | DN32: 79 | DO32: 24 | DP32: 27 | DQ32: 218 | DR32: 221 | DS32: 61 | DT32: 73
B33: 03 | C33: 26 | D33: 6725 | E33: P.S. SANTA CRUZ | F33: 447 | H33: 218 | I33: 229 | K33: 4 | L33: 3 | M33: 4 | N33: 4 | O33: 4 | P33: 3 | Q33: 6 | R33: 3 | S33: 3 | T33: 3 | U33: 3 | V33: 2 | W33: 2 | X33: 4 | Y33: 3 | Z33: 2 | AA33: 3 | AB33: 3 | AC33: 3 | AD33: 4 | AE33: 3 | AF33: 3 | AG33: 3 | AH33: 4 | AI33: 3 | AJ33: 4 | AK33: 3 | AL33: 5 | AM33: 3 | AN33: 4 | AO33: 4 | AP33: 3 | AQ33: 3 | AR33: 5 | AS33: 3 | AT33: 3 | AU33: 4 | AV33: 4 | AW33: 4 | AX33: 3 | AY33: 20 | AZ33: 22 | BA33: 13 | BB33: 17 | BC33: 18 | BD33: 16 | BE33: 15 | BF33: 16 | BG33: 14 | BH33: 13 | BI33: 14 | BJ33: 14 | BK33: 11 | BL33: 12 | BM33: 10 | BN33: 9 | BO33: 9 | BP33: 10 | BQ33: 10 | BR33: 11 | BS33: 5 | BT33: 5 | BU33: 4 | BV33: 6 | BW33: 7 | BX33: 9 | BY33: 0 | BZ33: 2 | CA33: 1 | CB33: 2 | CC33: 2 | CD33: 12 | CF33: 20 | CG33: 18 | CH33: 98 | CI33: 23 | CK33: 7 | CL33: 30 | CM33: 79 | CN33: 85 | CO33: 43 | CP33: 87 | CQ33: 162 | CR33: 76 | CT33: 29 | CU33: 71 | CV33: 310 | CX33: 7 | CY33: 8 | CZ33: 7 | DA33: 9 | DB33: 6 | DC33: 5 | DE33: 104 | DF33: 107 | DG33: 31 | DH33: 59 | DI33: 116 | DK33: 13 | DL33: 123 | DM33: 47 | DN33: 47 | DO33: 13 | DP33: 15 | DQ33: 123 | DR33: 126 | DS33: 35 | DT33: 41
B34: 03 | C34: 27 | D34: 7757 | E34: P.S. HUANANGUI | F34: 891 | H34: 430 | I34: 461 | K34: 7 | L34: 7 | M34: 7 | N34: 8 | O34: 8 | P34: 5 | Q34: 11 | R34: 6 | S34: 5 | T34: 5 | U34: 6 | V34: 4 | W34: 4 | X34: 7 | Y34: 5 | Z34: 5 | AA34: 5 | AB34: 7 | AC34: 5 | AD34: 8 | AE34: 5 | AF34: 5 | AG34: 6 | AH34: 7 | AI34: 6 | AJ34: 7 | AK34: 7 | AL34: 9 | AM34: 5 | AN34: 8 | AO34: 9 | AP34: 7 | AQ34: 6 | AR34: 9 | AS34: 6 | AT34: 6 | AU34: 8 | AV34: 8 | AW34: 8 | AX34: 7 | AY34: 39 | AZ34: 43 | BA34: 26 | BB34: 36 | BC34: 36 | BD34: 33 | BE34: 31 | BF34: 33 | BG34: 28 | BH34: 27 | BI34: 28 | BJ34: 27 | BK34: 21 | BL34: 25 | BM34: 19 | BN34: 17 | BO34: 19 | BP34: 20 | BQ34: 20 | BR34: 22 | BS34: 12 | BT34: 11 | BU34: 8 | BV34: 11 | BW34: 14 | BX34: 21 | BY34: 2 | BZ34: 3 | CA34: 3 | CB34: 4 | CC34: 4 | CD34: 23 | CF34: 36 | CG34: 37 | CH34: 199 | CI34: 47 | CK34: 14 | CL34: 55 | CM34: 148 | CN34: 164 | CO34: 85 | CP34: 175 | CQ34: 325 | CR34: 158 | CT34: 56 | CU34: 139 | CV34: 627 | CX34: 14 | CY34: 15 | CZ34: 13 | DA34: 17 | DB34: 10 | DC34: 10 | DE34: 208 | DF34: 218 | DG34: 62 | DH34: 120 | DI34: 236 | DK34: 26 | DL34: 244 | DM34: 87 | DN34: 90 | DO34: 26 | DP34: 30 | DQ34: 244 | DR34: 256 | DS34: 73 | DT34: 85
A35: 150808 | C35: 28 | D35: 150808 | E35: DISTRITO PACCHO | F35: 1516 | H35: 735 | I35: 781 | K35: 5 | L35: 5 | M35: 3 | N35: 2 | O35: 6 | P35: 7 | Q35: 6 | R35: 10 | S35: 10 | T35: 4 | U35: 9 | V35: 16 | W35: 8 | X35: 6 | Y35: 13 | Z35: 4 | AA35: 8 | AB35: 8 | AC35: 5 | AD35: 12 | AE35: 11 | AF35: 10 | AG35: 9 | AH35: 7 | AI35: 11 | AJ35: 8 | AK35: 6 | AL35: 11 | AM35: 12 | AN35: 12 | AO35: 15 | AP35: 11 | AQ35: 7 | AR35: 6 | AS35: 11 | AT35: 9 | AU35: 12 | AV35: 12 | AW35: 7 | AX35: 9 | AY35: 39 | AZ35: 52 | BA35: 40 | BB35: 45 | BC35: 38 | BD35: 40 | BE35: 46 | BF35: 34 | BG35: 37 | BH35: 40 | BI35: 49 | BJ35: 49 | BK35: 49 | BL35: 64 | BM35: 49 | BN35: 47 | BO35: 41 | BP35: 41 | BQ35: 40 | BR35: 40 | BS35: 30 | BT35: 39 | BU35: 40 | BV35: 45 | BW35: 63 | BX35: 76 | BY35: 1 | BZ35: 5 | CA35: 3 | CB35: 0 | CC35: 2 | CD35: 11 | CE35: 0 | CF35: 48 | CG35: 47 | CH35: 260 | CI35: 23 | CK35: 10 | CL35: 48 | CM35: 184 | CN35: 245 | CO35: 119 | CP35: 216 | CQ35: 542 | CR35: 455 | CT35: 89 | CU35: 196 | CV35: 1173 | CX35: 10 | CY35: 5 | CZ35: 13 | DA35: 16 | DB35: 14 | DC35: 25 | DE35: 349 | DF35: 360 | DG35: 152 | DH35: 163 | DI35: 307 | DK35: 45 | DL35: 366 | DM35: 110 | DN35: 110 | DO35: 45 | DP35: 38 | DQ35: 366 | DR35: 392 | DS35: 214 | DT35: 241
B36: 05 | C36: 29 | D36: 5650 | E36: P.S. PACCHO | F36: 597 | H36: 290 | I36: 307 | K36: 2 | L36: 2 | M36: 2 | N36: 1 | O36: 2 | P36: 3 | Q36: 2 | R36: 3 | S36: 3 | T36: 1 | U36: 4 | V36: 7 | W36: 4 | X36: 2 | Y36: 5 | Z36: 1 | AA36: 4 | AB36: 4 | AC36: 2 | AD36: 4 | AE36: 4 | AF36: 3 | AG36: 4 | AH36: 3 | AI36: 4 | AJ36: 4 | AK36: 2 | AL36: 4 | AM36: 4 | AN36: 4 | AO36: 6 | AP36: 4 | AQ36: 3 | AR36: 2 | AS36: 4 | AT36: 4 | AU36: 4 | AV36: 4 | AW36: 3 | AX36: 4 | AY36: 15 | AZ36: 20 | BA36: 16 | BB36: 17 | BC36: 15 | BD36: 16 | BE36: 18 | BF36: 14 | BG36: 14 | BH36: 16 | BI36: 20 | BJ36: 20 | BK36: 20 | BL36: 25 | BM36: 20 | BN36: 19 | BO36: 17 | BP36: 17 | BQ36: 16 | BR36: 16 | BS36: 11 | BT36: 15 | BU36: 16 | BV36: 17 | BW36: 24 | BX36: 31 | BY36: 1 | BZ36: 2 | CA36: 2 | CB36: 0 | CC36: 1 | CD36: 4 | CF36: 18 | CG36: 18 | CH36: 103 | CI36: 10 | CK36: 4 | CL36: 17 | CM36: 72 | CN36: 96 | CO36: 45 | CP36: 83 | CQ36: 217 | CR36: 180 | CT36: 37 | CU36: 74 | CV36: 465 | CX36: 4 | CY36: 3 | CZ36: 5 | DA36: 5 | DB36: 4 | DC36: 11 | DE36: 140 | DF36: 144 | DG36: 61 | DH36: 66 | DI36: 121 | DK36: 17 | DL36: 145 | DM36: 44 | DN36: 42 | DO36: 17 | DP36: 14 | DQ36: 145 | DR36: 155 | DS36: 84 | DT36: 96
B37: 05 | C37: 30 | D37: 5651 | E37: P.S. LACSANGA | F37: 457 | H37: 221 | I37: 236 | K37: 1 | L37: 1 | M37: 1 | N37: 1 | O37: 2 | P37: 2 | Q37: 2 | R37: 3 | S37: 3 | T37: 1 | U37: 3 | V37: 5 | W37: 2 | X37: 2 | Y37: 4 | Z37: 1 | AA37: 2 | AB37: 2 | AC37: 1 | AD37: 4 | AE37: 3 | AF37: 3 | AG37: 3 | AH37: 2 | AI37: 3 | AJ37: 2 | AK37: 2 | AL37: 3 | AM37: 4 | AN37: 4 | AO37: 5 | AP37: 3 | AQ37: 2 | AR37: 2 | AS37: 3 | AT37: 3 | AU37: 4 | AV37: 4 | AW37: 2 | AX37: 3 | AY37: 12 | AZ37: 16 | BA37: 12 | BB37: 14 | BC37: 11 | BD37: 12 | BE37: 14 | BF37: 10 | BG37: 11 | BH37: 12 | BI37: 15 | BJ37: 15 | BK37: 15 | BL37: 19 | BM37: 15 | BN37: 14 | BO37: 12 | BP37: 12 | BQ37: 12 | BR37: 12 | BS37: 9 | BT37: 12 | BU37: 12 | BV37: 14 | BW37: 19 | BX37: 23 | BY37: 0 | BZ37: 1 | CA37: 1 | CB37: 0 | CC37: 1 | CD37: 3 | CF37: 14 | CG37: 15 | CH37: 79 | CI37: 7 | CK37: 2 | CL37: 15 | CM37: 54 | CN37: 73 | CO37: 36 | CP37: 67 | CQ37: 163 | CR37: 137 | CT37: 26 | CU37: 60 | CV37: 354 | CX37: 2 | CY37: 2 | CZ37: 4 | DA37: 5 | DB37: 4 | DC37: 8 | DE37: 105 | DF37: 108 | DG37: 45 | DH37: 49 | DI37: 94 | DK37: 14 | DL37: 111 | DM37: 32 | DN37: 32 | DO37: 14 | DP37: 12 | DQ37: 111 | DR37: 119 | DS37: 64 | DT37: 73
B38: 05 | C38: 31 | D38: 5653 | E38: P.S. MUZGA | F38: 231 | H38: 112 | I38: 119 | K38: 1 | L38: 1 | M38: 0 | N38: 0 | O38: 1 | P38: 1 | Q38: 1 | R38: 2 | S38: 2 | T38: 1 | U38: 1 | V38: 2 | W38: 1 | X38: 1 | Y38: 2 | Z38: 1 | AA38: 1 | AB38: 1 | AC38: 1 | AD38: 2 | AE38: 2 | AF38: 2 | AG38: 1 | AH38: 1 | AI38: 2 | AJ38: 1 | AK38: 1 | AL38: 2 | AM38: 2 | AN38: 2 | AO38: 2 | AP38: 2 | AQ38: 1 | AR38: 1 | AS38: 2 | AT38: 1 | AU38: 2 | AV38: 2 | AW38: 1 | AX38: 1 | AY38: 6 | AZ38: 8 | BA38: 6 | BB38: 7 | BC38: 6 | BD38: 6 | BE38: 7 | BF38: 5 | BG38: 6 | BH38: 6 | BI38: 7 | BJ38: 7 | BK38: 7 | BL38: 10 | BM38: 7 | BN38: 7 | BO38: 6 | BP38: 6 | BQ38: 6 | BR38: 6 | BS38: 5 | BT38: 6 | BU38: 6 | BV38: 7 | BW38: 10 | BX38: 11 | BY38: 0 | BZ38: 1 | CA38: 0 | CB38: 0 | CC38: 0 | CD38: 2 | CF38: 8 | CG38: 7 | CH38: 39 | CI38: 3 | CK38: 2 | CL38: 8 | CM38: 29 | CN38: 38 | CO38: 19 | CP38: 33 | CQ38: 81 | CR38: 69 | CT38: 13 | CU38: 31 | CV38: 177 | CX38: 2 | CY38: 0 | CZ38: 2 | DA38: 3 | DB38: 3 | DC38: 3 | DE38: 52 | DF38: 54 | DG38: 23 | DH38: 24 | DI38: 46 | DK38: 7 | DL38: 55 | DM38: 17 | DN38: 18 | DO38: 7 | DP38: 6 | DQ38: 55 | DR38: 59 | DS38: 33 | DT38: 36
B39: 05 | C39: 32 | D39: 5652 | E39: P.S. AYARANGA | F39: 231 | H39: 112 | I39: 119 | K39: 1 | L39: 1 | M39: 0 | N39: 0 | O39: 1 | P39: 1 | Q39: 1 | R39: 2 | S39: 2 | T39: 1 | U39: 1 | V39: 2 | W39: 1 | X39: 1 | Y39: 2 | Z39: 1 | AA39: 1 | AB39: 1 | AC39: 1 | AD39: 2 | AE39: 2 | AF39: 2 | AG39: 1 | AH39: 1 | AI39: 2 | AJ39: 1 | AK39: 1 | AL39: 2 | AM39: 2 | AN39: 2 | AO39: 2 | AP39: 2 | AQ39: 1 | AR39: 1 | AS39: 2 | AT39: 1 | AU39: 2 | AV39: 2 | AW39: 1 | AX39: 1 | AY39: 6 | AZ39: 8 | BA39: 6 | BB39: 7 | BC39: 6 | BD39: 6 | BE39: 7 | BF39: 5 | BG39: 6 | BH39: 6 | BI39: 7 | BJ39: 7 | BK39: 7 | BL39: 10 | BM39: 7 | BN39: 7 | BO39: 6 | BP39: 6 | BQ39: 6 | BR39: 6 | BS39: 5 | BT39: 6 | BU39: 6 | BV39: 7 | BW39: 10 | BX39: 11 | BY39: 0 | BZ39: 1 | CA39: 0 | CB39: 0 | CC39: 0 | CD39: 2 | CF39: 8 | CG39: 7 | CH39: 39 | CI39: 3 | CK39: 2 | CL39: 8 | CM39: 29 | CN39: 38 | CO39: 19 | CP39: 33 | CQ39: 81 | CR39: 69 | CT39: 13 | CU39: 31 | CV39: 177 | CX39: 2 | CY39: 0 | CZ39: 2 | DA39: 3 | DB39: 3 | DC39: 3 | DE39: 52 | DF39: 54 | DG39: 23 | DH39: 24 | DI39: 46 | DK39: 7 | DL39: 55 | DM39: 17 | DN39: 18 | DO39: 7 | DP39: 6 | DQ39: 55 | DR39: 59 | DS39: 33 | DT39: 36
A40: 150809 | C40: 33 | D40: 150809 | E40: DISTRITO SANTA LEONOR | F40: 996 | H40: 490 | I40: 506 | K40: 7 | L40: 5 | M40: 4 | N40: 5 | O40: 9 | P40: 2 | Q40: 9 | R40: 8 | S40: 7 | T40: 8 | U40: 7 | V40: 5 | W40: 3 | X40: 10 | Y40: 7 | Z40: 4 | AA40: 8 | AB40: 4 | AC40: 3 | AD40: 4 | AE40: 8 | AF40: 7 | AG40: 6 | AH40: 7 | AI40: 6 | AJ40: 12 | AK40: 6 | AL40: 7 | AM40: 6 | AN40: 7 | AO40: 10 | AP40: 6 | AQ40: 6 | AR40: 10 | AS40: 8 | AT40: 3 | AU40: 8 | AV40: 8 | AW40: 6 | AX40: 6 | AY40: 29 | AZ40: 26 | BA40: 32 | BB40: 36 | BC40: 29 | BD40: 40 | BE40: 33 | BF40: 25 | BG40: 26 | BH40: 32 | BI40: 24 | BJ40: 29 | BK40: 29 | BL40: 28 | BM40: 29 | BN40: 26 | BO40: 31 | BP40: 32 | BQ40: 28 | BR40: 25 | BS40: 22 | BT40: 15 | BU40: 18 | BV40: 28 | BW40: 26 | BX40: 36 | BY40: 1 | BZ40: 4 | CA40: 4 | CB40: 3 | CC40: 1 | CD40: 15 | CE40: 0 | CF40: 40 | CG40: 33 | CH40: 188 | CI40: 21 | CK40: 12 | CL40: 52 | CM40: 147 | CN40: 170 | CO40: 87 | CP40: 151 | CQ40: 350 | CR40: 261 | CT40: 55 | CU40: 143 | CV40: 734 | CX40: 12 | CY40: 9 | CZ40: 11 | DA40: 17 | DB40: 15 | DC40: 12 | DE40: 233 | DF40: 248 | DG40: 86 | DH40: 126 | DI40: 221 | DK40: 30 | DL40: 245 | DM40: 90 | DN40: 88 | DO40: 30 | DP40: 26 | DQ40: 245 | DR40: 256 | DS40: 125 | DT40: 136
B41: 05 | C41: 34 | D41: 5645 | E41: P.S. CHIUCHIN | F41: 651 | H41: 320 | I41: 331 | K41: 5 | L41: 3 | M41: 3 | N41: 3 | O41: 6 | P41: 2 | Q41: 6 | R41: 5 | S41: 5 | T41: 5 | U41: 5 | V41: 3 | W41: 2 | X41: 6 | Y41: 5 | Z41: 3 | AA41: 5 | AB41: 3 | AC41: 2 | AD41: 3 | AE41: 5 | AF41: 5 | AG41: 4 | AH41: 5 | AI41: 4 | AJ41: 8 | AK41: 4 | AL41: 5 | AM41: 4 | AN41: 5 | AO41: 6 | AP41: 4 | AQ41: 4 | AR41: 6 | AS41: 5 | AT41: 2 | AU41: 5 | AV41: 5 | AW41: 4 | AX41: 4 | AY41: 19 | AZ41: 17 | BA41: 21 | BB41: 24 | BC41: 19 | BD41: 26 | BE41: 21 | BF41: 16 | BG41: 17 | BH41: 21 | BI41: 15 | BJ41: 19 | BK41: 19 | BL41: 18 | BM41: 19 | BN41: 17 | BO41: 20 | BP41: 21 | BQ41: 18 | BR41: 16 | BS41: 15 | BT41: 10 | BU41: 11 | BV41: 18 | BW41: 17 | BX41: 23 | BY41: 1 | BZ41: 3 | CA41: 3 | CB41: 2 | CC41: 1 | CD41: 10 | CF41: 28 | CG41: 21 | CH41: 123 | CI41: 14 | CK41: 8 | CL41: 35 | CM41: 99 | CN41: 113 | CO41: 57 | CP41: 99 | CQ41: 227 | CR41: 169 | CT41: 37 | CU41: 94 | CV41: 477 | CX41: 8 | CY41: 6 | CZ41: 8 | DA41: 11 | DB41: 10 | DC41: 8 | DE41: 151 | DF41: 162 | DG41: 56 | DH41: 82 | DI41: 144 | DK41: 19 | DL41: 159 | DM41: 61 | DN41: 59 | DO41: 19 | DP41: 17 | DQ41: 159 | DR41: 167 | DS41: 81 | DT41: 88
B42: 05 | C42: 35 | D42: 5646 | E42: P.S. PARQUIN | F42: 199 | H42: 99 | I42: 100 | K42: 1 | L42: 1 | M42: 1 | N42: 1 | O42: 2 | P42: 0 | Q42: 2 | R42: 2 | S42: 1 | T42: 2 | U42: 1 | V42: 1 | W42: 1 | X42: 2 | Y42: 1 | Z42: 1 | AA42: 2 | AB42: 1 | AC42: 1 | AD42: 1 | AE42: 2 | AF42: 1 | AG42: 1 | AH42: 1 | AI42: 1 | AJ42: 2 | AK42: 1 | AL42: 1 | AM42: 1 | AN42: 1 | AO42: 2 | AP42: 1 | AQ42: 1 | AR42: 2 | AS42: 2 | AT42: 1 | AU42: 2 | AV42: 2 | AW42: 1 | AX42: 1 | AY42: 6 | AZ42: 5 | BA42: 6 | BB42: 7 | BC42: 6 | BD42: 8 | BE42: 7 | BF42: 5 | BG42: 5 | BH42: 6 | BI42: 5 | BJ42: 6 | BK42: 6 | BL42: 6 | BM42: 6 | BN42: 5 | BO42: 6 | BP42: 6 | BQ42: 6 | BR42: 5 | BS42: 4 | BT42: 3 | BU42: 4 | BV42: 6 | BW42: 5 | BX42: 7 | BY42: 0 | BZ42: 1 | CA42: 1 | CB42: 1 | CC42: 0 | CD42: 3 | CF42: 6 | CG42: 7 | CH42: 37 | CI42: 4 | CK42: 2 | CL42: 11 | CM42: 30 | CN42: 33 | CO42: 16 | CP42: 30 | CQ42: 71 | CR42: 52 | CT42: 12 | CU42: 27 | CV42: 147 | CX42: 2 | CY42: 2 | CZ42: 2 | DA42: 4 | DB42: 3 | DC42: 2 | DE42: 47 | DF42: 49 | DG42: 17 | DH42: 25 | DI42: 44 | DK42: 6 | DL42: 50 | DM42: 18 | DN42: 17 | DO42: 6 | DP42: 5 | DQ42: 50 | DR42: 51 | DS42: 25 | DT42: 27
B43: 05 | C43: 36 | D43: 5647 | E43: P.S. JUCUL | F43: 146 | H43: 71 | I43: 75 | K43: 1 | L43: 1 | M43: 0 | N43: 1 | O43: 1 | P43: 0 | Q43: 1 | R43: 1 | S43: 1 | T43: 1 | U43: 1 | V43: 1 | W43: 0 | X43: 2 | Y43: 1 | Z43: 0 | AA43: 1 | AB43: 0 | AC43: 0 | AD43: 0 | AE43: 1 | AF43: 1 | AG43: 1 | AH43: 1 | AI43: 1 | AJ43: 2 | AK43: 1 | AL43: 1 | AM43: 1 | AN43: 1 | AO43: 2 | AP43: 1 | AQ43: 1 | AR43: 2 | AS43: 1 | AT43: 0 | AU43: 1 | AV43: 1 | AW43: 1 | AX43: 1 | AY43: 4 | AZ43: 4 | BA43: 5 | BB43: 5 | BC43: 4 | BD43: 6 | BE43: 5 | BF43: 4 | BG43: 4 | BH43: 5 | BI43: 4 | BJ43: 4 | BK43: 4 | BL43: 4 | BM43: 4 | BN43: 4 | BO43: 5 | BP43: 5 | BQ43: 4 | BR43: 4 | BS43: 3 | BT43: 2 | BU43: 3 | BV43: 4 | BW43: 4 | BX43: 6 | BY43: 0 | BZ43: 0 | CA43: 0 | CB43: 0 | CC43: 0 | CD43: 2 | CF43: 6 | CG43: 5 | CH43: 28 | CI43: 3 | CK43: 2 | CL43: 6 | CM43: 18 | CN43: 24 | CO43: 14 | CP43: 22 | CQ43: 52 | CR43: 40 | CT43: 6 | CU43: 22 | CV43: 110 | CX43: 2 | CY43: 1 | CZ43: 1 | DA43: 2 | DB43: 2 | DC43: 2 | DE43: 35 | DF43: 37 | DG43: 13 | DH43: 19 | DI43: 33 | DK43: 5 | DL43: 36 | DM43: 11 | DN43: 12 | DO43: 5 | DP43: 4 | DQ43: 36 | DR43: 38 | DS43: 19 | DT43: 21
A44: 150810 | C44: 37 | D44: 150810 | E44: DISTRITO SANTA MARIA | F44: 43646 | H44: 21057 | I44: 22589 | K44: 335 | L44: 301 | M44: 324 | N44: 312 | O44: 348 | P44: 360 | Q44: 341 | R44: 368 | S44: 340 | T44: 337 | U44: 359 | V44: 356 | W44: 401 | X44: 402 | Y44: 361 | Z44: 413 | AA44: 370 | AB44: 431 | AC44: 359 | AD44: 379 | AE44: 335 | AF44: 350 | AG44: 374 | AH44: 371 | AI44: 403 | AJ44: 380 | AK44: 350 | AL44: 370 | AM44: 360 | AN44: 336 | AO44: 324 | AP44: 360 | AQ44: 336 | AR44: 301 | AS44: 331 | AT44: 356 | AU44: 288 | AV44: 327 | AW44: 333 | AX44: 352 | AY44: 1725 | AZ44: 1709 | BA44: 1847 | BB44: 2033 | BC44: 1594 | BD44: 1828 | BE44: 1518 | BF44: 1708 | BG44: 1378 | BH44: 1481 | BI44: 1235 | BJ44: 1391 | BK44: 1103 | BL44: 1177 | BM44: 904 | BN44: 986 | BO44: 747 | BP44: 862 | BQ44: 622 | BR44: 690 | BS44: 525 | BT44: 599 | BU44: 385 | BV44: 438 | BW44: 502 | BX44: 525 | BY44: 30 | BZ44: 160 | CA44: 157 | CB44: 175 | CC44: 144 | CD44: 850 | CE44: 0 | CF44: 1807 | CG44: 1696 | CH44: 10150 | CI44: 1488 | CK44: 636 | CL44: 2730 | CM44: 8627 | CN44: 9468 | CO44: 4207 | CP44: 8614 | CQ44: 16303 | CR44: 5895 | CT44: 3831 | CU44: 6937 | CV44: 29512 | CX44: 636 | CY44: 636 | CZ44: 708 | DA44: 709 | DB44: 677 | DC44: 715 | DE44: 10326 | DF44: 11466 | DG44: 3025 | DH44: 6408 | DI44: 11846 | DK44: 1351 | DL44: 11925 | DM44: 5000 | DN44: 5130 | DO44: 1351 | DP44: 1353 | DQ44: 11925 | DR44: 12992 | DS44: 2781 | DT44: 3114
B45: 02 | C45: 38 | D45: 5668 | E45: C.S. SANTA MARIA | F45: 11783 | H45: 5685 | I45: 6098 | K45: 90 | L45: 81 | M45: 87 | N45: 84 | O45: 94 | P45: 97 | Q45: 92 | R45: 99 | S45: 92 | T45: 91 | U45: 97 | V45: 96 | W45: 108 | X45: 109 | Y45: 97 | Z45: 112 | AA45: 100 | AB45: 116 | AC45: 97 | AD45: 102 | AE45: 90 | AF45: 95 | AG45: 101 | AH45: 100 | AI45: 109 | AJ45: 103 | AK45: 95 | AL45: 100 | AM45: 97 | AN45: 91 | AO45: 87 | AP45: 97 | AQ45: 91 | AR45: 81 | AS45: 89 | AT45: 96 | AU45: 78 | AV45: 88 | AW45: 90 | AX45: 95 | AY45: 466 | AZ45: 461 | BA45: 499 | BB45: 549 | BC45: 430 | BD45: 494 | BE45: 410 | BF45: 461 | BG45: 372 | BH45: 400 | BI45: 333 | BJ45: 376 | BK45: 298 | BL45: 318 | BM45: 244 | BN45: 266 | BO45: 202 | BP45: 233 | BQ45: 168 | BR45: 186 | BS45: 142 | BT45: 162 | BU45: 104 | BV45: 118 | BW45: 136 | BX45: 141 | BY45: 8 | BZ45: 43 | CA45: 42 | CB45: 47 | CC45: 39 | CD45: 230 | CF45: 489 | CG45: 457 | CH45: 2741 | CI45: 402 | CK45: 171 | CL45: 736 | CM45: 2327 | CN45: 2556 | CO45: 1136 | CP45: 2326 | CQ45: 4402 | CR45: 1592 | CT45: 1034 | CU45: 1873 | CV45: 7969 | CX45: 171 | CY45: 171 | CZ45: 191 | DA45: 191 | DB45: 183 | DC45: 193 | DE45: 2788 | DF45: 3097 | DG45: 817 | DH45: 1731 | DI45: 3198 | DK45: 364 | DL45: 3220 | DM45: 1349 | DN45: 1385 | DO45: 364 | DP45: 365 | DQ45: 3220 | DR45: 3508 | DS45: 752 | DT45: 840
B46: 02 | C46: 39 | D46: 5669 | E46: P.S. CHONTA | F46: 6550 | H46: 3160 | I46: 3390 | K46: 50 | L46: 45 | M46: 49 | N46: 47 | O46: 52 | P46: 54 | Q46: 51 | R46: 55 | S46: 51 | T46: 51 | U46: 54 | V46: 53 | W46: 60 | X46: 60 | Y46: 54 | Z46: 62 | AA46: 56 | AB46: 65 | AC46: 54 | AD46: 57 | AE46: 50 | AF46: 53 | AG46: 56 | AH46: 56 | AI46: 60 | AJ46: 57 | AK46: 53 | AL46: 56 | AM46: 54 | AN46: 50 | AO46: 49 | AP46: 54 | AQ46: 50 | AR46: 45 | AS46: 50 | AT46: 53 | AU46: 43 | AV46: 49 | AW46: 50 | AX46: 53 | AY46: 259 | AZ46: 256 | BA46: 277 | BB46: 305 | BC46: 239 | BD46: 274 | BE46: 228 | BF46: 256 | BG46: 207 | BH46: 222 | BI46: 185 | BJ46: 209 | BK46: 165 | BL46: 177 | BM46: 136 | BN46: 148 | BO46: 112 | BP46: 129 | BQ46: 93 | BR46: 104 | BS46: 79 | BT46: 90 | BU46: 58 | BV46: 66 | BW46: 76 | BX46: 79 | BY46: 4 | BZ46: 24 | CA46: 24 | CB46: 26 | CC46: 22 | CD46: 128 | CF46: 272 | CG46: 254 | CH46: 1522 | CI46: 223 | CK46: 95 | CL46: 410 | CM46: 1295 | CN46: 1421 | CO46: 631 | CP46: 1292 | CQ46: 2446 | CR46: 886 | CT46: 575 | CU46: 1041 | CV46: 4429 | CX46: 95 | CY46: 96 | CZ46: 106 | DA46: 106 | DB46: 102 | DC46: 107 | DE46: 1549 | DF46: 1720 | DG46: 454 | DH46: 961 | DI46: 1776 | DK46: 203 | DL46: 1789 | DM46: 750 | DN46: 771 | DO46: 203 | DP46: 202 | DQ46: 1789 | DR46: 1949 | DS46: 418 | DT46: 468
B47: 02 | C47: 40 | D47: 5671 | E47: P.S. 1RO DE MAYO | F47: 13535 | H47: 6530 | I47: 7005 | K47: 105 | L47: 94 | M47: 101 | N47: 97 | O47: 108 | P47: 112 | Q47: 106 | R47: 115 | S47: 105 | T47: 104 | U47: 111 | V47: 111 | W47: 125 | X47: 125 | Y47: 113 | Z47: 128 | AA47: 114 | AB47: 133 | AC47: 111 | AD47: 118 | AE47: 105 | AF47: 107 | AG47: 116 | AH47: 115 | AI47: 125 | AJ47: 118 | AK47: 107 | AL47: 114 | AM47: 112 | AN47: 105 | AO47: 101 | AP47: 112 | AQ47: 105 | AR47: 94 | AS47: 102 | AT47: 111 | AU47: 89 | AV47: 102 | AW47: 103 | AX47: 109 | AY47: 534 | AZ47: 530 | BA47: 573 | BB47: 630 | BC47: 495 | BD47: 566 | BE47: 470 | BF47: 530 | BG47: 427 | BH47: 459 | BI47: 384 | BJ47: 431 | BK47: 342 | BL47: 364 | BM47: 280 | BN47: 306 | BO47: 232 | BP47: 267 | BQ47: 193 | BR47: 214 | BS47: 162 | BT47: 185 | BU47: 119 | BV47: 136 | BW47: 155 | BX47: 163 | BY47: 10 | BZ47: 50 | CA47: 49 | CB47: 54 | CC47: 44 | CD47: 262 | CF47: 559 | CG47: 528 | CH47: 3146 | CI47: 461 | CK47: 199 | CL47: 848 | CM47: 2679 | CN47: 2938 | CO47: 1306 | CP47: 2670 | CQ47: 5054 | CR47: 1826 | CT47: 1189 | CU47: 2152 | CV47: 9147 | CX47: 199 | CY47: 198 | CZ47: 220 | DA47: 221 | DB47: 209 | DC47: 222 | DE47: 3203 | DF47: 3553 | DG47: 937 | DH47: 1986 | DI47: 3674 | DK47: 420 | DL47: 3697 | DM47: 1552 | DN47: 1591 | DO47: 420 | DP47: 422 | DQ47: 3697 | DR47: 4027 | DS47: 861 | DT47: 965
B48: 02 | C48: 41 | D48: 5670 | E48: P.S. ZAPATA | F48: 3923 | H48: 1892 | I48: 2031 | K48: 30 | L48: 27 | M48: 29 | N48: 28 | O48: 31 | P48: 32 | Q48: 31 | R48: 33 | S48: 31 | T48: 30 | U48: 32 | V48: 32 | W48: 36 | X48: 36 | Y48: 32 | Z48: 37 | AA48: 33 | AB48: 39 | AC48: 32 | AD48: 34 | AE48: 30 | AF48: 32 | AG48: 34 | AH48: 33 | AI48: 36 | AJ48: 34 | AK48: 32 | AL48: 33 | AM48: 32 | AN48: 30 | AO48: 29 | AP48: 32 | AQ48: 30 | AR48: 27 | AS48: 30 | AT48: 32 | AU48: 26 | AV48: 29 | AW48: 30 | AX48: 32 | AY48: 155 | AZ48: 154 | BA48: 166 | BB48: 183 | BC48: 143 | BD48: 165 | BE48: 137 | BF48: 154 | BG48: 124 | BH48: 133 | BI48: 111 | BJ48: 125 | BK48: 99 | BL48: 106 | BM48: 81 | BN48: 89 | BO48: 67 | BP48: 78 | BQ48: 56 | BR48: 62 | BS48: 47 | BT48: 54 | BU48: 35 | BV48: 39 | BW48: 45 | BX48: 47 | BY48: 2 | BZ48: 14 | CA48: 14 | CB48: 16 | CC48: 13 | CD48: 77 | CF48: 162 | CG48: 152 | CH48: 914 | CI48: 134 | CK48: 57 | CL48: 245 | CM48: 774 | CN48: 849 | CO48: 377 | CP48: 775 | CQ48: 1467 | CR48: 530 | CT48: 343 | CU48: 623 | CV48: 2655 | CX48: 57 | CY48: 57 | CZ48: 63 | DA48: 64 | DB48: 61 | DC48: 64 | DE48: 928 | DF48: 1033 | DG48: 273 | DH48: 577 | DI48: 1066 | DK48: 121 | DL48: 1072 | DM48: 449 | DN48: 460 | DO48: 121 | DP48: 121 | DQ48: 1072 | DR48: 1170 | DS48: 250 | DT48: 280
B49: 02 | C49: 42 | D49: 5672 | E49: P.S. SAN BARTOLOME | F49: 7855 | H49: 3790 | I49: 4065 | K49: 60 | L49: 54 | M49: 58 | N49: 56 | O49: 63 | P49: 65 | Q49: 61 | R49: 66 | S49: 61 | T49: 61 | U49: 65 | V49: 64 | W49: 72 | X49: 72 | Y49: 65 | Z49: 74 | AA49: 67 | AB49: 78 | AC49: 65 | AD49: 68 | AE49: 60 | AF49: 63 | AG49: 67 | AH49: 67 | AI49: 73 | AJ49: 68 | AK49: 63 | AL49: 67 | AM49: 65 | AN49: 60 | AO49: 58 | AP49: 65 | AQ49: 60 | AR49: 54 | AS49: 60 | AT49: 64 | AU49: 52 | AV49: 59 | AW49: 60 | AX49: 63 | AY49: 311 | AZ49: 308 | BA49: 332 | BB49: 366 | BC49: 287 | BD49: 329 | BE49: 273 | BF49: 307 | BG49: 248 | BH49: 267 | BI49: 222 | BJ49: 250 | BK49: 199 | BL49: 212 | BM49: 163 | BN49: 177 | BO49: 134 | BP49: 155 | BQ49: 112 | BR49: 124 | BS49: 95 | BT49: 108 | BU49: 69 | BV49: 79 | BW49: 90 | BX49: 95 | BY49: 6 | BZ49: 29 | CA49: 28 | CB49: 32 | CC49: 26 | CD49: 153 | CF49: 325 | CG49: 305 | CH49: 1827 | CI49: 268 | CK49: 114 | CL49: 491 | CM49: 1552 | CN49: 1704 | CO49: 757 | CP49: 1551 | CQ49: 2934 | CR49: 1061 | CT49: 690 | CU49: 1248 | CV49: 5312 | CX49: 114 | CY49: 114 | CZ49: 128 | DA49: 127 | DB49: 122 | DC49: 129 | DE49: 1858 | DF49: 2063 | DG49: 544 | DH49: 1153 | DI49: 2132 | DK49: 243 | DL49: 2147 | DM49: 900 | DN49: 923 | DO49: 243 | DP49: 243 | DQ49: 2147 | DR49: 2338 | DS49: 500 | DT49: 561
A50: 150811 | C50: 43 | D50: 150811 | E50: DISTRITO SAYAN | F50: 26719 | H50: 12902 | I50: 13817 | K50: 187 | L50: 191 | M50: 176 | N50: 193 | O50: 214 | P50: 198 | Q50: 183 | R50: 189 | S50: 221 | T50: 189 | U50: 227 | V50: 203 | W50: 230 | X50: 258 | Y50: 224 | Z50: 291 | AA50: 232 | AB50: 243 | AC50: 238 | AD50: 247 | AE50: 249 | AF50: 196 | AG50: 219 | AH50: 237 | AI50: 239 | AJ50: 243 | AK50: 218 | AL50: 253 | AM50: 234 | AN50: 226 | AO50: 213 | AP50: 279 | AQ50: 216 | AR50: 242 | AS50: 204 | AT50: 215 | AU50: 215 | AV50: 238 | AW50: 206 | AX50: 217 | AY50: 961 | AZ50: 1134 | BA50: 1123 | BB50: 1238 | BC50: 969 | BD50: 1141 | BE50: 975 | BF50: 1041 | BG50: 863 | BH50: 960 | BI50: 808 | BJ50: 828 | BK50: 646 | BL50: 697 | BM50: 563 | BN50: 623 | BO50: 490 | BP50: 454 | BQ50: 372 | BR50: 395 | BS50: 309 | BT50: 263 | BU50: 215 | BV50: 220 | BW50: 263 | BX50: 275 | BY50: 20 | BZ50: 100 | CA50: 97 | CB50: 87 | CC50: 94 | CD50: 513 | CE50: 0 | CF50: 1155 | CG50: 1191 | CH50: 6342 | CI50: 730 | CK50: 378 | CL50: 1563 | CM50: 5235 | CN50: 6076 | CO50: 2782 | CP50: 5332 | CQ50: 10114 | CR50: 3256 | CT50: 2393 | CU50: 4559 | CV50: 17826 | CX50: 378 | CY50: 369 | CZ50: 412 | DA50: 372 | DB50: 410 | DC50: 430 | DE50: 6437 | DF50: 6982 | DG50: 1774 | DH50: 3970 | DI50: 7533 | DK50: 867 | DL50: 7329 | DM50: 3057 | DN50: 3131 | DO50: 867 | DP50: 962 | DQ50: 7329 | DR50: 8117 | DS50: 1649 | DT50: 1607
B51: 03 | C51: 44 | D51: 5780 | E51: P.S. 9 DE OCTUBRE | F51: 7213 | H51: 3481 | I51: 3732 | K51: 50 | L51: 52 | M51: 48 | N51: 52 | O51: 58 | P51: 53 | Q51: 49 | R51: 51 | S51: 60 | T51: 51 | U51: 61 | V51: 55 | W51: 62 | X51: 70 | Y51: 60 | Z51: 79 | AA51: 63 | AB51: 66 | AC51: 64 | AD51: 67 | AE51: 67 | AF51: 53 | AG51: 59 | AH51: 64 | AI51: 65 | AJ51: 66 | AK51: 59 | AL51: 68 | AM51: 63 | AN51: 61 | AO51: 58 | AP51: 75 | AQ51: 58 | AR51: 65 | AS51: 55 | AT51: 58 | AU51: 58 | AV51: 64 | AW51: 56 | AX51: 59 | AY51: 259 | AZ51: 306 | BA51: 303 | BB51: 334 | BC51: 262 | BD51: 308 | BE51: 263 | BF51: 281 | BG51: 233 | BH51: 259 | BI51: 218 | BJ51: 224 | BK51: 174 | BL51: 188 | BM51: 152 | BN51: 168 | BO51: 132 | BP51: 123 | BQ51: 100 | BR51: 107 | BS51: 83 | BT51: 71 | BU51: 58 | BV51: 59 | BW51: 71 | BX51: 75 | BY51: 6 | BZ51: 27 | CA51: 26 | CB51: 23 | CC51: 25 | CD51: 138 | CF51: 312 | CG51: 321 | CH51: 1712 | CI51: 197 | CK51: 102 | CL51: 422 | CM51: 1414 | CN51: 1641 | CO51: 751 | CP51: 1439 | CQ51: 2730 | CR51: 879 | CT51: 647 | CU51: 1231 | CV51: 4811 | CX51: 102 | CY51: 100 | CZ51: 111 | DA51: 100 | DB51: 111 | DC51: 116 | DE51: 1737 | DF51: 1885 | DG51: 479 | DH51: 1072 | DI51: 2033 | DK51: 234 | DL51: 1978 | DM51: 825 | DN51: 847 | DO51: 234 | DP51: 259 | DQ51: 1978 | DR51: 2191 | DS51: 444 | DT51: 435
B52: 03 | C52: 45 | D52: 5774 | E52: P.S. LA MERCED | F52: 1076 | H52: 519 | I52: 557 | K52: 7 | L52: 8 | M52: 7 | N52: 8 | O52: 9 | P52: 8 | Q52: 7 | R52: 8 | S52: 9 | T52: 8 | U52: 9 | V52: 8 | W52: 9 | X52: 10 | Y52: 9 | Z52: 12 | AA52: 9 | AB52: 10 | AC52: 10 | AD52: 10 | AE52: 10 | AF52: 8 | AG52: 9 | AH52: 9 | AI52: 10 | AJ52: 10 | AK52: 9 | AL52: 10 | AM52: 9 | AN52: 9 | AO52: 9 | AP52: 11 | AQ52: 9 | AR52: 10 | AS52: 8 | AT52: 9 | AU52: 9 | AV52: 10 | AW52: 8 | AX52: 9 | AY52: 38 | AZ52: 45 | BA52: 45 | BB52: 50 | BC52: 39 | BD52: 46 | BE52: 39 | BF52: 42 | BG52: 35 | BH52: 38 | BI52: 32 | BJ52: 33 | BK52: 26 | BL52: 28 | BM52: 23 | BN52: 25 | BO52: 20 | BP52: 18 | BQ52: 15 | BR52: 16 | BS52: 12 | BT52: 11 | BU52: 9 | BV52: 9 | BW52: 11 | BX52: 11 | BY52: 1 | BZ52: 4 | CA52: 4 | CB52: 3 | CC52: 4 | CD52: 21 | CF52: 46 | CG52: 49 | CH52: 254 | CI52: 29 | CK52: 15 | CL52: 64 | CM52: 211 | CN52: 245 | CO52: 113 | CP52: 214 | CQ52: 406 | CR52: 132 | CT52: 96 | CU52: 185 | CV52: 716 | CX52: 15 | CY52: 15 | CZ52: 17 | DA52: 15 | DB52: 17 | DC52: 17 | DE52: 259 | DF52: 280 | DG52: 71 | DH52: 159 | DI52: 303 | DK52: 35 | DL52: 294 | DM52: 123 | DN52: 127 | DO52: 35 | DP52: 39 | DQ52: 294 | DR52: 326 | DS52: 67 | DT52: 65
B53: 03 | C53: 46 | D53: 5781 | E53: P.S. LA VILLA | F53: 7747 | H53: 3741 | I53: 4006 | K53: 54 | L53: 55 | M53: 51 | N53: 56 | O53: 62 | P53: 57 | Q53: 53 | R53: 55 | S53: 64 | T53: 55 | U53: 66 | V53: 59 | W53: 67 | X53: 75 | Y53: 65 | Z53: 84 | AA53: 67 | AB53: 70 | AC53: 69 | AD53: 72 | AE53: 72 | AF53: 57 | AG53: 64 | AH53: 69 | AI53: 69 | AJ53: 70 | AK53: 63 | AL53: 73 | AM53: 68 | AN53: 66 | AO53: 62 | AP53: 81 | AQ53: 63 | AR53: 70 | AS53: 59 | AT53: 62 | AU53: 62 | AV53: 69 | AW53: 60 | AX53: 63 | AY53: 279 | AZ53: 329 | BA53: 326 | BB53: 359 | BC53: 281 | BD53: 331 | BE53: 283 | BF53: 302 | BG53: 250 | BH53: 278 | BI53: 234 | BJ53: 240 | BK53: 187 | BL53: 202 | BM53: 163 | BN53: 181 | BO53: 142 | BP53: 132 | BQ53: 108 | BR53: 115 | BS53: 90 | BT53: 76 | BU53: 62 | BV53: 64 | BW53: 76 | BX53: 79 | BY53: 6 | BZ53: 29 | CA53: 28 | CB53: 25 | CC53: 27 | CD53: 148 | CF53: 335 | CG53: 345 | CH53: 1839 | CI53: 212 | CK53: 109 | CL53: 453 | CM53: 1518 | CN53: 1762 | CO53: 806 | CP53: 1547 | CQ53: 2932 | CR53: 944 | CT53: 694 | CU53: 1322 | CV53: 5169 | CX53: 109 | CY53: 107 | CZ53: 119 | DA53: 108 | DB53: 119 | DC53: 125 | DE53: 1866 | DF53: 2025 | DG53: 515 | DH53: 1151 | DI53: 2184 | DK53: 252 | DL53: 2125 | DM53: 886 | DN53: 907 | DO53: 252 | DP53: 279 | DQ53: 2125 | DR53: 2354 | DS53: 478 | DT53: 466
B54: 03 | C54: 47 | D54: 5775 | E54: P.S. EL AHORCADO | F54: 801 | H54: 385 | I54: 416 | K54: 6 | L54: 6 | M54: 5 | N54: 6 | O54: 6 | P54: 6 | Q54: 5 | R54: 6 | S54: 7 | T54: 6 | U54: 7 | V54: 6 | W54: 7 | X54: 8 | Y54: 7 | Z54: 9 | AA54: 7 | AB54: 7 | AC54: 7 | AD54: 7 | AE54: 7 | AF54: 6 | AG54: 7 | AH54: 7 | AI54: 7 | AJ54: 7 | AK54: 7 | AL54: 8 | AM54: 7 | AN54: 7 | AO54: 6 | AP54: 8 | AQ54: 6 | AR54: 7 | AS54: 6 | AT54: 6 | AU54: 6 | AV54: 7 | AW54: 6 | AX54: 7 | AY54: 29 | AZ54: 34 | BA54: 34 | BB54: 37 | BC54: 29 | BD54: 34 | BE54: 29 | BF54: 31 | BG54: 26 | BH54: 29 | BI54: 24 | BJ54: 25 | BK54: 19 | BL54: 21 | BM54: 17 | BN54: 19 | BO54: 15 | BP54: 14 | BQ54: 11 | BR54: 12 | BS54: 9 | BT54: 8 | BU54: 6 | BV54: 7 | BW54: 8 | BX54: 8 | BY54: 0 | BZ54: 3 | CA54: 3 | CB54: 3 | CC54: 3 | CD54: 15 | CF54: 35 | CG54: 35 | CH54: 190 | CI54: 22 | CK54: 12 | CL54: 47 | CM54: 158 | CN54: 181 | CO54: 82 | CP54: 160 | CQ54: 303 | CR54: 98 | CT54: 72 | CU54: 135 | CV54: 535 | CX54: 12 | CY54: 11 | CZ54: 12 | DA54: 11 | DB54: 13 | DC54: 13 | DE54: 193 | DF54: 210 | DG54: 54 | DH54: 119 | DI54: 225 | DK54: 25 | DL54: 219 | DM54: 92 | DN54: 95 | DO54: 25 | DP54: 28 | DQ54: 219 | DR54: 244 | DS54: 49 | DT54: 49
B55: 03 | C55: 48 | D55: 5776 | E55: C.S. SAYAN | F55: 8280 | H55: 4006 | I55: 4274 | K55: 58 | L55: 58 | M55: 55 | N55: 59 | O55: 67 | P55: 62 | Q55: 59 | R55: 57 | S55: 67 | T55: 57 | U55: 70 | V55: 63 | W55: 71 | X55: 79 | Y55: 69 | Z55: 89 | AA55: 72 | AB55: 76 | AC55: 74 | AD55: 77 | AE55: 79 | AF55: 60 | AG55: 66 | AH55: 74 | AI55: 74 | AJ55: 76 | AK55: 66 | AL55: 78 | AM55: 73 | AN55: 69 | AO55: 66 | AP55: 88 | AQ55: 68 | AR55: 76 | AS55: 64 | AT55: 68 | AU55: 68 | AV55: 74 | AW55: 64 | AX55: 65 | AY55: 298 | AZ55: 352 | BA55: 347 | BB55: 384 | BC55: 300 | BD55: 354 | BE55: 303 | BF55: 323 | BG55: 267 | BH55: 298 | BI55: 252 | BJ55: 256 | BK55: 202 | BL55: 216 | BM55: 174 | BN55: 192 | BO55: 151 | BP55: 139 | BQ55: 116 | BR55: 121 | BS55: 97 | BT55: 81 | BU55: 68 | BV55: 67 | BW55: 81 | BX55: 86 | BY55: 7 | BZ55: 31 | CA55: 30 | CB55: 27 | CC55: 29 | CD55: 161 | CF55: 357 | CG55: 371 | CH55: 1967 | CI55: 226 | CK55: 116 | CL55: 483 | CM55: 1618 | CN55: 1885 | CO55: 866 | CP55: 1652 | CQ55: 3137 | CR55: 1007 | CT55: 740 | CU55: 1416 | CV55: 5525 | CX55: 116 | CY55: 114 | CZ55: 129 | DA55: 116 | DB55: 124 | DC55: 133 | DE55: 1996 | DF55: 2162 | DG55: 547 | DH55: 1231 | DI55: 2338 | DK55: 271 | DL55: 2275 | DM55: 947 | DN55: 965 | DO55: 271 | DP55: 301 | DQ55: 2275 | DR55: 2514 | DS55: 513 | DT55: 494
B56: 03 | C56: 49 | D56: 5777 | E56: P.S. CHAMBARA | F56: 801 | H56: 385 | I56: 416 | K56: 6 | L56: 6 | M56: 5 | N56: 6 | O56: 6 | P56: 6 | Q56: 5 | R56: 6 | S56: 7 | T56: 6 | U56: 7 | V56: 6 | W56: 7 | X56: 8 | Y56: 7 | Z56: 9 | AA56: 7 | AB56: 7 | AC56: 7 | AD56: 7 | AE56: 7 | AF56: 6 | AG56: 7 | AH56: 7 | AI56: 7 | AJ56: 7 | AK56: 7 | AL56: 8 | AM56: 7 | AN56: 7 | AO56: 6 | AP56: 8 | AQ56: 6 | AR56: 7 | AS56: 6 | AT56: 6 | AU56: 6 | AV56: 7 | AW56: 6 | AX56: 7 | AY56: 29 | AZ56: 34 | BA56: 34 | BB56: 37 | BC56: 29 | BD56: 34 | BE56: 29 | BF56: 31 | BG56: 26 | BH56: 29 | BI56: 24 | BJ56: 25 | BK56: 19 | BL56: 21 | BM56: 17 | BN56: 19 | BO56: 15 | BP56: 14 | BQ56: 11 | BR56: 12 | BS56: 9 | BT56: 8 | BU56: 6 | BV56: 7 | BW56: 8 | BX56: 8 | BY56: 0 | BZ56: 3 | CA56: 3 | CB56: 3 | CC56: 3 | CD56: 15 | CF56: 35 | CG56: 35 | CH56: 190 | CI56: 22 | CK56: 12 | CL56: 47 | CM56: 158 | CN56: 181 | CO56: 82 | CP56: 160 | CQ56: 303 | CR56: 98 | CT56: 72 | CU56: 135 | CV56: 535 | CX56: 12 | CY56: 11 | CZ56: 12 | DA56: 11 | DB56: 13 | DC56: 13 | DE56: 193 | DF56: 210 | DG56: 54 | DH56: 119 | DI56: 225 | DK56: 25 | DL56: 219 | DM56: 92 | DN56: 95 | DO56: 25 | DP56: 28 | DQ56: 219 | DR56: 244 | DS56: 49 | DT56: 49
B57: 03 | C57: 50 | D57: 6726 | E57: P.S. LA UNION | F57: 801 | H57: 385 | I57: 416 | K57: 6 | L57: 6 | M57: 5 | N57: 6 | O57: 6 | P57: 6 | Q57: 5 | R57: 6 | S57: 7 | T57: 6 | U57: 7 | V57: 6 | W57: 7 | X57: 8 | Y57: 7 | Z57: 9 | AA57: 7 | AB57: 7 | AC57: 7 | AD57: 7 | AE57: 7 | AF57: 6 | AG57: 7 | AH57: 7 | AI57: 7 | AJ57: 7 | AK57: 7 | AL57: 8 | AM57: 7 | AN57: 7 | AO57: 6 | AP57: 8 | AQ57: 6 | AR57: 7 | AS57: 6 | AT57: 6 | AU57: 6 | AV57: 7 | AW57: 6 | AX57: 7 | AY57: 29 | AZ57: 34 | BA57: 34 | BB57: 37 | BC57: 29 | BD57: 34 | BE57: 29 | BF57: 31 | BG57: 26 | BH57: 29 | BI57: 24 | BJ57: 25 | BK57: 19 | BL57: 21 | BM57: 17 | BN57: 19 | BO57: 15 | BP57: 14 | BQ57: 11 | BR57: 12 | BS57: 9 | BT57: 8 | BU57: 6 | BV57: 7 | BW57: 8 | BX57: 8 | BY57: 0 | BZ57: 3 | CA57: 3 | CB57: 3 | CC57: 3 | CD57: 15 | CF57: 35 | CG57: 35 | CH57: 190 | CI57: 22 | CK57: 12 | CL57: 47 | CM57: 158 | CN57: 181 | CO57: 82 | CP57: 160 | CQ57: 303 | CR57: 98 | CT57: 72 | CU57: 135 | CV57: 535 | CX57: 12 | CY57: 11 | CZ57: 12 | DA57: 11 | DB57: 13 | DC57: 13 | DE57: 193 | DF57: 210 | DG57: 54 | DH57: 119 | DI57: 225 | DK57: 25 | DL57: 219 | DM57: 92 | DN57: 95 | DO57: 25 | DP57: 28 | DQ57: 219 | DR57: 244 | DS57: 49 | DT57: 49
A58: 150812 | C58: 51 | D58: 150812 | E58: DISTRITO VEGUETA | F58: 30415 | H58: 14668 | I58: 15747 | K58: 262 | L58: 283 | M58: 256 | N58: 264 | O58: 290 | P58: 300 | Q58: 312 | R58: 283 | S58: 272 | T58: 252 | U58: 300 | V58: 265 | W58: 301 | X58: 281 | Y58: 302 | Z58: 296 | AA58: 263 | AB58: 296 | AC58: 259 | AD58: 262 | AE58: 260 | AF58: 275 | AG58: 243 | AH58: 284 | AI58: 320 | AJ58: 273 | AK58: 287 | AL58: 273 | AM58: 268 | AN58: 237 | AO58: 274 | AP58: 246 | AQ58: 249 | AR58: 227 | AS58: 228 | AT58: 254 | AU58: 231 | AV58: 235 | AW58: 219 | AX58: 248 | AY58: 1019 | AZ58: 1171 | BA58: 1306 | BB58: 1463 | BC58: 1187 | BD58: 1383 | BE58: 1107 | BF58: 1244 | BG58: 936 | BH58: 1033 | BI58: 800 | BJ58: 900 | BK58: 687 | BL58: 753 | BM58: 589 | BN58: 673 | BO58: 466 | BP58: 533 | BQ58: 389 | BR58: 399 | BS58: 301 | BT58: 292 | BU58: 226 | BV58: 227 | BW58: 259 | BX58: 342 | BY58: 24 | BZ58: 122 | CA58: 119 | CB58: 140 | CC58: 164 | CD58: 758 | CE58: 0 | CF58: 1342 | CG58: 1210 | CH58: 7194 | CI58: 1259 | CK58: 545 | CL58: 2229 | CM58: 6661 | CN58: 7023 | CO58: 3136 | CP58: 5892 | CQ58: 11292 | CR58: 3434 | CT58: 2825 | CU58: 5131 | CV58: 19685 | CX58: 545 | CY58: 520 | CZ58: 590 | DA58: 595 | DB58: 524 | DC58: 565 | DE58: 7078 | DF58: 7982 | DG58: 1959 | DH58: 4560 | DI58: 8404 | DK58: 1019 | DL58: 8081 | DM58: 3927 | DN58: 3887 | DO58: 1019 | DP58: 964 | DQ58: 8081 | DR58: 9103 | DS58: 1641 | DT58: 1793
B59: 04 | C59: 52 | D59: 5673 | E59: C.S. VEGUETA | F59: 8515 | H59: 4106 | I59: 4409 | K59: 73 | L59: 79 | M59: 72 | N59: 74 | O59: 81 | P59: 84 | Q59: 87 | R59: 79 | S59: 76 | T59: 71 | U59: 84 | V59: 74 | W59: 84 | X59: 79 | Y59: 85 | Z59: 83 | AA59: 74 | AB59: 83 | AC59: 73 | AD59: 73 | AE59: 73 | AF59: 77 | AG59: 68 | AH59: 80 | AI59: 90 | AJ59: 76 | AK59: 80 | AL59: 76 | AM59: 75 | AN59: 66 | AO59: 77 | AP59: 69 | AQ59: 70 | AR59: 64 | AS59: 64 | AT59: 71 | AU59: 65 | AV59: 66 | AW59: 61 | AX59: 69 | AY59: 285 | AZ59: 328 | BA59: 366 | BB59: 410 | BC59: 332 | BD59: 387 | BE59: 310 | BF59: 348 | BG59: 262 | BH59: 289 | BI59: 224 | BJ59: 252 | BK59: 192 | BL59: 211 | BM59: 165 | BN59: 188 | BO59: 130 | BP59: 149 | BQ59: 109 | BR59: 112 | BS59: 84 | BT59: 82 | BU59: 63 | BV59: 64 | BW59: 72 | BX59: 96 | BY59: 7 | BZ59: 34 | CA59: 33 | CB59: 39 | CC59: 46 | CD59: 212 | CF59: 375 | CG59: 339 | CH59: 2014 | CI59: 353 | CK59: 152 | CL59: 624 | CM59: 1866 | CN59: 1968 | CO59: 878 | CP59: 1650 | CQ59: 3160 | CR59: 961 | CT59: 792 | CU59: 1437 | CV59: 5510 | CX59: 152 | CY59: 146 | CZ59: 165 | DA59: 166 | DB59: 147 | DC59: 158 | DE59: 1981 | DF59: 2234 | DG59: 548 | DH59: 1276 | DI59: 2353 | DK59: 286 | DL59: 2262 | DM59: 1100 | DN59: 1088 | DO59: 286 | DP59: 270 | DQ59: 2262 | DR59: 2548 | DS59: 458 | DT59: 503
B60: 04 | C60: 53 | D60: 5674 | E60: P.S. MAZO | F60: 2282 | H60: 1101 | I60: 1181 | K60: 20 | L60: 21 | M60: 19 | N60: 20 | O60: 22 | P60: 23 | Q60: 23 | R60: 21 | S60: 20 | T60: 19 | U60: 23 | V60: 20 | W60: 23 | X60: 21 | Y60: 23 | Z60: 22 | AA60: 20 | AB60: 22 | AC60: 19 | AD60: 20 | AE60: 20 | AF60: 21 | AG60: 18 | AH60: 21 | AI60: 24 | AJ60: 20 | AK60: 22 | AL60: 20 | AM60: 20 | AN60: 18 | AO60: 21 | AP60: 18 | AQ60: 19 | AR60: 17 | AS60: 17 | AT60: 19 | AU60: 17 | AV60: 18 | AW60: 16 | AX60: 19 | AY60: 76 | AZ60: 88 | BA60: 98 | BB60: 110 | BC60: 89 | BD60: 104 | BE60: 83 | BF60: 93 | BG60: 70 | BH60: 77 | BI60: 60 | BJ60: 68 | BK60: 52 | BL60: 56 | BM60: 44 | BN60: 50 | BO60: 35 | BP60: 40 | BQ60: 29 | BR60: 30 | BS60: 23 | BT60: 22 | BU60: 17 | BV60: 17 | BW60: 19 | BX60: 26 | BY60: 2 | BZ60: 9 | CA60: 9 | CB60: 11 | CC60: 12 | CD60: 57 | CF60: 100 | CG60: 91 | CH60: 540 | CI60: 94 | CK60: 41 | CL60: 167 | CM60: 501 | CN60: 528 | CO60: 235 | CP60: 442 | CQ60: 846 | CR60: 258 | CT60: 213 | CU60: 385 | CV60: 1476 | CX60: 41 | CY60: 39 | CZ60: 45 | DA60: 44 | DB60: 39 | DC60: 43 | DE60: 531 | DF60: 598 | DG60: 146 | DH60: 342 | DI60: 631 | DK60: 77 | DL60: 605 | DM60: 296 | DN60: 291 | DO60: 77 | DP60: 72 | DQ60: 605 | DR60: 683 | DS60: 123 | DT60: 135
B61: 04 | C61: 54 | D61: 5675 | E61: P.S. PRIMAVERA | F61: 7299 | H61: 3519 | I61: 3780 | K61: 63 | L61: 68 | M61: 61 | N61: 63 | O61: 70 | P61: 72 | Q61: 75 | R61: 68 | S61: 65 | T61: 60 | U61: 72 | V61: 64 | W61: 72 | X61: 67 | Y61: 72 | Z61: 71 | AA61: 63 | AB61: 71 | AC61: 62 | AD61: 63 | AE61: 62 | AF61: 66 | AG61: 58 | AH61: 68 | AI61: 77 | AJ61: 66 | AK61: 69 | AL61: 66 | AM61: 64 | AN61: 57 | AO61: 66 | AP61: 59 | AQ61: 60 | AR61: 54 | AS61: 55 | AT61: 61 | AU61: 55 | AV61: 56 | AW61: 53 | AX61: 60 | AY61: 245 | AZ61: 281 | BA61: 313 | BB61: 351 | BC61: 285 | BD61: 332 | BE61: 266 | BF61: 299 | BG61: 225 | BH61: 248 | BI61: 192 | BJ61: 216 | BK61: 165 | BL61: 181 | BM61: 141 | BN61: 162 | BO61: 112 | BP61: 128 | BQ61: 93 | BR61: 96 | BS61: 72 | BT61: 70 | BU61: 54 | BV61: 54 | BW61: 62 | BX61: 82 | BY61: 6 | BZ61: 29 | CA61: 29 | CB61: 34 | CC61: 39 | CD61: 182 | CF61: 323 | CG61: 290 | CH61: 1727 | CI61: 302 | CK61: 131 | CL61: 534 | CM61: 1596 | CN61: 1685 | CO61: 754 | CP61: 1414 | CQ61: 2712 | CR61: 823 | CT61: 677 | CU61: 1232 | CV61: 4725 | CX61: 131 | CY61: 124 | CZ61: 142 | DA61: 143 | DB61: 125 | DC61: 136 | DE61: 1699 | DF61: 1917 | DG61: 471 | DH61: 1095 | DI61: 2017 | DK61: 245 | DL61: 1940 | DM61: 941 | DN61: 933 | DO61: 245 | DP61: 231 | DQ61: 1940 | DR61: 2186 | DS61: 393 | DT61: 430
B62: 04 | C62: 55 | D62: 5676 | E62: P.S. MARIATEGUI | F62: 8826 | H62: 4255 | I62: 4571 | K62: 76 | L62: 83 | M62: 75 | N62: 77 | O62: 84 | P62: 86 | Q62: 91 | R62: 83 | S62: 80 | T62: 73 | U62: 86 | V62: 77 | W62: 87 | X62: 82 | Y62: 87 | Z62: 86 | AA62: 76 | AB62: 86 | AC62: 76 | AD62: 76 | AE62: 75 | AF62: 80 | AG62: 71 | AH62: 83 | AI62: 92 | AJ62: 80 | AK62: 83 | AL62: 80 | AM62: 79 | AN62: 69 | AO62: 79 | AP62: 72 | AQ62: 72 | AR62: 66 | AS62: 66 | AT62: 74 | AU62: 68 | AV62: 68 | AW62: 64 | AX62: 72 | AY62: 296 | AZ62: 339 | BA62: 378 | BB62: 424 | BC62: 344 | BD62: 401 | BE62: 320 | BF62: 361 | BG62: 271 | BH62: 300 | BI62: 232 | BJ62: 260 | BK62: 199 | BL62: 218 | BM62: 171 | BN62: 196 | BO62: 136 | BP62: 154 | BQ62: 113 | BR62: 115 | BS62: 87 | BT62: 85 | BU62: 66 | BV62: 66 | BW62: 75 | BX62: 99 | BY62: 7 | BZ62: 36 | CA62: 34 | CB62: 40 | CC62: 48 | CD62: 220 | CF62: 392 | CG62: 352 | CH62: 2085 | CI62: 366 | CK62: 159 | CL62: 649 | CM62: 1936 | CN62: 2040 | CO62: 912 | CP62: 1709 | CQ62: 3273 | CR62: 996 | CT62: 819 | CU62: 1493 | CV62: 5706 | CX62: 159 | CY62: 152 | CZ62: 170 | DA62: 174 | DB62: 153 | DC62: 163 | DE62: 2051 | DF62: 2314 | DG62: 568 | DH62: 1322 | DI62: 2437 | DK62: 296 | DL62: 2343 | DM62: 1139 | DN62: 1132 | DO62: 296 | DP62: 281 | DQ62: 2343 | DR62: 2639 | DS62: 477 | DT62: 519
B63: 04 | C63: 56 | D63: 5677 | E63: P.S. MEDIO MUNDO | F63: 3347 | H63: 1614 | I63: 1733 | K63: 29 | L63: 31 | M63: 28 | N63: 29 | O63: 32 | P63: 33 | Q63: 34 | R63: 31 | S63: 30 | T63: 28 | U63: 33 | V63: 29 | W63: 33 | X63: 31 | Y63: 33 | Z63: 33 | AA63: 29 | AB63: 33 | AC63: 28 | AD63: 29 | AE63: 29 | AF63: 30 | AG63: 27 | AH63: 31 | AI63: 35 | AJ63: 30 | AK63: 32 | AL63: 30 | AM63: 29 | AN63: 26 | AO63: 30 | AP63: 27 | AQ63: 27 | AR63: 25 | AS63: 25 | AT63: 28 | AU63: 25 | AV63: 26 | AW63: 24 | AX63: 27 | AY63: 112 | AZ63: 129 | BA63: 144 | BB63: 161 | BC63: 131 | BD63: 152 | BE63: 122 | BF63: 137 | BG63: 103 | BH63: 114 | BI63: 88 | BJ63: 99 | BK63: 76 | BL63: 83 | BM63: 65 | BN63: 74 | BO63: 51 | BP63: 59 | BQ63: 43 | BR63: 44 | BS63: 33 | BT63: 32 | BU63: 25 | BV63: 25 | BW63: 29 | BX63: 37 | BY63: 2 | BZ63: 13 | CA63: 13 | CB63: 15 | CC63: 18 | CD63: 83 | CF63: 147 | CG63: 133 | CH63: 792 | CI63: 138 | CK63: 60 | CL63: 245 | CM63: 733 | CN63: 772 | CO63: 344 | CP63: 648 | CQ63: 1244 | CR63: 378 | CT63: 311 | CU63: 563 | CV63: 2168 | CX63: 60 | CY63: 57 | CZ63: 65 | DA63: 65 | DB63: 58 | DC63: 62 | DE63: 780 | DF63: 879 | DG63: 216 | DH63: 502 | DI63: 925 | DK63: 111 | DL63: 890 | DM63: 432 | DN63: 428 | DO63: 111 | DP63: 106 | DQ63: 890 | DR63: 1002 | DS63: 181 | DT63: 197
B64: 04 | C64: 57 | D64: 5678 | E64: P.S. TIROLER | F64: 146 | H64: 73 | I64: 73 | K64: 1 | L64: 1 | M64: 1 | N64: 1 | O64: 1 | P64: 2 | Q64: 2 | R64: 1 | S64: 1 | T64: 1 | U64: 2 | V64: 1 | W64: 2 | X64: 1 | Y64: 2 | Z64: 1 | AA64: 1 | AB64: 1 | AC64: 1 | AD64: 1 | AE64: 1 | AF64: 1 | AG64: 1 | AH64: 1 | AI64: 2 | AJ64: 1 | AK64: 1 | AL64: 1 | AM64: 1 | AN64: 1 | AO64: 1 | AP64: 1 | AQ64: 1 | AR64: 1 | AS64: 1 | AT64: 1 | AU64: 1 | AV64: 1 | AW64: 1 | AX64: 1 | AY64: 5 | AZ64: 6 | BA64: 7 | BB64: 7 | BC64: 6 | BD64: 7 | BE64: 6 | BF64: 6 | BG64: 5 | BH64: 5 | BI64: 4 | BJ64: 5 | BK64: 3 | BL64: 4 | BM64: 3 | BN64: 3 | BO64: 2 | BP64: 3 | BQ64: 2 | BR64: 2 | BS64: 2 | BT64: 1 | BU64: 1 | BV64: 1 | BW64: 2 | BX64: 2 | BY64: 0 | BZ64: 1 | CA64: 1 | CB64: 1 | CC64: 1 | CD64: 4 | CF64: 5 | CG64: 5 | CH64: 36 | CI64: 6 | CK64: 2 | CL64: 10 | CM64: 29 | CN64: 30 | CO64: 13 | CP64: 29 | CQ64: 57 | CR64: 18 | CT64: 13 | CU64: 21 | CV64: 100 | CX64: 2 | CY64: 2 | CZ64: 3 | DA64: 3 | DB64: 2 | DC64: 3 | DE64: 36 | DF64: 40 | DG64: 10 | DH64: 23 | DI64: 41 | DK64: 4 | DL64: 41 | DM64: 19 | DN64: 15 | DO64: 4 | DP64: 4 | DQ64: 41 | DR64: 45 | DS64: 9 | DT64: 9
A65: 150900 | C65: 58 | D65: 150900 | E65: PROVINCIA OYON | F65: 16953 | H65: 8147 | I65: 8806 | K65: 112 | L65: 114 | M65: 103 | N65: 110 | O65: 98 | P65: 106 | Q65: 110 | R65: 111 | S65: 126 | T65: 115 | U65: 128 | V65: 132 | W65: 142 | X65: 141 | Y65: 143 | Z65: 152 | AA65: 131 | AB65: 167 | AC65: 157 | AD65: 167 | AE65: 169 | AF65: 176 | AG65: 171 | AH65: 175 | AI65: 177 | AJ65: 204 | AK65: 192 | AL65: 195 | AM65: 155 | AN65: 170 | AO65: 183 | AP65: 198 | AQ65: 165 | AR65: 203 | AS65: 164 | AT65: 161 | AU65: 154 | AV65: 146 | AW65: 131 | AX65: 137 | AY65: 626 | AZ65: 657 | BA65: 639 | BB65: 696 | BC65: 548 | BD65: 655 | BE65: 555 | BF65: 623 | BG65: 482 | BH65: 464 | BI65: 478 | BJ65: 470 | BK65: 434 | BL65: 461 | BM65: 357 | BN65: 390 | BO65: 327 | BP65: 330 | BQ65: 255 | BR65: 273 | BS65: 204 | BT65: 214 | BU65: 140 | BV65: 188 | BW65: 191 | BX65: 305 | BY65: 23 | BZ65: 51 | CA65: 52 | CB65: 61 | CC65: 62 | CD65: 298 | CE65: 0 | CF65: 920 | CG65: 845 | CH65: 3565 | CI65: 418 | CK65: 226 | CL65: 879 | CM65: 3256 | CN65: 4318 | CO65: 2167 | CP65: 3186 | CQ65: 5917 | CR65: 2427 | CT65: 1460 | CU65: 3426 | CV65: 10962 | CX65: 226 | CY65: 213 | CZ65: 204 | DA65: 221 | DB65: 241 | DC65: 260 | DE65: 3820 | DF65: 4089 | DG65: 1181 | DH65: 2212 | DI65: 4410 | DK65: 667 | DL65: 4404 | DM65: 1959 | DN65: 2065 | DO65: 667 | DP65: 732 | DQ65: 4404 | DR65: 4699 | DS65: 1117 | DT65: 1310
A66: 150901 | C66: 59 | D66: 150901 | E66: DISTRITO OYON | F66: 11749 | H66: 5636 | I66: 6113 | K66: 59 | L66: 67 | M66: 55 | N66: 56 | O66: 58 | P66: 45 | Q66: 51 | R66: 63 | S66: 81 | T66: 62 | U66: 87 | V66: 80 | W66: 109 | X66: 114 | Y66: 118 | Z66: 123 | AA66: 97 | AB66: 140 | AC66: 127 | AD66: 137 | AE66: 129 | AF66: 136 | AG66: 145 | AH66: 132 | AI66: 132 | AJ66: 151 | AK66: 148 | AL66: 142 | AM66: 124 | AN66: 132 | AO66: 141 | AP66: 150 | AQ66: 126 | AR66: 146 | AS66: 120 | AT66: 114 | AU66: 101 | AV66: 103 | AW66: 97 | AX66: 101 | AY66: 449 | AZ66: 486 | BA66: 479 | BB66: 500 | BC66: 401 | BD66: 503 | BE66: 405 | BF66: 454 | BG66: 336 | BH66: 327 | BI66: 320 | BJ66: 326 | BK66: 300 | BL66: 324 | BM66: 224 | BN66: 241 | BO66: 192 | BP66: 200 | BQ66: 156 | BR66: 165 | BS66: 117 | BT66: 122 | BU66: 71 | BV66: 102 | BW66: 81 | BX66: 169 | BY66: 19 | BZ66: 32 | CA66: 34 | CB66: 27 | CC66: 33 | CD66: 167 | CE66: 0 | CF66: 693 | CG66: 614 | CH66: 2596 | CI66: 230 | CK66: 126 | CL66: 471 | CM66: 2271 | CN66: 3300 | CO66: 1626 | CP66: 2316 | CQ66: 4161 | CR66: 1375 | CT66: 1132 | CU66: 2570 | CV66: 7450 | CX66: 126 | CY66: 111 | CZ66: 103 | DA66: 114 | DB66: 143 | DC66: 167 | DE66: 2657 | DF66: 2875 | DG66: 765 | DH66: 1610 | DI66: 3210 | DK66: 511 | DL66: 3112 | DM66: 1396 | DN66: 1448 | DO66: 511 | DP66: 542 | DQ66: 3112 | DR66: 3365 | DS66: 617 | DT66: 758
B67: 05 | C67: 60 | D67: 5659 | E67: P.S. RAPAZ | F67: 826 | H67: 395 | I67: 431 | K67: 4 | L67: 5 | M67: 4 | N67: 4 | O67: 4 | P67: 3 | Q67: 4 | R67: 4 | S67: 6 | T67: 4 | U67: 6 | V67: 6 | W67: 8 | X67: 8 | Y67: 8 | Z67: 9 | AA67: 7 | AB67: 10 | AC67: 9 | AD67: 10 | AE67: 9 | AF67: 10 | AG67: 10 | AH67: 9 | AI67: 9 | AJ67: 11 | AK67: 10 | AL67: 10 | AM67: 9 | AN67: 9 | AO67: 10 | AP67: 11 | AQ67: 9 | AR67: 10 | AS67: 8 | AT67: 8 | AU67: 7 | AV67: 7 | AW67: 7 | AX67: 7 | AY67: 31 | AZ67: 34 | BA67: 34 | BB67: 35 | BC67: 28 | BD67: 35 | BE67: 28 | BF67: 32 | BG67: 24 | BH67: 23 | BI67: 22 | BJ67: 23 | BK67: 21 | BL67: 23 | BM67: 16 | BN67: 17 | BO67: 13 | BP67: 14 | BQ67: 11 | BR67: 12 | BS67: 8 | BT67: 9 | BU67: 5 | BV67: 7 | BW67: 6 | BX67: 12 | BY67: 2 | BZ67: 2 | CA67: 2 | CB67: 2 | CC67: 2 | CD67: 12 | CF67: 49 | CG67: 43 | CH67: 182 | CI67: 16 | CK67: 9 | CL67: 33 | CM67: 161 | CN67: 233 | CO67: 114 | CP67: 162 | CQ67: 292 | CR67: 97 | CT67: 81 | CU67: 180 | CV67: 523 | CX67: 9 | CY67: 8 | CZ67: 7 | DA67: 8 | DB67: 10 | DC67: 12 | DE67: 186 | DF67: 202 | DG67: 54 | DH67: 113 | DI67: 225 | DK67: 36 | DL67: 218 | DM67: 98 | DN67: 103 | DO67: 36 | DP67: 38 | DQ67: 218 | DR67: 236 | DS67: 43 | DT67: 54
B68: 05 | C68: 61 | D68: 5660 | E68: C.S. OYON | F68: 9868 | H68: 4735 | I68: 5133 | K68: 49 | L68: 56 | M68: 45 | N68: 46 | O68: 48 | P68: 39 | Q68: 41 | R68: 53 | S68: 68 | T68: 52 | U68: 73 | V68: 67 | W68: 92 | X68: 96 | Y68: 99 | Z68: 103 | AA68: 81 | AB68: 118 | AC68: 107 | AD68: 115 | AE68: 109 | AF68: 114 | AG68: 123 | AH68: 111 | AI68: 111 | AJ68: 125 | AK68: 126 | AL68: 120 | AM68: 104 | AN68: 111 | AO68: 119 | AP68: 124 | AQ68: 106 | AR68: 124 | AS68: 101 | AT68: 96 | AU68: 85 | AV68: 87 | AW68: 81 | AX68: 85 | AY68: 379 | AZ68: 408 | BA68: 402 | BB68: 420 | BC68: 337 | BD68: 423 | BE68: 341 | BF68: 380 | BG68: 282 | BH68: 275 | BI68: 269 | BJ68: 274 | BK68: 252 | BL68: 272 | BM68: 188 | BN68: 203 | BO68: 161 | BP68: 168 | BQ68: 130 | BR68: 138 | BS68: 98 | BT68: 102 | BU68: 59 | BV68: 86 | BW68: 69 | BX68: 142 | BY68: 16 | BZ68: 27 | CA68: 29 | CB68: 23 | CC68: 28 | CD68: 140 | CF68: 581 | CG68: 516 | CH68: 2180 | CI68: 193 | CK68: 105 | CL68: 392 | CM68: 1905 | CN68: 2775 | CO68: 1367 | CP68: 1947 | CQ68: 3496 | CR68: 1153 | CT68: 951 | CU68: 2162 | CV68: 6258 | CX68: 105 | CY68: 91 | CZ68: 87 | DA68: 94 | DB68: 120 | DC68: 140 | DE68: 2232 | DF68: 2415 | DG68: 643 | DH68: 1352 | DI68: 2696 | DK68: 430 | DL68: 2616 | DM68: 1172 | DN68: 1215 | DO68: 430 | DP68: 455 | DQ68: 2616 | DR68: 2827 | DS68: 517 | DT68: 636
B69: 05 | C69: 62 | D69: 5661 | E69: P.S. MALLAY | F69: 586 | H69: 281 | I69: 305 | K69: 3 | L69: 3 | M69: 3 | N69: 3 | O69: 3 | P69: 2 | Q69: 3 | R69: 3 | S69: 4 | T69: 3 | U69: 4 | V69: 4 | W69: 5 | X69: 6 | Y69: 6 | Z69: 6 | AA69: 5 | AB69: 7 | AC69: 6 | AD69: 7 | AE69: 6 | AF69: 7 | AG69: 7 | AH69: 7 | AI69: 7 | AJ69: 8 | AK69: 7 | AL69: 7 | AM69: 6 | AN69: 7 | AO69: 7 | AP69: 8 | AQ69: 6 | AR69: 7 | AS69: 6 | AT69: 6 | AU69: 5 | AV69: 5 | AW69: 5 | AX69: 5 | AY69: 22 | AZ69: 24 | BA69: 24 | BB69: 25 | BC69: 20 | BD69: 25 | BE69: 20 | BF69: 23 | BG69: 17 | BH69: 16 | BI69: 16 | BJ69: 16 | BK69: 15 | BL69: 16 | BM69: 11 | BN69: 12 | BO69: 10 | BP69: 10 | BQ69: 8 | BR69: 8 | BS69: 6 | BT69: 6 | BU69: 4 | BV69: 5 | BW69: 4 | BX69: 8 | BY69: 1 | BZ69: 2 | CA69: 2 | CB69: 1 | CC69: 2 | CD69: 8 | CF69: 36 | CG69: 31 | CH69: 129 | CI69: 12 | CK69: 6 | CL69: 24 | CM69: 113 | CN69: 165 | CO69: 82 | CP69: 115 | CQ69: 207 | CR69: 69 | CT69: 56 | CU69: 129 | CV69: 371 | CX69: 6 | CY69: 6 | CZ69: 5 | DA69: 6 | DB69: 7 | DC69: 8 | DE69: 133 | DF69: 143 | DG69: 38 | DH69: 80 | DI69: 160 | DK69: 25 | DL69: 155 | DM69: 69 | DN69: 73 | DO69: 25 | DP69: 28 | DQ69: 155 | DR69: 167 | DS69: 32 | DT69: 37
B70: 05 | C70: 63 | D70: 5662 | E70: P.S. NAVA | F70: 114 | H70: 54 | I70: 60 | K70: 1 | L70: 1 | M70: 1 | N70: 1 | O70: 1 | P70: 0 | Q70: 1 | R70: 1 | S70: 1 | T70: 1 | U70: 1 | V70: 1 | W70: 1 | X70: 1 | Y70: 1 | Z70: 1 | AA70: 1 | AB70: 1 | AC70: 1 | AD70: 1 | AE70: 1 | AF70: 1 | AG70: 1 | AH70: 1 | AI70: 1 | AJ70: 2 | AK70: 1 | AL70: 1 | AM70: 1 | AN70: 1 | AO70: 1 | AP70: 2 | AQ70: 1 | AR70: 1 | AS70: 1 | AT70: 1 | AU70: 1 | AV70: 1 | AW70: 1 | AX70: 1 | AY70: 4 | AZ70: 5 | BA70: 5 | BB70: 5 | BC70: 4 | BD70: 5 | BE70: 4 | BF70: 5 | BG70: 3 | BH70: 3 | BI70: 3 | BJ70: 3 | BK70: 3 | BL70: 3 | BM70: 2 | BN70: 2 | BO70: 2 | BP70: 2 | BQ70: 2 | BR70: 2 | BS70: 1 | BT70: 1 | BU70: 1 | BV70: 1 | BW70: 0 | BX70: 2 | BY70: 0 | BZ70: 0 | CA70: 0 | CB70: 0 | CC70: 0 | CD70: 2 | CF70: 6 | CG70: 6 | CH70: 26 | CI70: 2 | CK70: 2 | CL70: 7 | CM70: 23 | CN70: 28 | CO70: 14 | CP70: 23 | CQ70: 40 | CR70: 14 | CT70: 10 | CU70: 22 | CV70: 73 | CX70: 2 | CY70: 2 | CZ70: 1 | DA70: 2 | DB70: 2 | DC70: 2 | DE70: 26 | DF70: 28 | DG70: 7 | DH70: 16 | DI70: 32 | DK70: 4 | DL70: 30 | DM70: 14 | DN70: 14 | DO70: 4 | DP70: 5 | DQ70: 30 | DR70: 33 | DS70: 6 | DT70: 8
B71: 05 | C71: 64 | D71: 5648 | E71: P.S. TINTA | F71: 355 | H71: 171 | I71: 184 | K71: 2 | L71: 2 | M71: 2 | N71: 2 | O71: 2 | P71: 1 | Q71: 2 | R71: 2 | S71: 2 | T71: 2 | U71: 3 | V71: 2 | W71: 3 | X71: 3 | Y71: 4 | Z71: 4 | AA71: 3 | AB71: 4 | AC71: 4 | AD71: 4 | AE71: 4 | AF71: 4 | AG71: 4 | AH71: 4 | AI71: 4 | AJ71: 5 | AK71: 4 | AL71: 4 | AM71: 4 | AN71: 4 | AO71: 4 | AP71: 5 | AQ71: 4 | AR71: 4 | AS71: 4 | AT71: 3 | AU71: 3 | AV71: 3 | AW71: 3 | AX71: 3 | AY71: 13 | AZ71: 15 | BA71: 14 | BB71: 15 | BC71: 12 | BD71: 15 | BE71: 12 | BF71: 14 | BG71: 10 | BH71: 10 | BI71: 10 | BJ71: 10 | BK71: 9 | BL71: 10 | BM71: 7 | BN71: 7 | BO71: 6 | BP71: 6 | BQ71: 5 | BR71: 5 | BS71: 4 | BT71: 4 | BU71: 2 | BV71: 3 | BW71: 2 | BX71: 5 | BY71: 0 | BZ71: 1 | CA71: 1 | CB71: 1 | CC71: 1 | CD71: 5 | CF71: 21 | CG71: 18 | CH71: 79 | CI71: 7 | CK71: 4 | CL71: 15 | CM71: 69 | CN71: 99 | CO71: 49 | CP71: 69 | CQ71: 126 | CR71: 42 | CT71: 34 | CU71: 77 | CV71: 225 | CX71: 4 | CY71: 4 | CZ71: 3 | DA71: 4 | DB71: 4 | DC71: 5 | DE71: 80 | DF71: 87 | DG71: 23 | DH71: 49 | DI71: 97 | DK71: 16 | DL71: 93 | DM71: 43 | DN71: 43 | DO71: 16 | DP71: 16 | DQ71: 93 | DR71: 102 | DS71: 19 | DT71: 23
A72: 150902 | C72: 65 | D72: 150902 | E72: DISTRITO ANDAJES | F72: 429 | H72: 207 | I72: 222 | K72: 4 | L72: 3 | M72: 3 | N72: 5 | O72: 3 | P72: 6 | Q72: 1 | R72: 7 | S72: 4 | T72: 2 | U72: 2 | V72: 0 | W72: 2 | X72: 1 | Y72: 2 | Z72: 2 | AA72: 2 | AB72: 1 | AC72: 1 | AD72: 1 | AE72: 4 | AF72: 3 | AG72: 3 | AH72: 6 | AI72: 4 | AJ72: 3 | AK72: 1 | AL72: 4 | AM72: 1 | AN72: 1 | AO72: 3 | AP72: 3 | AQ72: 1 | AR72: 4 | AS72: 4 | AT72: 3 | AU72: 2 | AV72: 2 | AW72: 0 | AX72: 1 | AY72: 9 | AZ72: 6 | BA72: 7 | BB72: 6 | BC72: 6 | BD72: 4 | BE72: 9 | BF72: 10 | BG72: 11 | BH72: 6 | BI72: 6 | BJ72: 8 | BK72: 17 | BL72: 7 | BM72: 12 | BN72: 16 | BO72: 26 | BP72: 18 | BQ72: 9 | BR72: 16 | BS72: 11 | BT72: 15 | BU72: 10 | BV72: 18 | BW72: 27 | BX72: 34 | BY72: 0 | BZ72: 0 | CA72: 3 | CB72: 4 | CC72: 0 | CD72: 10 | CE72: 0 | CF72: 17 | CG72: 13 | CH72: 40 | CI72: 8 | CK72: 7 | CL72: 31 | CM72: 68 | CN72: 62 | CO72: 32 | CP72: 33 | CQ72: 112 | CR72: 184 | CT72: 14 | CU72: 53 | CV72: 324 | CX72: 7 | CY72: 8 | CZ72: 9 | DA72: 8 | DB72: 6 | DC72: 2 | DE72: 94 | DF72: 75 | DG72: 41 | DH72: 28 | DI72: 53 | DK72: 9 | DL72: 79 | DM72: 36 | DN72: 44 | DO72: 9 | DP72: 11 | DQ72: 79 | DR72: 66 | DS72: 83 | DT72: 101
B73: 05 | C73: 66 | D73: 5654 | E73: P.S. ANDAJES | F73: 429 | H73: 207 | I73: 222 | K73: 4 | L73: 3 | M73: 3 | N73: 5 | O73: 3 | P73: 6 | Q73: 1 | R73: 7 | S73: 4 | T73: 2 | U73: 2 | V73: 0 | W73: 2 | X73: 1 | Y73: 2 | Z73: 2 | AA73: 2 | AB73: 1 | AC73: 1 | AD73: 1 | AE73: 4 | AF73: 3 | AG73: 3 | AH73: 6 | AI73: 4 | AJ73: 3 | AK73: 1 | AL73: 4 | AM73: 1 | AN73: 1 | AO73: 3 | AP73: 3 | AQ73: 1 | AR73: 4 | AS73: 4 | AT73: 3 | AU73: 2 | AV73: 2 | AW73: 0 | AX73: 1 | AY73: 9 | AZ73: 6 | BA73: 7 | BB73: 6 | BC73: 6 | BD73: 4 | BE73: 9 | BF73: 10 | BG73: 11 | BH73: 6 | BI73: 6 | BJ73: 8 | BK73: 17 | BL73: 7 | BM73: 12 | BN73: 16 | BO73: 26 | BP73: 18 | BQ73: 9 | BR73: 16 | BS73: 11 | BT73: 15 | BU73: 10 | BV73: 18 | BW73: 27 | BX73: 34 | BY73: 0 | BZ73: 0 | CA73: 3 | CB73: 4 | CC73: 0 | CD73: 10 | CF73: 17 | CG73: 13 | CH73: 40 | CI73: 8 | CK73: =K73+L73 -> 7 | CL73: =SUM(M73:T73) -> 31 | CM73: =SUM(K73:AH73) -> 68 | CN73: =SUM(U73:AT73) -> 62 | CO73: =SUM(AI73:AT73) -> 32 | CP73: =SUM(AU73:BB73) -> 33 | CQ73: =SUM(BC73:BN73) -> 112 | CR73: =SUM(BO73:BX73) -> 184 | CT73: =SUM(U73:AD73) -> 14 | CU73: =SUM(AE73:AX73) -> 53 | CV73: =SUM(AY73:BX73) -> 324 | CX73: 7 | CY73: 8 | CZ73: 9 | DA73: 8 | DB73: 6 | DC73: 2 | DE73: =BA73+BC73+BE73+BG73+BI73+BK73+BM73+BO73 -> 94 | DF73: =BB73+BD73+BF73+BH73+BJ73+BL73+BN73+BP73 -> 75 | DG73: =BL73+BN73+BP73 -> 41 | DH73: =BD73+BF73+BH73+BJ73 -> 28 | DI73: =AP73+AR73+AT73+AV73+AX73+AZ73+BB73+BD73+BF73+BH73+BJ73 -> 53 | DK73: =AM73+AO73+AQ73+AS73 -> 9 | DL73: =AU73+AW73+AY73+BA73+BC73+BE73+BG73+BI73+BK73+BM73 -> 79 | DM73: =K73+M73+O73+Q73+S73+U73+W73+Y73+AA73+AC73+AE73+AG73+AI73+AK73 -> 36 | DN73: =L73+N73+P73+R73+T73+V73+X73+Z73+AB73+AD73+AF73+AH73+AJ73+AL73 -> 44 | DO73: =AM73+AO73+AQ73+AS73 -> 9 | DP73: =AN73+AP73+AR73+AT73 -> 11 | DQ73: =AU73+AW73+AY73+BA73+BC73+BE73+BG73+BK73+BM73+BI73 -> 79 | DR73: =AV73+AX73+AZ73+BB73+BD73+BF73+BH73+BL73+BN73+BJ73 -> 66 | DS73: =BO73+BQ73+BS73+BU73+BW73 -> 83 | DT73: =BP73+BR73+BT73+BV73+BX73 -> 101
A74: 150903 | C74: 67 | D74: 150903 | E74: DISTRITO CAUJUL | F74: 451 | H74: 216 | I74: 235 | K74: 5 | L74: 4 | M74: 6 | N74: 4 | O74: 3 | P74: 3 | Q74: 3 | R74: 4 | S74: 3 | T74: 4 | U74: 3 | V74: 3 | W74: 3 | X74: 3 | Y74: 3 | Z74: 4 | AA74: 1 | AB74: 1 | AC74: 3 | AD74: 4 | AE74: 2 | AF74: 2 | AG74: 3 | AH74: 3 | AI74: 3 | AJ74: 2 | AK74: 2 | AL74: 6 | AM74: 2 | AN74: 3 | AO74: 4 | AP74: 4 | AQ74: 3 | AR74: 4 | AS74: 3 | AT74: 3 | AU74: 3 | AV74: 4 | AW74: 2 | AX74: 4 | AY74: 14 | AZ74: 17 | BA74: 13 | BB74: 18 | BC74: 13 | BD74: 13 | BE74: 12 | BF74: 18 | BG74: 10 | BH74: 11 | BI74: 19 | BJ74: 10 | BK74: 9 | BL74: 12 | BM74: 12 | BN74: 15 | BO74: 13 | BP74: 12 | BQ74: 15 | BR74: 8 | BS74: 8 | BT74: 6 | BU74: 6 | BV74: 8 | BW74: 12 | BX74: 18 | BY74: 0 | BZ74: 0 | CA74: 4 | CB74: 5 | CC74: 0 | CD74: 13 | CE74: 0 | CF74: 16 | CG74: 19 | CH74: 87 | CI74: 15 | CK74: 9 | CL74: 30 | CM74: 77 | CN74: 77 | CO74: 39 | CP74: 75 | CQ74: 154 | CR74: 106 | CT74: 28 | CU74: 62 | CV74: 322 | CX74: 9 | CY74: 10 | CZ74: 6 | DA74: 7 | DB74: 7 | DC74: 6 | DE74: 101 | DF74: 109 | DG74: 39 | DH74: 52 | DI74: 106 | DK74: 12 | DL74: 107 | DM74: 43 | DN74: 47 | DO74: 12 | DP74: 14 | DQ74: 107 | DR74: 122 | DS74: 54 | DT74: 52
B75: 05 | C75: 68 | D75: 5655 | E75: P.S. CAUJUL | F75: 451 | H75: 216 | I75: 235 | K75: 5 | L75: 4 | M75: 6 | N75: 4 | O75: 3 | P75: 3 | Q75: 3 | R75: 4 | S75: 3 | T75: 4 | U75: 3 | V75: 3 | W75: 3 | X75: 3 | Y75: 3 | Z75: 4 | AA75: 1 | AB75: 1 | AC75: 3 | AD75: 4 | AE75: 2 | AF75: 2 | AG75: 3 | AH75: 3 | AI75: 3 | AJ75: 2 | AK75: 2 | AL75: 6 | AM75: 2 | AN75: 3 | AO75: 4 | AP75: 4 | AQ75: 3 | AR75: 4 | AS75: 3 | AT75: 3 | AU75: 3 | AV75: 4 | AW75: 2 | AX75: 4 | AY75: 14 | AZ75: 17 | BA75: 13 | BB75: 18 | BC75: 13 | BD75: 13 | BE75: 12 | BF75: 18 | BG75: 10 | BH75: 11 | BI75: 19 | BJ75: 10 | BK75: 9 | BL75: 12 | BM75: 12 | BN75: 15 | BO75: 13 | BP75: 12 | BQ75: 15 | BR75: 8 | BS75: 8 | BT75: 6 | BU75: 6 | BV75: 8 | BW75: 12 | BX75: 18 | BY75: 0 | BZ75: 0 | CA75: 4 | CB75: 5 | CC75: 0 | CD75: 13 | CF75: 16 | CG75: 19 | CH75: 87 | CI75: 15 | CK75: 9 | CL75: 30 | CM75: 77 | CN75: 77 | CO75: 39 | CP75: 75 | CQ75: 154 | CR75: 106 | CT75: 28 | CU75: 62 | CV75: 322 | CX75: 9 | CY75: 10 | CZ75: 6 | DA75: 7 | DB75: 7 | DC75: 6 | DE75: 101 | DF75: 109 | DG75: 39 | DH75: 52 | DI75: 106 | DK75: 12 | DL75: 107 | DM75: 43 | DN75: 47 | DO75: 12 | DP75: 14 | DQ75: 107 | DR75: 122 | DS75: 54 | DT75: 52
A76: 150904 | C76: 69 | D76: 150904 | E76: DISTRITO COCHAMARCA | F76: 1093 | H76: 528 | I76: 565 | K76: 8 | L76: 13 | M76: 8 | N76: 14 | O76: 6 | P76: 9 | Q76: 14 | R76: 6 | S76: 7 | T76: 14 | U76: 3 | V76: 6 | W76: 11 | X76: 9 | Y76: 5 | Z76: 5 | AA76: 5 | AB76: 6 | AC76: 5 | AD76: 10 | AE76: 8 | AF76: 12 | AG76: 10 | AH76: 9 | AI76: 8 | AJ76: 14 | AK76: 11 | AL76: 14 | AM76: 6 | AN76: 14 | AO76: 15 | AP76: 11 | AQ76: 14 | AR76: 19 | AS76: 12 | AT76: 9 | AU76: 18 | AV76: 11 | AW76: 13 | AX76: 16 | AY76: 55 | AZ76: 54 | BA76: 44 | BB76: 45 | BC76: 38 | BD76: 32 | BE76: 28 | BF76: 31 | BG76: 23 | BH76: 22 | BI76: 34 | BJ76: 36 | BK76: 26 | BL76: 27 | BM76: 30 | BN76: 20 | BO76: 17 | BP76: 19 | BQ76: 11 | BR76: 12 | BS76: 13 | BT76: 17 | BU76: 6 | BV76: 10 | BW76: 16 | BX76: 19 | BY76: 1 | BZ76: 4 | CA76: 2 | CB76: 4 | CC76: 11 | CD76: 24 | CE76: 0 | CF76: 63 | CG76: 66 | CH76: 220 | CI76: 31 | CK76: 21 | CL76: 78 | CM76: 203 | CN76: 251 | CO76: 147 | CP76: 256 | CQ76: 347 | CR76: 140 | CT76: 65 | CU76: 244 | CV76: 685 | CX76: 21 | CY76: 22 | CZ76: 15 | DA76: 20 | DB76: 21 | DC76: 9 | DE76: 240 | DF76: 232 | DG76: 66 | DH76: 121 | DI76: 286 | DK76: 47 | DL76: 309 | DM76: 109 | DN76: 141 | DO76: 47 | DP76: 53 | DQ76: 309 | DR76: 294 | DS76: 63 | DT76: 77
B77: 03 | C77: 70 | D77: 5783 | E77: P.S. COCHAMARCA | F77: 463 | H77: 224 | I77: 239 | K77: 3 | L77: 6 | M77: 3 | N77: 6 | O77: 2 | P77: 4 | Q77: 6 | R77: 2 | S77: 3 | T77: 6 | U77: 1 | V77: 2 | W77: 5 | X77: 4 | Y77: 2 | Z77: 2 | AA77: 2 | AB77: 2 | AC77: 2 | AD77: 4 | AE77: 3 | AF77: 5 | AG77: 4 | AH77: 4 | AI77: 3 | AJ77: 6 | AK77: 5 | AL77: 6 | AM77: 2 | AN77: 6 | AO77: 6 | AP77: 5 | AQ77: 6 | AR77: 8 | AS77: 5 | AT77: 4 | AU77: 8 | AV77: 5 | AW77: 6 | AX77: 7 | AY77: 24 | AZ77: 23 | BA77: 19 | BB77: 19 | BC77: 16 | BD77: 14 | BE77: 12 | BF77: 13 | BG77: 10 | BH77: 9 | BI77: 15 | BJ77: 15 | BK77: 11 | BL77: 12 | BM77: 13 | BN77: 8 | BO77: 7 | BP77: 8 | BQ77: 5 | BR77: 5 | BS77: 6 | BT77: 7 | BU77: 2 | BV77: 4 | BW77: 7 | BX77: 8 | BY77: 0 | BZ77: 2 | CA77: 1 | CB77: 2 | CC77: 5 | CD77: 10 | CF77: 27 | CG77: 29 | CH77: 93 | CI77: 13 | CK77: 9 | CL77: 32 | CM77: 83 | CN77: 104 | CO77: 62 | CP77: 111 | CQ77: 148 | CR77: 59 | CT77: 26 | CU77: 104 | CV77: 292 | CX77: 9 | CY77: 9 | CZ77: 6 | DA77: 8 | DB77: 9 | DC77: 3 | DE77: 103 | DF77: 98 | DG77: 28 | DH77: 51 | DI77: 122 | DK77: 19 | DL77: 134 | DM77: 44 | DN77: 59 | DO77: 19 | DP77: 23 | DQ77: 134 | DR77: 125 | DS77: 27 | DT77: 32
B78: 03 | C78: 71 | D78: 5784 | E78: P.S. COLCAPAMPA | F78: 529 | H78: 255 | I78: 274 | K78: 4 | L78: 6 | M78: 4 | N78: 7 | O78: 3 | P78: 4 | Q78: 7 | R78: 3 | S78: 3 | T78: 7 | U78: 2 | V78: 3 | W78: 5 | X78: 4 | Y78: 3 | Z78: 3 | AA78: 3 | AB78: 3 | AC78: 3 | AD78: 5 | AE78: 4 | AF78: 6 | AG78: 5 | AH78: 4 | AI78: 4 | AJ78: 7 | AK78: 5 | AL78: 7 | AM78: 3 | AN78: 7 | AO78: 8 | AP78: 5 | AQ78: 7 | AR78: 9 | AS78: 6 | AT78: 4 | AU78: 8 | AV78: 5 | AW78: 6 | AX78: 8 | AY78: 26 | AZ78: 26 | BA78: 21 | BB78: 22 | BC78: 19 | BD78: 15 | BE78: 13 | BF78: 15 | BG78: 11 | BH78: 11 | BI78: 16 | BJ78: 18 | BK78: 13 | BL78: 13 | BM78: 14 | BN78: 10 | BO78: 8 | BP78: 9 | BQ78: 5 | BR78: 6 | BS78: 6 | BT78: 8 | BU78: 3 | BV78: 5 | BW78: 7 | BX78: 9 | BY78: 1 | BZ78: 2 | CA78: 1 | CB78: 2 | CC78: 5 | CD78: 12 | CF78: 31 | CG78: 31 | CH78: 107 | CI78: 15 | CK78: 10 | CL78: 38 | CM78: 101 | CN78: 125 | CO78: 72 | CP78: 122 | CQ78: 168 | CR78: 66 | CT78: 34 | CU78: 118 | CV78: 329 | CX78: 10 | CY78: 11 | CZ78: 7 | DA78: 10 | DB78: 10 | DC78: 5 | DE78: 115 | DF78: 113 | DG78: 32 | DH78: 59 | DI78: 138 | DK78: 24 | DL78: 147 | DM78: 55 | DN78: 69 | DO78: 24 | DP78: 25 | DQ78: 147 | DR78: 143 | DS78: 29 | DT78: 37
B79: 03 | C79: 72 | D79: 5785 | E79: P.S. YARUCAYA | F79: 101 | H79: 49 | I79: 52 | K79: 1 | L79: 1 | M79: 1 | N79: 1 | O79: 1 | P79: 1 | Q79: 1 | R79: 1 | S79: 1 | T79: 1 | U79: 0 | V79: 1 | W79: 1 | X79: 1 | Y79: 0 | Z79: 0 | AA79: 0 | AB79: 1 | AC79: 0 | AD79: 1 | AE79: 1 | AF79: 1 | AG79: 1 | AH79: 1 | AI79: 1 | AJ79: 1 | AK79: 1 | AL79: 1 | AM79: 1 | AN79: 1 | AO79: 1 | AP79: 1 | AQ79: 1 | AR79: 2 | AS79: 1 | AT79: 1 | AU79: 2 | AV79: 1 | AW79: 1 | AX79: 1 | AY79: 5 | AZ79: 5 | BA79: 4 | BB79: 4 | BC79: 3 | BD79: 3 | BE79: 3 | BF79: 3 | BG79: 2 | BH79: 2 | BI79: 3 | BJ79: 3 | BK79: 2 | BL79: 2 | BM79: 3 | BN79: 2 | BO79: 2 | BP79: 2 | BQ79: 1 | BR79: 1 | BS79: 1 | BT79: 2 | BU79: 1 | BV79: 1 | BW79: 2 | BX79: 2 | BY79: 0 | BZ79: 0 | CA79: 0 | CB79: 0 | CC79: 1 | CD79: 2 | CF79: 5 | CG79: 6 | CH79: 20 | CI79: 3 | CK79: 2 | CL79: 8 | CM79: 19 | CN79: 22 | CO79: 13 | CP79: 23 | CQ79: 31 | CR79: 15 | CT79: 5 | CU79: 22 | CV79: 64 | CX79: 2 | CY79: 2 | CZ79: 2 | DA79: 2 | DB79: 2 | DC79: 1 | DE79: 22 | DF79: 21 | DG79: 6 | DH79: 11 | DI79: 26 | DK79: 4 | DL79: 28 | DM79: 10 | DN79: 13 | DO79: 4 | DP79: 5 | DQ79: 28 | DR79: 26 | DS79: 7 | DT79: 8
A80: 150905 | C80: 73 | D80: 150905 | E80: DISTRITO NAVAN | F80: 776 | H80: 373 | I80: 403 | K80: 6 | L80: 4 | M80: 4 | N80: 4 | O80: 7 | P80: 6 | Q80: 3 | R80: 5 | S80: 3 | T80: 4 | U80: 1 | V80: 6 | W80: 7 | X80: 2 | Y80: 4 | Z80: 2 | AA80: 6 | AB80: 3 | AC80: 3 | AD80: 2 | AE80: 6 | AF80: 7 | AG80: 2 | AH80: 4 | AI80: 7 | AJ80: 11 | AK80: 7 | AL80: 9 | AM80: 6 | AN80: 4 | AO80: 3 | AP80: 6 | AQ80: 3 | AR80: 12 | AS80: 7 | AT80: 11 | AU80: 7 | AV80: 10 | AW80: 6 | AX80: 3 | AY80: 23 | AZ80: 23 | BA80: 16 | BB80: 20 | BC80: 14 | BD80: 28 | BE80: 32 | BF80: 27 | BG80: 20 | BH80: 23 | BI80: 27 | BJ80: 28 | BK80: 35 | BL80: 23 | BM80: 23 | BN80: 26 | BO80: 25 | BP80: 21 | BQ80: 19 | BR80: 18 | BS80: 14 | BT80: 16 | BU80: 10 | BV80: 13 | BW80: 17 | BX80: 22 | BY80: 1 | BZ80: 2 | CA80: 0 | CB80: 4 | CC80: 4 | CD80: 18 | CE80: 0 | CF80: 35 | CG80: 42 | CH80: 149 | CI80: 15 | CK80: 10 | CL80: 36 | CM80: 101 | CN80: 141 | CO80: 86 | CP80: 108 | CQ80: 306 | CR80: 175 | CT80: 36 | CU80: 131 | CV80: 563 | CX80: 10 | CY80: 8 | CZ80: 13 | DA80: 8 | DB80: 7 | DC80: 7 | DE80: 192 | DF80: 196 | DG80: 70 | DH80: 106 | DI80: 191 | DK80: 19 | DL80: 203 | DM80: 66 | DN80: 69 | DO80: 19 | DP80: 33 | DQ80: 203 | DR80: 211 | DS80: 85 | DT80: 90
B81: 05 | C81: 74 | D81: 5656 | E81: P.S. NAVAN | F81: 776 | H81: 373 | I81: 403 | K81: 6 | L81: 4 | M81: 4 | N81: 4 | O81: 7 | P81: 6 | Q81: 3 | R81: 5 | S81: 3 | T81: 4 | U81: 1 | V81: 6 | W81: 7 | X81: 2 | Y81: 4 | Z81: 2 | AA81: 6 | AB81: 3 | AC81: 3 | AD81: 2 | AE81: 6 | AF81: 7 | AG81: 2 | AH81: 4 | AI81: 7 | AJ81: 11 | AK81: 7 | AL81: 9 | AM81: 6 | AN81: 4 | AO81: 3 | AP81: 6 | AQ81: 3 | AR81: 12 | AS81: 7 | AT81: 11 | AU81: 7 | AV81: 10 | AW81: 6 | AX81: 3 | AY81: 23 | AZ81: 23 | BA81: 16 | BB81: 20 | BC81: 14 | BD81: 28 | BE81: 32 | BF81: 27 | BG81: 20 | BH81: 23 | BI81: 27 | BJ81: 28 | BK81: 35 | BL81: 23 | BM81: 23 | BN81: 26 | BO81: 25 | BP81: 21 | BQ81: 19 | BR81: 18 | BS81: 14 | BT81: 16 | BU81: 10 | BV81: 13 | BW81: 17 | BX81: 22 | BY81: 1 | BZ81: 2 | CA81: 0 | CB81: 4 | CC81: 4 | CD81: 18 | CF81: 35 | CG81: 42 | CH81: 149 | CI81: 15 | CK81: 10 | CL81: 36 | CM81: 101 | CN81: 141 | CO81: 86 | CP81: 108 | CQ81: 306 | CR81: 175 | CT81: 36 | CU81: 131 | CV81: 563 | CX81: 10 | CY81: 8 | CZ81: 13 | DA81: 8 | DB81: 7 | DC81: 7 | DE81: 192 | DF81: 196 | DG81: 70 | DH81: 106 | DI81: 191 | DK81: 19 | DL81: 203 | DM81: 66 | DN81: 69 | DO81: 19 | DP81: 33 | DQ81: 203 | DR81: 211 | DS81: 85 | DT81: 90
A82: 150906 | C82: 75 | D82: 150906 | E82: DISTRITO PACHANGARA | F82: 2455 | H82: 1187 | I82: 1268 | K82: 30 | L82: 23 | M82: 27 | N82: 27 | O82: 21 | P82: 37 | Q82: 38 | R82: 26 | S82: 28 | T82: 29 | U82: 32 | V82: 37 | W82: 10 | X82: 12 | Y82: 11 | Z82: 16 | AA82: 20 | AB82: 16 | AC82: 18 | AD82: 13 | AE82: 20 | AF82: 16 | AG82: 8 | AH82: 21 | AI82: 23 | AJ82: 23 | AK82: 23 | AL82: 20 | AM82: 16 | AN82: 16 | AO82: 17 | AP82: 24 | AQ82: 18 | AR82: 18 | AS82: 18 | AT82: 21 | AU82: 23 | AV82: 16 | AW82: 13 | AX82: 12 | AY82: 76 | AZ82: 71 | BA82: 80 | BB82: 107 | BC82: 76 | BD82: 75 | BE82: 69 | BF82: 83 | BG82: 82 | BH82: 75 | BI82: 72 | BJ82: 62 | BK82: 47 | BL82: 68 | BM82: 56 | BN82: 72 | BO82: 54 | BP82: 60 | BQ82: 45 | BR82: 54 | BS82: 41 | BT82: 38 | BU82: 37 | BV82: 37 | BW82: 38 | BX82: 43 | BY82: 2 | BZ82: 13 | CA82: 9 | CB82: 17 | CC82: 14 | CD82: 66 | CE82: 0 | CF82: 96 | CG82: 91 | CH82: 473 | CI82: 119 | CK82: 53 | CL82: 233 | CM82: 536 | CN82: 487 | CO82: 237 | CP82: 398 | CQ82: 837 | CR82: 447 | CT82: 185 | CU82: 366 | CV82: 1618 | CX82: 53 | CY82: 54 | CZ82: 58 | DA82: 64 | DB82: 57 | DC82: 69 | DE82: 536 | DF82: 602 | DG82: 200 | DH82: 295 | DI82: 564 | DK82: 69 | DL82: 594 | DM82: 309 | DN82: 316 | DO82: 69 | DP82: 79 | DQ82: 594 | DR82: 641 | DS82: 215 | DT82: 232
B83: 05 | C83: 76 | D83: 5657 | E83: P.S. HUANCAHUASI | F83: 444 | H83: 213 | I83: 231 | K83: 5 | L83: 4 | M83: 5 | N83: 5 | O83: 4 | P83: 7 | Q83: 7 | R83: 5 | S83: 5 | T83: 5 | U83: 6 | V83: 7 | W83: 2 | X83: 2 | Y83: 2 | Z83: 3 | AA83: 4 | AB83: 3 | AC83: 3 | AD83: 2 | AE83: 4 | AF83: 3 | AG83: 1 | AH83: 4 | AI83: 4 | AJ83: 4 | AK83: 4 | AL83: 4 | AM83: 3 | AN83: 3 | AO83: 3 | AP83: 4 | AQ83: 3 | AR83: 3 | AS83: 3 | AT83: 4 | AU83: 4 | AV83: 3 | AW83: 2 | AX83: 2 | AY83: 14 | AZ83: 13 | BA83: 14 | BB83: 19 | BC83: 14 | BD83: 14 | BE83: 12 | BF83: 15 | BG83: 15 | BH83: 14 | BI83: 13 | BJ83: 11 | BK83: 8 | BL83: 12 | BM83: 10 | BN83: 13 | BO83: 10 | BP83: 11 | BQ83: 8 | BR83: 10 | BS83: 7 | BT83: 7 | BU83: 7 | BV83: 7 | BW83: 7 | BX83: 8 | BY83: 0 | BZ83: 2 | CA83: 2 | CB83: 3 | CC83: 3 | CD83: 11 | CF83: 18 | CG83: 16 | CH83: 86 | CI83: 21 | CK83: 9 | CL83: 43 | CM83: 98 | CN83: 88 | CO83: 42 | CP83: 71 | CQ83: 151 | CR83: 82 | CT83: 34 | CU83: 65 | CV83: 293 | CX83: 9 | CY83: 10 | CZ83: 11 | DA83: 12 | DB83: 10 | DC83: 13 | DE83: 96 | DF83: 109 | DG83: 36 | DH83: 54 | DI83: 102 | DK83: 12 | DL83: 106 | DM83: 56 | DN83: 58 | DO83: 12 | DP83: 14 | DQ83: 106 | DR83: 116 | DS83: 39 | DT83: 43
B84: 05 | C84: 77 | D84: 5658 | E84: C.S. CHURIN | F84: 1645 | H84: 796 | I84: 849 | K84: 20 | L84: 16 | M84: 18 | N84: 18 | O84: 14 | P84: 24 | Q84: 25 | R84: 17 | S84: 19 | T84: 20 | U84: 21 | V84: 24 | W84: 6 | X84: 8 | Y84: 7 | Z84: 11 | AA84: 13 | AB84: 11 | AC84: 12 | AD84: 9 | AE84: 13 | AF84: 11 | AG84: 6 | AH84: 14 | AI84: 16 | AJ84: 16 | AK84: 16 | AL84: 13 | AM84: 11 | AN84: 11 | AO84: 11 | AP84: 16 | AQ84: 12 | AR84: 12 | AS84: 12 | AT84: 14 | AU84: 16 | AV84: 11 | AW84: 9 | AX84: 8 | AY84: 51 | AZ84: 47 | BA84: 54 | BB84: 72 | BC84: 51 | BD84: 50 | BE84: 47 | BF84: 56 | BG84: 55 | BH84: 50 | BI84: 48 | BJ84: 42 | BK84: 32 | BL84: 46 | BM84: 38 | BN84: 48 | BO84: 36 | BP84: 40 | BQ84: 30 | BR84: 36 | BS84: 28 | BT84: 25 | BU84: 24 | BV84: 24 | BW84: 25 | BX84: 29 | BY84: 2 | BZ84: 9 | CA84: 6 | CB84: 11 | CC84: 9 | CD84: 45 | CF84: 65 | CG84: 61 | CH84: 317 | CI84: 80 | CK84: 36 | CL84: 155 | CM84: 357 | CN84: 326 | CO84: 160 | CP84: 268 | CQ84: 563 | CR84: 297 | CT84: 122 | CU84: 248 | CV84: 1084 | CX84: 36 | CY84: 36 | CZ84: 38 | DA84: 42 | DB84: 39 | DC84: 45 | DE84: 361 | DF84: 404 | DG84: 134 | DH84: 198 | DI84: 378 | DK84: 46 | DL84: 401 | DM84: 206 | DN84: 212 | DO84: 46 | DP84: 53 | DQ84: 401 | DR84: 430 | DS84: 143 | DT84: 154
B85: 05 | C85: 78 | D85: 5649 | E85: P.S. PACHANGARA | F85: 366 | H85: 178 | I85: 188 | K85: 5 | L85: 3 | M85: 4 | N85: 4 | O85: 3 | P85: 6 | Q85: 6 | R85: 4 | S85: 4 | T85: 4 | U85: 5 | V85: 6 | W85: 2 | X85: 2 | Y85: 2 | Z85: 2 | AA85: 3 | AB85: 2 | AC85: 3 | AD85: 2 | AE85: 3 | AF85: 2 | AG85: 1 | AH85: 3 | AI85: 3 | AJ85: 3 | AK85: 3 | AL85: 3 | AM85: 2 | AN85: 2 | AO85: 3 | AP85: 4 | AQ85: 3 | AR85: 3 | AS85: 3 | AT85: 3 | AU85: 3 | AV85: 2 | AW85: 2 | AX85: 2 | AY85: 11 | AZ85: 11 | BA85: 12 | BB85: 16 | BC85: 11 | BD85: 11 | BE85: 10 | BF85: 12 | BG85: 12 | BH85: 11 | BI85: 11 | BJ85: 9 | BK85: 7 | BL85: 10 | BM85: 8 | BN85: 11 | BO85: 8 | BP85: 9 | BQ85: 7 | BR85: 8 | BS85: 6 | BT85: 6 | BU85: 6 | BV85: 6 | BW85: 6 | BX85: 6 | BY85: 0 | BZ85: 2 | CA85: 1 | CB85: 3 | CC85: 2 | CD85: 10 | CF85: 13 | CG85: 14 | CH85: 70 | CI85: 18 | CK85: 8 | CL85: 35 | CM85: 81 | CN85: 73 | CO85: 35 | CP85: 59 | CQ85: 123 | CR85: 68 | CT85: 29 | CU85: 53 | CV85: 241 | CX85: 8 | CY85: 8 | CZ85: 9 | DA85: 10 | DB85: 8 | DC85: 11 | DE85: 79 | DF85: 89 | DG85: 30 | DH85: 43 | DI85: 84 | DK85: 11 | DL85: 87 | DM85: 47 | DN85: 46 | DO85: 11 | DP85: 12 | DQ85: 87 | DR85: 95 | DS85: 33 | DT85: 35
C86: 79 | D86: 150600 | E86: PROVINCIA HUARAL | F86: 925 | H86: 448 | I86: 477 | K86: 5 | L86: 4 | M86: 3 | N86: 7 | O86: 4 | P86: 4 | Q86: 5 | R86: 3 | S86: 4 | T86: 3 | U86: 5 | V86: 7 | W86: 4 | X86: 7 | Y86: 5 | Z86: 4 | AA86: 6 | AB86: 6 | AC86: 7 | AD86: 5 | AE86: 6 | AF86: 4 | AG86: 6 | AH86: 8 | AI86: 5 | AJ86: 8 | AK86: 7 | AL86: 7 | AM86: 6 | AN86: 9 | AO86: 4 | AP86: 8 | AQ86: 8 | AR86: 7 | AS86: 5 | AT86: 7 | AU86: 7 | AV86: 8 | AW86: 5 | AX86: 6 | AY86: 31 | AZ86: 34 | BA86: 33 | BB86: 31 | BC86: 43 | BD86: 34 | BE86: 36 | BF86: 31 | BG86: 22 | BH86: 33 | BI86: 30 | BJ86: 29 | BK86: 24 | BL86: 26 | BM86: 26 | BN86: 32 | BO86: 24 | BP86: 28 | BQ86: 19 | BR86: 18 | BS86: 17 | BT86: 15 | BU86: 13 | BV86: 12 | BW86: 23 | BX86: 32 | BY86: 1 | BZ86: 3 | CA86: 3 | CB86: 2 | CC86: 1 | CD86: 24 | CE86: 0 | CF86: 36 | CG86: 36 | CH86: 192 | CI86: 31 | CK86: 9 | CL86: 33 | CM86: 122 | CN86: 161 | CO86: 81 | CP86: 155 | CQ86: 366 | CR86: 201 | CT86: 56 | CU86: 131 | CV86: 696 | CX86: 9 | CY86: 10 | CZ86: 8 | DA86: 8 | DB86: 7 | DC86: 12 | DE86: 238 | DF86: 244 | DG86: 86 | DH86: 127 | DI86: 228 | DK86: 23 | DL86: 257 | DM86: 72 | DN86: 77 | DO86: 23 | DP86: 31 | DQ86: 257 | DR86: 264 | DS86: 96 | DT86: 105
A87: 150606 | B87: 03 | C87: 80 | D87: 5782 | E87: IHUARI - P.S. ACOTAMA (46.8%) | F87: 925 | H87: 448 | I87: 477 | K87: 5 | L87: 4 | M87: 3 | N87: 7 | O87: 4 | P87: 4 | Q87: 5 | R87: 3 | S87: 4 | T87: 3 | U87: 5 | V87: 7 | W87: 4 | X87: 7 | Y87: 5 | Z87: 4 | AA87: 6 | AB87: 6 | AC87: 7 | AD87: 5 | AE87: 6 | AF87: 4 | AG87: 6 | AH87: 8 | AI87: 5 | AJ87: 8 | AK87: 7 | AL87: 7 | AM87: 6 | AN87: 9 | AO87: 4 | AP87: 8 | AQ87: 8 | AR87: 7 | AS87: 5 | AT87: 7 | AU87: 7 | AV87: 8 | AW87: 5 | AX87: 6 | AY87: 31 | AZ87: 34 | BA87: 33 | BB87: 31 | BC87: 43 | BD87: 34 | BE87: 36 | BF87: 31 | BG87: 22 | BH87: 33 | BI87: 30 | BJ87: 29 | BK87: 24 | BL87: 26 | BM87: 26 | BN87: 32 | BO87: 24 | BP87: 28 | BQ87: 19 | BR87: 18 | BS87: 17 | BT87: 15 | BU87: 13 | BV87: 12 | BW87: 23 | BX87: 32 | BY87: 1 | BZ87: 3 | CA87: 3 | CB87: 2 | CC87: 1 | CD87: 24 | CF87: 36 | CG87: 36 | CH87: 192 | CI87: 31 | CK87: 9 | CL87: 33 | CM87: 122 | CN87: 161 | CO87: 81 | CP87: 155 | CQ87: 366 | CR87: 201 | CT87: 56 | CU87: 131 | CV87: 696 | CX87: 9 | CY87: 10 | CZ87: 8 | DA87: 8 | DB87: 7 | DC87: 12 | DE87: 238 | DF87: 244 | DG87: 86 | DH87: 127 | DI87: 228 | DK87: 23 | DL87: 257 | DM87: 72 | DN87: 77 | DO87: 23 | DP87: 31 | DQ87: 257 | DR87: 264 | DS87: 96 | DT87: 105
C88: 81
B89: 1 | C89: 82 | E89: MICRORED HUAURA | F89: =SUM(H89:I89) -> 42675 | H89: =K89+M89+O89+Q89+S89+U89+W89+Y89+AA89+AC89+AE89+AG89+AI89+AK89+AM89+AO89+AQ89+AS89+AU89+AW89+AY89+BA89+BC89+BE89+BG89+BI89+BK89+BM89+BO89+BQ89+BS89+BU89+BW89 -> 20596 | I89: =L89+N89+P89+R89+T89+V89+X89+Z89+AB89+AD89+AF89+AH89+AJ89+AL89+AN89+AP89+AR89+AT89+AV89+AX89+AZ89+BB89+BD89+BF89+BH89+BJ89+BL89+BN89+BP89+BR89+BT89+BV89+BX89 -> 22079 | K89: =K13+K24 -> 288 | L89: =L13+L24 -> 298 | M89: 274 | N89: 263 | O89: 265 | P89: 268 | Q89: 322 | R89: 284 | S89: 342 | T89: 328 | U89: 336 | V89: 298 | W89: 376 | X89: 419 | Y89: 398 | Z89: 351 | AA89: 382 | AB89: 369 | AC89: 360 | AD89: 363 | AE89: 366 | AF89: 376 | AG89: 369 | AH89: 398 | AI89: 381 | AJ89: 396 | AK89: 342 | AL89: 373 | AM89: 335 | AN89: 362 | AO89: 319 | AP89: 357 | AQ89: 315 | AR89: 378 | AS89: 293 | AT89: 342 | AU89: 314 | AV89: 339 | AW89: 314 | AX89: 341 | AY89: 1543 | AZ89: 1663 | BA89: 1879 | BB89: 2010 | BC89: 1742 | BD89: 1807 | BE89: 1508 | BF89: 1695 | BG89: 1448 | BH89: 1495 | BI89: 1224 | BJ89: 1414 | BK89: 1057 | BL89: 1273 | BM89: 938 | BN89: 1051 | BO89: 787 | BP89: 826 | BQ89: 591 | BR89: 644 | BS89: 449 | BT89: 473 | BU89: 332 | BV89: 322 | BW89: 407 | BX89: =BX13+BX24 -> 503 | BY89: 40 | BZ89: 136 | CA89: 129 | CB89: 152 | CC89: 169 | CD89: 702 | CE89: 0 | CF89: 1905 | CG89: 1757 | CH89: 10084 | CI89: 1158 | CK89: =CK13+CK24 -> 586 | CL89: 2346 | CM89: 8093 | CN89: 9354 | CO89: 4193 | CP89: 8403 | CQ89: 16652 | CR89: 5334 | CT89: =CT13+CT24 -> 3652 | CU89: 7010 | CV89: 29081 | CX89: =CX13+CX24 -> 586 | CY89: 537 | CZ89: 533 | DA89: 606 | DB89: 670 | DC89: 634 | DE89: =DE13+DE24 -> 10583 | DF89: 11571 | DG89: 3150 | DH89: 6411 | DI89: 11841 | DK89: =DK13+DK24 -> 1262 | DL89: 11967 | DM89: =DM13+DM24 -> 4801 | DN89: 4784 | DO89: =DO13+DO24 -> 1262 | DP89: 1439 | DQ89: 11967 | DR89: 13088 | DS89: 2566 | DT89: 2768
B90: 2 | C90: 83 | E90: MICRORED HUALMAY | F90: =SUM(H90:I90) -> 108258 | H90: 53946 | I90: =L90+N90+P90+R90+T90+V90+X90+Z90+AB90+AD90+AF90+AH90+AJ90+AL90+AN90+AP90+AR90+AT90+AV90+AX90+AZ90+BB90+BD90+BF90+BH90+BJ90+BL90+BN90+BP90+BR90+BT90+BV90+BX90 -> 54312 | K90: =K12+K16+K20+K44 -> 669 | L90: =L12+L16+L20+L44 -> 635 | M90: 664 | N90: 653 | O90: 664 | P90: 660 | Q90: 695 | R90: 701 | S90: 733 | T90: 722 | U90: 752 | V90: 763 | W90: 887 | X90: 917 | Y90: 907 | Z90: 953 | AA90: 914 | AB90: 969 | AC90: 866 | AD90: 934 | AE90: 832 | AF90: 829 | AG90: 870 | AH90: 859 | AI90: 921 | AJ90: 887 | AK90: 866 | AL90: 904 | AM90: 816 | AN90: 841 | AO90: 789 | AP90: 857 | AQ90: 792 | AR90: 784 | AS90: 780 | AT90: 817 | AU90: 750 | AV90: 767 | AW90: 717 | AX90: 798 | AY90: 3941 | AZ90: 4006 | BA90: 4280 | BB90: 4723 | BC90: 3873 | BD90: 4307 | BE90: 3745 | BF90: 4146 | BG90: 3437 | BH90: 3748 | BI90: 3203 | BJ90: 3498 | BK90: 2835 | BL90: 2959 | BM90: 2380 | BN90: 2613 | BO90: 1954 | BP90: 2160 | BQ90: 1593 | BR90: 1840 | BS90: 1294 | BT90: 1476 | BU90: 932 | BV90: 1123 | BW90: 1192 | BX90: =BX12+BX16+BX20+BX44 -> 1463 | BY90: 62 | BZ90: 312 | CA90: 304 | CB90: 357 | CC90: 330 | CD90: 1736 | CE90: 0 | CF90: 4320 | CG90: 4023 | CH90: 24428 | CI90: 2742 | CK90: =CK12+CK16+CK20+CK44 -> 1304 | CL90: 5492 | CM90: 19048 | CN90: 22306 | CO90: 10054 | CP90: 19982 | CQ90: 40744 | CR90: 15027 | CT90: =CT12+CT16+CT20+CT44 -> 8862 | CU90: 16476 | CV90: 72721 | CX90: =CX12+CX16+CX20+CX44 -> 1304 | CY90: 1317 | CZ90: 1324 | DA90: 1396 | DB90: 1455 | DC90: 1515 | DE90: =DE12+DE16+DE20+DE44 -> 25707 | DF90: 28154 | DG90: 7732 | DH90: 15699 | DI90: 28451 | DK90: =DK12+DK16+DK20+DK44 -> 3177 | DL90: 29161 | DM90: =DM12+DM16+DM20+DM44 -> 11240 | DN90: 11386 | DO90: =DO12+DO16+DO20+DO44 -> 3177 | DP90: 3299 | DQ90: 29161 | DR90: 31565 | DS90: 6965 | DT90: 8062
B91: 3 | C91: 84 | E91: MICRORED SAYAN | F91: 31750 | H91: 15743 | I91: 16007 | K91: =K50+K30+K76+K87 -> 219 | L91: =L50+L30+L76+L87 -> 225 | M91: 206 | N91: 234 | O91: 244 | P91: 224 | Q91: 230 | R91: 213 | S91: 245 | T91: 219 | U91: 250 | V91: 225 | W91: 255 | X91: 293 | Y91: 247 | Z91: 312 | AA91: 256 | AB91: 272 | AC91: 263 | AD91: 282 | AE91: 276 | AF91: 225 | AG91: 251 | AH91: 273 | AI91: 266 | AJ91: 284 | AK91: 253 | AL91: 297 | AM91: 259 | AN91: 269 | AO91: 254 | AP91: 315 | AQ91: 254 | AR91: 291 | AS91: 237 | AT91: 247 | AU91: 260 | AV91: 277 | AW91: 244 | AX91: 256 | AY91: 1146 | AZ91: 1330 | BA91: 1265 | BB91: 1401 | BC91: 1141 | BD91: 1288 | BE91: 1116 | BF91: 1184 | BG91: 979 | BH91: 1081 | BI91: 943 | BJ91: 963 | BK91: 750 | BL91: 811 | BM91: 669 | BN91: 718 | BO91: 577 | BP91: 552 | BQ91: 453 | BR91: 480 | BS91: 366 | BT91: 321 | BU91: 254 | BV91: 270 | BW91: 336 | BX91: =BX50+BX30+BX76+BX87 -> 375 | BY91: 24 | BZ91: 115 | CA91: 108 | CB91: 104 | CC91: 117 | CD91: 620 | CE91: 0 | CF91: 1348 | CG91: 1386 | CH91: 7247 | CI91: 909 | CK91: =CK50+CK30+CK76+CK87 -> 444 | CL91: 1815 | CM91: 5939 | CN91: 6906 | CO91: 3226 | CP91: 6179 | CQ91: 11643 | CR91: 3984 | CT91: =CT50+CT30+CT76+CT87 -> 2655 | CU91: 5288 | CV91: 20769 | CX91: =CX50+CX30+CX76+CX87 -> 444 | CY91: 440 | CZ91: 468 | DA91: 443 | DB91: 464 | DC91: 475 | DE91: =DE50+DE30+DE76+DE87 -> 7440 | DF91: 7998 | DG91: 2081 | DH91: 4516 | DI91: 8633 | DK91: =DK50+DK30+DK76+DK87 -> 1004 | DL91: 8513 | DM91: =DM50+DM30+DM76+DM87 -> 3461 | DN91: 3578 | DO91: =DO50+DO30+DO76+DO87 -> 1004 | DP91: 1122 | DQ91: 8513 | DR91: 9309 | DS91: 1986 | DT91: 1998
B92: 4 | C92: 85 | E92: MICRORED VEGUETA | F92: 31556 | H92: 15809 | I92: 15747 | K92: =K58 -> 262 | L92: =L58 -> 283 | M92: 256 | N92: 264 | O92: 290 | P92: 300 | Q92: 312 | R92: 283 | S92: 272 | T92: 252 | U92: 300 | V92: 265 | W92: 301 | X92: 281 | Y92: 302 | Z92: 296 | AA92: 263 | AB92: 296 | AC92: 259 | AD92: 262 | AE92: 260 | AF92: 275 | AG92: 243 | AH92: 284 | AI92: 320 | AJ92: 273 | AK92: 287 | AL92: 273 | AM92: 268 | AN92: 237 | AO92: 274 | AP92: 246 | AQ92: 249 | AR92: 227 | AS92: 228 | AT92: 254 | AU92: 231 | AV92: 235 | AW92: 219 | AX92: 248 | AY92: 1019 | AZ92: 1171 | BA92: 1306 | BB92: 1463 | BC92: 1187 | BD92: 1383 | BE92: 1107 | BF92: 1244 | BG92: 936 | BH92: 1033 | BI92: 800 | BJ92: 900 | BK92: 687 | BL92: 753 | BM92: 589 | BN92: 673 | BO92: 466 | BP92: 533 | BQ92: 389 | BR92: 399 | BS92: 301 | BT92: 292 | BU92: 226 | BV92: 227 | BW92: 259 | BX92: =BX58 -> 342 | BY92: 24 | BZ92: 122 | CA92: 119 | CB92: 140 | CC92: 164 | CD92: 758 | CE92: 0 | CF92: 1342 | CG92: 1210 | CH92: 7194 | CI92: 1259 | CK92: =CK58 -> 545 | CL92: 2229 | CM92: 6661 | CN92: 7023 | CO92: 3136 | CP92: 5892 | CQ92: 11292 | CR92: 3434 | CT92: =CT58 -> 2825 | CU92: 5131 | CV92: 19685 | CX92: =CX58 -> 545 | CY92: 520 | CZ92: 590 | DA92: 595 | DB92: 524 | DC92: 565 | DE92: =DE58 -> 7078 | DF92: 7982 | DG92: 1959 | DH92: 4560 | DI92: 8404 | DK92: =DK58 -> 1019 | DL92: 8081 | DM92: =DM58 -> 3927 | DN92: 3887 | DO92: =DO58 -> 1019 | DP92: 964 | DQ92: 8081 | DR92: 9103 | DS92: 1641 | DT92: 1793
B93: 5 | C93: 86 | E93: MICRORED CHURIN - OYON | F93: 19873 | H93: 9878 | I93: 9995 | K93: =K82+K66+K72+K74+K80+K18+K35+K40 -> 119 | L93: =L82+L66+L72+L74+L80+L18+L35+L40 -> 116 | M93: 104 | N93: 106 | O93: 111 | P93: 112 | Q93: 114 | R93: 125 | S93: 140 | T93: 116 | U93: 143 | V93: 154 | W93: 145 | X93: 152 | Y93: 166 | Z93: 158 | AA93: 145 | AB93: 177 | AC93: 167 | AD93: 175 | AE93: 183 | AF93: 185 | AG93: 182 | AH93: 187 | AI93: 191 | AJ93: 221 | AK93: 204 | AL93: 202 | AM93: 172 | AN93: 182 | AO93: 200 | AP93: 212 | AQ93: 182 | AR93: 211 | AS93: 181 | AT93: 172 | AU93: 160 | AV93: 164 | AW93: 138 | AX93: 137 | AY93: 658 | AZ93: 712 | BA93: 698 | BB93: 759 | BC93: 594 | BD93: 725 | BE93: 625 | BF93: 675 | BG93: 546 | BH93: 529 | BI93: 540 | BJ93: 527 | BK93: 511 | BL93: 558 | BM93: 437 | BN93: 472 | BO93: 406 | BP93: 408 | BQ93: 339 | BR93: 356 | BS93: 267 | BT93: 280 | BU93: 204 | BV93: 273 | BW93: 301 | BX93: =BX82+BX66+BX72+BX74+BX80+BX18+BX35+BX40 -> 457 | BY93: 27 | BZ93: 59 | CA93: 60 | CB93: 60 | CC93: 56 | CD93: 313 | CE93: 0 | CF93: 977 | CG93: 896 | CH93: 3927 | CI93: 455 | CK93: =CK82+CK66+CK72+CK74+CK80+CK18+CK35+CK40 -> 235 | CL93: 928 | CM93: 3482 | CN93: 4649 | CO93: 2330 | CP93: 3426 | CQ93: 6739 | CR93: 3291 | CT93: =CT82+CT66+CT72+CT74+CT80+CT18+CT35+CT40 -> 1582 | CU93: 3666 | CV93: 12857 | CX93: =CX82+CX66+CX72+CX74+CX80+CX18+CX35+CX40 -> 235 | CY93: 210 | CZ93: 223 | DA93: 239 | DB93: 256 | DC93: 297 | DE93: =DE82+DE66+DE72+DE74+DE80+DE18+DE35+DE40 -> 4357 | DF93: 4653 | DG93: 1438 | DH93: 2456 | DI93: 4823 | DK93: =DK82+DK66+DK72+DK74+DK80+DK18+DK35+DK40 -> 735 | DL93: 4907 | DM93: =DM82+DM66+DM72+DM74+DM80+DM18+DM35+DM40 -> 2114 | DN93: 2186 | DO93: =DO82+DO66+DO72+DO74+DO80+DO18+DO35+DO40 -> 735 | DP93: 777 | DQ93: 4907 | DR93: 5258 | DS93: 1517 | DT93: 1774

Sheet etapas y mredes
C2: POBLACION ASIGNADA POR DISTRITO SIERRA, HOSPITAL, MICROREDES Y POR ETAPAS DE VIDA 2024
C7: DISTRITO | P7: MICROREDES
C8: 65 | D8: 67 | E8: 11 | F8: 73 | G8: 59 | H8: 28 | I8: 75 | J8: 33 | N8: 4 | P8: 82 | Q8: 83 | R8: 84 | S8: 85 | T8: 86
B9: POBLACION POR ETAPAS DE VIDA | C9: Andajes | D9: Caujul | E9: Checras | F9: Naván | G9: Oyón | H9: Paccho | I9: Pachangara | J9: Santa Leonor | K9: Total | L9: PORC. (%) | N9: HOSPITAL HUACHO | P9: HUAURA | Q9: HUALMAY | R9: SAYAN | S9: VEGUETA | T9: CHURIN OYON | U9: Total Microredes
A10: 75 | B10: Neonatal (0-28dias) | C10: =VLOOKUP(C$8,Poblacion!$C$8:$DI$93,$A10,FALSE) -> 0 | D10: =VLOOKUP(D$8,Poblacion!$C$8:$DI$93,$A10,FALSE) -> 0 | E10: =VLOOKUP(E$8,Poblacion!$C$8:$DI$93,$A10,FALSE) -> 3 | F10: =VLOOKUP(F$8,Poblacion!$C$8:$DI$93,$A10,FALSE) -> 1 | G10: =VLOOKUP(G$8,Poblacion!$C$8:$DI$93,$A10,FALSE) -> 19 | H10: =VLOOKUP(H$8,Poblacion!$C$8:$DI$93,$A10,FALSE) -> 1 | I10: =VLOOKUP(I$8,Poblacion!$C$8:$DI$93,$A10,FALSE) -> 2 | J10: =VLOOKUP(J$8,Poblacion!$C$8:$DI$93,$A10,FALSE) -> 1 | K10: =+SUM(C10:J10) -> 27 | L10: =IFERROR((K10/$K$23)*100,0) -> 0.1401287108 | N10: =VLOOKUP(N$8,Poblacion!$C$8:$DI$93,$A10,FALSE) -> 28 | P10: =VLOOKUP(P$8,Poblacion!$C$8:$DI$93,$A10,FALSE) -> 40 | Q10: =VLOOKUP(Q$8,Poblacion!$C$8:$DI$93,$A10,FALSE) -> 62 | R10: =VLOOKUP(R$8,Poblacion!$C$8:$DI$93,$A10,FALSE) -> 24 | S10: =VLOOKUP(S$8,Poblacion!$C$8:$DI$93,$A10,FALSE) -> 24 | T10: =VLOOKUP(T$8,Poblacion!$C$8:$DI$93,$A10,FALSE) -> 27 | U10: =+SUM(P10:T10) -> 177
A11: 87 | B11: Infantil (Men.1año) | C11: =VLOOKUP(C$8,Poblacion!$C$8:$DI$93,$A11,FALSE) -> 7 | D11: =VLOOKUP(D$8,Poblacion!$C$8:$DI$93,$A11,FALSE) -> 9 | E11: =VLOOKUP(E$8,Poblacion!$C$8:$DI$93,$A11,FALSE) -> 8 | F11: =VLOOKUP(F$8,Poblacion!$C$8:$DI$93,$A11,FALSE) -> 10 | G11: =VLOOKUP(G$8,Poblacion!$C$8:$DI$93,$A11,FALSE) -> 126 | H11: =VLOOKUP(H$8,Poblacion!$C$8:$DI$93,$A11,FALSE) -> 10 | I11: =VLOOKUP(I$8,Poblacion!$C$8:$DI$93,$A11,FALSE) -> 53 | J11: =VLOOKUP(J$8,Poblacion!$C$8:$DI$93,$A11,FALSE) -> 12 | K11: 235 | L11: 1.219638779 | N11: =VLOOKUP(N$8,Poblacion!$C$8:$DI$93,$A11,FALSE) -> 477 | P11: =VLOOKUP(P$8,Poblacion!$C$8:$DI$93,$A11,FALSE) -> 586 | Q11: =VLOOKUP(Q$8,Poblacion!$C$8:$DI$93,$A11,FALSE) -> 1304 | R11: =VLOOKUP(R$8,Poblacion!$C$8:$DI$93,$A11,FALSE) -> 444 | S11: =VLOOKUP(S$8,Poblacion!$C$8:$DI$93,$A11,FALSE) -> 545 | T11: =VLOOKUP(T$8,Poblacion!$C$8:$DI$93,$A11,FALSE) -> 235 | U11: 3114
A12: 88 | B12: Pre-escolar (01-04años) | C12: =VLOOKUP(C$8,Poblacion!$C$8:$DI$93,$A12,FALSE) -> 31 | D12: =VLOOKUP(D$8,Poblacion!$C$8:$DI$93,$A12,FALSE) -> 30 | E12: =VLOOKUP(E$8,Poblacion!$C$8:$DI$93,$A12,FALSE) -> 27 | F12: =VLOOKUP(F$8,Poblacion!$C$8:$DI$93,$A12,FALSE) -> 36 | G12: =VLOOKUP(G$8,Poblacion!$C$8:$DI$93,$A12,FALSE) -> 471 | H12: =VLOOKUP(H$8,Poblacion!$C$8:$DI$93,$A12,FALSE) -> 48 | I12: =VLOOKUP(I$8,Poblacion!$C$8:$DI$93,$A12,FALSE) -> 233 | J12: =VLOOKUP(J$8,Poblacion!$C$8:$DI$93,$A12,FALSE) -> 52 | K12: 928 | L12: 4.81627569 | N12: =VLOOKUP(N$8,Poblacion!$C$8:$DI$93,$A12,FALSE) -> 2230 | P12: =VLOOKUP(P$8,Poblacion!$C$8:$DI$93,$A12,FALSE) -> 2346 | Q12: =VLOOKUP(Q$8,Poblacion!$C$8:$DI$93,$A12,FALSE) -> 5492 | R12: =VLOOKUP(R$8,Poblacion!$C$8:$DI$93,$A12,FALSE) -> 1815 | S12: =VLOOKUP(S$8,Poblacion!$C$8:$DI$93,$A12,FALSE) -> 2229 | T12: =VLOOKUP(T$8,Poblacion!$C$8:$DI$93,$A12,FALSE) -> 928 | U12: 12810
A13: 89 | B13: Niño (0-11años) | C13: =VLOOKUP(C$8,Poblacion!$C$8:$DI$93,$A13,FALSE) -> 68 | D13: =VLOOKUP(D$8,Poblacion!$C$8:$DI$93,$A13,FALSE) -> 77 | E13: =VLOOKUP(E$8,Poblacion!$C$8:$DI$93,$A13,FALSE) -> 98 | F13: =VLOOKUP(F$8,Poblacion!$C$8:$DI$93,$A13,FALSE) -> 101 | G13: =VLOOKUP(G$8,Poblacion!$C$8:$DI$93,$A13,FALSE) -> 2271 | H13: =VLOOKUP(H$8,Poblacion!$C$8:$DI$93,$A13,FALSE) -> 184 | I13: =VLOOKUP(I$8,Poblacion!$C$8:$DI$93,$A13,FALSE) -> 536 | J13: =VLOOKUP(J$8,Poblacion!$C$8:$DI$93,$A13,FALSE) -> 147 | K13: 3482 | L13: 18.07141374 | N13: =VLOOKUP(N$8,Poblacion!$C$8:$DI$93,$A13,FALSE) -> 8597 | P13: =VLOOKUP(P$8,Poblacion!$C$8:$DI$93,$A13,FALSE) -> 8093 | Q13: =VLOOKUP(Q$8,Poblacion!$C$8:$DI$93,$A13,FALSE) -> 19048 | R13: =VLOOKUP(R$8,Poblacion!$C$8:$DI$93,$A13,FALSE) -> 5939 | S13: =VLOOKUP(S$8,Poblacion!$C$8:$DI$93,$A13,FALSE) -> 6661 | T13: =VLOOKUP(T$8,Poblacion!$C$8:$DI$93,$A13,FALSE) -> 3482 | U13: 43223
A14: 90 | B14: Escolar (05-17años) | C14: =VLOOKUP(C$8,Poblacion!$C$8:$DI$93,$A14,FALSE) -> 62 | D14: =VLOOKUP(D$8,Poblacion!$C$8:$DI$93,$A14,FALSE) -> 77 | E14: =VLOOKUP(E$8,Poblacion!$C$8:$DI$93,$A14,FALSE) -> 167 | F14: =VLOOKUP(F$8,Poblacion!$C$8:$DI$93,$A14,FALSE) -> 141 | G14: =VLOOKUP(G$8,Poblacion!$C$8:$DI$93,$A14,FALSE) -> 3300 | H14: =VLOOKUP(H$8,Poblacion!$C$8:$DI$93,$A14,FALSE) -> 245 | I14: =VLOOKUP(I$8,Poblacion!$C$8:$DI$93,$A14,FALSE) -> 487 | J14: =VLOOKUP(J$8,Poblacion!$C$8:$DI$93,$A14,FALSE) -> 170 | K14: 4649 | L14: 24.12808802 | N14: =VLOOKUP(N$8,Poblacion!$C$8:$DI$93,$A14,FALSE) -> 10709 | P14: =VLOOKUP(P$8,Poblacion!$C$8:$DI$93,$A14,FALSE) -> 9354 | Q14: =VLOOKUP(Q$8,Poblacion!$C$8:$DI$93,$A14,FALSE) -> 22306 | R14: =VLOOKUP(R$8,Poblacion!$C$8:$DI$93,$A14,FALSE) -> 6906 | S14: =VLOOKUP(S$8,Poblacion!$C$8:$DI$93,$A14,FALSE) -> 7023 | T14: =VLOOKUP(T$8,Poblacion!$C$8:$DI$93,$A14,FALSE) -> 4649 | U14: 50238
A15: 91 | B15: Adolescente (12-17años) | C15: =VLOOKUP(C$8,Poblacion!$C$8:$DI$93,$A15,FALSE) -> 32 | D15: =VLOOKUP(D$8,Poblacion!$C$8:$DI$93,$A15,FALSE) -> 39 | E15: =VLOOKUP(E$8,Poblacion!$C$8:$DI$93,$A15,FALSE) -> 104 | F15: =VLOOKUP(F$8,Poblacion!$C$8:$DI$93,$A15,FALSE) -> 86 | G15: =VLOOKUP(G$8,Poblacion!$C$8:$DI$93,$A15,FALSE) -> 1626 | H15: =VLOOKUP(H$8,Poblacion!$C$8:$DI$93,$A15,FALSE) -> 119 | I15: =VLOOKUP(I$8,Poblacion!$C$8:$DI$93,$A15,FALSE) -> 237 | J15: =VLOOKUP(J$8,Poblacion!$C$8:$DI$93,$A15,FALSE) -> 87 | K15: 2330 | L15: 12.09258875 | N15: =VLOOKUP(N$8,Poblacion!$C$8:$DI$93,$A15,FALSE) -> 4819 | P15: =VLOOKUP(P$8,Poblacion!$C$8:$DI$93,$A15,FALSE) -> 4193 | Q15: =VLOOKUP(Q$8,Poblacion!$C$8:$DI$93,$A15,FALSE) -> 10054 | R15: =VLOOKUP(R$8,Poblacion!$C$8:$DI$93,$A15,FALSE) -> 3226 | S15: =VLOOKUP(S$8,Poblacion!$C$8:$DI$93,$A15,FALSE) -> 3136 | T15: =VLOOKUP(T$8,Poblacion!$C$8:$DI$93,$A15,FALSE) -> 2330 | U15: 22939
A16: 92 | B16: Adulto Joven (18-29años) | C16: =VLOOKUP(C$8,Poblacion!$C$8:$DI$93,$A16,FALSE) -> 33 | D16: =VLOOKUP(D$8,Poblacion!$C$8:$DI$93,$A16,FALSE) -> 75 | E16: =VLOOKUP(E$8,Poblacion!$C$8:$DI$93,$A16,FALSE) -> 129 | F16: =VLOOKUP(F$8,Poblacion!$C$8:$DI$93,$A16,FALSE) -> 108 | G16: =VLOOKUP(G$8,Poblacion!$C$8:$DI$93,$A16,FALSE) -> 2316 | H16: =VLOOKUP(H$8,Poblacion!$C$8:$DI$93,$A16,FALSE) -> 216 | I16: =VLOOKUP(I$8,Poblacion!$C$8:$DI$93,$A16,FALSE) -> 398 | J16: =VLOOKUP(J$8,Poblacion!$C$8:$DI$93,$A16,FALSE) -> 151 | K16: 3426 | L16: 17.78077642 | N16: =VLOOKUP(N$8,Poblacion!$C$8:$DI$93,$A16,FALSE) -> 9572 | P16: =VLOOKUP(P$8,Poblacion!$C$8:$DI$93,$A16,FALSE) -> 8403 | Q16: =VLOOKUP(Q$8,Poblacion!$C$8:$DI$93,$A16,FALSE) -> 19982 | R16: =VLOOKUP(R$8,Poblacion!$C$8:$DI$93,$A16,FALSE) -> 6179 | S16: =VLOOKUP(S$8,Poblacion!$C$8:$DI$93,$A16,FALSE) -> 5892 | T16: =VLOOKUP(T$8,Poblacion!$C$8:$DI$93,$A16,FALSE) -> 3426 | U16: 43882
A17: 93 | B17: Adulto (30-59años) | C17: =VLOOKUP(C$8,Poblacion!$C$8:$DI$93,$A17,FALSE) -> 112 | D17: =VLOOKUP(D$8,Poblacion!$C$8:$DI$93,$A17,FALSE) -> 154 | E17: =VLOOKUP(E$8,Poblacion!$C$8:$DI$93,$A17,FALSE) -> 277 | F17: =VLOOKUP(F$8,Poblacion!$C$8:$DI$93,$A17,FALSE) -> 306 | G17: =VLOOKUP(G$8,Poblacion!$C$8:$DI$93,$A17,FALSE) -> 4161 | H17: =VLOOKUP(H$8,Poblacion!$C$8:$DI$93,$A17,FALSE) -> 542 | I17: =VLOOKUP(I$8,Poblacion!$C$8:$DI$93,$A17,FALSE) -> 837 | J17: =VLOOKUP(J$8,Poblacion!$C$8:$DI$93,$A17,FALSE) -> 350 | K17: 6739 | L17: 34.97508823 | N17: =VLOOKUP(N$8,Poblacion!$C$8:$DI$93,$A17,FALSE) -> 21704 | P17: =VLOOKUP(P$8,Poblacion!$C$8:$DI$93,$A17,FALSE) -> 16652 | Q17: =VLOOKUP(Q$8,Poblacion!$C$8:$DI$93,$A17,FALSE) -> 40744 | R17: =VLOOKUP(R$8,Poblacion!$C$8:$DI$93,$A17,FALSE) -> 11643 | S17: =VLOOKUP(S$8,Poblacion!$C$8:$DI$93,$A17,FALSE) -> 11292 | T17: =VLOOKUP(T$8,Poblacion!$C$8:$DI$93,$A17,FALSE) -> 6739 | U17: 87070
A18: 94 | B18: Adu.Mayor (60 a MAS) | C18: =VLOOKUP(C$8,Poblacion!$C$8:$DI$93,$A18,FALSE) -> 184 | D18: =VLOOKUP(D$8,Poblacion!$C$8:$DI$93,$A18,FALSE) -> 106 | E18: =VLOOKUP(E$8,Poblacion!$C$8:$DI$93,$A18,FALSE) -> 288 | F18: =VLOOKUP(F$8,Poblacion!$C$8:$DI$93,$A18,FALSE) -> 175 | G18: =VLOOKUP(G$8,Poblacion!$C$8:$DI$93,$A18,FALSE) -> 1375 | H18: =VLOOKUP(H$8,Poblacion!$C$8:$DI$93,$A18,FALSE) -> 455 | I18: =VLOOKUP(I$8,Poblacion!$C$8:$DI$93,$A18,FALSE) -> 447 | J18: =VLOOKUP(J$8,Poblacion!$C$8:$DI$93,$A18,FALSE) -> 261 | K18: 3291 | L18: 17.08013286 | N18: =VLOOKUP(N$8,Poblacion!$C$8:$DI$93,$A18,FALSE) -> 9369 | P18: =VLOOKUP(P$8,Poblacion!$C$8:$DI$93,$A18,FALSE) -> 5334 | Q18: =VLOOKUP(Q$8,Poblacion!$C$8:$DI$93,$A18,FALSE) -> 15027 | R18: =VLOOKUP(R$8,Poblacion!$C$8:$DI$93,$A18,FALSE) -> 3984 | S18: =VLOOKUP(S$8,Poblacion!$C$8:$DI$93,$A18,FALSE) -> 3434 | T18: =VLOOKUP(T$8,Poblacion!$C$8:$DI$93,$A18,FALSE) -> 3291 | U18: 31070
A19: 113 | B19: Población Hombres Adolescentes (14 -17 años) | C19: =VLOOKUP(C$8,Poblacion!$C$8:$DL$93,$A19,FALSE) -> 9 | D19: =VLOOKUP(D$8,Poblacion!$C$8:$DL$93,$A19,FALSE) -> 12 | E19: =VLOOKUP(E$8,Poblacion!$C$8:$DL$93,$A19,FALSE) -> 40 | F19: =VLOOKUP(F$8,Poblacion!$C$8:$DL$93,$A19,FALSE) -> 19 | G19: =VLOOKUP(G$8,Poblacion!$C$8:$DL$93,$A19,FALSE) -> 511 | H19: =VLOOKUP(H$8,Poblacion!$C$8:$DL$93,$A19,FALSE) -> 45 | I19: =VLOOKUP(I$8,Poblacion!$C$8:$DL$93,$A19,FALSE) -> 69 | J19: =VLOOKUP(J$8,Poblacion!$C$8:$DL$93,$A19,FALSE) -> 30 | K19: 735 | L19: =IFERROR((K19/$K$23)*100,0) -> 3.814614906 | N19: =VLOOKUP(N$8,Poblacion!$C$8:$DL$93,$A19,FALSE) -> 1544 | P19: =VLOOKUP(P$8,Poblacion!$C$8:$DL$93,$A19,FALSE) -> 1262 | Q19: =VLOOKUP(Q$8,Poblacion!$C$8:$DL$93,$A19,FALSE) -> 3177 | R19: =VLOOKUP(R$8,Poblacion!$C$8:$DL$93,$A19,FALSE) -> 1004 | S19: =VLOOKUP(S$8,Poblacion!$C$8:$DL$93,$A19,FALSE) -> 1019 | T19: =VLOOKUP(T$8,Poblacion!$C$8:$DL$93,$A19,FALSE) -> 735 | U19: 7197
A20: 114 | B20: Población Hombres (18 - 59 años) | C20: =VLOOKUP(C$8,Poblacion!$C$8:$DL$93,$A20,FALSE) -> 79 | D20: =VLOOKUP(D$8,Poblacion!$C$8:$DL$93,$A20,FALSE) -> 107 | E20: =VLOOKUP(E$8,Poblacion!$C$8:$DL$93,$A20,FALSE) -> 201 | F20: =VLOOKUP(F$8,Poblacion!$C$8:$DL$93,$A20,FALSE) -> 203 | G20: =VLOOKUP(G$8,Poblacion!$C$8:$DL$93,$A20,FALSE) -> 3112 | H20: =VLOOKUP(H$8,Poblacion!$C$8:$DL$93,$A20,FALSE) -> 366 | I20: =VLOOKUP(I$8,Poblacion!$C$8:$DL$93,$A20,FALSE) -> 594 | J20: =VLOOKUP(J$8,Poblacion!$C$8:$DL$93,$A20,FALSE) -> 245 | K20: 4907 | L20: 25.4670957 | N20: =VLOOKUP(N$8,Poblacion!$C$8:$DL$93,$A20,FALSE) -> 15040 | P20: =VLOOKUP(P$8,Poblacion!$C$8:$DL$93,$A20,FALSE) -> 11967 | Q20: =VLOOKUP(Q$8,Poblacion!$C$8:$DL$93,$A20,FALSE) -> 29161 | R20: =VLOOKUP(R$8,Poblacion!$C$8:$DL$93,$A20,FALSE) -> 8513 | S20: =VLOOKUP(S$8,Poblacion!$C$8:$DL$93,$A20,FALSE) -> 8081 | T20: =VLOOKUP(T$8,Poblacion!$C$8:$DL$93,$A20,FALSE) -> 4907 | U20: 62629
A21: 85 | B21: Gestantes | C21: =VLOOKUP(C$8,Poblacion!$C$8:$DI$93,$A21,FALSE) -> 8 | D21: =VLOOKUP(D$8,Poblacion!$C$8:$DI$93,$A21,FALSE) -> 15 | E21: =VLOOKUP(E$8,Poblacion!$C$8:$DI$93,$A21,FALSE) -> 24 | F21: =VLOOKUP(F$8,Poblacion!$C$8:$DI$93,$A21,FALSE) -> 15 | G21: =VLOOKUP(G$8,Poblacion!$C$8:$DI$93,$A21,FALSE) -> 230 | H21: =VLOOKUP(H$8,Poblacion!$C$8:$DI$93,$A21,FALSE) -> 23 | I21: =VLOOKUP(I$8,Poblacion!$C$8:$DI$93,$A21,FALSE) -> 119 | J21: =VLOOKUP(J$8,Poblacion!$C$8:$DI$93,$A21,FALSE) -> 21 | K21: 455 | L21: 2.361428275 | N21: =VLOOKUP(N$8,Poblacion!$C$8:$DI$93,$A21,FALSE) -> 1068 | P21: =VLOOKUP(P$8,Poblacion!$C$8:$DI$93,$A21,FALSE) -> 1158 | Q21: =VLOOKUP(Q$8,Poblacion!$C$8:$DI$93,$A21,FALSE) -> 2742 | R21: =VLOOKUP(R$8,Poblacion!$C$8:$DI$93,$A21,FALSE) -> 909 | S21: =VLOOKUP(S$8,Poblacion!$C$8:$DI$93,$A21,FALSE) -> 1259 | T21: =VLOOKUP(T$8,Poblacion!$C$8:$DI$93,$A21,FALSE) -> 455 | U21: 6523
A22: 111 | B22: Mujeres en Edad Fertil (MEF) | C22: =VLOOKUP(C$8,Poblacion!$C$8:$DI$93,$A22,FALSE) -> 53 | D22: =VLOOKUP(D$8,Poblacion!$C$8:$DI$93,$A22,FALSE) -> 106 | E22: =VLOOKUP(E$8,Poblacion!$C$8:$DI$93,$A22,FALSE) -> 171 | F22: =VLOOKUP(F$8,Poblacion!$C$8:$DI$93,$A22,FALSE) -> 191 | G22: =VLOOKUP(G$8,Poblacion!$C$8:$DI$93,$A22,FALSE) -> 3210 | H22: =VLOOKUP(H$8,Poblacion!$C$8:$DI$93,$A22,FALSE) -> 307 | I22: =VLOOKUP(I$8,Poblacion!$C$8:$DI$93,$A22,FALSE) -> 564 | J22: =VLOOKUP(J$8,Poblacion!$C$8:$DI$93,$A22,FALSE) -> 221 | K22: 4823 | L22: 25.03113971 | N22: =VLOOKUP(N$8,Poblacion!$C$8:$DI$93,$A22,FALSE) -> 14132 | P22: =VLOOKUP(P$8,Poblacion!$C$8:$DI$93,$A22,FALSE) -> 11841 | Q22: =VLOOKUP(Q$8,Poblacion!$C$8:$DI$93,$A22,FALSE) -> 28451 | R22: =VLOOKUP(R$8,Poblacion!$C$8:$DI$93,$A22,FALSE) -> 8633 | S22: =VLOOKUP(S$8,Poblacion!$C$8:$DI$93,$A22,FALSE) -> 8404 | T22: =VLOOKUP(T$8,Poblacion!$C$8:$DI$93,$A22,FALSE) -> 4823 | U22: 62152
B23: TOTAL | C23: =+SUM(C10:C21) -> 625 | D23: 701 | E23: 1366 | F23: 1201 | G23: 19518 | H23: 2254 | I23: 4012 | J23: 1527 | K23: =K13+K15+K16+K17+K18 -> 19268 | L23: 100 | N23: =N13+N15+N16+N17+N18 -> 54061 | P23: =P13+P15+P16+P17+P18 -> 42675 | Q23: 104855 | R23: 30971 | S23: 30415 | T23: 19268 | U23: 228184
B24: =Interfaz!$C$22 -> Elaboración: Área de Estadística - RIS Huaura Oyón.

Sheet Etapas de Vida
A5: 86
A6: TRUE
A8: 13
C11: POBLACIÓN POR CICLO Y ETAPAS DE VIDA | D11: PROP. (%) | E11: Nº
A12: 75 | B12: Neonatal | C12: Neonatal (0 - 28dias) | D12: =IFERROR((E12/$E$24)*100,0) -> 0.005668833815 | E12: =VLOOKUP($A$8,Poblacion!$C$8:$DI$93,$A12,FALSE) -> 16
A13: 87 | B13: Infantil | C13: Infantil (< 1 año) | D13: 0.1381778242 | E13: =VLOOKUP($A$8,Poblacion!$C$8:$DI$93,$A13,FALSE) -> 390
A14: 88 | B14: Pre-escolar | C14: Pre-escolar (1 a 4 años) | D14: 0.5371220039 | E14: =VLOOKUP($A$8,Poblacion!$C$8:$DI$93,$A14,FALSE) -> 1516
A15: 89 | B15: Niños | C15: Niños (5 - 9 años) | D15: 1.957873479 | E15: =VLOOKUP($A$8,Poblacion!$C$8:$DI$93,$A15,FALSE) -> 5526
A16: 90 | B16: Escolar | C16: Escolar (5 - 17 años) | D16: 2.328827791 | E16: =VLOOKUP($A$8,Poblacion!$C$8:$DI$93,$A16,FALSE) -> 6573
A17: 97 | B17: Adolescentes | C17: Adolescentes (10 - 19 años) | D17: 1.708444791 | E17: =VLOOKUP($A$8,Poblacion!$C$8:$DI$93,$A17,FALSE) -> 4822
A18: 98 | B18: Adulto | C18: Adulto (20 - 59 años) | D18: 7.60261475 | E18: =VLOOKUP($A$8,Poblacion!$C$8:$DI$93,$A18,FALSE) -> 21458
A19: 94 | B19: Adul. Mayor | C19: Adul. Mayor (60 a Más) | D19: 1.490903293 | E19: =VLOOKUP($A$8,Poblacion!$C$8:$DI$93,$A19,FALSE) -> 4208
A20: 85 | B20: Gestantes | C20: Gestantes | D20: 0.2363195096 | E20: =VLOOKUP($A$8,Poblacion!$C$8:$DI$93,$A20,FALSE) -> 667
A21: 111 | B21: M.E.F | C21: M.E.F | D21: 3.00589913 | E21: =VLOOKUP($A$8,Poblacion!$C$8:$DL$93,$A21,FALSE) -> 8484
A22: 113 | B22: (14 -17 años) | C22: Población Hombres Adolescentes (14 -17 años) | D22: 0.321706319 | E22: =VLOOKUP($A$8,Poblacion!$C$8:$DL$93,$A22,FALSE) -> 908 | F22: =D22 -> 0.321706319
A23: 114 | B23: (18 - 59 años) | C23: Población Hombres (18 - 59 años) | D23: 3.104040816 | E23: =VLOOKUP($A$8,Poblacion!$C$8:$DL$93,$A23,FALSE) -> 8761 | F23: =D23 -> 3.104040816
C24: TOTAL | D24: 100 | E24: =Poblacion!F8 -> 282245
C25: =C34 -> Elaboración: Área de Estadística - RIS Huaura Oyón.
C27: POBLACIÓN POR ETAPAS DE VIDA ACTUALES | D27: PROP. (%) | E27: Nº
A28: 89 | B28: Niños | C28: Niños (0 - 11 años) | D28: =IFERROR((E28/$E$33)*100,0) -> 17.9240999 | E28: =VLOOKUP($A$8,Poblacion!$C$8:$DI$93,$A28,FALSE) -> 5526
A29: 91 | B29: Adolescente | C29: Adolescente (12 - 17 años) | D29: 9.578332793 | E29: =VLOOKUP($A$8,Poblacion!$C$8:$DI$93,$A29,FALSE) -> 2953
A30: 92 | B30: Adulto Joven | C30: Adulto Joven (18 - 29 años) | D30: 19.22802465 | E30: =VLOOKUP($A$8,Poblacion!$C$8:$DI$93,$A30,FALSE) -> 5928
A31: 93 | B31: Adulto | C31: Adulto (30 - 59 años) | D31: 39.62049951 | E31: =VLOOKUP($A$8,Poblacion!$C$8:$DI$93,$A31,FALSE) -> 12215
A32: 94 | B32: Adulto Mayor | C32: Adulto Mayor (60 a Más) | D32: 13.64904314 | E32: =VLOOKUP($A$8,Poblacion!$C$8:$DI$93,$A32,FALSE) -> 4208
C33: TOTAL | D33: 100 | E33: =+SUM(E28:$E$32) -> 30830
C34: ='etapas y mredes'!B24 -> Elaboración: Área de Estadística - RIS Huaura Oyón.

Sheet Piramide Poblacional
I2: =CONCATENATE("PIRAMIDE POBLACIONAL 2024") -> PIRAMIDE POBLACIONAL 2024 | T2: =UPPER("Piramide Poblacional 2024 - " &$B$10) -> PIRAMIDE POBLACIONAL 2024 - HUAURA - OYON
E5: ESTABLECIMIENTOS | AX5: M | AY5: F
A7: 87 | AX7: =AX8/SUM($AX$8:$AY$8) -> 0.4821307729 | AY7: =AY8/SUM($AX$8:$AY$8) -> 0.5178692271
AX8: =SUM(AX12:AX28) -> 136079 | AY8: =SUM(AY12:AY28) -> 146166 | BB8: 1 | BC8: 2 | BD8: 3 | BE8: 4 | BF8: 5 | BG8: 6 | BH8: 7 | BI8: 8 | BJ8: 9 | BK8: 10 | BL8: 11 | BM8: 12 | BN8: 13 | BO8: 14 | BP8: 15 | BQ8: 16 | BR8: 17 | BS8: 18 | BT8: 19 | BU8: 20 | BV8: 21 | BW8: 22 | BX8: 23 | BY8: 24 | BZ8: 25 | CA8: 26 | CB8: 27 | CC8: 28 | CD8: 29 | CE8: 30 | CF8: 31 | CG8: 32 | CH8: 33 | CI8: 34 | CJ8: 35 | CK8: 36 | CL8: 37 | CM8: 38 | CN8: 39 | CO8: 40 | CP8: 41 | CQ8: 42 | CR8: 43 | CS8: 44 | CT8: 45
A10: 1 | B10: =VLOOKUP($A$10,$BB$13:$BC$99,2,FALSE) -> HUAURA - OYON | AS10: DATOS PIRAMIDE | AW10: DATOS PIRAMIDE | BB10: N° | BC10: DIRECCION DE SALUD | BD10: GRUPOS DE EDADES - PIRAMIDE
AS11: DESCRIPCION | AT11: M | AU11: F | AW11: DESCRIPCION | AX11: M | AY11: F | BA11: Microredes | BC11: PROVINCIA | BD11: TOTAL | BE11: Menor de 5 años | BG11: 5 - 9 | BI11: 10 - 14 | BK11: 15 - 19 | BM11: 20 - 24 | BO11: 25 - 29 | BQ11: 30 - 34 | BS11: 35 - 39 | BU11: 40 - 44 | BW11: 45 - 49 | BY11: 50 - 54 | CA11: 55 - 59 | CC11: 60 - 64 | CE11: 65 - 69 | CG11: 70 - 74 | CI11: 75 - 79 | CK11: 80 +++ | CM11: 0 - 13 | CO11: 14 - 17 | CQ11: 18 - 59 | CS11: 60++++
AS12: MENORES DE 5 AÑOS | AT12: =AX12 -> 9417 | AU12: =-AY12 -> -9214 | AW12: MENORES DE 5 AÑOS | AX12: =+LOOKUP($A$10,numeropiramide,BE13:BE99) -> 9417 | AY12: =+LOOKUP($A$10,numeropiramide,BF13:BF99) -> 9214 | BC12: DISTRITO | BE12: M | BF12: F | BG12: M | BH12: F | BI12: M | BJ12: F | BK12: M | BL12: F | BM12: M | BN12: F | BO12: M | BP12: F | BQ12: M | BR12: F | BS12: M | BT12: F | BU12: M | BV12: F | BW12: M | BX12: F | BY12: M | BZ12: F | CA12: M | CB12: F | CC12: M | CD12: F | CE12: M | CF12: F | CG12: M | CH12: F | CI12: M | CJ12: F | CK12: M | CL12: F | CM12: M | CN12: F | CO12: M | CP12: F | CQ12: M | CR12: F | CS12: M | CT12: F
AS13: DE 5 A 9 AÑOS | AT13: =AX13 -> 11740 | AU13: =-AY13 -> -12058 | AW13: DE 5 A 9 AÑOS | AX13: =+LOOKUP($A$10,numeropiramide,BG13:BG99) -> 11740 | AY13: =+LOOKUP($A$10,numeropiramide,BH13:BH99) -> 12058 | BB13: 1 | BC13: HUAURA - OYON | BD13: =Poblacion!F8 -> 282245 | BE13: =+SUM(Poblacion!K8,Poblacion!M8,Poblacion!O8,Poblacion!Q8,Poblacion!S8) -> 9417 | BF13: =+SUM(Poblacion!L8,Poblacion!N8,Poblacion!P8,Poblacion!R8,Poblacion!T8) -> 9214 | BG13: =SUM(Poblacion!U8,Poblacion!W8,Poblacion!Y8,Poblacion!AA8,Poblacion!AC8) -> 11740 | BH13: =SUM(Poblacion!V8,Poblacion!X8,Poblacion!Z8,Poblacion!AB8,Poblacion!AD8) -> 12058 | BI13: =+SUM(Poblacion!AE8,Poblacion!AG8,Poblacion!AI8,Poblacion!AK8,Poblacion!AM8) -> 11781 | BJ13: =+SUM(Poblacion!AF8,Poblacion!AH8,Poblacion!AJ8,Poblacion!AL8,Poblacion!AN8) -> 11952 | BK13: =+SUM(Poblacion!AO8,Poblacion!AQ8,Poblacion!AS8,Poblacion!AU8,Poblacion!AW8) -> 10631 | BL13: =+SUM(Poblacion!AP8,Poblacion!AR8,Poblacion!AT8,Poblacion!AV8,Poblacion!AX8) -> 11215 | BM13: =Poblacion!AY8 -> 10163 | BN13: =Poblacion!AZ8 -> 10755 | BO13: =Poblacion!BA8 -> 11460 | BP13: =Poblacion!BB8 -> 12646 | BQ13: =Poblacion!BC8 -> 10442 | BR13: =Poblacion!BD8 -> 11647 | BS13: =Poblacion!BE8 -> 10023 | BT13: =Poblacion!BF8 -> 10979 | BU13: =Poblacion!BG8 -> 9181 | BV13: =Poblacion!BH8 -> 9858 | BW13: =Poblacion!BI8 -> 8430 | BX13: =Poblacion!BJ8 -> 9184 | BY13: =Poblacion!BK8 -> 7433 | BZ13: =Poblacion!BL8 -> 8087 | CA13: =Poblacion!BM8 -> 6413 | CB13: =Poblacion!BN8 -> 7097 | CC13: =Poblacion!BO8 -> 5390 | CD13: =Poblacion!BP8 -> 5833 | CE13: =Poblacion!BQ8 -> 4382 | CF13: =Poblacion!BR8 -> 4867 | CG13: =Poblacion!BS8 -> 3450 | CH13: =Poblacion!BT8 -> 3769 | CI13: =Poblacion!BU8 -> 2489 | CJ13: =Poblacion!BV8 -> 2872 | CK13: =Poblacion!BW8 -> 3254 | CL13: =Poblacion!BX8 -> 4133 | CM13: =Poblacion!DM8 -> 30704 | CN13: =Poblacion!DN8 -> 30940 | CO13: =Poblacion!DO8 -> 8741 | CP13: =Poblacion!DP8 -> 9193 | CQ13: =Poblacion!DQ8 -> 77669 | CR13: =Poblacion!DR8 -> 84559 | CS13: =Poblacion!DS8 -> 18965 | CT13: =Poblacion!DT8 -> 21474
AS14: DE 10 A 14 AÑOS | AT14: 11781 | AU14: -11952 | AW14: DE 10 A 14 AÑOS | AX14: =+LOOKUP($A$10,numeropiramide,BI13:BI99) -> 11781 | AY14: =+LOOKUP($A$10,numeropiramide,BJ13:BJ99) -> 11952 | BB14: 2 | BC14: PROVINCIA HUAURA | BD14: =Poblacion!F9 -> 264367 | BE14: =+SUM(Poblacion!K9,Poblacion!M9,Poblacion!O9,Poblacion!Q9,Poblacion!S9) -> 8847 | BF14: =+SUM(Poblacion!L9,Poblacion!N9,Poblacion!P9,Poblacion!R9,Poblacion!T9) -> 8637 | BG14: =SUM(Poblacion!U9,Poblacion!W9,Poblacion!Y9,Poblacion!AA9,Poblacion!AC9) -> 11012 | BH14: =SUM(Poblacion!V9,Poblacion!X9,Poblacion!Z9,Poblacion!AB9,Poblacion!AD9) -> 11270 | BI14: =+SUM(Poblacion!AE9,Poblacion!AG9,Poblacion!AI9,Poblacion!AK9,Poblacion!AM9) -> 10887 | BJ14: =+SUM(Poblacion!AF9,Poblacion!AH9,Poblacion!AJ9,Poblacion!AL9,Poblacion!AN9) -> 10996 | BK14: =+SUM(Poblacion!AO9,Poblacion!AQ9,Poblacion!AS9,Poblacion!AU9,Poblacion!AW9) -> 9805 | BL14: =+SUM(Poblacion!AP9,Poblacion!AR9,Poblacion!AT9,Poblacion!AV9,Poblacion!AX9) -> 10334 | BM14: =Poblacion!AY9 -> 9506 | BN14: =Poblacion!AZ9 -> 10064 | BO14: =Poblacion!BA9 -> 10788 | BP14: =Poblacion!BB9 -> 11919 | BQ14: =Poblacion!BC9 -> 9851 | BR14: =Poblacion!BD9 -> 10958 | BS14: =Poblacion!BE9 -> 9432 | BT14: =Poblacion!BF9 -> 10325 | BU14: =Poblacion!BG9 -> 8677 | BV14: =Poblacion!BH9 -> 9361 | BW14: =Poblacion!BI9 -> 7922 | BX14: =Poblacion!BJ9 -> 8685 | BY14: =Poblacion!BK9 -> 6975 | BZ14: =Poblacion!BL9 -> 7600 | CA14: =Poblacion!BM9 -> 6030 | CB14: =Poblacion!BN9 -> 6675 | CC14: =Poblacion!BO9 -> 5039 | CD14: =Poblacion!BP9 -> 5475 | CE14: =Poblacion!BQ9 -> 4108 | CF14: =Poblacion!BR9 -> 4576 | CG14: =Poblacion!BS9 -> 3229 | CH14: =Poblacion!BT9 -> 3540 | CI14: =Poblacion!BU9 -> 2336 | CJ14: =Poblacion!BV9 -> 2672 | CK14: =Poblacion!BW9 -> 3040 | CL14: =Poblacion!BX9 -> 3796 | CM14: =Poblacion!DM9 -> 28673 | CN14: =Poblacion!DN9 -> 28798 | CO14: =Poblacion!DO9 -> 8051 | CP14: =Poblacion!DP9 -> 8430 | CQ14: =Poblacion!DQ9 -> 73008 | CR14: =Poblacion!DR9 -> 79596 | CS14: =Poblacion!DS9 -> 17752 | CT14: =Poblacion!DT9 -> 20059
A15: 18 | B15: =VLOOKUP($A$15,$BB$104:$BC$126,2,FALSE) -> DISTRITO CAUJUL | AS15: DE 15 A 19 AÑOS | AT15: 10631 | AU15: -11215 | AW15: DE 15 A 19 AÑOS | AX15: =+LOOKUP($A$10,numeropiramide,BK13:BK99) -> 10631 | AY15: =+LOOKUP($A$10,numeropiramide,BL13:BL99) -> 11215 | BB15: 3 | BC15: DISTRITO HUACHO | BD15: =Poblacion!F10 -> 75089 | BE15: =+SUM(Poblacion!K10,Poblacion!M10,Poblacion!O10,Poblacion!Q10,Poblacion!S10) -> 1912 | BF15: =+SUM(Poblacion!L10,Poblacion!N10,Poblacion!P10,Poblacion!R10,Poblacion!T10) -> 1848 | BG15: =SUM(Poblacion!U10,Poblacion!W10,Poblacion!Y10,Poblacion!AA10,Poblacion!AC10) -> 2917 | BH15: =SUM(Poblacion!V10,Poblacion!X10,Poblacion!Z10,Poblacion!AB10,Poblacion!AD10) -> 2948 | BI15: =+SUM(Poblacion!AE10,Poblacion!AG10,Poblacion!AI10,Poblacion!AK10,Poblacion!AM10) -> 2873 | BJ15: =+SUM(Poblacion!AF10,Poblacion!AH10,Poblacion!AJ10,Poblacion!AL10,Poblacion!AN10) -> 2861 | BK15: =+SUM(Poblacion!AO10,Poblacion!AQ10,Poblacion!AS10,Poblacion!AU10,Poblacion!AW10) -> 2692 | BL15: =+SUM(Poblacion!AP10,Poblacion!AR10,Poblacion!AT10,Poblacion!AV10,Poblacion!AX10) -> 2698 | BM15: =Poblacion!AY10 -> 2578 | BN15: =Poblacion!AZ10 -> 2601 | BO15: =Poblacion!BA10 -> 2822 | BP15: =Poblacion!BB10 -> 3181 | BQ15: =Poblacion!BC10 -> 2646 | BR15: =Poblacion!BD10 -> 2968 | BS15: =Poblacion!BE10 -> 2669 | BT15: =Poblacion!BF10 -> 2826 | BU15: =Poblacion!BG10 -> 2548 | BV15: =Poblacion!BH10 -> 2739 | BW15: =Poblacion!BI10 -> 2389 | BX15: =Poblacion!BJ10 -> 2614 | BY15: =Poblacion!BK10 -> 2213 | BZ15: =Poblacion!BL10 -> 2407 | CA15: =Poblacion!BM10 -> 1945 | CB15: =Poblacion!BN10 -> 2181 | CC15: =Poblacion!BO10 -> 1667 | CD15: =Poblacion!BP10 -> 1881 | CE15: =Poblacion!BQ10 -> 1412 | CF15: =Poblacion!BR10 -> 1594 | CG15: =Poblacion!BS10 -> 1074 | CH15: =Poblacion!BT10 -> 1288 | CI15: =Poblacion!BU10 -> 752 | CJ15: =Poblacion!BV10 -> 912 | CK15: =Poblacion!BW10 -> 1054 | CL15: =Poblacion!BX10 -> 1379 | CM15: =Poblacion!DM10 -> 7168 | CN15: =Poblacion!DN10 -> 7111 | CO15: =Poblacion!DO10 -> 2146 | CP15: =Poblacion!DP10 -> 2211 | CQ15: =Poblacion!DQ10 -> 20890 | CR15: =Poblacion!DR10 -> 22550 | CS15: =Poblacion!DS10 -> 5959 | CT15: =Poblacion!DT10 -> 7054
A16: 1 | AS16: DE 20 A 24 AÑOS | AT16: 10163 | AU16: -10755 | AW16: DE 20 A 24 AÑOS | AX16: =+LOOKUP($A$10,numeropiramide,BM13:BM99) -> 10163 | AY16: =+LOOKUP($A$10,numeropiramide,BN13:BN99) -> 10755 | BA16: 00 | BB16: 4 | BC16: HOSPITAL HUACHO | BD16: =Poblacion!F11 -> 54061 | BE16: =+SUM(Poblacion!K11,Poblacion!M11,Poblacion!O11,Poblacion!Q11,Poblacion!S11) -> 1377 | BF16: =+SUM(Poblacion!L11,Poblacion!N11,Poblacion!P11,Poblacion!R11,Poblacion!T11) -> 1330 | BG16: =SUM(Poblacion!U11,Poblacion!W11,Poblacion!Y11,Poblacion!AA11,Poblacion!AC11) -> 2100 | BH16: =SUM(Poblacion!V11,Poblacion!X11,Poblacion!Z11,Poblacion!AB11,Poblacion!AD11) -> 2122 | BI16: =+SUM(Poblacion!AE11,Poblacion!AG11,Poblacion!AI11,Poblacion!AK11,Poblacion!AM11) -> 2068 | BJ16: =+SUM(Poblacion!AF11,Poblacion!AH11,Poblacion!AJ11,Poblacion!AL11,Poblacion!AN11) -> 2060 | BK16: =+SUM(Poblacion!AO11,Poblacion!AQ11,Poblacion!AS11,Poblacion!AU11,Poblacion!AW11) -> 1937 | BL16: =+SUM(Poblacion!AP11,Poblacion!AR11,Poblacion!AT11,Poblacion!AV11,Poblacion!AX11) -> 1943 | BM16: =Poblacion!AY11 -> 1856 | BN16: =Poblacion!AZ11 -> 1873 | BO16: =Poblacion!BA11 -> 2032 | BP16: =Poblacion!BB11 -> 2290 | BQ16: =Poblacion!BC11 -> 1905 | BR16: =Poblacion!BD11 -> 2137 | BS16: =Poblacion!BE11 -> 1922 | BT16: =Poblacion!BF11 -> 2035 | BU16: =Poblacion!BG11 -> 1835 | BV16: =Poblacion!BH11 -> 1972 | BW16: =Poblacion!BI11 -> 1720 | BX16: =Poblacion!BJ11 -> 1882 | BY16: =Poblacion!BK11 -> 1593 | BZ16: =Poblacion!BL11 -> 1733 | CA16: =Poblacion!BM11 -> 1400 | CB16: =Poblacion!BN11 -> 1570 | CC16: =Poblacion!BO11 -> 1200 | CD16: =Poblacion!BP11 -> 1354 | CE16: =Poblacion!BQ11 -> 1017 | CF16: =Poblacion!BR11 -> 1148 | CG16: =Poblacion!BS11 -> 773 | CH16: =Poblacion!BT11 -> 927 | CI16: =Poblacion!BU11 -> 541 | CJ16: =Poblacion!BV11 -> 657 | CK16: =Poblacion!BW11 -> 759 | CL16: =Poblacion!BX11 -> 993 | CM16: =Poblacion!DM11 -> 5161 | CN16: =Poblacion!DN11 -> 5119 | CO16: =Poblacion!DO11 -> 1544 | CP16: =Poblacion!DP11 -> 1592 | CQ16: =Poblacion!DQ11 -> 15040 | CR16: =Poblacion!DR11 -> 16236 | CS16: =Poblacion!DS11 -> 4290 | CT16: =Poblacion!DT11 -> 5079
A17: -1 | AS17: DE 25 A 29 AÑOS | AT17: 11460 | AU17: -12646 | AW17: DE 25 A 29 AÑOS | AX17: =+LOOKUP($A$10,numeropiramide,BO13:BO99) -> 11460 | AY17: =+LOOKUP($A$10,numeropiramide,BP13:BP99) -> 12646 | BA17: 02 | BB17: 5 | BC17: C.S. MANZANARES | BD17: =Poblacion!F12 -> 21028 | BE17: =+SUM(Poblacion!K12,Poblacion!M12,Poblacion!O12,Poblacion!Q12,Poblacion!S12) -> 535 | BF17: =+SUM(Poblacion!L12,Poblacion!N12,Poblacion!P12,Poblacion!R12,Poblacion!T12) -> 518 | BG17: =SUM(Poblacion!U12,Poblacion!W12,Poblacion!Y12,Poblacion!AA12,Poblacion!AC12) -> 817 | BH17: =SUM(Poblacion!V12,Poblacion!X12,Poblacion!Z12,Poblacion!AB12,Poblacion!AD12) -> 826 | BI17: =+SUM(Poblacion!AE12,Poblacion!AG12,Poblacion!AI12,Poblacion!AK12,Poblacion!AM12) -> 805 | BJ17: =+SUM(Poblacion!AF12,Poblacion!AH12,Poblacion!AJ12,Poblacion!AL12,Poblacion!AN12) -> 801 | BK17: =+SUM(Poblacion!AO12,Poblacion!AQ12,Poblacion!AS12,Poblacion!AU12,Poblacion!AW12) -> 755 | BL17: =+SUM(Poblacion!AP12,Poblacion!AR12,Poblacion!AT12,Poblacion!AV12,Poblacion!AX12) -> 755 | BM17: =Poblacion!AY12 -> 722 | BN17: =Poblacion!AZ12 -> 728 | BO17: =Poblacion!BA12 -> 790 | BP17: =Poblacion!BB12 -> 891 | BQ17: =Poblacion!BC12 -> 741 | BR17: =Poblacion!BD12 -> 831 | BS17: =Poblacion!BE12 -> 747 | BT17: =Poblacion!BF12 -> 791 | BU17: =Poblacion!BG12 -> 713 | BV17: =Poblacion!BH12 -> 767 | BW17: =Poblacion!BI12 -> 669 | BX17: =Poblacion!BJ12 -> 732 | BY17: =Poblacion!BK12 -> 620 | BZ17: =Poblacion!BL12 -> 674 | CA17: =Poblacion!BM12 -> 545 | CB17: =Poblacion!BN12 -> 611 | CC17: =Poblacion!BO12 -> 467 | CD17: =Poblacion!BP12 -> 527 | CE17: =Poblacion!BQ12 -> 395 | CF17: =Poblacion!BR12 -> 446 | CG17: =Poblacion!BS12 -> 301 | CH17: =Poblacion!BT12 -> 361 | CI17: =Poblacion!BU12 -> 211 | CJ17: =Poblacion!BV12 -> 255 | CK17: =Poblacion!BW12 -> 295 | CL17: =Poblacion!BX12 -> 386 | CM17: =Poblacion!DM12 -> 2007 | CN17: =Poblacion!DN12 -> 1992 | CO17: =Poblacion!DO12 -> 602 | CP17: =Poblacion!DP12 -> 619 | CQ17: =Poblacion!DQ12 -> 5850 | CR17: =Poblacion!DR12 -> 6314 | CS17: =Poblacion!DS12 -> 1669 | CT17: =Poblacion!DT12 -> 1975
AS18: DE 30 A 34 AÑOS | AT18: 10442 | AU18: -11647 | AW18: DE 30 A 34 AÑOS | AX18: =+LOOKUP($A$10,numeropiramide,BQ13:BQ99) -> 10442 | AY18: =+LOOKUP($A$10,numeropiramide,BR13:BR99) -> 11647 | BB18: 6 | BC18: DISTRITO AMBAR | BD18: =Poblacion!F13 -> 2428 | BE18: =+SUM(Poblacion!K13,Poblacion!M13,Poblacion!O13,Poblacion!Q13,Poblacion!S13) -> 99 | BF18: =+SUM(Poblacion!L13,Poblacion!N13,Poblacion!P13,Poblacion!R13,Poblacion!T13) -> 104 | BG18: =SUM(Poblacion!U13,Poblacion!W13,Poblacion!Y13,Poblacion!AA13,Poblacion!AC13) -> 95 | BH18: =SUM(Poblacion!V13,Poblacion!X13,Poblacion!Z13,Poblacion!AB13,Poblacion!AD13) -> 78 | BI18: =+SUM(Poblacion!AE13,Poblacion!AG13,Poblacion!AI13,Poblacion!AK13,Poblacion!AM13) -> 89 | BJ18: =+SUM(Poblacion!AF13,Poblacion!AH13,Poblacion!AJ13,Poblacion!AL13,Poblacion!AN13) -> 94 | BK18: =+SUM(Poblacion!AO13,Poblacion!AQ13,Poblacion!AS13,Poblacion!AU13,Poblacion!AW13) -> 83 | BL18: =+SUM(Poblacion!AP13,Poblacion!AR13,Poblacion!AT13,Poblacion!AV13,Poblacion!AX13) -> 91 | BM18: =Poblacion!AY13 -> 96 | BN18: =Poblacion!AZ13 -> 97 | BO18: =Poblacion!BA13 -> 88 | BP18: =Poblacion!BB13 -> 108 | BQ18: =Poblacion!BC13 -> 66 | BR18: =Poblacion!BD13 -> 90 | BS18: =Poblacion!BE13 -> 81 | BT18: =Poblacion!BF13 -> 109 | BU18: =Poblacion!BG13 -> 70 | BV18: =Poblacion!BH13 -> 66 | BW18: =Poblacion!BI13 -> 74 | BX18: =Poblacion!BJ13 -> 74 | BY18: =Poblacion!BK13 -> 59 | BZ18: =Poblacion!BL13 -> 69 | CA18: =Poblacion!BM13 -> 64 | CB18: =Poblacion!BN13 -> 51 | CC18: =Poblacion!BO13 -> 47 | CD18: =Poblacion!BP13 -> 54 | CE18: =Poblacion!BQ13 -> 54 | CF18: =Poblacion!BR13 -> 54 | CG18: =Poblacion!BS13 -> 41 | CH18: =Poblacion!BT13 -> 31 | CI18: =Poblacion!BU13 -> 42 | CJ18: =Poblacion!BV13 -> 18 | CK18: =Poblacion!BW13 -> 34 | CL18: =Poblacion!BX13 -> 58 | CM18: =Poblacion!DM13 -> 267 | CN18: =Poblacion!DN13 -> 254 | CO18: =Poblacion!DO13 -> 60 | CP18: =Poblacion!DP13 -> 75 | CQ18: =Poblacion!DQ13 -> 637 | CR18: =Poblacion!DR13 -> 702 | CS18: =Poblacion!DS13 -> 218 | CT18: =Poblacion!DT13 -> 215
AS19: DE 35 A 39 AÑOS | AT19: 10023 | AU19: -10979 | AW19: DE 35 A 39 AÑOS | AX19: =+LOOKUP($A$10,numeropiramide,BS13:BS99) -> 10023 | AY19: =+LOOKUP($A$10,numeropiramide,BT13:BT99) -> 10979 | BA19: 01 | BB19: 7 | BC19: C.S. AMBAR | BD19: =Poblacion!F14 -> 1528 | BE19: =+SUM(Poblacion!K14,Poblacion!M14,Poblacion!O14,Poblacion!Q14,Poblacion!S14) -> 61 | BF19: =+SUM(Poblacion!L14,Poblacion!N14,Poblacion!P14,Poblacion!R14,Poblacion!T14) -> 66 | BG19: =SUM(Poblacion!U14,Poblacion!W14,Poblacion!Y14,Poblacion!AA14,Poblacion!AC14) -> 60 | BH19: =SUM(Poblacion!V14,Poblacion!X14,Poblacion!Z14,Poblacion!AB14,Poblacion!AD14) -> 49 | BI19: =+SUM(Poblacion!AE14,Poblacion!AG14,Poblacion!AI14,Poblacion!AK14,Poblacion!AM14) -> 56 | BJ19: =+SUM(Poblacion!AF14,Poblacion!AH14,Poblacion!AJ14,Poblacion!AL14,Poblacion!AN14) -> 59 | BK19: =+SUM(Poblacion!AO14,Poblacion!AQ14,Poblacion!AS14,Poblacion!AU14,Poblacion!AW14) -> 52 | BL19: =+SUM(Poblacion!AP14,Poblacion!AR14,Poblacion!AT14,Poblacion!AV14,Poblacion!AX14) -> 57 | BM19: =Poblacion!AY14 -> 60 | BN19: =Poblacion!AZ14 -> 61 | BO19: =Poblacion!BA14 -> 55 | BP19: =Poblacion!BB14 -> 68 | BQ19: =Poblacion!BC14 -> 42 | BR19: =Poblacion!BD14 -> 57 | BS19: =Poblacion!BE14 -> 51 | BT19: =Poblacion!BF14 -> 69 | BU19: =Poblacion!BG14 -> 44 | BV19: =Poblacion!BH14 -> 42 | BW19: =Poblacion!BI14 -> 47 | BX19: =Poblacion!BJ14 -> 47 | BY19: =Poblacion!BK14 -> 37 | BZ19: =Poblacion!BL14 -> 43 | CA19: =Poblacion!BM14 -> 40 | CB19: =Poblacion!BN14 -> 32 | CC19: =Poblacion!BO14 -> 30 | CD19: =Poblacion!BP14 -> 34 | CE19: =Poblacion!BQ14 -> 34 | CF19: =Poblacion!BR14 -> 34 | CG19: =Poblacion!BS14 -> 26 | CH19: =Poblacion!BT14 -> 20 | CI19: =Poblacion!BU14 -> 26 | CJ19: =Poblacion!BV14 -> 11 | CK19: =Poblacion!BW14 -> 21 | CL19: =Poblacion!BX14 -> 37 | CM19: =Poblacion!DM14 -> 167 | CN19: =Poblacion!DN14 -> 160 | CO19: =Poblacion!DO14 -> 37 | CP19: =Poblacion!DP14 -> 48 | CQ19: =Poblacion!DQ14 -> 401 | CR19: =Poblacion!DR14 -> 442 | CS19: =Poblacion!DS14 -> 137 | CT19: =Poblacion!DT14 -> 136
AS20: DE 40 A 44 AÑOS | AT20: 9181 | AU20: -9858 | AW20: DE 40 A 44 AÑOS | AX20: =+LOOKUP($A$10,numeropiramide,BU13:BU99) -> 9181 | AY20: =+LOOKUP($A$10,numeropiramide,BV13:BV99) -> 9858 | BA20: 01 | BB20: 8 | BC20: P.S. AYNACA | BD20: =Poblacion!F15 -> 900 | BE20: =+SUM(Poblacion!K15,Poblacion!M15,Poblacion!O15,Poblacion!Q15,Poblacion!S15) -> 38 | BF20: =+SUM(Poblacion!L15,Poblacion!N15,Poblacion!P15,Poblacion!R15,Poblacion!T15) -> 38 | BG20: =SUM(Poblacion!U15,Poblacion!W15,Poblacion!Y15,Poblacion!AA15,Poblacion!AC15) -> 35 | BH20: =SUM(Poblacion!V15,Poblacion!X15,Poblacion!Z15,Poblacion!AB15,Poblacion!AD15) -> 29 | BI20: =+SUM(Poblacion!AE15,Poblacion!AG15,Poblacion!AI15,Poblacion!AK15,Poblacion!AM15) -> 33 | BJ20: =+SUM(Poblacion!AF15,Poblacion!AH15,Poblacion!AJ15,Poblacion!AL15,Poblacion!AN15) -> 35 | BK20: =+SUM(Poblacion!AO15,Poblacion!AQ15,Poblacion!AS15,Poblacion!AU15,Poblacion!AW15) -> 31 | BL20: =+SUM(Poblacion!AP15,Poblacion!AR15,Poblacion!AT15,Poblacion!AV15,Poblacion!AX15) -> 34 | BM20: =Poblacion!AY15 -> 36 | BN20: =Poblacion!AZ15 -> 36 | BO20: =Poblacion!BA15 -> 33 | BP20: =Poblacion!BB15 -> 40 | BQ20: =Poblacion!BC15 -> 24 | BR20: =Poblacion!BD15 -> 33 | BS20: =Poblacion!BE15 -> 30 | BT20: =Poblacion!BF15 -> 40 | BU20: =Poblacion!BG15 -> 26 | BV20: =Poblacion!BH15 -> 24 | BW20: =Poblacion!BI15 -> 27 | BX20: =Poblacion!BJ15 -> 27 | BY20: =Poblacion!BK15 -> 22 | BZ20: =Poblacion!BL15 -> 26 | CA20: =Poblacion!BM15 -> 24 | CB20: =Poblacion!BN15 -> 19 | CC20: =Poblacion!BO15 -> 17 | CD20: =Poblacion!BP15 -> 20 | CE20: =Poblacion!BQ15 -> 20 | CF20: =Poblacion!BR15 -> 20 | CG20: =Poblacion!BS15 -> 15 | CH20: =Poblacion!BT15 -> 11 | CI20: =Poblacion!BU15 -> 16 | CJ20: =Poblacion!BV15 -> 7 | CK20: =Poblacion!BW15 -> 13 | CL20: =Poblacion!BX15 -> 21 | CM20: =Poblacion!DM15 -> 100 | CN20: =Poblacion!DN15 -> 94 | CO20: =Poblacion!DO15 -> 23 | CP20: =Poblacion!DP15 -> 27 | CQ20: =Poblacion!DQ15 -> 236 | CR20: =Poblacion!DR15 -> 260 | CS20: =Poblacion!DS15 -> 81 | CT20: =Poblacion!DT15 -> 79
AS21: DE 45 A 49 AÑOS | AT21: 8430 | AU21: -9184 | AW21: DE 45 A 49 AÑOS | AX21: =+LOOKUP($A$10,numeropiramide,BW13:BW99) -> 8430 | AY21: =+LOOKUP($A$10,numeropiramide,BX13:BX99) -> 9184 | BB21: 9 | BC21: DISTRITO CARQUIN | BD21: =Poblacion!F16 -> 9351 | BE21: =+SUM(Poblacion!K16,Poblacion!M16,Poblacion!O16,Poblacion!Q16,Poblacion!S16) -> 234 | BF21: =+SUM(Poblacion!L16,Poblacion!N16,Poblacion!P16,Poblacion!R16,Poblacion!T16) -> 237 | BG21: =SUM(Poblacion!U16,Poblacion!W16,Poblacion!Y16,Poblacion!AA16,Poblacion!AC16) -> 365 | BH21: =SUM(Poblacion!V16,Poblacion!X16,Poblacion!Z16,Poblacion!AB16,Poblacion!AD16) -> 379 | BI21: =+SUM(Poblacion!AE16,Poblacion!AG16,Poblacion!AI16,Poblacion!AK16,Poblacion!AM16) -> 425 | BJ21: =+SUM(Poblacion!AF16,Poblacion!AH16,Poblacion!AJ16,Poblacion!AL16,Poblacion!AN16) -> 431 | BK21: =+SUM(Poblacion!AO16,Poblacion!AQ16,Poblacion!AS16,Poblacion!AU16,Poblacion!AW16) -> 354 | BL21: =+SUM(Poblacion!AP16,Poblacion!AR16,Poblacion!AT16,Poblacion!AV16,Poblacion!AX16) -> 391 | BM21: =Poblacion!AY16 -> 348 | BN21: =Poblacion!AZ16 -> 369 | BO21: =Poblacion!BA16 -> 368 | BP21: =Poblacion!BB16 -> 385 | BQ21: =Poblacion!BC16 -> 351 | BR21: =Poblacion!BD16 -> 416 | BS21: =Poblacion!BE16 -> 364 | BT21: =Poblacion!BF16 -> 371 | BU21: =Poblacion!BG16 -> 325 | BV21: =Poblacion!BH16 -> 383 | BW21: =Poblacion!BI16 -> 296 | BX21: =Poblacion!BJ16 -> 311 | BY21: =Poblacion!BK16 -> 237 | BZ21: =Poblacion!BL16 -> 258 | CA21: =Poblacion!BM16 -> 225 | CB21: =Poblacion!BN16 -> 248 | CC21: =Poblacion!BO16 -> 186 | CD21: =Poblacion!BP16 -> 175 | CE21: =Poblacion!BQ16 -> 128 | CF21: =Poblacion!BR16 -> 162 | CG21: =Poblacion!BS16 -> 125 | CH21: =Poblacion!BT16 -> 126 | CI21: =Poblacion!BU16 -> 76 | CJ21: =Poblacion!BV16 -> 90 | CK21: =Poblacion!BW16 -> 101 | CL21: =Poblacion!BX16 -> 111 | CM21: =Poblacion!DM16 -> 951 | CN21: =Poblacion!DN16 -> 958 | CO21: =Poblacion!DO16 -> 316 | CP21: =Poblacion!DP16 -> 344 | CQ21: =Poblacion!DQ16 -> 2625 | CR21: =Poblacion!DR16 -> 2877 | CS21: =Poblacion!DS16 -> 616 | CT21: =Poblacion!DT16 -> 664
AS22: DE 50 A 54 AÑOS | AT22: 7433 | AU22: -8087 | AW22: DE 50 A 54 AÑOS | AX22: =+LOOKUP($A$10,numeropiramide,BY13:BY99) -> 7433 | AY22: =+LOOKUP($A$10,numeropiramide,BZ13:BZ99) -> 8087 | BA22: 02 | BB22: 10 | BC22: P.S. CARQUIN | BD22: =Poblacion!F17 -> 9351 | BE22: =+SUM(Poblacion!K17,Poblacion!M17,Poblacion!O17,Poblacion!Q17,Poblacion!S17) -> 234 | BF22: =+SUM(Poblacion!L17,Poblacion!N17,Poblacion!P17,Poblacion!R17,Poblacion!T17) -> 237 | BG22: =SUM(Poblacion!U17,Poblacion!W17,Poblacion!Y17,Poblacion!AA17,Poblacion!AC17) -> 365 | BH22: =SUM(Poblacion!V17,Poblacion!X17,Poblacion!Z17,Poblacion!AB17,Poblacion!AD17) -> 379 | BI22: =+SUM(Poblacion!AE17,Poblacion!AG17,Poblacion!AI17,Poblacion!AK17,Poblacion!AM17) -> 425 | BJ22: =+SUM(Poblacion!AF17,Poblacion!AH17,Poblacion!AJ17,Poblacion!AL17,Poblacion!AN17) -> 431 | BK22: =+SUM(Poblacion!AO17,Poblacion!AQ17,Poblacion!AS17,Poblacion!AU17,Poblacion!AW17) -> 354 | BL22: =+SUM(Poblacion!AP17,Poblacion!AR17,Poblacion!AT17,Poblacion!AV17,Poblacion!AX17) -> 391 | BM22: =Poblacion!AY17 -> 348 | BN22: =Poblacion!AZ17 -> 369 | BO22: =Poblacion!BA17 -> 368 | BP22: =Poblacion!BB17 -> 385 | BQ22: =Poblacion!BC17 -> 351 | BR22: =Poblacion!BD17 -> 416 | BS22: =Poblacion!BE17 -> 364 | BT22: =Poblacion!BF17 -> 371 | BU22: =Poblacion!BG17 -> 325 | BV22: =Poblacion!BH17 -> 383 | BW22: =Poblacion!BI17 -> 296 | BX22: =Poblacion!BJ17 -> 311 | BY22: =Poblacion!BK17 -> 237 | BZ22: =Poblacion!BL17 -> 258 | CA22: =Poblacion!BM17 -> 225 | CB22: =Poblacion!BN17 -> 248 | CC22: =Poblacion!BO17 -> 186 | CD22: =Poblacion!BP17 -> 175 | CE22: =Poblacion!BQ17 -> 128 | CF22: =Poblacion!BR17 -> 162 | CG22: =Poblacion!BS17 -> 125 | CH22: =Poblacion!BT17 -> 126 | CI22: =Poblacion!BU17 -> 76 | CJ22: =Poblacion!BV17 -> 90 | CK22: =Poblacion!BW17 -> 101 | CL22: =Poblacion!BX17 -> 111 | CM22: =Poblacion!DM17 -> 951 | CN22: =Poblacion!DN17 -> 958 | CO22: =Poblacion!DO17 -> 316 | CP22: =Poblacion!DP17 -> 344 | CQ22: =Poblacion!DQ17 -> 2625 | CR22: =Poblacion!DR17 -> 2877 | CS22: =Poblacion!DS17 -> 616 | CT22: =Poblacion!DT17 -> 664
AS23: DE 55 A 59 AÑOS | AT23: 6413 | AU23: -7097 | AW23: DE 55 A 59 AÑOS | AX23: =+LOOKUP($A$10,numeropiramide,CA13:CA99) -> 6413 | AY23: =+LOOKUP($A$10,numeropiramide,CB13:CB99) -> 7097 | BB23: 11 | BC23: DISTRITO CHECRAS | BD23: =Poblacion!F18 -> 896 | BE23: =+SUM(Poblacion!K18,Poblacion!M18,Poblacion!O18,Poblacion!Q18,Poblacion!S18) -> 16 | BF23: =+SUM(Poblacion!L18,Poblacion!N18,Poblacion!P18,Poblacion!R18,Poblacion!T18) -> 19 | BG23: =SUM(Poblacion!U18,Poblacion!W18,Poblacion!Y18,Poblacion!AA18,Poblacion!AC18) -> 23 | BH23: =SUM(Poblacion!V18,Poblacion!X18,Poblacion!Z18,Poblacion!AB18,Poblacion!AD18) -> 20 | BI23: =+SUM(Poblacion!AE18,Poblacion!AG18,Poblacion!AI18,Poblacion!AK18,Poblacion!AM18) -> 30 | BJ23: =+SUM(Poblacion!AF18,Poblacion!AH18,Poblacion!AJ18,Poblacion!AL18,Poblacion!AN18) -> 32 | BK23: =+SUM(Poblacion!AO18,Poblacion!AQ18,Poblacion!AS18,Poblacion!AU18,Poblacion!AW18) -> 46 | BL23: =+SUM(Poblacion!AP18,Poblacion!AR18,Poblacion!AT18,Poblacion!AV18,Poblacion!AX18) -> 37 | BM23: =Poblacion!AY18 -> 19 | BN23: =Poblacion!AZ18 -> 31 | BO23: =Poblacion!BA18 -> 31 | BP23: =Poblacion!BB18 -> 27 | BQ23: =Poblacion!BC18 -> 17 | BR23: =Poblacion!BD18 -> 22 | BS23: =Poblacion!BE18 -> 19 | BT23: =Poblacion!BF18 -> 24 | BU23: =Poblacion!BG18 -> 24 | BV23: =Poblacion!BH18 -> 15 | BW23: =Poblacion!BI18 -> 23 | BX23: =Poblacion!BJ18 -> 15 | BY23: =Poblacion!BK18 -> 25 | BZ23: =Poblacion!BL18 -> 32 | CA23: =Poblacion!BM18 -> 32 | CB23: =Poblacion!BN18 -> 29 | CC23: =Poblacion!BO18 -> 24 | CD23: =Poblacion!BP18 -> 24 | CE23: =Poblacion!BQ18 -> 27 | CF23: =Poblacion!BR18 -> 30 | CG23: =Poblacion!BS18 -> 24 | CH23: =Poblacion!BT18 -> 29 | CI23: =Poblacion!BU18 -> 12 | CJ23: =Poblacion!BV18 -> 22 | CK23: =Poblacion!BW18 -> 37 | CL23: =Poblacion!BX18 -> 59 | CM23: =Poblacion!DM18 -> 64 | CN23: =Poblacion!DN18 -> 64 | CO23: =Poblacion!DO18 -> 40 | CP23: =Poblacion!DP18 -> 34 | CQ23: =Poblacion!DQ18 -> 201 | CR23: =Poblacion!DR18 -> 205 | CS23: =Poblacion!DS18 -> 124 | CT23: =Poblacion!DT18 -> 164
AS24: DE 60 A 64 AÑOS | AT24: 5390 | AU24: -5833 | AW24: DE 60 A 64 AÑOS | AX24: =+LOOKUP($A$10,numeropiramide,CC13:CC99) -> 5390 | AY24: =+LOOKUP($A$10,numeropiramide,CD13:CD99) -> 5833 | BA24: 05 | BB24: 12 | BC24: P.S. PUÑUN | BD24: =Poblacion!F19 -> 896 | BE24: =+SUM(Poblacion!K19,Poblacion!M19,Poblacion!O19,Poblacion!Q19,Poblacion!S19) -> 16 | BF24: =+SUM(Poblacion!L19,Poblacion!N19,Poblacion!P19,Poblacion!R19,Poblacion!T19) -> 19 | BG24: =SUM(Poblacion!U19,Poblacion!W19,Poblacion!Y19,Poblacion!AA19,Poblacion!AC19) -> 23 | BH24: =SUM(Poblacion!V19,Poblacion!X19,Poblacion!Z19,Poblacion!AB19,Poblacion!AD19) -> 20 | BI24: =+SUM(Poblacion!AE19,Poblacion!AG19,Poblacion!AI19,Poblacion!AK19,Poblacion!AM19) -> 30 | BJ24: =+SUM(Poblacion!AF19,Poblacion!AH19,Poblacion!AJ19,Poblacion!AL19,Poblacion!AN19) -> 32 | BK24: =+SUM(Poblacion!AO19,Poblacion!AQ19,Poblacion!AS19,Poblacion!AU19,Poblacion!AW19) -> 46 | BL24: =+SUM(Poblacion!AP19,Poblacion!AR19,Poblacion!AT19,Poblacion!AV19,Poblacion!AX19) -> 37 | BM24: =Poblacion!AY19 -> 19 | BN24: =Poblacion!AZ19 -> 31 | BO24: =Poblacion!BA19 -> 31 | BP24: =Poblacion!BB19 -> 27 | BQ24: =Poblacion!BC19 -> 17 | BR24: =Poblacion!BD19 -> 22 | BS24: =Poblacion!BE19 -> 19 | BT24: =Poblacion!BF19 -> 24 | BU24: =Poblacion!BG19 -> 24 | BV24: =Poblacion!BH19 -> 15 | BW24: =Poblacion!BI19 -> 23 | BX24: =Poblacion!BJ19 -> 15 | BY24: =Poblacion!BK19 -> 25 | BZ24: =Poblacion!BL19 -> 32 | CA24: =Poblacion!BM19 -> 32 | CB24: =Poblacion!BN19 -> 29 | CC24: =Poblacion!BO19 -> 24 | CD24: =Poblacion!BP19 -> 24 | CE24: =Poblacion!BQ19 -> 27 | CF24: =Poblacion!BR19 -> 30 | CG24: =Poblacion!BS19 -> 24 | CH24: =Poblacion!BT19 -> 29 | CI24: =Poblacion!BU19 -> 12 | CJ24: =Poblacion!BV19 -> 22 | CK24: =Poblacion!BW19 -> 37 | CL24: =Poblacion!BX19 -> 59 | CM24: =Poblacion!DM19 -> 64 | CN24: =Poblacion!DN19 -> 64 | CO24: =Poblacion!DO19 -> 40 | CP24: =Poblacion!DP19 -> 34 | CQ24: =Poblacion!DQ19 -> 201 | CR24: =Poblacion!DR19 -> 205 | CS24: =Poblacion!DS19 -> 124 | CT24: =Poblacion!DT19 -> 164
AS25: DE 65 A 69 AÑOS | AT25: 4382 | AU25: -4867 | AW25: DE 65 A 69 AÑOS | AX25: =+LOOKUP($A$10,numeropiramide,CE13:CE99) -> 4382 | AY25: =+LOOKUP($A$10,numeropiramide,CF13:CF99) -> 4867 | BB25: 13 | BC25: DISTRITO HUALMAY | BD25: =Poblacion!F20 -> 30830 | BE25: =+SUM(Poblacion!K20,Poblacion!M20,Poblacion!O20,Poblacion!Q20,Poblacion!S20) -> 968 | BF25: =+SUM(Poblacion!L20,Poblacion!N20,Poblacion!P20,Poblacion!R20,Poblacion!T20) -> 938 | BG25: =SUM(Poblacion!U20,Poblacion!W20,Poblacion!Y20,Poblacion!AA20,Poblacion!AC20) -> 1294 | BH25: =SUM(Poblacion!V20,Poblacion!X20,Poblacion!Z20,Poblacion!AB20,Poblacion!AD20) -> 1350 | BI25: =+SUM(Poblacion!AE20,Poblacion!AG20,Poblacion!AI20,Poblacion!AK20,Poblacion!AM20) -> 1253 | BJ25: =+SUM(Poblacion!AF20,Poblacion!AH20,Poblacion!AJ20,Poblacion!AL20,Poblacion!AN20) -> 1281 | BK25: =+SUM(Poblacion!AO20,Poblacion!AQ20,Poblacion!AS20,Poblacion!AU20,Poblacion!AW20) -> 1107 | BL25: =+SUM(Poblacion!AP20,Poblacion!AR20,Poblacion!AT20,Poblacion!AV20,Poblacion!AX20) -> 1181 | BM25: =Poblacion!AY20 -> 1146 | BN25: =Poblacion!AZ20 -> 1200 | BO25: =Poblacion!BA20 -> 1275 | BP25: =Poblacion!BB20 -> 1414 | BQ25: =Poblacion!BC20 -> 1187 | BR25: =Poblacion!BD20 -> 1232 | BS25: =Poblacion!BE20 -> 1116 | BT25: =Poblacion!BF20 -> 1276 | BU25: =Poblacion!BG20 -> 1021 | BV25: =Poblacion!BH20 -> 1117 | BW25: =Poblacion!BI20 -> 1003 | BX25: =Poblacion!BJ20 -> 1064 | BY25: =Poblacion!BK20 -> 875 | BZ25: =Poblacion!BL20 -> 850 | CA25: =Poblacion!BM20 -> 706 | CB25: =Poblacion!BN20 -> 768 | CC25: =Poblacion!BO20 -> 554 | CD25: =Poblacion!BP20 -> 596 | CE25: =Poblacion!BQ20 -> 448 | CF25: =Poblacion!BR20 -> 542 | CG25: =Poblacion!BS20 -> 343 | CH25: =Poblacion!BT20 -> 390 | CI25: =Poblacion!BU20 -> 260 | CJ25: =Poblacion!BV20 -> 340 | CK25: =Poblacion!BW20 -> 294 | CL25: =Poblacion!BX20 -> 441 | CM25: =Poblacion!DM20 -> 3282 | CN25: =Poblacion!DN20 -> 3306 | CO25: =Poblacion!DO20 -> 908 | CP25: =Poblacion!DP20 -> 983 | CQ25: =Poblacion!DQ20 -> 8761 | CR25: =Poblacion!DR20 -> 9382 | CS25: =Poblacion!DS20 -> 1899 | CT25: =Poblacion!DT20 -> 2309
AS26: DE 70 A 74 AÑOS | AT26: 3450 | AU26: -3769 | AW26: DE 70 A 74 AÑOS | AX26: =+LOOKUP($A$10,numeropiramide,CG13:CG99) -> 3450 | AY26: =+LOOKUP($A$10,numeropiramide,CH13:CH99) -> 3769 | BA26: 02 | BB26: 14 | BC26: C.S. HUALMAY | BD26: =Poblacion!F21 -> 14801 | BE26: =+SUM(Poblacion!K21,Poblacion!M21,Poblacion!O21,Poblacion!Q21,Poblacion!S21) -> 464 | BF26: =+SUM(Poblacion!L21,Poblacion!N21,Poblacion!P21,Poblacion!R21,Poblacion!T21) -> 451 | BG26: =SUM(Poblacion!U21,Poblacion!W21,Poblacion!Y21,Poblacion!AA21,Poblacion!AC21) -> 621 | BH26: =SUM(Poblacion!V21,Poblacion!X21,Poblacion!Z21,Poblacion!AB21,Poblacion!AD21) -> 649 | BI26: =+SUM(Poblacion!AE21,Poblacion!AG21,Poblacion!AI21,Poblacion!AK21,Poblacion!AM21) -> 601 | BJ26: =+SUM(Poblacion!AF21,Poblacion!AH21,Poblacion!AJ21,Poblacion!AL21,Poblacion!AN21) -> 614 | BK26: =+SUM(Poblacion!AO21,Poblacion!AQ21,Poblacion!AS21,Poblacion!AU21,Poblacion!AW21) -> 533 | BL26: =+SUM(Poblacion!AP21,Poblacion!AR21,Poblacion!AT21,Poblacion!AV21,Poblacion!AX21) -> 566 | BM26: =Poblacion!AY21 -> 550 | BN26: =Poblacion!AZ21 -> 576 | BO26: =Poblacion!BA21 -> 612 | BP26: =Poblacion!BB21 -> 679 | BQ26: =Poblacion!BC21 -> 570 | BR26: =Poblacion!BD21 -> 591 | BS26: =Poblacion!BE21 -> 535 | BT26: =Poblacion!BF21 -> 613 | BU26: =Poblacion!BG21 -> 490 | BV26: =Poblacion!BH21 -> 536 | BW26: =Poblacion!BI21 -> 482 | BX26: =Poblacion!BJ21 -> 511 | BY26: =Poblacion!BK21 -> 420 | BZ26: =Poblacion!BL21 -> 408 | CA26: =Poblacion!BM21 -> 339 | CB26: =Poblacion!BN21 -> 369 | CC26: =Poblacion!BO21 -> 266 | CD26: =Poblacion!BP21 -> 286 | CE26: =Poblacion!BQ21 -> 215 | CF26: =Poblacion!BR21 -> 260 | CG26: =Poblacion!BS21 -> 165 | CH26: =Poblacion!BT21 -> 188 | CI26: =Poblacion!BU21 -> 124 | CJ26: =Poblacion!BV21 -> 164 | CK26: =Poblacion!BW21 -> 142 | CL26: =Poblacion!BX21 -> 211 | CM26: =Poblacion!DM21 -> 1574 | CN26: =Poblacion!DN21 -> 1588 | CO26: =Poblacion!DO21 -> 437 | CP26: =Poblacion!DP21 -> 471 | CQ26: =Poblacion!DQ21 -> 4206 | CR26: =Poblacion!DR21 -> 4504 | CS26: =Poblacion!DS21 -> 912 | CT26: =Poblacion!DT21 -> 1109
AS27: DE 75 A 79 AÑOS | AT27: 2489 | AU27: -2872 | AW27: DE 75 A 79 AÑOS | AX27: =+LOOKUP($A$10,numeropiramide,CI13:CI99) -> 2489 | AY27: =+LOOKUP($A$10,numeropiramide,CJ13:CJ99) -> 2872 | BA27: 02 | BB27: 15 | BC27: P.S. DGO. MANDAMIENTO | BD27: =Poblacion!F22 -> 11096 | BE27: =+SUM(Poblacion!K22,Poblacion!M22,Poblacion!O22,Poblacion!Q22,Poblacion!S22) -> 349 | BF27: =+SUM(Poblacion!L22,Poblacion!N22,Poblacion!P22,Poblacion!R22,Poblacion!T22) -> 337 | BG27: =SUM(Poblacion!U22,Poblacion!W22,Poblacion!Y22,Poblacion!AA22,Poblacion!AC22) -> 465 | BH27: =SUM(Poblacion!V22,Poblacion!X22,Poblacion!Z22,Poblacion!AB22,Poblacion!AD22) -> 485 | BI27: =+SUM(Poblacion!AE22,Poblacion!AG22,Poblacion!AI22,Poblacion!AK22,Poblacion!AM22) -> 452 | BJ27: =+SUM(Poblacion!AF22,Poblacion!AH22,Poblacion!AJ22,Poblacion!AL22,Poblacion!AN22) -> 461 | BK27: =+SUM(Poblacion!AO22,Poblacion!AQ22,Poblacion!AS22,Poblacion!AU22,Poblacion!AW22) -> 398 | BL27: =+SUM(Poblacion!AP22,Poblacion!AR22,Poblacion!AT22,Poblacion!AV22,Poblacion!AX22) -> 426 | BM27: =Poblacion!AY22 -> 413 | BN27: =Poblacion!AZ22 -> 432 | BO27: =Poblacion!BA22 -> 459 | BP27: =Poblacion!BB22 -> 509 | BQ27: =Poblacion!BC22 -> 427 | BR27: =Poblacion!BD22 -> 444 | BS27: =Poblacion!BE22 -> 402 | BT27: =Poblacion!BF22 -> 459 | BU27: =Poblacion!BG22 -> 368 | BV27: =Poblacion!BH22 -> 402 | BW27: =Poblacion!BI22 -> 361 | BX27: =Poblacion!BJ22 -> 383 | BY27: =Poblacion!BK22 -> 315 | BZ27: =Poblacion!BL22 -> 306 | CA27: =Poblacion!BM22 -> 254 | CB27: =Poblacion!BN22 -> 276 | CC27: =Poblacion!BO22 -> 199 | CD27: =Poblacion!BP22 -> 215 | CE27: =Poblacion!BQ22 -> 161 | CF27: =Poblacion!BR22 -> 195 | CG27: =Poblacion!BS22 -> 123 | CH27: =Poblacion!BT22 -> 140 | CI27: =Poblacion!BU22 -> 94 | CJ27: =Poblacion!BV22 -> 122 | CK27: =Poblacion!BW22 -> 105 | CL27: =Poblacion!BX22 -> 159 | CM27: =Poblacion!DM22 -> 1182 | CN27: =Poblacion!DN22 -> 1188 | CO27: =Poblacion!DO22 -> 327 | CP27: =Poblacion!DP22 -> 355 | CQ27: =Poblacion!DQ22 -> 3154 | CR27: =Poblacion!DR22 -> 3377 | CS27: =Poblacion!DS22 -> 682 | CT27: =Poblacion!DT22 -> 831
AS28: DE 80 A MAS AÑOS | AT28: 3254 | AU28: -4133 | AW28: DE 80 A MAS AÑOS | AX28: =+LOOKUP($A$10,numeropiramide,CK13:CK99) -> 3254 | AY28: =+LOOKUP($A$10,numeropiramide,CL13:CL99) -> 4133 | BA28: 02 | BB28: 16 | BC28: P.S. CAMPO ALEGRE | BD28: =Poblacion!F23 -> 4933 | BE28: =+SUM(Poblacion!K23,Poblacion!M23,Poblacion!O23,Poblacion!Q23,Poblacion!S23) -> 155 | BF28: =+SUM(Poblacion!L23,Poblacion!N23,Poblacion!P23,Poblacion!R23,Poblacion!T23) -> 150 | BG28: =SUM(Poblacion!U23,Poblacion!W23,Poblacion!Y23,Poblacion!AA23,Poblacion!AC23) -> 208 | BH28: =SUM(Poblacion!V23,Poblacion!X23,Poblacion!Z23,Poblacion!AB23,Poblacion!AD23) -> 216 | BI28: =+SUM(Poblacion!AE23,Poblacion!AG23,Poblacion!AI23,Poblacion!AK23,Poblacion!AM23) -> 200 | BJ28: =+SUM(Poblacion!AF23,Poblacion!AH23,Poblacion!AJ23,Poblacion!AL23,Poblacion!AN23) -> 206 | BK28: =+SUM(Poblacion!AO23,Poblacion!AQ23,Poblacion!AS23,Poblacion!AU23,Poblacion!AW23) -> 176 | BL28: =+SUM(Poblacion!AP23,Poblacion!AR23,Poblacion!AT23,Poblacion!AV23,Poblacion!AX23) -> 189 | BM28: =Poblacion!AY23 -> 183 | BN28: =Poblacion!AZ23 -> 192 | BO28: =Poblacion!BA23 -> 204 | BP28: =Poblacion!BB23 -> 226 | BQ28: =Poblacion!BC23 -> 190 | BR28: =Poblacion!BD23 -> 197 | BS28: =Poblacion!BE23 -> 179 | BT28: =Poblacion!BF23 -> 204 | BU28: =Poblacion!BG23 -> 163 | BV28: =Poblacion!BH23 -> 179 | BW28: =Poblacion!BI23 -> 160 | BX28: =Poblacion!BJ23 -> 170 | BY28: =Poblacion!BK23 -> 140 | BZ28: =Poblacion!BL23 -> 136 | CA28: =Poblacion!BM23 -> 113 | CB28: =Poblacion!BN23 -> 123 | CC28: =Poblacion!BO23 -> 89 | CD28: =Poblacion!BP23 -> 95 | CE28: =Poblacion!BQ23 -> 72 | CF28: =Poblacion!BR23 -> 87 | CG28: =Poblacion!BS23 -> 55 | CH28: =Poblacion!BT23 -> 62 | CI28: =Poblacion!BU23 -> 42 | CJ28: =Poblacion!BV23 -> 54 | CK28: =Poblacion!BW23 -> 47 | CL28: =Poblacion!BX23 -> 71 | CM28: =Poblacion!DM23 -> 526 | CN28: =Poblacion!DN23 -> 530 | CO28: =Poblacion!DO23 -> 144 | CP28: =Poblacion!DP23 -> 157 | CQ28: =Poblacion!DQ23 -> 1401 | CR28: =Poblacion!DR23 -> 1501 | CS28: =Poblacion!DS23 -> 305 | CT28: =Poblacion!DT23 -> 369
BB29: 17 | BC29: DISTRITO HUAURA | BD29: =Poblacion!F24 -> 40247 | BE29: =+SUM(Poblacion!K24,Poblacion!M24,Poblacion!O24,Poblacion!Q24,Poblacion!S24) -> 1392 | BF29: =+SUM(Poblacion!L24,Poblacion!N24,Poblacion!P24,Poblacion!R24,Poblacion!T24) -> 1337 | BG29: =SUM(Poblacion!U24,Poblacion!W24,Poblacion!Y24,Poblacion!AA24,Poblacion!AC24) -> 1757 | BH29: =SUM(Poblacion!V24,Poblacion!X24,Poblacion!Z24,Poblacion!AB24,Poblacion!AD24) -> 1722 | BI29: =+SUM(Poblacion!AE24,Poblacion!AG24,Poblacion!AI24,Poblacion!AK24,Poblacion!AM24) -> 1704 | BJ29: =+SUM(Poblacion!AF24,Poblacion!AH24,Poblacion!AJ24,Poblacion!AL24,Poblacion!AN24) -> 1811 | BK29: =+SUM(Poblacion!AO24,Poblacion!AQ24,Poblacion!AS24,Poblacion!AU24,Poblacion!AW24) -> 1472 | BL29: =+SUM(Poblacion!AP24,Poblacion!AR24,Poblacion!AT24,Poblacion!AV24,Poblacion!AX24) -> 1666 | BM29: =Poblacion!AY24 -> 1447 | BN29: =Poblacion!AZ24 -> 1566 | BO29: =Poblacion!BA24 -> 1791 | BP29: =Poblacion!BB24 -> 1902 | BQ29: =Poblacion!BC24 -> 1676 | BR29: =Poblacion!BD24 -> 1717 | BS29: =Poblacion!BE24 -> 1427 | BT29: =Poblacion!BF24 -> 1586 | BU29: =Poblacion!BG24 -> 1378 | BV29: =Poblacion!BH24 -> 1429 | BW29: =Poblacion!BI24 -> 1150 | BX29: =Poblacion!BJ24 -> 1340 | BY29: =Poblacion!BK24 -> 998 | BZ29: =Poblacion!BL24 -> 1204 | CA29: =Poblacion!BM24 -> 874 | CB29: =Poblacion!BN24 -> 1000 | CC29: =Poblacion!BO24 -> 740 | CD29: =Poblacion!BP24 -> 772 | CE29: =Poblacion!BQ24 -> 537 | CF29: =Poblacion!BR24 -> 590 | CG29: =Poblacion!BS24 -> 408 | CH29: =Poblacion!BT24 -> 442 | CI29: =Poblacion!BU24 -> 290 | CJ29: =Poblacion!BV24 -> 304 | CK29: =Poblacion!BW24 -> 373 | CL29: =Poblacion!BX24 -> 445 | CM29: =Poblacion!DM24 -> 4534 | CN29: =Poblacion!DN24 -> 4530 | CO29: =Poblacion!DO24 -> 1202 | CP29: =Poblacion!DP24 -> 1364 | CQ29: =Poblacion!DQ24 -> 11330 | CR29: =Poblacion!DR24 -> 12386 | CS29: =Poblacion!DS24 -> 2348 | CT29: =Poblacion!DT24 -> 2553
AS30: DATOS PIRAMIDE-CANCER | AW30: DATOS PIRAMIDE- CANCER | BA30: 01 | BB30: 18 | BC30: C.S. HUAURA | BD30: =Poblacion!F25 -> 18113 | BE30: =+SUM(Poblacion!K25,Poblacion!M25,Poblacion!O25,Poblacion!Q25,Poblacion!S25) -> 627 | BF30: =+SUM(Poblacion!L25,Poblacion!N25,Poblacion!P25,Poblacion!R25,Poblacion!T25) -> 602 | BG30: =SUM(Poblacion!U25,Poblacion!W25,Poblacion!Y25,Poblacion!AA25,Poblacion!AC25) -> 791 | BH30: =SUM(Poblacion!V25,Poblacion!X25,Poblacion!Z25,Poblacion!AB25,Poblacion!AD25) -> 776 | BI30: =+SUM(Poblacion!AE25,Poblacion!AG25,Poblacion!AI25,Poblacion!AK25,Poblacion!AM25) -> 765 | BJ30: =+SUM(Poblacion!AF25,Poblacion!AH25,Poblacion!AJ25,Poblacion!AL25,Poblacion!AN25) -> 814 | BK30: =+SUM(Poblacion!AO25,Poblacion!AQ25,Poblacion!AS25,Poblacion!AU25,Poblacion!AW25) -> 661 | BL30: =+SUM(Poblacion!AP25,Poblacion!AR25,Poblacion!AT25,Poblacion!AV25,Poblacion!AX25) -> 750 | BM30: =Poblacion!AY25 -> 652 | BN30: =Poblacion!AZ25 -> 705 | BO30: =Poblacion!BA25 -> 806 | BP30: =Poblacion!BB25 -> 856 | BQ30: =Poblacion!BC25 -> 754 | BR30: =Poblacion!BD25 -> 773 | BS30: =Poblacion!BE25 -> 643 | BT30: =Poblacion!BF25 -> 713 | BU30: =Poblacion!BG25 -> 620 | BV30: =Poblacion!BH25 -> 643 | BW30: =Poblacion!BI25 -> 516 | BX30: =Poblacion!BJ25 -> 603 | BY30: =Poblacion!BK25 -> 449 | BZ30: =Poblacion!BL25 -> 543 | CA30: =Poblacion!BM25 -> 393 | CB30: =Poblacion!BN25 -> 450 | CC30: =Poblacion!BO25 -> 333 | CD30: =Poblacion!BP25 -> 347 | CE30: =Poblacion!BQ25 -> 242 | CF30: =Poblacion!BR25 -> 266 | CG30: =Poblacion!BS25 -> 183 | CH30: =Poblacion!BT25 -> 199 | CI30: =Poblacion!BU25 -> 131 | CJ30: =Poblacion!BV25 -> 138 | CK30: =Poblacion!BW25 -> 168 | CL30: =Poblacion!BX25 -> 201 | CM30: =Poblacion!DM25 -> 2040 | CN30: =Poblacion!DN25 -> 2039 | CO30: =Poblacion!DO25 -> 540 | CP30: =Poblacion!DP25 -> 614 | CQ30: =Poblacion!DQ25 -> 5097 | CR30: =Poblacion!DR25 -> 5575 | CS30: =Poblacion!DS25 -> 1057 | CT30: =Poblacion!DT25 -> 1151
AS31: DESCRIPCION | AT31: M | AU31: F | AW31: DESCRIPCION | AX31: M | AY31: F | BA31: 01 | BB31: 19 | BC31: P.S. HUMAYA | BD31: =Poblacion!F26 -> 3625 | BE31: =+SUM(Poblacion!K26,Poblacion!M26,Poblacion!O26,Poblacion!Q26,Poblacion!S26) -> 125 | BF31: =+SUM(Poblacion!L26,Poblacion!N26,Poblacion!P26,Poblacion!R26,Poblacion!T26) -> 121 | BG31: =SUM(Poblacion!U26,Poblacion!W26,Poblacion!Y26,Poblacion!AA26,Poblacion!AC26) -> 158 | BH31: =SUM(Poblacion!V26,Poblacion!X26,Poblacion!Z26,Poblacion!AB26,Poblacion!AD26) -> 156 | BI31: =+SUM(Poblacion!AE26,Poblacion!AG26,Poblacion!AI26,Poblacion!AK26,Poblacion!AM26) -> 154 | BJ31: =+SUM(Poblacion!AF26,Poblacion!AH26,Poblacion!AJ26,Poblacion!AL26,Poblacion!AN26) -> 163 | BK31: =+SUM(Poblacion!AO26,Poblacion!AQ26,Poblacion!AS26,Poblacion!AU26,Poblacion!AW26) -> 133 | BL31: =+SUM(Poblacion!AP26,Poblacion!AR26,Poblacion!AT26,Poblacion!AV26,Poblacion!AX26) -> 150 | BM31: =Poblacion!AY26 -> 130 | BN31: =Poblacion!AZ26 -> 141 | BO31: =Poblacion!BA26 -> 161 | BP31: =Poblacion!BB26 -> 171 | BQ31: =Poblacion!BC26 -> 151 | BR31: =Poblacion!BD26 -> 155 | BS31: =Poblacion!BE26 -> 128 | BT31: =Poblacion!BF26 -> 143 | BU31: =Poblacion!BG26 -> 124 | BV31: =Poblacion!BH26 -> 129 | BW31: =Poblacion!BI26 -> 104 | BX31: =Poblacion!BJ26 -> 121 | BY31: =Poblacion!BK26 -> 90 | BZ31: =Poblacion!BL26 -> 108 | CA31: =Poblacion!BM26 -> 79 | CB31: =Poblacion!BN26 -> 90 | CC31: =Poblacion!BO26 -> 67 | CD31: =Poblacion!BP26 -> 69 | CE31: =Poblacion!BQ26 -> 48 | CF31: =Poblacion!BR26 -> 53 | CG31: =Poblacion!BS26 -> 37 | CH31: =Poblacion!BT26 -> 40 | CI31: =Poblacion!BU26 -> 26 | CJ31: =Poblacion!BV26 -> 27 | CK31: =Poblacion!BW26 -> 33 | CL31: =Poblacion!BX26 -> 40 | CM31: =Poblacion!DM26 -> 408 | CN31: =Poblacion!DN26 -> 409 | CO31: =Poblacion!DO26 -> 109 | CP31: =Poblacion!DP26 -> 123 | CQ31: =Poblacion!DQ26 -> 1020 | CR31: =Poblacion!DR26 -> 1116 | CS31: =Poblacion!DS26 -> 211 | CT31: =Poblacion!DT26 -> 229
AS32: DE 0 A 13 AÑOS | AT32: =AX32 -> 206 | AU32: =-AY32 -> -212 | AW32: DE 0 A 13 AÑOS | AX32: =VLOOKUP($T$48,$BB$13:$CT$99,38,FALSE) -> 206 | AY32: =VLOOKUP($T$48,$BB$13:$CT$99,39,FALSE) -> 212 | BA32: 01 | BB32: 20 | BC32: P.S. VILCAHUAURA | BD32: =Poblacion!F27 -> 3214 | BE32: =+SUM(Poblacion!K27,Poblacion!M27,Poblacion!O27,Poblacion!Q27,Poblacion!S27) -> 111 | BF32: =+SUM(Poblacion!L27,Poblacion!N27,Poblacion!P27,Poblacion!R27,Poblacion!T27) -> 107 | BG32: =SUM(Poblacion!U27,Poblacion!W27,Poblacion!Y27,Poblacion!AA27,Poblacion!AC27) -> 140 | BH32: =SUM(Poblacion!V27,Poblacion!X27,Poblacion!Z27,Poblacion!AB27,Poblacion!AD27) -> 137 | BI32: =+SUM(Poblacion!AE27,Poblacion!AG27,Poblacion!AI27,Poblacion!AK27,Poblacion!AM27) -> 136 | BJ32: =+SUM(Poblacion!AF27,Poblacion!AH27,Poblacion!AJ27,Poblacion!AL27,Poblacion!AN27) -> 144 | BK32: =+SUM(Poblacion!AO27,Poblacion!AQ27,Poblacion!AS27,Poblacion!AU27,Poblacion!AW27) -> 118 | BL32: =+SUM(Poblacion!AP27,Poblacion!AR27,Poblacion!AT27,Poblacion!AV27,Poblacion!AX27) -> 133 | BM32: =Poblacion!AY27 -> 116 | BN32: =Poblacion!AZ27 -> 125 | BO32: =Poblacion!BA27 -> 143 | BP32: =Poblacion!BB27 -> 152 | BQ32: =Poblacion!BC27 -> 134 | BR32: =Poblacion!BD27 -> 137 | BS32: =Poblacion!BE27 -> 114 | BT32: =Poblacion!BF27 -> 127 | BU32: =Poblacion!BG27 -> 110 | BV32: =Poblacion!BH27 -> 114 | BW32: =Poblacion!BI27 -> 92 | BX32: =Poblacion!BJ27 -> 107 | BY32: =Poblacion!BK27 -> 80 | BZ32: =Poblacion!BL27 -> 96 | CA32: =Poblacion!BM27 -> 70 | CB32: =Poblacion!BN27 -> 80 | CC32: =Poblacion!BO27 -> 59 | CD32: =Poblacion!BP27 -> 62 | CE32: =Poblacion!BQ27 -> 43 | CF32: =Poblacion!BR27 -> 47 | CG32: =Poblacion!BS27 -> 33 | CH32: =Poblacion!BT27 -> 35 | CI32: =Poblacion!BU27 -> 23 | CJ32: =Poblacion!BV27 -> 24 | CK32: =Poblacion!BW27 -> 30 | CL32: =Poblacion!BX27 -> 35 | CM32: =Poblacion!DM27 -> 361 | CN32: =Poblacion!DN27 -> 361 | CO32: =Poblacion!DO27 -> 96 | CP32: =Poblacion!DP27 -> 109 | CQ32: =Poblacion!DQ27 -> 907 | CR32: =Poblacion!DR27 -> 989 | CS32: =Poblacion!DS27 -> 188 | CT32: =Poblacion!DT27 -> 203
AS33: DE 14 A 17 AÑOS | AT33: =AX33 -> 46 | AU33: =-AY33 -> -53 | AW33: DE 14 A 17 AÑOS | AX33: =VLOOKUP($T$48,$BB$13:$CT$99,40,FALSE) -> 46 | AY33: =VLOOKUP($T$48,$BB$13:$CT$99,41,FALSE) -> 53 | BA33: 01 | BB33: 21 | BC33: P.S. PEÑICO | BD33: =Poblacion!F28 -> 403 | BE33: =+SUM(Poblacion!K28,Poblacion!M28,Poblacion!O28,Poblacion!Q28,Poblacion!S28) -> 14 | BF33: =+SUM(Poblacion!L28,Poblacion!N28,Poblacion!P28,Poblacion!R28,Poblacion!T28) -> 13 | BG33: =SUM(Poblacion!U28,Poblacion!W28,Poblacion!Y28,Poblacion!AA28,Poblacion!AC28) -> 18 | BH33: =SUM(Poblacion!V28,Poblacion!X28,Poblacion!Z28,Poblacion!AB28,Poblacion!AD28) -> 17 | BI33: =+SUM(Poblacion!AE28,Poblacion!AG28,Poblacion!AI28,Poblacion!AK28,Poblacion!AM28) -> 18 | BJ33: =+SUM(Poblacion!AF28,Poblacion!AH28,Poblacion!AJ28,Poblacion!AL28,Poblacion!AN28) -> 19 | BK33: =+SUM(Poblacion!AO28,Poblacion!AQ28,Poblacion!AS28,Poblacion!AU28,Poblacion!AW28) -> 15 | BL33: =+SUM(Poblacion!AP28,Poblacion!AR28,Poblacion!AT28,Poblacion!AV28,Poblacion!AX28) -> 16 | BM33: =Poblacion!AY28 -> 14 | BN33: =Poblacion!AZ28 -> 16 | BO33: =Poblacion!BA28 -> 18 | BP33: =Poblacion!BB28 -> 19 | BQ33: =Poblacion!BC28 -> 17 | BR33: =Poblacion!BD28 -> 17 | BS33: =Poblacion!BE28 -> 14 | BT33: =Poblacion!BF28 -> 16 | BU33: =Poblacion!BG28 -> 14 | BV33: =Poblacion!BH28 -> 14 | BW33: =Poblacion!BI28 -> 12 | BX33: =Poblacion!BJ28 -> 13 | BY33: =Poblacion!BK28 -> 10 | BZ33: =Poblacion!BL28 -> 12 | CA33: =Poblacion!BM28 -> 9 | CB33: =Poblacion!BN28 -> 10 | CC33: =Poblacion!BO28 -> 7 | CD33: =Poblacion!BP28 -> 8 | CE33: =Poblacion!BQ28 -> 5 | CF33: =Poblacion!BR28 -> 6 | CG33: =Poblacion!BS28 -> 4 | CH33: =Poblacion!BT28 -> 4 | CI33: =Poblacion!BU28 -> 3 | CJ33: =Poblacion!BV28 -> 3 | CK33: =Poblacion!BW28 -> 4 | CL33: =Poblacion!BX28 -> 4 | CM33: =Poblacion!DM28 -> 47 | CN33: =Poblacion!DN28 -> 46 | CO33: =Poblacion!DO28 -> 12 | CP33: =Poblacion!DP28 -> 13 | CQ33: =Poblacion!DQ28 -> 114 | CR33: =Poblacion!DR28 -> 123 | CS33: =Poblacion!DS28 -> 23 | CT33: =Poblacion!DT28 -> 25
AS34: DE 18 A 59 AÑOS | AT34: 401 | AU34: -430 | AW34: DE 18 A 59 AÑOS | AX34: =VLOOKUP($T$48,$BB$13:$CT$99,42,FALSE) -> 401 | AY34: =VLOOKUP($T$48,$BB$13:$CT$99,43,FALSE) -> 430 | BA34: 01 | BB34: 22 | BC34: P.S. EL SOCORRO | BD34: =Poblacion!F29 -> 14892 | BE34: =+SUM(Poblacion!K29,Poblacion!M29,Poblacion!O29,Poblacion!Q29,Poblacion!S29) -> 515 | BF34: =+SUM(Poblacion!L29,Poblacion!N29,Poblacion!P29,Poblacion!R29,Poblacion!T29) -> 494 | BG34: =SUM(Poblacion!U29,Poblacion!W29,Poblacion!Y29,Poblacion!AA29,Poblacion!AC29) -> 650 | BH34: =SUM(Poblacion!V29,Poblacion!X29,Poblacion!Z29,Poblacion!AB29,Poblacion!AD29) -> 636 | BI34: =+SUM(Poblacion!AE29,Poblacion!AG29,Poblacion!AI29,Poblacion!AK29,Poblacion!AM29) -> 631 | BJ34: =+SUM(Poblacion!AF29,Poblacion!AH29,Poblacion!AJ29,Poblacion!AL29,Poblacion!AN29) -> 671 | BK34: =+SUM(Poblacion!AO29,Poblacion!AQ29,Poblacion!AS29,Poblacion!AU29,Poblacion!AW29) -> 545 | BL34: =+SUM(Poblacion!AP29,Poblacion!AR29,Poblacion!AT29,Poblacion!AV29,Poblacion!AX29) -> 617 | BM34: =Poblacion!AY29 -> 535 | BN34: =Poblacion!AZ29 -> 579 | BO34: =Poblacion!BA29 -> 663 | BP34: =Poblacion!BB29 -> 704 | BQ34: =Poblacion!BC29 -> 620 | BR34: =Poblacion!BD29 -> 635 | BS34: =Poblacion!BE29 -> 528 | BT34: =Poblacion!BF29 -> 587 | BU34: =Poblacion!BG29 -> 510 | BV34: =Poblacion!BH29 -> 529 | BW34: =Poblacion!BI29 -> 426 | BX34: =Poblacion!BJ29 -> 496 | BY34: =Poblacion!BK29 -> 369 | BZ34: =Poblacion!BL29 -> 445 | CA34: =Poblacion!BM29 -> 323 | CB34: =Poblacion!BN29 -> 370 | CC34: =Poblacion!BO29 -> 274 | CD34: =Poblacion!BP29 -> 286 | CE34: =Poblacion!BQ29 -> 199 | CF34: =Poblacion!BR29 -> 218 | CG34: =Poblacion!BS29 -> 151 | CH34: =Poblacion!BT29 -> 164 | CI34: =Poblacion!BU29 -> 107 | CJ34: =Poblacion!BV29 -> 112 | CK34: =Poblacion!BW29 -> 138 | CL34: =Poblacion!BX29 -> 165 | CM34: =Poblacion!DM29 -> 1678 | CN34: =Poblacion!DN29 -> 1675 | CO34: =Poblacion!DO29 -> 445 | CP34: =Poblacion!DP29 -> 505 | CQ34: =Poblacion!DQ29 -> 4192 | CR34: =Poblacion!DR29 -> 4583 | CS34: =Poblacion!DS29 -> 869 | CT34: =Poblacion!DT29 -> 945
AS35: DE 60 A MAS AÑOS | AT35: 143 | AU35: =-AY35 -> -154 | AW35: DE 60 A MAS AÑOS | AX35: =VLOOKUP($T$48,$BB$13:$CT$99,44,FALSE) -> 143 | AY35: =VLOOKUP($T$48,$BB$13:$CT$99,45,FALSE) -> 154 | BB35: 23 | BC35: DISTRITO LEONCIO PRADO | BD35: =Poblacion!F30 -> 2234 | BE35: =+SUM(Poblacion!K30,Poblacion!M30,Poblacion!O30,Poblacion!Q30,Poblacion!S30) -> 99 | BF35: =+SUM(Poblacion!L30,Poblacion!N30,Poblacion!P30,Poblacion!R30,Poblacion!T30) -> 78 | BG35: =SUM(Poblacion!U30,Poblacion!W30,Poblacion!Y30,Poblacion!AA30,Poblacion!AC30) -> 64 | BH35: =SUM(Poblacion!V30,Poblacion!X30,Poblacion!Z30,Poblacion!AB30,Poblacion!AD30) -> 77 | BI35: =+SUM(Poblacion!AE30,Poblacion!AG30,Poblacion!AI30,Poblacion!AK30,Poblacion!AM30) -> 73 | BJ35: =+SUM(Poblacion!AF30,Poblacion!AH30,Poblacion!AJ30,Poblacion!AL30,Poblacion!AN30) -> 94 | BK35: =+SUM(Poblacion!AO30,Poblacion!AQ30,Poblacion!AS30,Poblacion!AU30,Poblacion!AW30) -> 94 | BL35: =+SUM(Poblacion!AP30,Poblacion!AR30,Poblacion!AT30,Poblacion!AV30,Poblacion!AX30) -> 93 | BM35: =Poblacion!AY30 -> 99 | BN35: =Poblacion!AZ30 -> 108 | BO35: =Poblacion!BA30 -> 65 | BP35: =Poblacion!BB30 -> 87 | BQ35: =Poblacion!BC30 -> 91 | BR35: =Poblacion!BD30 -> 81 | BS35: =Poblacion!BE30 -> 77 | BT35: =Poblacion!BF30 -> 81 | BU35: =Poblacion!BG30 -> 71 | BV35: =Poblacion!BH30 -> 66 | BW35: =Poblacion!BI30 -> 71 | BX35: =Poblacion!BJ30 -> 70 | BY35: =Poblacion!BK30 -> 54 | BZ35: =Poblacion!BL30 -> 61 | CA35: =Poblacion!BM30 -> 50 | CB35: =Poblacion!BN30 -> 43 | CC35: =Poblacion!BO30 -> 46 | CD35: =Poblacion!BP30 -> 51 | CE35: =Poblacion!BQ30 -> 51 | CF35: =Poblacion!BR30 -> 55 | CG35: =Poblacion!BS30 -> 27 | CH35: =Poblacion!BT30 -> 26 | CI35: =Poblacion!BU30 -> 20 | CJ35: =Poblacion!BV30 -> 28 | CK35: =Poblacion!BW30 -> 34 | CL35: =Poblacion!BX30 -> 49 | CM35: =Poblacion!DM30 -> 223 | CN35: =Poblacion!DN30 -> 229 | CO35: =Poblacion!DO30 -> 67 | CP35: =Poblacion!DP30 -> 76 | CQ35: =Poblacion!DQ30 -> 618 | CR35: =Poblacion!DR30 -> 634 | CS35: =Poblacion!DS30 -> 178 | CT35: =Poblacion!DT30 -> 209
BA36: 03 | BB36: 24 | BC36: P.S. AUQUIMARCA | BD36: =Poblacion!F31 -> 118 | BE36: =+SUM(Poblacion!K31,Poblacion!M31,Poblacion!O31,Poblacion!Q31,Poblacion!S31) -> 5 | BF36: =+SUM(Poblacion!L31,Poblacion!N31,Poblacion!P31,Poblacion!R31,Poblacion!T31) -> 5 | BG36: =SUM(Poblacion!U31,Poblacion!W31,Poblacion!Y31,Poblacion!AA31,Poblacion!AC31) -> 5 | BH36: =SUM(Poblacion!V31,Poblacion!X31,Poblacion!Z31,Poblacion!AB31,Poblacion!AD31) -> 4 | BI36: =+SUM(Poblacion!AE31,Poblacion!AG31,Poblacion!AI31,Poblacion!AK31,Poblacion!AM31) -> 5 | BJ36: =+SUM(Poblacion!AF31,Poblacion!AH31,Poblacion!AJ31,Poblacion!AL31,Poblacion!AN31) -> 5 | BK36: =+SUM(Poblacion!AO31,Poblacion!AQ31,Poblacion!AS31,Poblacion!AU31,Poblacion!AW31) -> 5 | BL36: =+SUM(Poblacion!AP31,Poblacion!AR31,Poblacion!AT31,Poblacion!AV31,Poblacion!AX31) -> 5 | BM36: =Poblacion!AY31 -> 5 | BN36: =Poblacion!AZ31 -> 5 | BO36: =Poblacion!BA31 -> 3 | BP36: =Poblacion!BB31 -> 4 | BQ36: =Poblacion!BC31 -> 5 | BR36: =Poblacion!BD31 -> 4 | BS36: =Poblacion!BE31 -> 4 | BT36: =Poblacion!BF31 -> 4 | BU36: =Poblacion!BG31 -> 4 | BV36: =Poblacion!BH31 -> 3 | BW36: =Poblacion!BI31 -> 4 | BX36: =Poblacion!BJ31 -> 4 | BY36: =Poblacion!BK31 -> 3 | BZ36: =Poblacion!BL31 -> 3 | CA36: =Poblacion!BM31 -> 3 | CB36: =Poblacion!BN31 -> 2 | CC36: =Poblacion!BO31 -> 2 | CD36: =Poblacion!BP31 -> 3 | CE36: =Poblacion!BQ31 -> 3 | CF36: =Poblacion!BR31 -> 3 | CG36: =Poblacion!BS31 -> 1 | CH36: =Poblacion!BT31 -> 1 | CI36: =Poblacion!BU31 -> 1 | CJ36: =Poblacion!BV31 -> 1 | CK36: =Poblacion!BW31 -> 2 | CL36: =Poblacion!BX31 -> 2 | CM36: =Poblacion!DM31 -> 14 | CN36: =Poblacion!DN31 -> 13 | CO36: =Poblacion!DO31 -> 4 | CP36: =Poblacion!DP31 -> 4 | CQ36: =Poblacion!DQ31 -> 33 | CR36: =Poblacion!DR31 -> 31 | CS36: =Poblacion!DS31 -> 9 | CT36: =Poblacion!DT31 -> 10
BA37: 03 | BB37: 25 | BC37: P.S. PARAN | BD37: =Poblacion!F32 -> 778 | BE37: =+SUM(Poblacion!K32,Poblacion!M32,Poblacion!O32,Poblacion!Q32,Poblacion!S32) -> 35 | BF37: =+SUM(Poblacion!L32,Poblacion!N32,Poblacion!P32,Poblacion!R32,Poblacion!T32) -> 26 | BG37: =SUM(Poblacion!U32,Poblacion!W32,Poblacion!Y32,Poblacion!AA32,Poblacion!AC32) -> 20 | BH37: =SUM(Poblacion!V32,Poblacion!X32,Poblacion!Z32,Poblacion!AB32,Poblacion!AD32) -> 27 | BI37: =+SUM(Poblacion!AE32,Poblacion!AG32,Poblacion!AI32,Poblacion!AK32,Poblacion!AM32) -> 24 | BJ37: =+SUM(Poblacion!AF32,Poblacion!AH32,Poblacion!AJ32,Poblacion!AL32,Poblacion!AN32) -> 33 | BK37: =+SUM(Poblacion!AO32,Poblacion!AQ32,Poblacion!AS32,Poblacion!AU32,Poblacion!AW32) -> 34 | BL37: =+SUM(Poblacion!AP32,Poblacion!AR32,Poblacion!AT32,Poblacion!AV32,Poblacion!AX32) -> 33 | BM37: =Poblacion!AY32 -> 35 | BN37: =Poblacion!AZ32 -> 38 | BO37: =Poblacion!BA32 -> 23 | BP37: =Poblacion!BB32 -> 30 | BQ37: =Poblacion!BC32 -> 32 | BR37: =Poblacion!BD32 -> 28 | BS37: =Poblacion!BE32 -> 27 | BT37: =Poblacion!BF32 -> 28 | BU37: =Poblacion!BG32 -> 25 | BV37: =Poblacion!BH32 -> 23 | BW37: =Poblacion!BI32 -> 25 | BX37: =Poblacion!BJ32 -> 25 | BY37: =Poblacion!BK32 -> 19 | BZ37: =Poblacion!BL32 -> 21 | CA37: =Poblacion!BM32 -> 18 | CB37: =Poblacion!BN32 -> 15 | CC37: =Poblacion!BO32 -> 16 | CD37: =Poblacion!BP32 -> 18 | CE37: =Poblacion!BQ32 -> 18 | CF37: =Poblacion!BR32 -> 19 | CG37: =Poblacion!BS32 -> 9 | CH37: =Poblacion!BT32 -> 9 | CI37: =Poblacion!BU32 -> 7 | CJ37: =Poblacion!BV32 -> 10 | CK37: =Poblacion!BW32 -> 11 | CL37: =Poblacion!BX32 -> 17 | CM37: =Poblacion!DM32 -> 75 | CN37: =Poblacion!DN32 -> 79 | CO37: =Poblacion!DO32 -> 24 | CP37: =Poblacion!DP32 -> 27 | CQ37: =Poblacion!DQ32 -> 218 | CR37: =Poblacion!DR32 -> 221 | CS37: =Poblacion!DS32 -> 61 | CT37: =Poblacion!DT32 -> 73
BA38: 03 | BB38: 26 | BC38: P.S. SANTA CRUZ | BD38: =Poblacion!F33 -> 447 | BE38: =+SUM(Poblacion!K33,Poblacion!M33,Poblacion!O33,Poblacion!Q33,Poblacion!S33) -> 21 | BF38: =+SUM(Poblacion!L33,Poblacion!N33,Poblacion!P33,Poblacion!R33,Poblacion!T33) -> 16 | BG38: =SUM(Poblacion!U33,Poblacion!W33,Poblacion!Y33,Poblacion!AA33,Poblacion!AC33) -> 14 | BH38: =SUM(Poblacion!V33,Poblacion!X33,Poblacion!Z33,Poblacion!AB33,Poblacion!AD33) -> 15 | BI38: =+SUM(Poblacion!AE33,Poblacion!AG33,Poblacion!AI33,Poblacion!AK33,Poblacion!AM33) -> 15 | BJ38: =+SUM(Poblacion!AF33,Poblacion!AH33,Poblacion!AJ33,Poblacion!AL33,Poblacion!AN33) -> 20 | BK38: =+SUM(Poblacion!AO33,Poblacion!AQ33,Poblacion!AS33,Poblacion!AU33,Poblacion!AW33) -> 18 | BL38: =+SUM(Poblacion!AP33,Poblacion!AR33,Poblacion!AT33,Poblacion!AV33,Poblacion!AX33) -> 18 | BM38: =Poblacion!AY33 -> 20 | BN38: =Poblacion!AZ33 -> 22 | BO38: =Poblacion!BA33 -> 13 | BP38: =Poblacion!BB33 -> 17 | BQ38: =Poblacion!BC33 -> 18 | BR38: =Poblacion!BD33 -> 16 | BS38: =Poblacion!BE33 -> 15 | BT38: =Poblacion!BF33 -> 16 | BU38: =Poblacion!BG33 -> 14 | BV38: =Poblacion!BH33 -> 13 | BW38: =Poblacion!BI33 -> 14 | BX38: =Poblacion!BJ33 -> 14 | BY38: =Poblacion!BK33 -> 11 | BZ38: =Poblacion!BL33 -> 12 | CA38: =Poblacion!BM33 -> 10 | CB38: =Poblacion!BN33 -> 9 | CC38: =Poblacion!BO33 -> 9 | CD38: =Poblacion!BP33 -> 10 | CE38: =Poblacion!BQ33 -> 10 | CF38: =Poblacion!BR33 -> 11 | CG38: =Poblacion!BS33 -> 5 | CH38: =Poblacion!BT33 -> 5 | CI38: =Poblacion!BU33 -> 4 | CJ38: =Poblacion!BV33 -> 6 | CK38: =Poblacion!BW33 -> 7 | CL38: =Poblacion!BX33 -> 9 | CM38: =Poblacion!DM33 -> 47 | CN38: =Poblacion!DN33 -> 47 | CO38: =Poblacion!DO33 -> 13 | CP38: =Poblacion!DP33 -> 15 | CQ38: =Poblacion!DQ33 -> 123 | CR38: =Poblacion!DR33 -> 126 | CS38: =Poblacion!DS33 -> 35 | CT38: =Poblacion!DT33 -> 41
BA39: 03 | BB39: 27 | BC39: P.S. HUANANGUI | BD39: =Poblacion!F34 -> 891 | BE39: =+SUM(Poblacion!K34,Poblacion!M34,Poblacion!O34,Poblacion!Q34,Poblacion!S34) -> 38 | BF39: =+SUM(Poblacion!L34,Poblacion!N34,Poblacion!P34,Poblacion!R34,Poblacion!T34) -> 31 | BG39: =SUM(Poblacion!U34,Poblacion!W34,Poblacion!Y34,Poblacion!AA34,Poblacion!AC34) -> 25 | BH39: =SUM(Poblacion!V34,Poblacion!X34,Poblacion!Z34,Poblacion!AB34,Poblacion!AD34) -> 31 | BI39: =+SUM(Poblacion!AE34,Poblacion!AG34,Poblacion!AI34,Poblacion!AK34,Poblacion!AM34) -> 29 | BJ39: =+SUM(Poblacion!AF34,Poblacion!AH34,Poblacion!AJ34,Poblacion!AL34,Poblacion!AN34) -> 36 | BK39: =+SUM(Poblacion!AO34,Poblacion!AQ34,Poblacion!AS34,Poblacion!AU34,Poblacion!AW34) -> 37 | BL39: =+SUM(Poblacion!AP34,Poblacion!AR34,Poblacion!AT34,Poblacion!AV34,Poblacion!AX34) -> 37 | BM39: =Poblacion!AY34 -> 39 | BN39: =Poblacion!AZ34 -> 43 | BO39: =Poblacion!BA34 -> 26 | BP39: =Poblacion!BB34 -> 36 | BQ39: =Poblacion!BC34 -> 36 | BR39: =Poblacion!BD34 -> 33 | BS39: =Poblacion!BE34 -> 31 | BT39: =Poblacion!BF34 -> 33 | BU39: =Poblacion!BG34 -> 28 | BV39: =Poblacion!BH34 -> 27 | BW39: =Poblacion!BI34 -> 28 | BX39: =Poblacion!BJ34 -> 27 | BY39: =Poblacion!BK34 -> 21 | BZ39: =Poblacion!BL34 -> 25 | CA39: =Poblacion!BM34 -> 19 | CB39: =Poblacion!BN34 -> 17 | CC39: =Poblacion!BO34 -> 19 | CD39: =Poblacion!BP34 -> 20 | CE39: =Poblacion!BQ34 -> 20 | CF39: =Poblacion!BR34 -> 22 | CG39: =Poblacion!BS34 -> 12 | CH39: =Poblacion!BT34 -> 11 | CI39: =Poblacion!BU34 -> 8 | CJ39: =Poblacion!BV34 -> 11 | CK39: =Poblacion!BW34 -> 14 | CL39: =Poblacion!BX34 -> 21 | CM39: =Poblacion!DM34 -> 87 | CN39: =Poblacion!DN34 -> 90 | CO39: =Poblacion!DO34 -> 26 | CP39: =Poblacion!DP34 -> 30 | CQ39: =Poblacion!DQ34 -> 244 | CR39: =Poblacion!DR34 -> 256 | CS39: =Poblacion!DS34 -> 73 | CT39: =Poblacion!DT34 -> 85
BB40: 28 | BC40: DISTRITO PACCHO | BD40: =Poblacion!F35 -> 1516 | BE40: =+SUM(Poblacion!K35,Poblacion!M35,Poblacion!O35,Poblacion!Q35,Poblacion!S35) -> 30 | BF40: =+SUM(Poblacion!L35,Poblacion!N35,Poblacion!P35,Poblacion!R35,Poblacion!T35) -> 28 | BG40: =SUM(Poblacion!U35,Poblacion!W35,Poblacion!Y35,Poblacion!AA35,Poblacion!AC35) -> 43 | BH40: =SUM(Poblacion!V35,Poblacion!X35,Poblacion!Z35,Poblacion!AB35,Poblacion!AD35) -> 46 | BI40: =+SUM(Poblacion!AE35,Poblacion!AG35,Poblacion!AI35,Poblacion!AK35,Poblacion!AM35) -> 49 | BJ40: =+SUM(Poblacion!AF35,Poblacion!AH35,Poblacion!AJ35,Poblacion!AL35,Poblacion!AN35) -> 48 | BK40: =+SUM(Poblacion!AO35,Poblacion!AQ35,Poblacion!AS35,Poblacion!AU35,Poblacion!AW35) -> 52 | BL40: =+SUM(Poblacion!AP35,Poblacion!AR35,Poblacion!AT35,Poblacion!AV35,Poblacion!AX35) -> 47 | BM40: =Poblacion!AY35 -> 39 | BN40: =Poblacion!AZ35 -> 52 | BO40: =Poblacion!BA35 -> 40 | BP40: =Poblacion!BB35 -> 45 | BQ40: =Poblacion!BC35 -> 38 | BR40: =Poblacion!BD35 -> 40 | BS40: =Poblacion!BE35 -> 46 | BT40: =Poblacion!BF35 -> 34 | BU40: =Poblacion!BG35 -> 37 | BV40: =Poblacion!BH35 -> 40 | BW40: =Poblacion!BI35 -> 49 | BX40: =Poblacion!BJ35 -> 49 | BY40: =Poblacion!BK35 -> 49 | BZ40: =Poblacion!BL35 -> 64 | CA40: =Poblacion!BM35 -> 49 | CB40: =Poblacion!BN35 -> 47 | CC40: =Poblacion!BO35 -> 41 | CD40: =Poblacion!BP35 -> 41 | CE40: =Poblacion!BQ35 -> 40 | CF40: =Poblacion!BR35 -> 40 | CG40: =Poblacion!BS35 -> 30 | CH40: =Poblacion!BT35 -> 39 | CI40: =Poblacion!BU35 -> 40 | CJ40: =Poblacion!BV35 -> 45 | CK40: =Poblacion!BW35 -> 63 | CL40: =Poblacion!BX35 -> 76 | CM40: =Poblacion!DM35 -> 110 | CN40: =Poblacion!DN35 -> 110 | CO40: =Poblacion!DO35 -> 45 | CP40: =Poblacion!DP35 -> 38 | CQ40: =Poblacion!DQ35 -> 366 | CR40: =Poblacion!DR35 -> 392 | CS40: =Poblacion!DS35 -> 214 | CT40: =Poblacion!DT35 -> 241
BA41: 05 | BB41: 29 | BC41: P.S. PACCHO | BD41: =Poblacion!F36 -> 597 | BE41: =+SUM(Poblacion!K36,Poblacion!M36,Poblacion!O36,Poblacion!Q36,Poblacion!S36) -> 11 | BF41: =+SUM(Poblacion!L36,Poblacion!N36,Poblacion!P36,Poblacion!R36,Poblacion!T36) -> 10 | BG41: =SUM(Poblacion!U36,Poblacion!W36,Poblacion!Y36,Poblacion!AA36,Poblacion!AC36) -> 19 | BH41: =SUM(Poblacion!V36,Poblacion!X36,Poblacion!Z36,Poblacion!AB36,Poblacion!AD36) -> 18 | BI41: =+SUM(Poblacion!AE36,Poblacion!AG36,Poblacion!AI36,Poblacion!AK36,Poblacion!AM36) -> 18 | BJ41: =+SUM(Poblacion!AF36,Poblacion!AH36,Poblacion!AJ36,Poblacion!AL36,Poblacion!AN36) -> 18 | BK41: =+SUM(Poblacion!AO36,Poblacion!AQ36,Poblacion!AS36,Poblacion!AU36,Poblacion!AW36) -> 20 | BL41: =+SUM(Poblacion!AP36,Poblacion!AR36,Poblacion!AT36,Poblacion!AV36,Poblacion!AX36) -> 18 | BM41: =Poblacion!AY36 -> 15 | BN41: =Poblacion!AZ36 -> 20 | BO41: =Poblacion!BA36 -> 16 | BP41: =Poblacion!BB36 -> 17 | BQ41: =Poblacion!BC36 -> 15 | BR41: =Poblacion!BD36 -> 16 | BS41: =Poblacion!BE36 -> 18 | BT41: =Poblacion!BF36 -> 14 | BU41: =Poblacion!BG36 -> 14 | BV41: =Poblacion!BH36 -> 16 | BW41: =Poblacion!BI36 -> 20 | BX41: =Poblacion!BJ36 -> 20 | BY41: =Poblacion!BK36 -> 20 | BZ41: =Poblacion!BL36 -> 25 | CA41: =Poblacion!BM36 -> 20 | CB41: =Poblacion!BN36 -> 19 | CC41: =Poblacion!BO36 -> 17 | CD41: =Poblacion!BP36 -> 17 | CE41: =Poblacion!BQ36 -> 16 | CF41: =Poblacion!BR36 -> 16 | CG41: =Poblacion!BS36 -> 11 | CH41: =Poblacion!BT36 -> 15 | CI41: =Poblacion!BU36 -> 16 | CJ41: =Poblacion!BV36 -> 17 | CK41: =Poblacion!BW36 -> 24 | CL41: =Poblacion!BX36 -> 31 | CM41: =Poblacion!DM36 -> 44 | CN41: =Poblacion!DN36 -> 42 | CO41: =Poblacion!DO36 -> 17 | CP41: =Poblacion!DP36 -> 14 | CQ41: =Poblacion!DQ36 -> 145 | CR41: =Poblacion!DR36 -> 155 | CS41: =Poblacion!DS36 -> 84 | CT41: =Poblacion!DT36 -> 96
BA42: 05 | BB42: 30 | BC42: P.S. LACSANGA | BD42: =Poblacion!F37 -> 457 | BE42: =+SUM(Poblacion!K37,Poblacion!M37,Poblacion!O37,Poblacion!Q37,Poblacion!S37) -> 9 | BF42: =+SUM(Poblacion!L37,Poblacion!N37,Poblacion!P37,Poblacion!R37,Poblacion!T37) -> 8 | BG42: =SUM(Poblacion!U37,Poblacion!W37,Poblacion!Y37,Poblacion!AA37,Poblacion!AC37) -> 12 | BH42: =SUM(Poblacion!V37,Poblacion!X37,Poblacion!Z37,Poblacion!AB37,Poblacion!AD37) -> 14 | BI42: =+SUM(Poblacion!AE37,Poblacion!AG37,Poblacion!AI37,Poblacion!AK37,Poblacion!AM37) -> 15 | BJ42: =+SUM(Poblacion!AF37,Poblacion!AH37,Poblacion!AJ37,Poblacion!AL37,Poblacion!AN37) -> 14 | BK42: =+SUM(Poblacion!AO37,Poblacion!AQ37,Poblacion!AS37,Poblacion!AU37,Poblacion!AW37) -> 16 | BL42: =+SUM(Poblacion!AP37,Poblacion!AR37,Poblacion!AT37,Poblacion!AV37,Poblacion!AX37) -> 15 | BM42: =Poblacion!AY37 -> 12 | BN42: =Poblacion!AZ37 -> 16 | BO42: =Poblacion!BA37 -> 12 | BP42: =Poblacion!BB37 -> 14 | BQ42: =Poblacion!BC37 -> 11 | BR42: =Poblacion!BD37 -> 12 | BS42: =Poblacion!BE37 -> 14 | BT42: =Poblacion!BF37 -> 10 | BU42: =Poblacion!BG37 -> 11 | BV42: =Poblacion!BH37 -> 12 | BW42: =Poblacion!BI37 -> 15 | BX42: =Poblacion!BJ37 -> 15 | BY42: =Poblacion!BK37 -> 15 | BZ42: =Poblacion!BL37 -> 19 | CA42: =Poblacion!BM37 -> 15 | CB42: =Poblacion!BN37 -> 14 | CC42: =Poblacion!BO37 -> 12 | CD42: =Poblacion!BP37 -> 12 | CE42: =Poblacion!BQ37 -> 12 | CF42: =Poblacion!BR37 -> 12 | CG42: =Poblacion!BS37 -> 9 | CH42: =Poblacion!BT37 -> 12 | CI42: =Poblacion!BU37 -> 12 | CJ42: =Poblacion!BV37 -> 14 | CK42: =Poblacion!BW37 -> 19 | CL42: =Poblacion!BX37 -> 23 | CM42: =Poblacion!DM37 -> 32 | CN42: =Poblacion!DN37 -> 32 | CO42: =Poblacion!DO37 -> 14 | CP42: =Poblacion!DP37 -> 12 | CQ42: =Poblacion!DQ37 -> 111 | CR42: =Poblacion!DR37 -> 119 | CS42: =Poblacion!DS37 -> 64 | CT42: =Poblacion!DT37 -> 73
BA43: 05 | BB43: 31 | BC43: P.S. MUZGA | BD43: =Poblacion!F38 -> 231 | BE43: =+SUM(Poblacion!K38,Poblacion!M38,Poblacion!O38,Poblacion!Q38,Poblacion!S38) -> 5 | BF43: =+SUM(Poblacion!L38,Poblacion!N38,Poblacion!P38,Poblacion!R38,Poblacion!T38) -> 5 | BG43: =SUM(Poblacion!U38,Poblacion!W38,Poblacion!Y38,Poblacion!AA38,Poblacion!AC38) -> 6 | BH43: =SUM(Poblacion!V38,Poblacion!X38,Poblacion!Z38,Poblacion!AB38,Poblacion!AD38) -> 7 | BI43: =+SUM(Poblacion!AE38,Poblacion!AG38,Poblacion!AI38,Poblacion!AK38,Poblacion!AM38) -> 8 | BJ43: =+SUM(Poblacion!AF38,Poblacion!AH38,Poblacion!AJ38,Poblacion!AL38,Poblacion!AN38) -> 8 | BK43: =+SUM(Poblacion!AO38,Poblacion!AQ38,Poblacion!AS38,Poblacion!AU38,Poblacion!AW38) -> 8 | BL43: =+SUM(Poblacion!AP38,Poblacion!AR38,Poblacion!AT38,Poblacion!AV38,Poblacion!AX38) -> 7 | BM43: =Poblacion!AY38 -> 6 | BN43: =Poblacion!AZ38 -> 8 | BO43: =Poblacion!BA38 -> 6 | BP43: =Poblacion!BB38 -> 7 | BQ43: =Poblacion!BC38 -> 6 | BR43: =Poblacion!BD38 -> 6 | BS43: =Poblacion!BE38 -> 7 | BT43: =Poblacion!BF38 -> 5 | BU43: =Poblacion!BG38 -> 6 | BV43: =Poblacion!BH38 -> 6 | BW43: =Poblacion!BI38 -> 7 | BX43: =Poblacion!BJ38 -> 7 | BY43: =Poblacion!BK38 -> 7 | BZ43: =Poblacion!BL38 -> 10 | CA43: =Poblacion!BM38 -> 7 | CB43: =Poblacion!BN38 -> 7 | CC43: =Poblacion!BO38 -> 6 | CD43: =Poblacion!BP38 -> 6 | CE43: =Poblacion!BQ38 -> 6 | CF43: =Poblacion!BR38 -> 6 | CG43: =Poblacion!BS38 -> 5 | CH43: =Poblacion!BT38 -> 6 | CI43: =Poblacion!BU38 -> 6 | CJ43: =Poblacion!BV38 -> 7 | CK43: =Poblacion!BW38 -> 10 | CL43: =Poblacion!BX38 -> 11 | CM43: =Poblacion!DM38 -> 17 | CN43: =Poblacion!DN38 -> 18 | CO43: =Poblacion!DO38 -> 7 | CP43: =Poblacion!DP38 -> 6 | CQ43: =Poblacion!DQ38 -> 55 | CR43: =Poblacion!DR38 -> 59 | CS43: =Poblacion!DS38 -> 33 | CT43: =Poblacion!DT38 -> 36
BA44: 05 | BB44: 32 | BC44: P.S. AYARANGA | BD44: =Poblacion!F39 -> 231 | BE44: =+SUM(Poblacion!K39,Poblacion!M39,Poblacion!O39,Poblacion!Q39,Poblacion!S39) -> 5 | BF44: =+SUM(Poblacion!L39,Poblacion!N39,Poblacion!P39,Poblacion!R39,Poblacion!T39) -> 5 | BG44: =SUM(Poblacion!U39,Poblacion!W39,Poblacion!Y39,Poblacion!AA39,Poblacion!AC39) -> 6 | BH44: =SUM(Poblacion!V39,Poblacion!X39,Poblacion!Z39,Poblacion!AB39,Poblacion!AD39) -> 7 | BI44: =+SUM(Poblacion!AE39,Poblacion!AG39,Poblacion!AI39,Poblacion!AK39,Poblacion!AM39) -> 8 | BJ44: =+SUM(Poblacion!AF39,Poblacion!AH39,Poblacion!AJ39,Poblacion!AL39,Poblacion!AN39) -> 8 | BK44: =+SUM(Poblacion!AO39,Poblacion!AQ39,Poblacion!AS39,Poblacion!AU39,Poblacion!AW39) -> 8 | BL44: =+SUM(Poblacion!AP39,Poblacion!AR39,Poblacion!AT39,Poblacion!AV39,Poblacion!AX39) -> 7 | BM44: =Poblacion!AY39 -> 6 | BN44: =Poblacion!AZ39 -> 8 | BO44: =Poblacion!BA39 -> 6 | BP44: =Poblacion!BB39 -> 7 | BQ44: =Poblacion!BC39 -> 6 | BR44: =Poblacion!BD39 -> 6 | BS44: =Poblacion!BE39 -> 7 | BT44: =Poblacion!BF39 -> 5 | BU44: =Poblacion!BG39 -> 6 | BV44: =Poblacion!BH39 -> 6 | BW44: =Poblacion!BI39 -> 7 | BX44: =Poblacion!BJ39 -> 7 | BY44: =Poblacion!BK39 -> 7 | BZ44: =Poblacion!BL39 -> 10 | CA44: =Poblacion!BM39 -> 7 | CB44: =Poblacion!BN39 -> 7 | CC44: =Poblacion!BO39 -> 6 | CD44: =Poblacion!BP39 -> 6 | CE44: =Poblacion!BQ39 -> 6 | CF44: =Poblacion!BR39 -> 6 | CG44: =Poblacion!BS39 -> 5 | CH44: =Poblacion!BT39 -> 6 | CI44: =Poblacion!BU39 -> 6 | CJ44: =Poblacion!BV39 -> 7 | CK44: =Poblacion!BW39 -> 10 | CL44: =Poblacion!BX39 -> 11 | CM44: =Poblacion!DM39 -> 17 | CN44: =Poblacion!DN39 -> 18 | CO44: =Poblacion!DO39 -> 7 | CP44: =Poblacion!DP39 -> 6 | CQ44: =Poblacion!DQ39 -> 55 | CR44: =Poblacion!DR39 -> 59 | CS44: =Poblacion!DS39 -> 33 | CT44: =Poblacion!DT39 -> 36
D45: PIRAMIDE POBLACIONAL ESPECIAL - ESTRATEGIA DE PREVENCIÓN Y CONTROL DE CANCER | BB45: 33 | BC45: DISTRITO SANTA LEONOR | BD45: =Poblacion!F40 -> 996 | BE45: =+SUM(Poblacion!K40,Poblacion!M40,Poblacion!O40,Poblacion!Q40,Poblacion!S40) -> 36 | BF45: =+SUM(Poblacion!L40,Poblacion!N40,Poblacion!P40,Poblacion!R40,Poblacion!T40) -> 28 | BG45: =SUM(Poblacion!U40,Poblacion!W40,Poblacion!Y40,Poblacion!AA40,Poblacion!AC40) -> 28 | BH45: =SUM(Poblacion!V40,Poblacion!X40,Poblacion!Z40,Poblacion!AB40,Poblacion!AD40) -> 27 | BI45: =+SUM(Poblacion!AE40,Poblacion!AG40,Poblacion!AI40,Poblacion!AK40,Poblacion!AM40) -> 32 | BJ45: =+SUM(Poblacion!AF40,Poblacion!AH40,Poblacion!AJ40,Poblacion!AL40,Poblacion!AN40) -> 40 | BK45: =+SUM(Poblacion!AO40,Poblacion!AQ40,Poblacion!AS40,Poblacion!AU40,Poblacion!AW40) -> 38 | BL45: =+SUM(Poblacion!AP40,Poblacion!AR40,Poblacion!AT40,Poblacion!AV40,Poblacion!AX40) -> 33 | BM45: =Poblacion!AY40 -> 29 | BN45: =Poblacion!AZ40 -> 26 | BO45: =Poblacion!BA40 -> 32 | BP45: =Poblacion!BB40 -> 36 | BQ45: =Poblacion!BC40 -> 29 | BR45: =Poblacion!BD40 -> 40 | BS45: =Poblacion!BE40 -> 33 | BT45: =Poblacion!BF40 -> 25 | BU45: =Poblacion!BG40 -> 26 | BV45: =Poblacion!BH40 -> 32 | BW45: =Poblacion!BI40 -> 24 | BX45: =Poblacion!BJ40 -> 29 | BY45: =Poblacion!BK40 -> 29 | BZ45: =Poblacion!BL40 -> 28 | CA45: =Poblacion!BM40 -> 29 | CB45: =Poblacion!BN40 -> 26 | CC45: =Poblacion!BO40 -> 31 | CD45: =Poblacion!BP40 -> 32 | CE45: =Poblacion!BQ40 -> 28 | CF45: =Poblacion!BR40 -> 25 | CG45: =Poblacion!BS40 -> 22 | CH45: =Poblacion!BT40 -> 15 | CI45: =Poblacion!BU40 -> 18 | CJ45: =Poblacion!BV40 -> 28 | CK45: =Poblacion!BW40 -> 26 | CL45: =Poblacion!BX40 -> 36 | CM45: =Poblacion!DM40 -> 90 | CN45: =Poblacion!DN40 -> 88 | CO45: =Poblacion!DO40 -> 30 | CP45: =Poblacion!DP40 -> 26 | CQ45: =Poblacion!DQ40 -> 245 | CR45: =Poblacion!DR40 -> 256 | CS45: =Poblacion!DS40 -> 125 | CT45: =Poblacion!DT40 -> 136
T46: =UPPER("Piramide Poblacional 2024 - " &$B$15) -> PIRAMIDE POBLACIONAL 2024 - DISTRITO CAUJUL | BA46: 05 | BB46: 34 | BC46: P.S. CHIUCHIN | BD46: =Poblacion!F41 -> 651 | BE46: =+SUM(Poblacion!K41,Poblacion!M41,Poblacion!O41,Poblacion!Q41,Poblacion!S41) -> 25 | BF46: =+SUM(Poblacion!L41,Poblacion!N41,Poblacion!P41,Poblacion!R41,Poblacion!T41) -> 18 | BG46: =SUM(Poblacion!U41,Poblacion!W41,Poblacion!Y41,Poblacion!AA41,Poblacion!AC41) -> 19 | BH46: =SUM(Poblacion!V41,Poblacion!X41,Poblacion!Z41,Poblacion!AB41,Poblacion!AD41) -> 18 | BI46: =+SUM(Poblacion!AE41,Poblacion!AG41,Poblacion!AI41,Poblacion!AK41,Poblacion!AM41) -> 21 | BJ46: =+SUM(Poblacion!AF41,Poblacion!AH41,Poblacion!AJ41,Poblacion!AL41,Poblacion!AN41) -> 28 | BK46: =+SUM(Poblacion!AO41,Poblacion!AQ41,Poblacion!AS41,Poblacion!AU41,Poblacion!AW41) -> 24 | BL46: =+SUM(Poblacion!AP41,Poblacion!AR41,Poblacion!AT41,Poblacion!AV41,Poblacion!AX41) -> 21 | BM46: =Poblacion!AY41 -> 19 | BN46: =Poblacion!AZ41 -> 17 | BO46: =Poblacion!BA41 -> 21 | BP46: =Poblacion!BB41 -> 24 | BQ46: =Poblacion!BC41 -> 19 | BR46: =Poblacion!BD41 -> 26 | BS46: =Poblacion!BE41 -> 21 | BT46: =Poblacion!BF41 -> 16 | BU46: =Poblacion!BG41 -> 17 | BV46: =Poblacion!BH41 -> 21 | BW46: =Poblacion!BI41 -> 15 | BX46: =Poblacion!BJ41 -> 19 | BY46: =Poblacion!BK41 -> 19 | BZ46: =Poblacion!BL41 -> 18 | CA46: =Poblacion!BM41 -> 19 | CB46: =Poblacion!BN41 -> 17 | CC46: =Poblacion!BO41 -> 20 | CD46: =Poblacion!BP41 -> 21 | CE46: =Poblacion!BQ41 -> 18 | CF46: =Poblacion!BR41 -> 16 | CG46: =Poblacion!BS41 -> 15 | CH46: =Poblacion!BT41 -> 10 | CI46: =Poblacion!BU41 -> 11 | CJ46: =Poblacion!BV41 -> 18 | CK46: =Poblacion!BW41 -> 17 | CL46: =Poblacion!BX41 -> 23 | CM46: =Poblacion!DM41 -> 61 | CN46: =Poblacion!DN41 -> 59 | CO46: =Poblacion!DO41 -> 19 | CP46: =Poblacion!DP41 -> 17 | CQ46: =Poblacion!DQ41 -> 159 | CR46: =Poblacion!DR41 -> 167 | CS46: =Poblacion!DS41 -> 81 | CT46: =Poblacion!DT41 -> 88
BA47: 05 | BB47: 35 | BC47: P.S. PARQUIN | BD47: =Poblacion!F42 -> 199 | BE47: =+SUM(Poblacion!K42,Poblacion!M42,Poblacion!O42,Poblacion!Q42,Poblacion!S42) -> 7 | BF47: =+SUM(Poblacion!L42,Poblacion!N42,Poblacion!P42,Poblacion!R42,Poblacion!T42) -> 6 | BG47: =SUM(Poblacion!U42,Poblacion!W42,Poblacion!Y42,Poblacion!AA42,Poblacion!AC42) -> 6 | BH47: =SUM(Poblacion!V42,Poblacion!X42,Poblacion!Z42,Poblacion!AB42,Poblacion!AD42) -> 6 | BI47: =+SUM(Poblacion!AE42,Poblacion!AG42,Poblacion!AI42,Poblacion!AK42,Poblacion!AM42) -> 6 | BJ47: =+SUM(Poblacion!AF42,Poblacion!AH42,Poblacion!AJ42,Poblacion!AL42,Poblacion!AN42) -> 6 | BK47: =+SUM(Poblacion!AO42,Poblacion!AQ42,Poblacion!AS42,Poblacion!AU42,Poblacion!AW42) -> 8 | BL47: =+SUM(Poblacion!AP42,Poblacion!AR42,Poblacion!AT42,Poblacion!AV42,Poblacion!AX42) -> 7 | BM47: =Poblacion!AY42 -> 6 | BN47: =Poblacion!AZ42 -> 5 | BO47: =Poblacion!BA42 -> 6 | BP47: =Poblacion!BB42 -> 7 | BQ47: =Poblacion!BC42 -> 6 | BR47: =Poblacion!BD42 -> 8 | BS47: =Poblacion!BE42 -> 7 | BT47: =Poblacion!BF42 -> 5 | BU47: =Poblacion!BG42 -> 5 | BV47: =Poblacion!BH42 -> 6 | BW47: =Poblacion!BI42 -> 5 | BX47: =Poblacion!BJ42 -> 6 | BY47: =Poblacion!BK42 -> 6 | BZ47: =Poblacion!BL42 -> 6 | CA47: =Poblacion!BM42 -> 6 | CB47: =Poblacion!BN42 -> 5 | CC47: =Poblacion!BO42 -> 6 | CD47: =Poblacion!BP42 -> 6 | CE47: =Poblacion!BQ42 -> 6 | CF47: =Poblacion!BR42 -> 5 | CG47: =Poblacion!BS42 -> 4 | CH47: =Poblacion!BT42 -> 3 | CI47: =Poblacion!BU42 -> 4 | CJ47: =Poblacion!BV42 -> 6 | CK47: =Poblacion!BW42 -> 5 | CL47: =Poblacion!BX42 -> 7 | CM47: =Poblacion!DM42 -> 18 | CN47: =Poblacion!DN42 -> 17 | CO47: =Poblacion!DO42 -> 6 | CP47: =Poblacion!DP42 -> 5 | CQ47: =Poblacion!DQ42 -> 50 | CR47: =Poblacion!DR42 -> 51 | CS47: =Poblacion!DS42 -> 25 | CT47: =Poblacion!DT42 -> 27
T48: 78 | BA48: 05 | BB48: 36 | BC48: P.S. JUCUL | BD48: =Poblacion!F43 -> 146 | BE48: =+SUM(Poblacion!K43,Poblacion!M43,Poblacion!O43,Poblacion!Q43,Poblacion!S43) -> 4 | BF48: =+SUM(Poblacion!L43,Poblacion!N43,Poblacion!P43,Poblacion!R43,Poblacion!T43) -> 4 | BG48: =SUM(Poblacion!U43,Poblacion!W43,Poblacion!Y43,Poblacion!AA43,Poblacion!AC43) -> 3 | BH48: =SUM(Poblacion!V43,Poblacion!X43,Poblacion!Z43,Poblacion!AB43,Poblacion!AD43) -> 3 | BI48: =+SUM(Poblacion!AE43,Poblacion!AG43,Poblacion!AI43,Poblacion!AK43,Poblacion!AM43) -> 5 | BJ48: =+SUM(Poblacion!AF43,Poblacion!AH43,Poblacion!AJ43,Poblacion!AL43,Poblacion!AN43) -> 6 | BK48: =+SUM(Poblacion!AO43,Poblacion!AQ43,Poblacion!AS43,Poblacion!AU43,Poblacion!AW43) -> 6 | BL48: =+SUM(Poblacion!AP43,Poblacion!AR43,Poblacion!AT43,Poblacion!AV43,Poblacion!AX43) -> 5 | BM48: =Poblacion!AY43 -> 4 | BN48: =Poblacion!AZ43 -> 4 | BO48: =Poblacion!BA43 -> 5 | BP48: =Poblacion!BB43 -> 5 | BQ48: =Poblacion!BC43 -> 4 | BR48: =Poblacion!BD43 -> 6 | BS48: =Poblacion!BE43 -> 5 | BT48: =Poblacion!BF43 -> 4 | BU48: =Poblacion!BG43 -> 4 | BV48: =Poblacion!BH43 -> 5 | BW48: =Poblacion!BI43 -> 4 | BX48: =Poblacion!BJ43 -> 4 | BY48: =Poblacion!BK43 -> 4 | BZ48: =Poblacion!BL43 -> 4 | CA48: =Poblacion!BM43 -> 4 | CB48: =Poblacion!BN43 -> 4 | CC48: =Poblacion!BO43 -> 5 | CD48: =Poblacion!BP43 -> 5 | CE48: =Poblacion!BQ43 -> 4 | CF48: =Poblacion!BR43 -> 4 | CG48: =Poblacion!BS43 -> 3 | CH48: =Poblacion!BT43 -> 2 | CI48: =Poblacion!BU43 -> 3 | CJ48: =Poblacion!BV43 -> 4 | CK48: =Poblacion!BW43 -> 4 | CL48: =Poblacion!BX43 -> 6 | CM48: =Poblacion!DM43 -> 11 | CN48: =Poblacion!DN43 -> 12 | CO48: =Poblacion!DO43 -> 5 | CP48: =Poblacion!DP43 -> 4 | CQ48: =Poblacion!DQ43 -> 36 | CR48: =Poblacion!DR43 -> 38 | CS48: =Poblacion!DS43 -> 19 | CT48: =Poblacion!DT43 -> 21
BB49: 37 | BC49: DISTRITO SANTA MARIA | BD49: =Poblacion!F44 -> 43646 | BE49: =+SUM(Poblacion!K44,Poblacion!M44,Poblacion!O44,Poblacion!Q44,Poblacion!S44) -> 1688 | BF49: =+SUM(Poblacion!L44,Poblacion!N44,Poblacion!P44,Poblacion!R44,Poblacion!T44) -> 1678 | BG49: =SUM(Poblacion!U44,Poblacion!W44,Poblacion!Y44,Poblacion!AA44,Poblacion!AC44) -> 1850 | BH49: =SUM(Poblacion!V44,Poblacion!X44,Poblacion!Z44,Poblacion!AB44,Poblacion!AD44) -> 1981 | BI49: =+SUM(Poblacion!AE44,Poblacion!AG44,Poblacion!AI44,Poblacion!AK44,Poblacion!AM44) -> 1822 | BJ49: =+SUM(Poblacion!AF44,Poblacion!AH44,Poblacion!AJ44,Poblacion!AL44,Poblacion!AN44) -> 1807 | BK49: =+SUM(Poblacion!AO44,Poblacion!AQ44,Poblacion!AS44,Poblacion!AU44,Poblacion!AW44) -> 1612 | BL49: =+SUM(Poblacion!AP44,Poblacion!AR44,Poblacion!AT44,Poblacion!AV44,Poblacion!AX44) -> 1696 | BM49: =Poblacion!AY44 -> 1725 | BN49: =Poblacion!AZ44 -> 1709 | BO49: =Poblacion!BA44 -> 1847 | BP49: =Poblacion!BB44 -> 2033 | BQ49: =Poblacion!BC44 -> 1594 | BR49: =Poblacion!BD44 -> 1828 | BS49: =Poblacion!BE44 -> 1518 | BT49: =Poblacion!BF44 -> 1708 | BU49: =Poblacion!BG44 -> 1378 | BV49: =Poblacion!BH44 -> 1481 | BW49: =Poblacion!BI44 -> 1235 | BX49: =Poblacion!BJ44 -> 1391 | BY49: =Poblacion!BK44 -> 1103 | BZ49: =Poblacion!BL44 -> 1177 | CA49: =Poblacion!BM44 -> 904 | CB49: =Poblacion!BN44 -> 986 | CC49: =Poblacion!BO44 -> 747 | CD49: =Poblacion!BP44 -> 862 | CE49: =Poblacion!BQ44 -> 622 | CF49: =Poblacion!BR44 -> 690 | CG49: =Poblacion!BS44 -> 525 | CH49: =Poblacion!BT44 -> 599 | CI49: =Poblacion!BU44 -> 385 | CJ49: =Poblacion!BV44 -> 438 | CK49: =Poblacion!BW44 -> 502 | CL49: =Poblacion!BX44 -> 525 | CM49: =Poblacion!DM44 -> 5000 | CN49: =Poblacion!DN44 -> 5130 | CO49: =Poblacion!DO44 -> 1351 | CP49: =Poblacion!DP44 -> 1353 | CQ49: =Poblacion!DQ44 -> 11925 | CR49: =Poblacion!DR44 -> 12992 | CS49: =Poblacion!DS44 -> 2781 | CT49: =Poblacion!DT44 -> 3114
BB50: 38 | BC50: ---
BA51: 02 | BB51: 39 | BC51: C.S. SANTA MARIA | BD51: =Poblacion!F45 -> 11783 | BE51: =+SUM(Poblacion!K45,Poblacion!M45,Poblacion!O45,Poblacion!Q45,Poblacion!S45) -> 455 | BF51: =+SUM(Poblacion!L45,Poblacion!N45,Poblacion!P45,Poblacion!R45,Poblacion!T45) -> 452 | BG51: =SUM(Poblacion!U45,Poblacion!W45,Poblacion!Y45,Poblacion!AA45,Poblacion!AC45) -> 499 | BH51: =SUM(Poblacion!V45,Poblacion!X45,Poblacion!Z45,Poblacion!AB45,Poblacion!AD45) -> 535 | BI51: =+SUM(Poblacion!AE45,Poblacion!AG45,Poblacion!AI45,Poblacion!AK45,Poblacion!AM45) -> 492 | BJ51: =+SUM(Poblacion!AF45,Poblacion!AH45,Poblacion!AJ45,Poblacion!AL45,Poblacion!AN45) -> 489 | BK51: =+SUM(Poblacion!AO45,Poblacion!AQ45,Poblacion!AS45,Poblacion!AU45,Poblacion!AW45) -> 435 | BL51: =+SUM(Poblacion!AP45,Poblacion!AR45,Poblacion!AT45,Poblacion!AV45,Poblacion!AX45) -> 457 | BM51: =Poblacion!AY45 -> 466 | BN51: =Poblacion!AZ45 -> 461 | BO51: =Poblacion!BA45 -> 499 | BP51: =Poblacion!BB45 -> 549 | BQ51: =Poblacion!BC45 -> 430 | BR51: =Poblacion!BD45 -> 494 | BS51: =Poblacion!BE45 -> 410 | BT51: =Poblacion!BF45 -> 461 | BU51: =Poblacion!BG45 -> 372 | BV51: =Poblacion!BH45 -> 400 | BW51: =Poblacion!BI45 -> 333 | BX51: =Poblacion!BJ45 -> 376 | BY51: =Poblacion!BK45 -> 298 | BZ51: =Poblacion!BL45 -> 318 | CA51: =Poblacion!BM45 -> 244 | CB51: =Poblacion!BN45 -> 266 | CC51: =Poblacion!BO45 -> 202 | CD51: =Poblacion!BP45 -> 233 | CE51: =Poblacion!BQ45 -> 168 | CF51: =Poblacion!BR45 -> 186 | CG51: =Poblacion!BS45 -> 142 | CH51: =Poblacion!BT45 -> 162 | CI51: =Poblacion!BU45 -> 104 | CJ51: =Poblacion!BV45 -> 118 | CK51: =Poblacion!BW45 -> 136 | CL51: =Poblacion!BX45 -> 141 | CM51: =Poblacion!DM45 -> 1349 | CN51: =Poblacion!DN45 -> 1385 | CO51: =Poblacion!DO45 -> 364 | CP51: =Poblacion!DP45 -> 365 | CQ51: =Poblacion!DQ45 -> 3220 | CR51: =Poblacion!DR45 -> 3508 | CS51: =Poblacion!DS45 -> 752 | CT51: =Poblacion!DT45 -> 840
BA52: 02 | BB52: 40 | BC52: P.S. CHONTA | BD52: =Poblacion!F46 -> 6550 | BE52: =+SUM(Poblacion!K46,Poblacion!M46,Poblacion!O46,Poblacion!Q46,Poblacion!S46) -> 253 | BF52: =+SUM(Poblacion!L46,Poblacion!N46,Poblacion!P46,Poblacion!R46,Poblacion!T46) -> 252 | BG52: =SUM(Poblacion!U46,Poblacion!W46,Poblacion!Y46,Poblacion!AA46,Poblacion!AC46) -> 278 | BH52: =SUM(Poblacion!V46,Poblacion!X46,Poblacion!Z46,Poblacion!AB46,Poblacion!AD46) -> 297 | BI52: =+SUM(Poblacion!AE46,Poblacion!AG46,Poblacion!AI46,Poblacion!AK46,Poblacion!AM46) -> 273 | BJ52: =+SUM(Poblacion!AF46,Poblacion!AH46,Poblacion!AJ46,Poblacion!AL46,Poblacion!AN46) -> 272 | BK52: =+SUM(Poblacion!AO46,Poblacion!AQ46,Poblacion!AS46,Poblacion!AU46,Poblacion!AW46) -> 242 | BL52: =+SUM(Poblacion!AP46,Poblacion!AR46,Poblacion!AT46,Poblacion!AV46,Poblacion!AX46) -> 254 | BM52: =Poblacion!AY46 -> 259 | BN52: =Poblacion!AZ46 -> 256 | BO52: =Poblacion!BA46 -> 277 | BP52: =Poblacion!BB46 -> 305 | BQ52: =Poblacion!BC46 -> 239 | BR52: =Poblacion!BD46 -> 274 | BS52: =Poblacion!BE46 -> 228 | BT52: =Poblacion!BF46 -> 256 | BU52: =Poblacion!BG46 -> 207 | BV52: =Poblacion!BH46 -> 222 | BW52: =Poblacion!BI46 -> 185 | BX52: =Poblacion!BJ46 -> 209 | BY52: =Poblacion!BK46 -> 165 | BZ52: =Poblacion!BL46 -> 177 | CA52: =Poblacion!BM46 -> 136 | CB52: =Poblacion!BN46 -> 148 | CC52: =Poblacion!BO46 -> 112 | CD52: =Poblacion!BP46 -> 129 | CE52: =Poblacion!BQ46 -> 93 | CF52: =Poblacion!BR46 -> 104 | CG52: =Poblacion!BS46 -> 79 | CH52: =Poblacion!BT46 -> 90 | CI52: =Poblacion!BU46 -> 58 | CJ52: =Poblacion!BV46 -> 66 | CK52: =Poblacion!BW46 -> 76 | CL52: =Poblacion!BX46 -> 79 | CM52: =Poblacion!DM46 -> 750 | CN52: =Poblacion!DN46 -> 771 | CO52: =Poblacion!DO46 -> 203 | CP52: =Poblacion!DP46 -> 202 | CQ52: =Poblacion!DQ46 -> 1789 | CR52: =Poblacion!DR46 -> 1949 | CS52: =Poblacion!DS46 -> 418 | CT52: =Poblacion!DT46 -> 468
BA53: 02 | BB53: 41 | BC53: P.S. 1RO DE MAYO | BD53: =Poblacion!F47 -> 13535 | BE53: =+SUM(Poblacion!K47,Poblacion!M47,Poblacion!O47,Poblacion!Q47,Poblacion!S47) -> 525 | BF53: =+SUM(Poblacion!L47,Poblacion!N47,Poblacion!P47,Poblacion!R47,Poblacion!T47) -> 522 | BG53: =SUM(Poblacion!U47,Poblacion!W47,Poblacion!Y47,Poblacion!AA47,Poblacion!AC47) -> 574 | BH53: =SUM(Poblacion!V47,Poblacion!X47,Poblacion!Z47,Poblacion!AB47,Poblacion!AD47) -> 615 | BI53: =+SUM(Poblacion!AE47,Poblacion!AG47,Poblacion!AI47,Poblacion!AK47,Poblacion!AM47) -> 565 | BJ53: =+SUM(Poblacion!AF47,Poblacion!AH47,Poblacion!AJ47,Poblacion!AL47,Poblacion!AN47) -> 559 | BK53: =+SUM(Poblacion!AO47,Poblacion!AQ47,Poblacion!AS47,Poblacion!AU47,Poblacion!AW47) -> 500 | BL53: =+SUM(Poblacion!AP47,Poblacion!AR47,Poblacion!AT47,Poblacion!AV47,Poblacion!AX47) -> 528 | BM53: =Poblacion!AY47 -> 534 | BN53: =Poblacion!AZ47 -> 530 | BO53: =Poblacion!BA47 -> 573 | BP53: =Poblacion!BB47 -> 630 | BQ53: =Poblacion!BC47 -> 495 | BR53: =Poblacion!BD47 -> 566 | BS53: =Poblacion!BE47 -> 470 | BT53: =Poblacion!BF47 -> 530 | BU53: =Poblacion!BG47 -> 427 | BV53: =Poblacion!BH47 -> 459 | BW53: =Poblacion!BI47 -> 384 | BX53: =Poblacion!BJ47 -> 431 | BY53: =Poblacion!BK47 -> 342 | BZ53: =Poblacion!BL47 -> 364 | CA53: =Poblacion!BM47 -> 280 | CB53: =Poblacion!BN47 -> 306 | CC53: =Poblacion!BO47 -> 232 | CD53: =Poblacion!BP47 -> 267 | CE53: =Poblacion!BQ47 -> 193 | CF53: =Poblacion!BR47 -> 214 | CG53: =Poblacion!BS47 -> 162 | CH53: =Poblacion!BT47 -> 185 | CI53: =Poblacion!BU47 -> 119 | CJ53: =Poblacion!BV47 -> 136 | CK53: =Poblacion!BW47 -> 155 | CL53: =Poblacion!BX47 -> 163 | CM53: =Poblacion!DM47 -> 1552 | CN53: =Poblacion!DN47 -> 1591 | CO53: =Poblacion!DO47 -> 420 | CP53: =Poblacion!DP47 -> 422 | CQ53: =Poblacion!DQ47 -> 3697 | CR53: =Poblacion!DR47 -> 4027 | CS53: =Poblacion!DS47 -> 861 | CT53: =Poblacion!DT47 -> 965
BA54: 02 | BB54: 42 | BC54: P.S. ZAPATA | BD54: =Poblacion!F48 -> 3923 | BE54: =+SUM(Poblacion!K48,Poblacion!M48,Poblacion!O48,Poblacion!Q48,Poblacion!S48) -> 152 | BF54: =+SUM(Poblacion!L48,Poblacion!N48,Poblacion!P48,Poblacion!R48,Poblacion!T48) -> 150 | BG54: =SUM(Poblacion!U48,Poblacion!W48,Poblacion!Y48,Poblacion!AA48,Poblacion!AC48) -> 165 | BH54: =SUM(Poblacion!V48,Poblacion!X48,Poblacion!Z48,Poblacion!AB48,Poblacion!AD48) -> 178 | BI54: =+SUM(Poblacion!AE48,Poblacion!AG48,Poblacion!AI48,Poblacion!AK48,Poblacion!AM48) -> 164 | BJ54: =+SUM(Poblacion!AF48,Poblacion!AH48,Poblacion!AJ48,Poblacion!AL48,Poblacion!AN48) -> 162 | BK54: =+SUM(Poblacion!AO48,Poblacion!AQ48,Poblacion!AS48,Poblacion!AU48,Poblacion!AW48) -> 145 | BL54: =+SUM(Poblacion!AP48,Poblacion!AR48,Poblacion!AT48,Poblacion!AV48,Poblacion!AX48) -> 152 | BM54: =Poblacion!AY48 -> 155 | BN54: =Poblacion!AZ48 -> 154 | BO54: =Poblacion!BA48 -> 166 | BP54: =Poblacion!BB48 -> 183 | BQ54: =Poblacion!BC48 -> 143 | BR54: =Poblacion!BD48 -> 165 | BS54: =Poblacion!BE48 -> 137 | BT54: =Poblacion!BF48 -> 154 | BU54: =Poblacion!BG48 -> 124 | BV54: =Poblacion!BH48 -> 133 | BW54: =Poblacion!BI48 -> 111 | BX54: =Poblacion!BJ48 -> 125 | BY54: =Poblacion!BK48 -> 99 | BZ54: =Poblacion!BL48 -> 106 | CA54: =Poblacion!BM48 -> 81 | CB54: =Poblacion!BN48 -> 89 | CC54: =Poblacion!BO48 -> 67 | CD54: =Poblacion!BP48 -> 78 | CE54: =Poblacion!BQ48 -> 56 | CF54: =Poblacion!BR48 -> 62 | CG54: =Poblacion!BS48 -> 47 | CH54: =Poblacion!BT48 -> 54 | CI54: =Poblacion!BU48 -> 35 | CJ54: =Poblacion!BV48 -> 39 | CK54: =Poblacion!BW48 -> 45 | CL54: =Poblacion!BX48 -> 47 | CM54: =Poblacion!DM48 -> 449 | CN54: =Poblacion!DN48 -> 460 | CO54: =Poblacion!DO48 -> 121 | CP54: =Poblacion!DP48 -> 121 | CQ54: =Poblacion!DQ48 -> 1072 | CR54: =Poblacion!DR48 -> 1170 | CS54: =Poblacion!DS48 -> 250 | CT54: =Poblacion!DT48 -> 280
BA55: 02 | BB55: 43 | BC55: P.S. SAN BARTOLOME | BD55: =Poblacion!F49 -> 7855 | BE55: =+SUM(Poblacion!K49,Poblacion!M49,Poblacion!O49,Poblacion!Q49,Poblacion!S49) -> 303 | BF55: =+SUM(Poblacion!L49,Poblacion!N49,Poblacion!P49,Poblacion!R49,Poblacion!T49) -> 302 | BG55: =SUM(Poblacion!U49,Poblacion!W49,Poblacion!Y49,Poblacion!AA49,Poblacion!AC49) -> 334 | BH55: =SUM(Poblacion!V49,Poblacion!X49,Poblacion!Z49,Poblacion!AB49,Poblacion!AD49) -> 356 | BI55: =+SUM(Poblacion!AE49,Poblacion!AG49,Poblacion!AI49,Poblacion!AK49,Poblacion!AM49) -> 328 | BJ55: =+SUM(Poblacion!AF49,Poblacion!AH49,Poblacion!AJ49,Poblacion!AL49,Poblacion!AN49) -> 325 | BK55: =+SUM(Poblacion!AO49,Poblacion!AQ49,Poblacion!AS49,Poblacion!AU49,Poblacion!AW49) -> 290 | BL55: =+SUM(Poblacion!AP49,Poblacion!AR49,Poblacion!AT49,Poblacion!AV49,Poblacion!AX49) -> 305 | BM55: =Poblacion!AY49 -> 311 | BN55: =Poblacion!AZ49 -> 308 | BO55: =Poblacion!BA49 -> 332 | BP55: =Poblacion!BB49 -> 366 | BQ55: =Poblacion!BC49 -> 287 | BR55: =Poblacion!BD49 -> 329 | BS55: =Poblacion!BE49 -> 273 | BT55: =Poblacion!BF49 -> 307 | BU55: =Poblacion!BG49 -> 248 | BV55: =Poblacion!BH49 -> 267 | BW55: =Poblacion!BI49 -> 222 | BX55: =Poblacion!BJ49 -> 250 | BY55: =Poblacion!BK49 -> 199 | BZ55: =Poblacion!BL49 -> 212 | CA55: =Poblacion!BM49 -> 163 | CB55: =Poblacion!BN49 -> 177 | CC55: =Poblacion!BO49 -> 134 | CD55: =Poblacion!BP49 -> 155 | CE55: =Poblacion!BQ49 -> 112 | CF55: =Poblacion!BR49 -> 124 | CG55: =Poblacion!BS49 -> 95 | CH55: =Poblacion!BT49 -> 108 | CI55: =Poblacion!BU49 -> 69 | CJ55: =Poblacion!BV49 -> 79 | CK55: =Poblacion!BW49 -> 90 | CL55: =Poblacion!BX49 -> 95 | CM55: =Poblacion!DM49 -> 900 | CN55: =Poblacion!DN49 -> 923 | CO55: =Poblacion!DO49 -> 243 | CP55: =Poblacion!DP49 -> 243 | CQ55: =Poblacion!DQ49 -> 2147 | CR55: =Poblacion!DR49 -> 2338 | CS55: =Poblacion!DS49 -> 500 | CT55: =Poblacion!DT49 -> 561
BB56: 44 | BC56: DISTRITO SAYAN | BD56: =Poblacion!F50 -> 26719 | BE56: =+SUM(Poblacion!K50,Poblacion!M50,Poblacion!O50,Poblacion!Q50,Poblacion!S50) -> 981 | BF56: =+SUM(Poblacion!L50,Poblacion!N50,Poblacion!P50,Poblacion!R50,Poblacion!T50) -> 960 | BG56: =SUM(Poblacion!U50,Poblacion!W50,Poblacion!Y50,Poblacion!AA50,Poblacion!AC50) -> 1151 | BH56: =SUM(Poblacion!V50,Poblacion!X50,Poblacion!Z50,Poblacion!AB50,Poblacion!AD50) -> 1242 | BI56: =+SUM(Poblacion!AE50,Poblacion!AG50,Poblacion!AI50,Poblacion!AK50,Poblacion!AM50) -> 1159 | BJ56: =+SUM(Poblacion!AF50,Poblacion!AH50,Poblacion!AJ50,Poblacion!AL50,Poblacion!AN50) -> 1155 | BK56: =+SUM(Poblacion!AO50,Poblacion!AQ50,Poblacion!AS50,Poblacion!AU50,Poblacion!AW50) -> 1054 | BL56: =+SUM(Poblacion!AP50,Poblacion!AR50,Poblacion!AT50,Poblacion!AV50,Poblacion!AX50) -> 1191 | BM56: =Poblacion!AY50 -> 961 | BN56: =Poblacion!AZ50 -> 1134 | BO56: =Poblacion!BA50 -> 1123 | BP56: =Poblacion!BB50 -> 1238 | BQ56: =Poblacion!BC50 -> 969 | BR56: =Poblacion!BD50 -> 1141 | BS56: =Poblacion!BE50 -> 975 | BT56: =Poblacion!BF50 -> 1041 | BU56: =Poblacion!BG50 -> 863 | BV56: =Poblacion!BH50 -> 960 | BW56: =Poblacion!BI50 -> 808 | BX56: =Poblacion!BJ50 -> 828 | BY56: =Poblacion!BK50 -> 646 | BZ56: =Poblacion!BL50 -> 697 | CA56: =Poblacion!BM50 -> 563 | CB56: =Poblacion!BN50 -> 623 | CC56: =Poblacion!BO50 -> 490 | CD56: =Poblacion!BP50 -> 454 | CE56: =Poblacion!BQ50 -> 372 | CF56: =Poblacion!BR50 -> 395 | CG56: =Poblacion!BS50 -> 309 | CH56: =Poblacion!BT50 -> 263 | CI56: =Poblacion!BU50 -> 215 | CJ56: =Poblacion!BV50 -> 220 | CK56: =Poblacion!BW50 -> 263 | CL56: =Poblacion!BX50 -> 275 | CM56: =Poblacion!DM50 -> 3057 | CN56: =Poblacion!DN50 -> 3131 | CO56: =Poblacion!DO50 -> 867 | CP56: =Poblacion!DP50 -> 962 | CQ56: =Poblacion!DQ50 -> 7329 | CR56: =Poblacion!DR50 -> 8117 | CS56: =Poblacion!DS50 -> 1649 | CT56: =Poblacion!DT50 -> 1607
BA57: 03 | BB57: 45 | BC57: P.S. 9 DE OCTUBRE | BD57: =Poblacion!F51 -> 7213 | BE57: =+SUM(Poblacion!K51,Poblacion!M51,Poblacion!O51,Poblacion!Q51,Poblacion!S51) -> 265 | BF57: =+SUM(Poblacion!L51,Poblacion!N51,Poblacion!P51,Poblacion!R51,Poblacion!T51) -> 259 | BG57: =SUM(Poblacion!U51,Poblacion!W51,Poblacion!Y51,Poblacion!AA51,Poblacion!AC51) -> 310 | BH57: =SUM(Poblacion!V51,Poblacion!X51,Poblacion!Z51,Poblacion!AB51,Poblacion!AD51) -> 337 | BI57: =+SUM(Poblacion!AE51,Poblacion!AG51,Poblacion!AI51,Poblacion!AK51,Poblacion!AM51) -> 313 | BJ57: =+SUM(Poblacion!AF51,Poblacion!AH51,Poblacion!AJ51,Poblacion!AL51,Poblacion!AN51) -> 312 | BK57: =+SUM(Poblacion!AO51,Poblacion!AQ51,Poblacion!AS51,Poblacion!AU51,Poblacion!AW51) -> 285 | BL57: =+SUM(Poblacion!AP51,Poblacion!AR51,Poblacion!AT51,Poblacion!AV51,Poblacion!AX51) -> 321 | BM57: =Poblacion!AY51 -> 259 | BN57: =Poblacion!AZ51 -> 306 | BO57: =Poblacion!BA51 -> 303 | BP57: =Poblacion!BB51 -> 334 | BQ57: =Poblacion!BC51 -> 262 | BR57: =Poblacion!BD51 -> 308 | BS57: =Poblacion!BE51 -> 263 | BT57: =Poblacion!BF51 -> 281 | BU57: =Poblacion!BG51 -> 233 | BV57: =Poblacion!BH51 -> 259 | BW57: =Poblacion!BI51 -> 218 | BX57: =Poblacion!BJ51 -> 224 | BY57: =Poblacion!BK51 -> 174 | BZ57: =Poblacion!BL51 -> 188 | CA57: =Poblacion!BM51 -> 152 | CB57: =Poblacion!BN51 -> 168 | CC57: =Poblacion!BO51 -> 132 | CD57: =Poblacion!BP51 -> 123 | CE57: =Poblacion!BQ51 -> 100 | CF57: =Poblacion!BR51 -> 107 | CG57: =Poblacion!BS51 -> 83 | CH57: =Poblacion!BT51 -> 71 | CI57: =Poblacion!BU51 -> 58 | CJ57: =Poblacion!BV51 -> 59 | CK57: =Poblacion!BW51 -> 71 | CL57: =Poblacion!BX51 -> 75 | CM57: =Poblacion!DM51 -> 825 | CN57: =Poblacion!DN51 -> 847 | CO57: =Poblacion!DO51 -> 234 | CP57: =Poblacion!DP51 -> 259 | CQ57: =Poblacion!DQ51 -> 1978 | CR57: =Poblacion!DR51 -> 2191 | CS57: =Poblacion!DS51 -> 444 | CT57: =Poblacion!DT51 -> 435
BA58: 03 | BB58: 46 | BC58: P.S. LA MERCED | BD58: =Poblacion!F52 -> 1076 | BE58: =+SUM(Poblacion!K52,Poblacion!M52,Poblacion!O52,Poblacion!Q52,Poblacion!S52) -> 39 | BF58: =+SUM(Poblacion!L52,Poblacion!N52,Poblacion!P52,Poblacion!R52,Poblacion!T52) -> 40 | BG58: =SUM(Poblacion!U52,Poblacion!W52,Poblacion!Y52,Poblacion!AA52,Poblacion!AC52) -> 46 | BH58: =SUM(Poblacion!V52,Poblacion!X52,Poblacion!Z52,Poblacion!AB52,Poblacion!AD52) -> 50 | BI58: =+SUM(Poblacion!AE52,Poblacion!AG52,Poblacion!AI52,Poblacion!AK52,Poblacion!AM52) -> 47 | BJ58: =+SUM(Poblacion!AF52,Poblacion!AH52,Poblacion!AJ52,Poblacion!AL52,Poblacion!AN52) -> 46 | BK58: =+SUM(Poblacion!AO52,Poblacion!AQ52,Poblacion!AS52,Poblacion!AU52,Poblacion!AW52) -> 43 | BL58: =+SUM(Poblacion!AP52,Poblacion!AR52,Poblacion!AT52,Poblacion!AV52,Poblacion!AX52) -> 49 | BM58: =Poblacion!AY52 -> 38 | BN58: =Poblacion!AZ52 -> 45 | BO58: =Poblacion!BA52 -> 45 | BP58: =Poblacion!BB52 -> 50 | BQ58: =Poblacion!BC52 -> 39 | BR58: =Poblacion!BD52 -> 46 | BS58: =Poblacion!BE52 -> 39 | BT58: =Poblacion!BF52 -> 42 | BU58: =Poblacion!BG52 -> 35 | BV58: =Poblacion!BH52 -> 38 | BW58: =Poblacion!BI52 -> 32 | BX58: =Poblacion!BJ52 -> 33 | BY58: =Poblacion!BK52 -> 26 | BZ58: =Poblacion!BL52 -> 28 | CA58: =Poblacion!BM52 -> 23 | CB58: =Poblacion!BN52 -> 25 | CC58: =Poblacion!BO52 -> 20 | CD58: =Poblacion!BP52 -> 18 | CE58: =Poblacion!BQ52 -> 15 | CF58: =Poblacion!BR52 -> 16 | CG58: =Poblacion!BS52 -> 12 | CH58: =Poblacion!BT52 -> 11 | CI58: =Poblacion!BU52 -> 9 | CJ58: =Poblacion!BV52 -> 9 | CK58: =Poblacion!BW52 -> 11 | CL58: =Poblacion!BX52 -> 11 | CM58: =Poblacion!DM52 -> 123 | CN58: =Poblacion!DN52 -> 127 | CO58: =Poblacion!DO52 -> 35 | CP58: =Poblacion!DP52 -> 39 | CQ58: =Poblacion!DQ52 -> 294 | CR58: =Poblacion!DR52 -> 326 | CS58: =Poblacion!DS52 -> 67 | CT58: =Poblacion!DT52 -> 65
BA59: 03 | BB59: 47 | BC59: P.S. LA VILLA | BD59: =Poblacion!F53 -> 7747 | BE59: =+SUM(Poblacion!K53,Poblacion!M53,Poblacion!O53,Poblacion!Q53,Poblacion!S53) -> 284 | BF59: =+SUM(Poblacion!L53,Poblacion!N53,Poblacion!P53,Poblacion!R53,Poblacion!T53) -> 278 | BG59: =SUM(Poblacion!U53,Poblacion!W53,Poblacion!Y53,Poblacion!AA53,Poblacion!AC53) -> 334 | BH59: =SUM(Poblacion!V53,Poblacion!X53,Poblacion!Z53,Poblacion!AB53,Poblacion!AD53) -> 360 | BI59: =+SUM(Poblacion!AE53,Poblacion!AG53,Poblacion!AI53,Poblacion!AK53,Poblacion!AM53) -> 336 | BJ59: =+SUM(Poblacion!AF53,Poblacion!AH53,Poblacion!AJ53,Poblacion!AL53,Poblacion!AN53) -> 335 | BK59: =+SUM(Poblacion!AO53,Poblacion!AQ53,Poblacion!AS53,Poblacion!AU53,Poblacion!AW53) -> 306 | BL59: =+SUM(Poblacion!AP53,Poblacion!AR53,Poblacion!AT53,Poblacion!AV53,Poblacion!AX53) -> 345 | BM59: =Poblacion!AY53 -> 279 | BN59: =Poblacion!AZ53 -> 329 | BO59: =Poblacion!BA53 -> 326 | BP59: =Poblacion!BB53 -> 359 | BQ59: =Poblacion!BC53 -> 281 | BR59: =Poblacion!BD53 -> 331 | BS59: =Poblacion!BE53 -> 283 | BT59: =Poblacion!BF53 -> 302 | BU59: =Poblacion!BG53 -> 250 | BV59: =Poblacion!BH53 -> 278 | BW59: =Poblacion!BI53 -> 234 | BX59: =Poblacion!BJ53 -> 240 | BY59: =Poblacion!BK53 -> 187 | BZ59: =Poblacion!BL53 -> 202 | CA59: =Poblacion!BM53 -> 163 | CB59: =Poblacion!BN53 -> 181 | CC59: =Poblacion!BO53 -> 142 | CD59: =Poblacion!BP53 -> 132 | CE59: =Poblacion!BQ53 -> 108 | CF59: =Poblacion!BR53 -> 115 | CG59: =Poblacion!BS53 -> 90 | CH59: =Poblacion!BT53 -> 76 | CI59: =Poblacion!BU53 -> 62 | CJ59: =Poblacion!BV53 -> 64 | CK59: =Poblacion!BW53 -> 76 | CL59: =Poblacion!BX53 -> 79 | CM59: =Poblacion!DM53 -> 886 | CN59: =Poblacion!DN53 -> 907 | CO59: =Poblacion!DO53 -> 252 | CP59: =Poblacion!DP53 -> 279 | CQ59: =Poblacion!DQ53 -> 2125 | CR59: =Poblacion!DR53 -> 2354 | CS59: =Poblacion!DS53 -> 478 | CT59: =Poblacion!DT53 -> 466
BA60: 03 | BB60: 48 | BC60: P.S. EL AHORCADO | BD60: =Poblacion!F54 -> 801 | BE60: =+SUM(Poblacion!K54,Poblacion!M54,Poblacion!O54,Poblacion!Q54,Poblacion!S54) -> 29 | BF60: =+SUM(Poblacion!L54,Poblacion!N54,Poblacion!P54,Poblacion!R54,Poblacion!T54) -> 30 | BG60: =SUM(Poblacion!U54,Poblacion!W54,Poblacion!Y54,Poblacion!AA54,Poblacion!AC54) -> 35 | BH60: =SUM(Poblacion!V54,Poblacion!X54,Poblacion!Z54,Poblacion!AB54,Poblacion!AD54) -> 37 | BI60: =+SUM(Poblacion!AE54,Poblacion!AG54,Poblacion!AI54,Poblacion!AK54,Poblacion!AM54) -> 35 | BJ60: =+SUM(Poblacion!AF54,Poblacion!AH54,Poblacion!AJ54,Poblacion!AL54,Poblacion!AN54) -> 35 | BK60: =+SUM(Poblacion!AO54,Poblacion!AQ54,Poblacion!AS54,Poblacion!AU54,Poblacion!AW54) -> 30 | BL60: =+SUM(Poblacion!AP54,Poblacion!AR54,Poblacion!AT54,Poblacion!AV54,Poblacion!AX54) -> 35 | BM60: =Poblacion!AY54 -> 29 | BN60: =Poblacion!AZ54 -> 34 | BO60: =Poblacion!BA54 -> 34 | BP60: =Poblacion!BB54 -> 37 | BQ60: =Poblacion!BC54 -> 29 | BR60: =Poblacion!BD54 -> 34 | BS60: =Poblacion!BE54 -> 29 | BT60: =Poblacion!BF54 -> 31 | BU60: =Poblacion!BG54 -> 26 | BV60: =Poblacion!BH54 -> 29 | BW60: =Poblacion!BI54 -> 24 | BX60: =Poblacion!BJ54 -> 25 | BY60: =Poblacion!BK54 -> 19 | BZ60: =Poblacion!BL54 -> 21 | CA60: =Poblacion!BM54 -> 17 | CB60: =Poblacion!BN54 -> 19 | CC60: =Poblacion!BO54 -> 15 | CD60: =Poblacion!BP54 -> 14 | CE60: =Poblacion!BQ54 -> 11 | CF60: =Poblacion!BR54 -> 12 | CG60: =Poblacion!BS54 -> 9 | CH60: =Poblacion!BT54 -> 8 | CI60: =Poblacion!BU54 -> 6 | CJ60: =Poblacion!BV54 -> 7 | CK60: =Poblacion!BW54 -> 8 | CL60: =Poblacion!BX54 -> 8 | CM60: =Poblacion!DM54 -> 92 | CN60: =Poblacion!DN54 -> 95 | CO60: =Poblacion!DO54 -> 25 | CP60: =Poblacion!DP54 -> 28 | CQ60: =Poblacion!DQ54 -> 219 | CR60: =Poblacion!DR54 -> 244 | CS60: =Poblacion!DS54 -> 49 | CT60: =Poblacion!DT54 -> 49
BA61: 03 | BB61: 49 | BC61: C.S. SAYAN | BD61: =Poblacion!F55 -> 8280 | BE61: =+SUM(Poblacion!K55,Poblacion!M55,Poblacion!O55,Poblacion!Q55,Poblacion!S55) -> 306 | BF61: =+SUM(Poblacion!L55,Poblacion!N55,Poblacion!P55,Poblacion!R55,Poblacion!T55) -> 293 | BG61: =SUM(Poblacion!U55,Poblacion!W55,Poblacion!Y55,Poblacion!AA55,Poblacion!AC55) -> 356 | BH61: =SUM(Poblacion!V55,Poblacion!X55,Poblacion!Z55,Poblacion!AB55,Poblacion!AD55) -> 384 | BI61: =+SUM(Poblacion!AE55,Poblacion!AG55,Poblacion!AI55,Poblacion!AK55,Poblacion!AM55) -> 358 | BJ61: =+SUM(Poblacion!AF55,Poblacion!AH55,Poblacion!AJ55,Poblacion!AL55,Poblacion!AN55) -> 357 | BK61: =+SUM(Poblacion!AO55,Poblacion!AQ55,Poblacion!AS55,Poblacion!AU55,Poblacion!AW55) -> 330 | BL61: =+SUM(Poblacion!AP55,Poblacion!AR55,Poblacion!AT55,Poblacion!AV55,Poblacion!AX55) -> 371 | BM61: =Poblacion!AY55 -> 298 | BN61: =Poblacion!AZ55 -> 352 | BO61: =Poblacion!BA55 -> 347 | BP61: =Poblacion!BB55 -> 384 | BQ61: =Poblacion!BC55 -> 300 | BR61: =Poblacion!BD55 -> 354 | BS61: =Poblacion!BE55 -> 303 | BT61: =Poblacion!BF55 -> 323 | BU61: =Poblacion!BG55 -> 267 | BV61: =Poblacion!BH55 -> 298 | BW61: =Poblacion!BI55 -> 252 | BX61: =Poblacion!BJ55 -> 256 | BY61: =Poblacion!BK55 -> 202 | BZ61: =Poblacion!BL55 -> 216 | CA61: =Poblacion!BM55 -> 174 | CB61: =Poblacion!BN55 -> 192 | CC61: =Poblacion!BO55 -> 151 | CD61: =Poblacion!BP55 -> 139 | CE61: =Poblacion!BQ55 -> 116 | CF61: =Poblacion!BR55 -> 121 | CG61: =Poblacion!BS55 -> 97 | CH61: =Poblacion!BT55 -> 81 | CI61: =Poblacion!BU55 -> 68 | CJ61: =Poblacion!BV55 -> 67 | CK61: =Poblacion!BW55 -> 81 | CL61: =Poblacion!BX55 -> 86 | CM61: =Poblacion!DM55 -> 947 | CN61: =Poblacion!DN55 -> 965 | CO61: =Poblacion!DO55 -> 271 | CP61: =Poblacion!DP55 -> 301 | CQ61: =Poblacion!DQ55 -> 2275 | CR61: =Poblacion!DR55 -> 2514 | CS61: =Poblacion!DS55 -> 513 | CT61: =Poblacion!DT55 -> 494
BA62: 03 | BB62: 50 | BC62: P.S. CHAMBARA | BD62: =Poblacion!F56 -> 801 | BE62: =+SUM(Poblacion!K56,Poblacion!M56,Poblacion!O56,Poblacion!Q56,Poblacion!S56) -> 29 | BF62: =+SUM(Poblacion!L56,Poblacion!N56,Poblacion!P56,Poblacion!R56,Poblacion!T56) -> 30 | BG62: =SUM(Poblacion!U56,Poblacion!W56,Poblacion!Y56,Poblacion!AA56,Poblacion!AC56) -> 35 | BH62: =SUM(Poblacion!V56,Poblacion!X56,Poblacion!Z56,Poblacion!AB56,Poblacion!AD56) -> 37 | BI62: =+SUM(Poblacion!AE56,Poblacion!AG56,Poblacion!AI56,Poblacion!AK56,Poblacion!AM56) -> 35 | BJ62: =+SUM(Poblacion!AF56,Poblacion!AH56,Poblacion!AJ56,Poblacion!AL56,Poblacion!AN56) -> 35 | BK62: =+SUM(Poblacion!AO56,Poblacion!AQ56,Poblacion!AS56,Poblacion!AU56,Poblacion!AW56) -> 30 | BL62: =+SUM(Poblacion!AP56,Poblacion!AR56,Poblacion!AT56,Poblacion!AV56,Poblacion!AX56) -> 35 | BM62: =Poblacion!AY56 -> 29 | BN62: =Poblacion!AZ56 -> 34 | BO62: =Poblacion!BA56 -> 34 | BP62: =Poblacion!BB56 -> 37 | BQ62: =Poblacion!BC56 -> 29 | BR62: =Poblacion!BD56 -> 34 | BS62: =Poblacion!BE56 -> 29 | BT62: =Poblacion!BF56 -> 31 | BU62: =Poblacion!BG56 -> 26 | BV62: =Poblacion!BH56 -> 29 | BW62: =Poblacion!BI56 -> 24 | BX62: =Poblacion!BJ56 -> 25 | BY62: =Poblacion!BK56 -> 19 | BZ62: =Poblacion!BL56 -> 21 | CA62: =Poblacion!BM56 -> 17 | CB62: =Poblacion!BN56 -> 19 | CC62: =Poblacion!BO56 -> 15 | CD62: =Poblacion!BP56 -> 14 | CE62: =Poblacion!BQ56 -> 11 | CF62: =Poblacion!BR56 -> 12 | CG62: =Poblacion!BS56 -> 9 | CH62: =Poblacion!BT56 -> 8 | CI62: =Poblacion!BU56 -> 6 | CJ62: =Poblacion!BV56 -> 7 | CK62: =Poblacion!BW56 -> 8 | CL62: =Poblacion!BX56 -> 8 | CM62: =Poblacion!DM56 -> 92 | CN62: =Poblacion!DN56 -> 95 | CO62: =Poblacion!DO56 -> 25 | CP62: =Poblacion!DP56 -> 28 | CQ62: =Poblacion!DQ56 -> 219 | CR62: =Poblacion!DR56 -> 244 | CS62: =Poblacion!DS56 -> 49 | CT62: =Poblacion!DT56 -> 49
BA63: 03 | BB63: 51 | BC63: P.S. LA UNION | BD63: =Poblacion!F57 -> 801 | BE63: =+SUM(Poblacion!K57,Poblacion!M57,Poblacion!O57,Poblacion!Q57,Poblacion!S57) -> 29 | BF63: =+SUM(Poblacion!L57,Poblacion!N57,Poblacion!P57,Poblacion!R57,Poblacion!T57) -> 30 | BG63: =SUM(Poblacion!U57,Poblacion!W57,Poblacion!Y57,Poblacion!AA57,Poblacion!AC57) -> 35 | BH63: =SUM(Poblacion!V57,Poblacion!X57,Poblacion!Z57,Poblacion!AB57,Poblacion!AD57) -> 37 | BI63: =+SUM(Poblacion!AE57,Poblacion!AG57,Poblacion!AI57,Poblacion!AK57,Poblacion!AM57) -> 35 | BJ63: =+SUM(Poblacion!AF57,Poblacion!AH57,Poblacion!AJ57,Poblacion!AL57,Poblacion!AN57) -> 35 | BK63: =+SUM(Poblacion!AO57,Poblacion!AQ57,Poblacion!AS57,Poblacion!AU57,Poblacion!AW57) -> 30 | BL63: =+SUM(Poblacion!AP57,Poblacion!AR57,Poblacion!AT57,Poblacion!AV57,Poblacion!AX57) -> 35 | BM63: =Poblacion!AY57 -> 29 | BN63: =Poblacion!AZ57 -> 34 | BO63: =Poblacion!BA57 -> 34 | BP63: =Poblacion!BB57 -> 37 | BQ63: =Poblacion!BC57 -> 29 | BR63: =Poblacion!BD57 -> 34 | BS63: =Poblacion!BE57 -> 29 | BT63: =Poblacion!BF57 -> 31 | BU63: =Poblacion!BG57 -> 26 | BV63: =Poblacion!BH57 -> 29 | BW63: =Poblacion!BI57 -> 24 | BX63: =Poblacion!BJ57 -> 25 | BY63: =Poblacion!BK57 -> 19 | BZ63: =Poblacion!BL57 -> 21 | CA63: =Poblacion!BM57 -> 17 | CB63: =Poblacion!BN57 -> 19 | CC63: =Poblacion!BO57 -> 15 | CD63: =Poblacion!BP57 -> 14 | CE63: =Poblacion!BQ57 -> 11 | CF63: =Poblacion!BR57 -> 12 | CG63: =Poblacion!BS57 -> 9 | CH63: =Poblacion!BT57 -> 8 | CI63: =Poblacion!BU57 -> 6 | CJ63: =Poblacion!BV57 -> 7 | CK63: =Poblacion!BW57 -> 8 | CL63: =Poblacion!BX57 -> 8 | CM63: =Poblacion!DM57 -> 92 | CN63: =Poblacion!DN57 -> 95 | CO63: =Poblacion!DO57 -> 25 | CP63: =Poblacion!DP57 -> 28 | CQ63: =Poblacion!DQ57 -> 219 | CR63: =Poblacion!DR57 -> 244 | CS63: =Poblacion!DS57 -> 49 | CT63: =Poblacion!DT57 -> 49
BB64: 52 | BC64: DISTRITO VEGUETA | BD64: =Poblacion!F58 -> 30415 | BE64: =+SUM(Poblacion!K58,Poblacion!M58,Poblacion!O58,Poblacion!Q58,Poblacion!S58) -> 1392 | BF64: =+SUM(Poblacion!L58,Poblacion!N58,Poblacion!P58,Poblacion!R58,Poblacion!T58) -> 1382 | BG64: =SUM(Poblacion!U58,Poblacion!W58,Poblacion!Y58,Poblacion!AA58,Poblacion!AC58) -> 1425 | BH64: =SUM(Poblacion!V58,Poblacion!X58,Poblacion!Z58,Poblacion!AB58,Poblacion!AD58) -> 1400 | BI64: =+SUM(Poblacion!AE58,Poblacion!AG58,Poblacion!AI58,Poblacion!AK58,Poblacion!AM58) -> 1378 | BJ64: =+SUM(Poblacion!AF58,Poblacion!AH58,Poblacion!AJ58,Poblacion!AL58,Poblacion!AN58) -> 1342 | BK64: =+SUM(Poblacion!AO58,Poblacion!AQ58,Poblacion!AS58,Poblacion!AU58,Poblacion!AW58) -> 1201 | BL64: =+SUM(Poblacion!AP58,Poblacion!AR58,Poblacion!AT58,Poblacion!AV58,Poblacion!AX58) -> 1210 | BM64: =Poblacion!AY58 -> 1019 | BN64: =Poblacion!AZ58 -> 1171 | BO64: =Poblacion!BA58 -> 1306 | BP64: =Poblacion!BB58 -> 1463 | BQ64: =Poblacion!BC58 -> 1187 | BR64: =Poblacion!BD58 -> 1383 | BS64: =Poblacion!BE58 -> 1107 | BT64: =Poblacion!BF58 -> 1244 | BU64: =Poblacion!BG58 -> 936 | BV64: =Poblacion!BH58 -> 1033 | BW64: =Poblacion!BI58 -> 800 | BX64: =Poblacion!BJ58 -> 900 | BY64: =Poblacion!BK58 -> 687 | BZ64: =Poblacion!BL58 -> 753 | CA64: =Poblacion!BM58 -> 589 | CB64: =Poblacion!BN58 -> 673 | CC64: =Poblacion!BO58 -> 466 | CD64: =Poblacion!BP58 -> 533 | CE64: =Poblacion!BQ58 -> 389 | CF64: =Poblacion!BR58 -> 399 | CG64: =Poblacion!BS58 -> 301 | CH64: =Poblacion!BT58 -> 292 | CI64: =Poblacion!BU58 -> 226 | CJ64: =Poblacion!BV58 -> 227 | CK64: =Poblacion!BW58 -> 259 | CL64: =Poblacion!BX58 -> 342 | CM64: =Poblacion!DM58 -> 3927 | CN64: =Poblacion!DN58 -> 3887 | CO64: =Poblacion!DO58 -> 1019 | CP64: =Poblacion!DP58 -> 964 | CQ64: =Poblacion!DQ58 -> 8081 | CR64: =Poblacion!DR58 -> 9103 | CS64: =Poblacion!DS58 -> 1641 | CT64: =Poblacion!DT58 -> 1793
BA65: 04 | BB65: 53 | BC65: C.S. VEGUETA | BD65: =Poblacion!F59 -> 8515 | BE65: =+SUM(Poblacion!K59,Poblacion!M59,Poblacion!O59,Poblacion!Q59,Poblacion!S59) -> 389 | BF65: =+SUM(Poblacion!L59,Poblacion!N59,Poblacion!P59,Poblacion!R59,Poblacion!T59) -> 387 | BG65: =SUM(Poblacion!U59,Poblacion!W59,Poblacion!Y59,Poblacion!AA59,Poblacion!AC59) -> 400 | BH65: =SUM(Poblacion!V59,Poblacion!X59,Poblacion!Z59,Poblacion!AB59,Poblacion!AD59) -> 392 | BI65: =+SUM(Poblacion!AE59,Poblacion!AG59,Poblacion!AI59,Poblacion!AK59,Poblacion!AM59) -> 386 | BJ65: =+SUM(Poblacion!AF59,Poblacion!AH59,Poblacion!AJ59,Poblacion!AL59,Poblacion!AN59) -> 375 | BK65: =+SUM(Poblacion!AO59,Poblacion!AQ59,Poblacion!AS59,Poblacion!AU59,Poblacion!AW59) -> 337 | BL65: =+SUM(Poblacion!AP59,Poblacion!AR59,Poblacion!AT59,Poblacion!AV59,Poblacion!AX59) -> 339 | BM65: =Poblacion!AY59 -> 285 | BN65: =Poblacion!AZ59 -> 328 | BO65: =Poblacion!BA59 -> 366 | BP65: =Poblacion!BB59 -> 410 | BQ65: =Poblacion!BC59 -> 332 | BR65: =Poblacion!BD59 -> 387 | BS65: =Poblacion!BE59 -> 310 | BT65: =Poblacion!BF59 -> 348 | BU65: =Poblacion!BG59 -> 262 | BV65: =Poblacion!BH59 -> 289 | BW65: =Poblacion!BI59 -> 224 | BX65: =Poblacion!BJ59 -> 252 | BY65: =Poblacion!BK59 -> 192 | BZ65: =Poblacion!BL59 -> 211 | CA65: =Poblacion!BM59 -> 165 | CB65: =Poblacion!BN59 -> 188 | CC65: =Poblacion!BO59 -> 130 | CD65: =Poblacion!BP59 -> 149 | CE65: =Poblacion!BQ59 -> 109 | CF65: =Poblacion!BR59 -> 112 | CG65: =Poblacion!BS59 -> 84 | CH65: =Poblacion!BT59 -> 82 | CI65: =Poblacion!BU59 -> 63 | CJ65: =Poblacion!BV59 -> 64 | CK65: =Poblacion!BW59 -> 72 | CL65: =Poblacion!BX59 -> 96 | CM65: =Poblacion!DM59 -> 1100 | CN65: =Poblacion!DN59 -> 1088 | CO65: =Poblacion!DO59 -> 286 | CP65: =Poblacion!DP59 -> 270 | CQ65: =Poblacion!DQ59 -> 2262 | CR65: =Poblacion!DR59 -> 2548 | CS65: =Poblacion!DS59 -> 458 | CT65: =Poblacion!DT59 -> 503
BA66: 04 | BB66: 54 | BC66: P.S. MAZO | BD66: =Poblacion!F60 -> 2282 | BE66: =+SUM(Poblacion!K60,Poblacion!M60,Poblacion!O60,Poblacion!Q60,Poblacion!S60) -> 104 | BF66: =+SUM(Poblacion!L60,Poblacion!N60,Poblacion!P60,Poblacion!R60,Poblacion!T60) -> 104 | BG66: =SUM(Poblacion!U60,Poblacion!W60,Poblacion!Y60,Poblacion!AA60,Poblacion!AC60) -> 108 | BH66: =SUM(Poblacion!V60,Poblacion!X60,Poblacion!Z60,Poblacion!AB60,Poblacion!AD60) -> 105 | BI66: =+SUM(Poblacion!AE60,Poblacion!AG60,Poblacion!AI60,Poblacion!AK60,Poblacion!AM60) -> 104 | BJ66: =+SUM(Poblacion!AF60,Poblacion!AH60,Poblacion!AJ60,Poblacion!AL60,Poblacion!AN60) -> 100 | BK66: =+SUM(Poblacion!AO60,Poblacion!AQ60,Poblacion!AS60,Poblacion!AU60,Poblacion!AW60) -> 90 | BL66: =+SUM(Poblacion!AP60,Poblacion!AR60,Poblacion!AT60,Poblacion!AV60,Poblacion!AX60) -> 91 | BM66: =Poblacion!AY60 -> 76 | BN66: =Poblacion!AZ60 -> 88 | BO66: =Poblacion!BA60 -> 98 | BP66: =Poblacion!BB60 -> 110 | BQ66: =Poblacion!BC60 -> 89 | BR66: =Poblacion!BD60 -> 104 | BS66: =Poblacion!BE60 -> 83 | BT66: =Poblacion!BF60 -> 93 | BU66: =Poblacion!BG60 -> 70 | BV66: =Poblacion!BH60 -> 77 | BW66: =Poblacion!BI60 -> 60 | BX66: =Poblacion!BJ60 -> 68 | BY66: =Poblacion!BK60 -> 52 | BZ66: =Poblacion!BL60 -> 56 | CA66: =Poblacion!BM60 -> 44 | CB66: =Poblacion!BN60 -> 50 | CC66: =Poblacion!BO60 -> 35 | CD66: =Poblacion!BP60 -> 40 | CE66: =Poblacion!BQ60 -> 29 | CF66: =Poblacion!BR60 -> 30 | CG66: =Poblacion!BS60 -> 23 | CH66: =Poblacion!BT60 -> 22 | CI66: =Poblacion!BU60 -> 17 | CJ66: =Poblacion!BV60 -> 17 | CK66: =Poblacion!BW60 -> 19 | CL66: =Poblacion!BX60 -> 26 | CM66: =Poblacion!DM60 -> 296 | CN66: =Poblacion!DN60 -> 291 | CO66: =Poblacion!DO60 -> 77 | CP66: =Poblacion!DP60 -> 72 | CQ66: =Poblacion!DQ60 -> 605 | CR66: =Poblacion!DR60 -> 683 | CS66: =Poblacion!DS60 -> 123 | CT66: =Poblacion!DT60 -> 135
BA67: 04 | BB67: 55 | BC67: P.S. PRIMAVERA | BD67: =Poblacion!F61 -> 7299 | BE67: =+SUM(Poblacion!K61,Poblacion!M61,Poblacion!O61,Poblacion!Q61,Poblacion!S61) -> 334 | BF67: =+SUM(Poblacion!L61,Poblacion!N61,Poblacion!P61,Poblacion!R61,Poblacion!T61) -> 331 | BG67: =SUM(Poblacion!U61,Poblacion!W61,Poblacion!Y61,Poblacion!AA61,Poblacion!AC61) -> 341 | BH67: =SUM(Poblacion!V61,Poblacion!X61,Poblacion!Z61,Poblacion!AB61,Poblacion!AD61) -> 336 | BI67: =+SUM(Poblacion!AE61,Poblacion!AG61,Poblacion!AI61,Poblacion!AK61,Poblacion!AM61) -> 330 | BJ67: =+SUM(Poblacion!AF61,Poblacion!AH61,Poblacion!AJ61,Poblacion!AL61,Poblacion!AN61) -> 323 | BK67: =+SUM(Poblacion!AO61,Poblacion!AQ61,Poblacion!AS61,Poblacion!AU61,Poblacion!AW61) -> 289 | BL67: =+SUM(Poblacion!AP61,Poblacion!AR61,Poblacion!AT61,Poblacion!AV61,Poblacion!AX61) -> 290 | BM67: =Poblacion!AY61 -> 245 | BN67: =Poblacion!AZ61 -> 281 | BO67: =Poblacion!BA61 -> 313 | BP67: =Poblacion!BB61 -> 351 | BQ67: =Poblacion!BC61 -> 285 | BR67: =Poblacion!BD61 -> 332 | BS67: =Poblacion!BE61 -> 266 | BT67: =Poblacion!BF61 -> 299 | BU67: =Poblacion!BG61 -> 225 | BV67: =Poblacion!BH61 -> 248 | BW67: =Poblacion!BI61 -> 192 | BX67: =Poblacion!BJ61 -> 216 | BY67: =Poblacion!BK61 -> 165 | BZ67: =Poblacion!BL61 -> 181 | CA67: =Poblacion!BM61 -> 141 | CB67: =Poblacion!BN61 -> 162 | CC67: =Poblacion!BO61 -> 112 | CD67: =Poblacion!BP61 -> 128 | CE67: =Poblacion!BQ61 -> 93 | CF67: =Poblacion!BR61 -> 96 | CG67: =Poblacion!BS61 -> 72 | CH67: =Poblacion!BT61 -> 70 | CI67: =Poblacion!BU61 -> 54 | CJ67: =Poblacion!BV61 -> 54 | CK67: =Poblacion!BW61 -> 62 | CL67: =Poblacion!BX61 -> 82 | CM67: =Poblacion!DM61 -> 941 | CN67: =Poblacion!DN61 -> 933 | CO67: =Poblacion!DO61 -> 245 | CP67: =Poblacion!DP61 -> 231 | CQ67: =Poblacion!DQ61 -> 1940 | CR67: =Poblacion!DR61 -> 2186 | CS67: =Poblacion!DS61 -> 393 | CT67: =Poblacion!DT61 -> 430
BA68: 04 | BB68: 56 | BC68: P.S. MARIATEGUI | BD68: =Poblacion!F62 -> 8826 | BE68: =+SUM(Poblacion!K62,Poblacion!M62,Poblacion!O62,Poblacion!Q62,Poblacion!S62) -> 406 | BF68: =+SUM(Poblacion!L62,Poblacion!N62,Poblacion!P62,Poblacion!R62,Poblacion!T62) -> 402 | BG68: =SUM(Poblacion!U62,Poblacion!W62,Poblacion!Y62,Poblacion!AA62,Poblacion!AC62) -> 412 | BH68: =SUM(Poblacion!V62,Poblacion!X62,Poblacion!Z62,Poblacion!AB62,Poblacion!AD62) -> 407 | BI68: =+SUM(Poblacion!AE62,Poblacion!AG62,Poblacion!AI62,Poblacion!AK62,Poblacion!AM62) -> 400 | BJ68: =+SUM(Poblacion!AF62,Poblacion!AH62,Poblacion!AJ62,Poblacion!AL62,Poblacion!AN62) -> 392 | BK68: =+SUM(Poblacion!AO62,Poblacion!AQ62,Poblacion!AS62,Poblacion!AU62,Poblacion!AW62) -> 349 | BL68: =+SUM(Poblacion!AP62,Poblacion!AR62,Poblacion!AT62,Poblacion!AV62,Poblacion!AX62) -> 352 | BM68: =Poblacion!AY62 -> 296 | BN68: =Poblacion!AZ62 -> 339 | BO68: =Poblacion!BA62 -> 378 | BP68: =Poblacion!BB62 -> 424 | BQ68: =Poblacion!BC62 -> 344 | BR68: =Poblacion!BD62 -> 401 | BS68: =Poblacion!BE62 -> 320 | BT68: =Poblacion!BF62 -> 361 | BU68: =Poblacion!BG62 -> 271 | BV68: =Poblacion!BH62 -> 300 | BW68: =Poblacion!BI62 -> 232 | BX68: =Poblacion!BJ62 -> 260 | BY68: =Poblacion!BK62 -> 199 | BZ68: =Poblacion!BL62 -> 218 | CA68: =Poblacion!BM62 -> 171 | CB68: =Poblacion!BN62 -> 196 | CC68: =Poblacion!BO62 -> 136 | CD68: =Poblacion!BP62 -> 154 | CE68: =Poblacion!BQ62 -> 113 | CF68: =Poblacion!BR62 -> 115 | CG68: =Poblacion!BS62 -> 87 | CH68: =Poblacion!BT62 -> 85 | CI68: =Poblacion!BU62 -> 66 | CJ68: =Poblacion!BV62 -> 66 | CK68: =Poblacion!BW62 -> 75 | CL68: =Poblacion!BX62 -> 99 | CM68: =Poblacion!DM62 -> 1139 | CN68: =Poblacion!DN62 -> 1132 | CO68: =Poblacion!DO62 -> 296 | CP68: =Poblacion!DP62 -> 281 | CQ68: =Poblacion!DQ62 -> 2343 | CR68: =Poblacion!DR62 -> 2639 | CS68: =Poblacion!DS62 -> 477 | CT68: =Poblacion!DT62 -> 519
BA69: 04 | BB69: 57 | BC69: P.S. MEDIO MUNDO | BD69: =Poblacion!F63 -> 3347 | BE69: =+SUM(Poblacion!K63,Poblacion!M63,Poblacion!O63,Poblacion!Q63,Poblacion!S63) -> 153 | BF69: =+SUM(Poblacion!L63,Poblacion!N63,Poblacion!P63,Poblacion!R63,Poblacion!T63) -> 152 | BG69: =SUM(Poblacion!U63,Poblacion!W63,Poblacion!Y63,Poblacion!AA63,Poblacion!AC63) -> 156 | BH69: =SUM(Poblacion!V63,Poblacion!X63,Poblacion!Z63,Poblacion!AB63,Poblacion!AD63) -> 155 | BI69: =+SUM(Poblacion!AE63,Poblacion!AG63,Poblacion!AI63,Poblacion!AK63,Poblacion!AM63) -> 152 | BJ69: =+SUM(Poblacion!AF63,Poblacion!AH63,Poblacion!AJ63,Poblacion!AL63,Poblacion!AN63) -> 147 | BK69: =+SUM(Poblacion!AO63,Poblacion!AQ63,Poblacion!AS63,Poblacion!AU63,Poblacion!AW63) -> 131 | BL69: =+SUM(Poblacion!AP63,Poblacion!AR63,Poblacion!AT63,Poblacion!AV63,Poblacion!AX63) -> 133 | BM69: =Poblacion!AY63 -> 112 | BN69: =Poblacion!AZ63 -> 129 | BO69: =Poblacion!BA63 -> 144 | BP69: =Poblacion!BB63 -> 161 | BQ69: =Poblacion!BC63 -> 131 | BR69: =Poblacion!BD63 -> 152 | BS69: =Poblacion!BE63 -> 122 | BT69: =Poblacion!BF63 -> 137 | BU69: =Poblacion!BG63 -> 103 | BV69: =Poblacion!BH63 -> 114 | BW69: =Poblacion!BI63 -> 88 | BX69: =Poblacion!BJ63 -> 99 | BY69: =Poblacion!BK63 -> 76 | BZ69: =Poblacion!BL63 -> 83 | CA69: =Poblacion!BM63 -> 65 | CB69: =Poblacion!BN63 -> 74 | CC69: =Poblacion!BO63 -> 51 | CD69: =Poblacion!BP63 -> 59 | CE69: =Poblacion!BQ63 -> 43 | CF69: =Poblacion!BR63 -> 44 | CG69: =Poblacion!BS63 -> 33 | CH69: =Poblacion!BT63 -> 32 | CI69: =Poblacion!BU63 -> 25 | CJ69: =Poblacion!BV63 -> 25 | CK69: =Poblacion!BW63 -> 29 | CL69: =Poblacion!BX63 -> 37 | CM69: =Poblacion!DM63 -> 432 | CN69: =Poblacion!DN63 -> 428 | CO69: =Poblacion!DO63 -> 111 | CP69: =Poblacion!DP63 -> 106 | CQ69: =Poblacion!DQ63 -> 890 | CR69: =Poblacion!DR63 -> 1002 | CS69: =Poblacion!DS63 -> 181 | CT69: =Poblacion!DT63 -> 197
BA70: 04 | BB70: 58 | BC70: P.S. TIROLER | BD70: =Poblacion!F64 -> 146 | BE70: =+SUM(Poblacion!K64,Poblacion!M64,Poblacion!O64,Poblacion!Q64,Poblacion!S64) -> 6 | BF70: =+SUM(Poblacion!L64,Poblacion!N64,Poblacion!P64,Poblacion!R64,Poblacion!T64) -> 6 | BG70: =SUM(Poblacion!U64,Poblacion!W64,Poblacion!Y64,Poblacion!AA64,Poblacion!AC64) -> 8 | BH70: =SUM(Poblacion!V64,Poblacion!X64,Poblacion!Z64,Poblacion!AB64,Poblacion!AD64) -> 5 | BI70: =+SUM(Poblacion!AE64,Poblacion!AG64,Poblacion!AI64,Poblacion!AK64,Poblacion!AM64) -> 6 | BJ70: =+SUM(Poblacion!AF64,Poblacion!AH64,Poblacion!AJ64,Poblacion!AL64,Poblacion!AN64) -> 5 | BK70: =+SUM(Poblacion!AO64,Poblacion!AQ64,Poblacion!AS64,Poblacion!AU64,Poblacion!AW64) -> 5 | BL70: =+SUM(Poblacion!AP64,Poblacion!AR64,Poblacion!AT64,Poblacion!AV64,Poblacion!AX64) -> 5 | BM70: =Poblacion!AY64 -> 5 | BN70: =Poblacion!AZ64 -> 6 | BO70: =Poblacion!BA64 -> 7 | BP70: =Poblacion!BB64 -> 7 | BQ70: =Poblacion!BC64 -> 6 | BR70: =Poblacion!BD64 -> 7 | BS70: =Poblacion!BE64 -> 6 | BT70: =Poblacion!BF64 -> 6 | BU70: =Poblacion!BG64 -> 5 | BV70: =Poblacion!BH64 -> 5 | BW70: =Poblacion!BI64 -> 4 | BX70: =Poblacion!BJ64 -> 5 | BY70: =Poblacion!BK64 -> 3 | BZ70: =Poblacion!BL64 -> 4 | CA70: =Poblacion!BM64 -> 3 | CB70: =Poblacion!BN64 -> 3 | CC70: =Poblacion!BO64 -> 2 | CD70: =Poblacion!BP64 -> 3 | CE70: =Poblacion!BQ64 -> 2 | CF70: =Poblacion!BR64 -> 2 | CG70: =Poblacion!BS64 -> 2 | CH70: =Poblacion!BT64 -> 1 | CI70: =Poblacion!BU64 -> 1 | CJ70: =Poblacion!BV64 -> 1 | CK70: =Poblacion!BW64 -> 2 | CL70: =Poblacion!BX64 -> 2 | CM70: =Poblacion!DM64 -> 19 | CN70: =Poblacion!DN64 -> 15 | CO70: =Poblacion!DO64 -> 4 | CP70: =Poblacion!DP64 -> 4 | CQ70: =Poblacion!DQ64 -> 41 | CR70: =Poblacion!DR64 -> 45 | CS70: =Poblacion!DS64 -> 9 | CT70: =Poblacion!DT64 -> 9
BB71: 59 | BC71: PROVINCIA OYON | BD71: =Poblacion!F65 -> 16953 | BE71: =+SUM(Poblacion!K65,Poblacion!M65,Poblacion!O65,Poblacion!Q65,Poblacion!S65) -> 549 | BF71: =+SUM(Poblacion!L65,Poblacion!N65,Poblacion!P65,Poblacion!R65,Poblacion!T65) -> 556 | BG71: =SUM(Poblacion!U65,Poblacion!W65,Poblacion!Y65,Poblacion!AA65,Poblacion!AC65) -> 701 | BH71: =SUM(Poblacion!V65,Poblacion!X65,Poblacion!Z65,Poblacion!AB65,Poblacion!AD65) -> 759 | BI71: =+SUM(Poblacion!AE65,Poblacion!AG65,Poblacion!AI65,Poblacion!AK65,Poblacion!AM65) -> 864 | BJ71: =+SUM(Poblacion!AF65,Poblacion!AH65,Poblacion!AJ65,Poblacion!AL65,Poblacion!AN65) -> 920 | BK71: =+SUM(Poblacion!AO65,Poblacion!AQ65,Poblacion!AS65,Poblacion!AU65,Poblacion!AW65) -> 797 | BL71: =+SUM(Poblacion!AP65,Poblacion!AR65,Poblacion!AT65,Poblacion!AV65,Poblacion!AX65) -> 845 | BM71: =Poblacion!AY65 -> 626 | BN71: =Poblacion!AZ65 -> 657 | BO71: =Poblacion!BA65 -> 639 | BP71: =Poblacion!BB65 -> 696 | BQ71: =Poblacion!BC65 -> 548 | BR71: =Poblacion!BD65 -> 655 | BS71: =Poblacion!BE65 -> 555 | BT71: =Poblacion!BF65 -> 623 | BU71: =Poblacion!BG65 -> 482 | BV71: =Poblacion!BH65 -> 464 | BW71: =Poblacion!BI65 -> 478 | BX71: =Poblacion!BJ65 -> 470 | BY71: =Poblacion!BK65 -> 434 | BZ71: =Poblacion!BL65 -> 461 | CA71: =Poblacion!BM65 -> 357 | CB71: =Poblacion!BN65 -> 390 | CC71: =Poblacion!BO65 -> 327 | CD71: =Poblacion!BP65 -> 330 | CE71: =Poblacion!BQ65 -> 255 | CF71: =Poblacion!BR65 -> 273 | CG71: =Poblacion!BS65 -> 204 | CH71: =Poblacion!BT65 -> 214 | CI71: =Poblacion!BU65 -> 140 | CJ71: =Poblacion!BV65 -> 188 | CK71: =Poblacion!BW65 -> 191 | CL71: =Poblacion!BX65 -> 305 | CM71: =Poblacion!DM65 -> 1959 | CN71: =Poblacion!DN65 -> 2065 | CO71: =Poblacion!DO65 -> 667 | CP71: =Poblacion!DP65 -> 732 | CQ71: =Poblacion!DQ65 -> 4404 | CR71: =Poblacion!DR65 -> 4699 | CS71: =Poblacion!DS65 -> 1117 | CT71: =Poblacion!DT65 -> 1310
BB72: 60 | BC72: DISTRITO OYON | BD72: =Poblacion!F66 -> 11749 | BE72: =+SUM(Poblacion!K66,Poblacion!M66,Poblacion!O66,Poblacion!Q66,Poblacion!S66) -> 304 | BF72: =+SUM(Poblacion!L66,Poblacion!N66,Poblacion!P66,Poblacion!R66,Poblacion!T66) -> 293 | BG72: =SUM(Poblacion!U66,Poblacion!W66,Poblacion!Y66,Poblacion!AA66,Poblacion!AC66) -> 538 | BH72: =SUM(Poblacion!V66,Poblacion!X66,Poblacion!Z66,Poblacion!AB66,Poblacion!AD66) -> 594 | BI72: =+SUM(Poblacion!AE66,Poblacion!AG66,Poblacion!AI66,Poblacion!AK66,Poblacion!AM66) -> 678 | BJ72: =+SUM(Poblacion!AF66,Poblacion!AH66,Poblacion!AJ66,Poblacion!AL66,Poblacion!AN66) -> 693 | BK72: =+SUM(Poblacion!AO66,Poblacion!AQ66,Poblacion!AS66,Poblacion!AU66,Poblacion!AW66) -> 585 | BL72: =+SUM(Poblacion!AP66,Poblacion!AR66,Poblacion!AT66,Poblacion!AV66,Poblacion!AX66) -> 614 | BM72: =Poblacion!AY66 -> 449 | BN72: =Poblacion!AZ66 -> 486 | BO72: =Poblacion!BA66 -> 479 | BP72: =Poblacion!BB66 -> 500 | BQ72: =Poblacion!BC66 -> 401 | BR72: =Poblacion!BD66 -> 503 | BS72: =Poblacion!BE66 -> 405 | BT72: =Poblacion!BF66 -> 454 | BU72: =Poblacion!BG66 -> 336 | BV72: =Poblacion!BH66 -> 327 | BW72: =Poblacion!BI66 -> 320 | BX72: =Poblacion!BJ66 -> 326 | BY72: =Poblacion!BK66 -> 300 | BZ72: =Poblacion!BL66 -> 324 | CA72: =Poblacion!BM66 -> 224 | CB72: =Poblacion!BN66 -> 241 | CC72: =Poblacion!BO66 -> 192 | CD72: =Poblacion!BP66 -> 200 | CE72: =Poblacion!BQ66 -> 156 | CF72: =Poblacion!BR66 -> 165 | CG72: =Poblacion!BS66 -> 117 | CH72: =Poblacion!BT66 -> 122 | CI72: =Poblacion!BU66 -> 71 | CJ72: =Poblacion!BV66 -> 102 | CK72: =Poblacion!BW66 -> 81 | CL72: =Poblacion!BX66 -> 169 | CM72: =Poblacion!DM66 -> 1396 | CN72: =Poblacion!DN66 -> 1448 | CO72: =Poblacion!DO66 -> 511 | CP72: =Poblacion!DP66 -> 542 | CQ72: =Poblacion!DQ66 -> 3112 | CR72: =Poblacion!DR66 -> 3365 | CS72: =Poblacion!DS66 -> 617 | CT72: =Poblacion!DT66 -> 758
BA73: 05 | BB73: 61 | BC73: P.S. RAPAZ | BD73: =Poblacion!F67 -> 826 | BE73: =+SUM(Poblacion!K67,Poblacion!M67,Poblacion!O67,Poblacion!Q67,Poblacion!S67) -> 22 | BF73: =+SUM(Poblacion!L67,Poblacion!N67,Poblacion!P67,Poblacion!R67,Poblacion!T67) -> 20 | BG73: =SUM(Poblacion!U67,Poblacion!W67,Poblacion!Y67,Poblacion!AA67,Poblacion!AC67) -> 38 | BH73: =SUM(Poblacion!V67,Poblacion!X67,Poblacion!Z67,Poblacion!AB67,Poblacion!AD67) -> 43 | BI73: =+SUM(Poblacion!AE67,Poblacion!AG67,Poblacion!AI67,Poblacion!AK67,Poblacion!AM67) -> 47 | BJ73: =+SUM(Poblacion!AF67,Poblacion!AH67,Poblacion!AJ67,Poblacion!AL67,Poblacion!AN67) -> 49 | BK73: =+SUM(Poblacion!AO67,Poblacion!AQ67,Poblacion!AS67,Poblacion!AU67,Poblacion!AW67) -> 41 | BL73: =+SUM(Poblacion!AP67,Poblacion!AR67,Poblacion!AT67,Poblacion!AV67,Poblacion!AX67) -> 43 | BM73: =Poblacion!AY67 -> 31 | BN73: =Poblacion!AZ67 -> 34 | BO73: =Poblacion!BA67 -> 34 | BP73: =Poblacion!BB67 -> 35 | BQ73: =Poblacion!BC67 -> 28 | BR73: =Poblacion!BD67 -> 35 | BS73: =Poblacion!BE67 -> 28 | BT73: =Poblacion!BF67 -> 32 | BU73: =Poblacion!BG67 -> 24 | BV73: =Poblacion!BH67 -> 23 | BW73: =Poblacion!BI67 -> 22 | BX73: =Poblacion!BJ67 -> 23 | BY73: =Poblacion!BK67 -> 21 | BZ73: =Poblacion!BL67 -> 23 | CA73: =Poblacion!BM67 -> 16 | CB73: =Poblacion!BN67 -> 17 | CC73: =Poblacion!BO67 -> 13 | CD73: =Poblacion!BP67 -> 14 | CE73: =Poblacion!BQ67 -> 11 | CF73: =Poblacion!BR67 -> 12 | CG73: =Poblacion!BS67 -> 8 | CH73: =Poblacion!BT67 -> 9 | CI73: =Poblacion!BU67 -> 5 | CJ73: =Poblacion!BV67 -> 7 | CK73: =Poblacion!BW67 -> 6 | CL73: =Poblacion!BX67 -> 12 | CM73: =Poblacion!DM67 -> 98 | CN73: =Poblacion!DN67 -> 103 | CO73: =Poblacion!DO67 -> 36 | CP73: =Poblacion!DP67 -> 38 | CQ73: =Poblacion!DQ67 -> 218 | CR73: =Poblacion!DR67 -> 236 | CS73: =Poblacion!DS67 -> 43 | CT73: =Poblacion!DT67 -> 54
BA74: 05 | BB74: 62 | BC74: C.S. OYON | BD74: =Poblacion!F68 -> 9868 | BE74: =+SUM(Poblacion!K68,Poblacion!M68,Poblacion!O68,Poblacion!Q68,Poblacion!S68) -> 251 | BF74: =+SUM(Poblacion!L68,Poblacion!N68,Poblacion!P68,Poblacion!R68,Poblacion!T68) -> 246 | BG74: =SUM(Poblacion!U68,Poblacion!W68,Poblacion!Y68,Poblacion!AA68,Poblacion!AC68) -> 452 | BH74: =SUM(Poblacion!V68,Poblacion!X68,Poblacion!Z68,Poblacion!AB68,Poblacion!AD68) -> 499 | BI74: =+SUM(Poblacion!AE68,Poblacion!AG68,Poblacion!AI68,Poblacion!AK68,Poblacion!AM68) -> 573 | BJ74: =+SUM(Poblacion!AF68,Poblacion!AH68,Poblacion!AJ68,Poblacion!AL68,Poblacion!AN68) -> 581 | BK74: =+SUM(Poblacion!AO68,Poblacion!AQ68,Poblacion!AS68,Poblacion!AU68,Poblacion!AW68) -> 492 | BL74: =+SUM(Poblacion!AP68,Poblacion!AR68,Poblacion!AT68,Poblacion!AV68,Poblacion!AX68) -> 516 | BM74: =Poblacion!AY68 -> 379 | BN74: =Poblacion!AZ68 -> 408 | BO74: =Poblacion!BA68 -> 402 | BP74: =Poblacion!BB68 -> 420 | BQ74: =Poblacion!BC68 -> 337 | BR74: =Poblacion!BD68 -> 423 | BS74: =Poblacion!BE68 -> 341 | BT74: =Poblacion!BF68 -> 380 | BU74: =Poblacion!BG68 -> 282 | BV74: =Poblacion!BH68 -> 275 | BW74: =Poblacion!BI68 -> 269 | BX74: =Poblacion!BJ68 -> 274 | BY74: =Poblacion!BK68 -> 252 | BZ74: =Poblacion!BL68 -> 272 | CA74: =Poblacion!BM68 -> 188 | CB74: =Poblacion!BN68 -> 203 | CC74: =Poblacion!BO68 -> 161 | CD74: =Poblacion!BP68 -> 168 | CE74: =Poblacion!BQ68 -> 130 | CF74: =Poblacion!BR68 -> 138 | CG74: =Poblacion!BS68 -> 98 | CH74: =Poblacion!BT68 -> 102 | CI74: =Poblacion!BU68 -> 59 | CJ74: =Poblacion!BV68 -> 86 | CK74: =Poblacion!BW68 -> 69 | CL74: =Poblacion!BX68 -> 142 | CM74: =Poblacion!DM68 -> 1172 | CN74: =Poblacion!DN68 -> 1215 | CO74: =Poblacion!DO68 -> 430 | CP74: =Poblacion!DP68 -> 455 | CQ74: =Poblacion!DQ68 -> 2616 | CR74: =Poblacion!DR68 -> 2827 | CS74: =Poblacion!DS68 -> 517 | CT74: =Poblacion!DT68 -> 636
BA75: 05 | BB75: 63 | BC75: P.S. MALLAY | BD75: =Poblacion!F69 -> 586 | BE75: =+SUM(Poblacion!K69,Poblacion!M69,Poblacion!O69,Poblacion!Q69,Poblacion!S69) -> 16 | BF75: =+SUM(Poblacion!L69,Poblacion!N69,Poblacion!P69,Poblacion!R69,Poblacion!T69) -> 14 | BG75: =SUM(Poblacion!U69,Poblacion!W69,Poblacion!Y69,Poblacion!AA69,Poblacion!AC69) -> 26 | BH75: =SUM(Poblacion!V69,Poblacion!X69,Poblacion!Z69,Poblacion!AB69,Poblacion!AD69) -> 30 | BI75: =+SUM(Poblacion!AE69,Poblacion!AG69,Poblacion!AI69,Poblacion!AK69,Poblacion!AM69) -> 33 | BJ75: =+SUM(Poblacion!AF69,Poblacion!AH69,Poblacion!AJ69,Poblacion!AL69,Poblacion!AN69) -> 36 | BK75: =+SUM(Poblacion!AO69,Poblacion!AQ69,Poblacion!AS69,Poblacion!AU69,Poblacion!AW69) -> 29 | BL75: =+SUM(Poblacion!AP69,Poblacion!AR69,Poblacion!AT69,Poblacion!AV69,Poblacion!AX69) -> 31 | BM75: =Poblacion!AY69 -> 22 | BN75: =Poblacion!AZ69 -> 24 | BO75: =Poblacion!BA69 -> 24 | BP75: =Poblacion!BB69 -> 25 | BQ75: =Poblacion!BC69 -> 20 | BR75: =Poblacion!BD69 -> 25 | BS75: =Poblacion!BE69 -> 20 | BT75: =Poblacion!BF69 -> 23 | BU75: =Poblacion!BG69 -> 17 | BV75: =Poblacion!BH69 -> 16 | BW75: =Poblacion!BI69 -> 16 | BX75: =Poblacion!BJ69 -> 16 | BY75: =Poblacion!BK69 -> 15 | BZ75: =Poblacion!BL69 -> 16 | CA75: =Poblacion!BM69 -> 11 | CB75: =Poblacion!BN69 -> 12 | CC75: =Poblacion!BO69 -> 10 | CD75: =Poblacion!BP69 -> 10 | CE75: =Poblacion!BQ69 -> 8 | CF75: =Poblacion!BR69 -> 8 | CG75: =Poblacion!BS69 -> 6 | CH75: =Poblacion!BT69 -> 6 | CI75: =Poblacion!BU69 -> 4 | CJ75: =Poblacion!BV69 -> 5 | CK75: =Poblacion!BW69 -> 4 | CL75: =Poblacion!BX69 -> 8 | CM75: =Poblacion!DM69 -> 69 | CN75: =Poblacion!DN69 -> 73 | CO75: =Poblacion!DO69 -> 25 | CP75: =Poblacion!DP69 -> 28 | CQ75: =Poblacion!DQ69 -> 155 | CR75: =Poblacion!DR69 -> 167 | CS75: =Poblacion!DS69 -> 32 | CT75: =Poblacion!DT69 -> 37
BA76: 05 | BB76: 64 | BC76: P.S. NAVA | BD76: =Poblacion!F70 -> 114 | BE76: =+SUM(Poblacion!K70,Poblacion!M70,Poblacion!O70,Poblacion!Q70,Poblacion!S70) -> 5 | BF76: =+SUM(Poblacion!L70,Poblacion!N70,Poblacion!P70,Poblacion!R70,Poblacion!T70) -> 4 | BG76: =SUM(Poblacion!U70,Poblacion!W70,Poblacion!Y70,Poblacion!AA70,Poblacion!AC70) -> 5 | BH76: =SUM(Poblacion!V70,Poblacion!X70,Poblacion!Z70,Poblacion!AB70,Poblacion!AD70) -> 5 | BI76: =+SUM(Poblacion!AE70,Poblacion!AG70,Poblacion!AI70,Poblacion!AK70,Poblacion!AM70) -> 5 | BJ76: =+SUM(Poblacion!AF70,Poblacion!AH70,Poblacion!AJ70,Poblacion!AL70,Poblacion!AN70) -> 6 | BK76: =+SUM(Poblacion!AO70,Poblacion!AQ70,Poblacion!AS70,Poblacion!AU70,Poblacion!AW70) -> 5 | BL76: =+SUM(Poblacion!AP70,Poblacion!AR70,Poblacion!AT70,Poblacion!AV70,Poblacion!AX70) -> 6 | BM76: =Poblacion!AY70 -> 4 | BN76: =Poblacion!AZ70 -> 5 | BO76: =Poblacion!BA70 -> 5 | BP76: =Poblacion!BB70 -> 5 | BQ76: =Poblacion!BC70 -> 4 | BR76: =Poblacion!BD70 -> 5 | BS76: =Poblacion!BE70 -> 4 | BT76: =Poblacion!BF70 -> 5 | BU76: =Poblacion!BG70 -> 3 | BV76: =Poblacion!BH70 -> 3 | BW76: =Poblacion!BI70 -> 3 | BX76: =Poblacion!BJ70 -> 3 | BY76: =Poblacion!BK70 -> 3 | BZ76: =Poblacion!BL70 -> 3 | CA76: =Poblacion!BM70 -> 2 | CB76: =Poblacion!BN70 -> 2 | CC76: =Poblacion!BO70 -> 2 | CD76: =Poblacion!BP70 -> 2 | CE76: =Poblacion!BQ70 -> 2 | CF76: =Poblacion!BR70 -> 2 | CG76: =Poblacion!BS70 -> 1 | CH76: =Poblacion!BT70 -> 1 | CI76: =Poblacion!BU70 -> 1 | CJ76: =Poblacion!BV70 -> 1 | CK76: =Poblacion!BW70 -> 0 | CL76: =Poblacion!BX70 -> 2 | CM76: =Poblacion!DM70 -> 14 | CN76: =Poblacion!DN70 -> 14 | CO76: =Poblacion!DO70 -> 4 | CP76: =Poblacion!DP70 -> 5 | CQ76: =Poblacion!DQ70 -> 30 | CR76: =Poblacion!DR70 -> 33 | CS76: =Poblacion!DS70 -> 6 | CT76: =Poblacion!DT70 -> 8
BA77: 05 | BB77: 65 | BC77: P.S. TINTA | BD77: =Poblacion!F71 -> 355 | BE77: =+SUM(Poblacion!K71,Poblacion!M71,Poblacion!O71,Poblacion!Q71,Poblacion!S71) -> 10 | BF77: =+SUM(Poblacion!L71,Poblacion!N71,Poblacion!P71,Poblacion!R71,Poblacion!T71) -> 9 | BG77: =SUM(Poblacion!U71,Poblacion!W71,Poblacion!Y71,Poblacion!AA71,Poblacion!AC71) -> 17 | BH77: =SUM(Poblacion!V71,Poblacion!X71,Poblacion!Z71,Poblacion!AB71,Poblacion!AD71) -> 17 | BI77: =+SUM(Poblacion!AE71,Poblacion!AG71,Poblacion!AI71,Poblacion!AK71,Poblacion!AM71) -> 20 | BJ77: =+SUM(Poblacion!AF71,Poblacion!AH71,Poblacion!AJ71,Poblacion!AL71,Poblacion!AN71) -> 21 | BK77: =+SUM(Poblacion!AO71,Poblacion!AQ71,Poblacion!AS71,Poblacion!AU71,Poblacion!AW71) -> 18 | BL77: =+SUM(Poblacion!AP71,Poblacion!AR71,Poblacion!AT71,Poblacion!AV71,Poblacion!AX71) -> 18 | BM77: =Poblacion!AY71 -> 13 | BN77: =Poblacion!AZ71 -> 15 | BO77: =Poblacion!BA71 -> 14 | BP77: =Poblacion!BB71 -> 15 | BQ77: =Poblacion!BC71 -> 12 | BR77: =Poblacion!BD71 -> 15 | BS77: =Poblacion!BE71 -> 12 | BT77: =Poblacion!BF71 -> 14 | BU77: =Poblacion!BG71 -> 10 | BV77: =Poblacion!BH71 -> 10 | BW77: =Poblacion!BI71 -> 10 | BX77: =Poblacion!BJ71 -> 10 | BY77: =Poblacion!BK71 -> 9 | BZ77: =Poblacion!BL71 -> 10 | CA77: =Poblacion!BM71 -> 7 | CB77: =Poblacion!BN71 -> 7 | CC77: =Poblacion!BO71 -> 6 | CD77: =Poblacion!BP71 -> 6 | CE77: =Poblacion!BQ71 -> 5 | CF77: =Poblacion!BR71 -> 5 | CG77: =Poblacion!BS71 -> 4 | CH77: =Poblacion!BT71 -> 4 | CI77: =Poblacion!BU71 -> 2 | CJ77: =Poblacion!BV71 -> 3 | CK77: =Poblacion!BW71 -> 2 | CL77: =Poblacion!BX71 -> 5 | CM77: =Poblacion!DM71 -> 43 | CN77: =Poblacion!DN71 -> 43 | CO77: =Poblacion!DO71 -> 16 | CP77: =Poblacion!DP71 -> 16 | CQ77: =Poblacion!DQ71 -> 93 | CR77: =Poblacion!DR71 -> 102 | CS77: =Poblacion!DS71 -> 19 | CT77: =Poblacion!DT71 -> 23
BB78: 66 | BC78: DISTRITO ANDAJES | BD78: =Poblacion!F72 -> 429 | BE78: =+SUM(Poblacion!K72,Poblacion!M72,Poblacion!O72,Poblacion!Q72,Poblacion!S72) -> 15 | BF78: =+SUM(Poblacion!L72,Poblacion!N72,Poblacion!P72,Poblacion!R72,Poblacion!T72) -> 23 | BG78: =SUM(Poblacion!U72,Poblacion!W72,Poblacion!Y72,Poblacion!AA72,Poblacion!AC72) -> 9 | BH78: =SUM(Poblacion!V72,Poblacion!X72,Poblacion!Z72,Poblacion!AB72,Poblacion!AD72) -> 5 | BI78: =+SUM(Poblacion!AE72,Poblacion!AG72,Poblacion!AI72,Poblacion!AK72,Poblacion!AM72) -> 13 | BJ78: =+SUM(Poblacion!AF72,Poblacion!AH72,Poblacion!AJ72,Poblacion!AL72,Poblacion!AN72) -> 17 | BK78: =+SUM(Poblacion!AO72,Poblacion!AQ72,Poblacion!AS72,Poblacion!AU72,Poblacion!AW72) -> 10 | BL78: =+SUM(Poblacion!AP72,Poblacion!AR72,Poblacion!AT72,Poblacion!AV72,Poblacion!AX72) -> 13 | BM78: =Poblacion!AY72 -> 9 | BN78: =Poblacion!AZ72 -> 6 | BO78: =Poblacion!BA72 -> 7 | BP78: =Poblacion!BB72 -> 6 | BQ78: =Poblacion!BC72 -> 6 | BR78: =Poblacion!BD72 -> 4 | BS78: =Poblacion!BE72 -> 9 | BT78: =Poblacion!BF72 -> 10 | BU78: =Poblacion!BG72 -> 11 | BV78: =Poblacion!BH72 -> 6 | BW78: =Poblacion!BI72 -> 6 | BX78: =Poblacion!BJ72 -> 8 | BY78: =Poblacion!BK72 -> 17 | BZ78: =Poblacion!BL72 -> 7 | CA78: =Poblacion!BM72 -> 12 | CB78: =Poblacion!BN72 -> 16 | CC78: =Poblacion!BO72 -> 26 | CD78: =Poblacion!BP72 -> 18 | CE78: =Poblacion!BQ72 -> 9 | CF78: =Poblacion!BR72 -> 16 | CG78: =Poblacion!BS72 -> 11 | CH78: =Poblacion!BT72 -> 15 | CI78: =Poblacion!BU72 -> 10 | CJ78: =Poblacion!BV72 -> 18 | CK78: =Poblacion!BW72 -> 27 | CL78: =Poblacion!BX72 -> 34 | CM78: =Poblacion!DM72 -> 36 | CN78: =Poblacion!DN72 -> 44 | CO78: =Poblacion!DO72 -> 9 | CP78: =Poblacion!DP72 -> 11 | CQ78: =Poblacion!DQ72 -> 79 | CR78: =Poblacion!DR72 -> 66 | CS78: =Poblacion!DS72 -> 83 | CT78: =Poblacion!DT72 -> 101
BA79: 05 | BB79: 67 | BC79: P.S. ANDAJES | BD79: =Poblacion!F73 -> 429 | BE79: =+SUM(Poblacion!K73,Poblacion!M73,Poblacion!O73,Poblacion!Q73,Poblacion!S73) -> 15 | BF79: =+SUM(Poblacion!L73,Poblacion!N73,Poblacion!P73,Poblacion!R73,Poblacion!T73) -> 23 | BG79: =SUM(Poblacion!U73,Poblacion!W73,Poblacion!Y73,Poblacion!AA73,Poblacion!AC73) -> 9 | BH79: =SUM(Poblacion!V73,Poblacion!X73,Poblacion!Z73,Poblacion!AB73,Poblacion!AD73) -> 5 | BI79: =+SUM(Poblacion!AE73,Poblacion!AG73,Poblacion!AI73,Poblacion!AK73,Poblacion!AM73) -> 13 | BJ79: =+SUM(Poblacion!AF73,Poblacion!AH73,Poblacion!AJ73,Poblacion!AL73,Poblacion!AN73) -> 17 | BK79: =+SUM(Poblacion!AO73,Poblacion!AQ73,Poblacion!AS73,Poblacion!AU73,Poblacion!AW73) -> 10 | BL79: =+SUM(Poblacion!AP73,Poblacion!AR73,Poblacion!AT73,Poblacion!AV73,Poblacion!AX73) -> 13 | BM79: =Poblacion!AY73 -> 9 | BN79: =Poblacion!AZ73 -> 6 | BO79: =Poblacion!BA73 -> 7 | BP79: =Poblacion!BB73 -> 6 | BQ79: =Poblacion!BC73 -> 6 | BR79: =Poblacion!BD73 -> 4 | BS79: =Poblacion!BE73 -> 9 | BT79: =Poblacion!BF73 -> 10 | BU79: =Poblacion!BG73 -> 11 | BV79: =Poblacion!BH73 -> 6 | BW79: =Poblacion!BI73 -> 6 | BX79: =Poblacion!BJ73 -> 8 | BY79: =Poblacion!BK73 -> 17 | BZ79: =Poblacion!BL73 -> 7 | CA79: =Poblacion!BM73 -> 12 | CB79: =Poblacion!BN73 -> 16 | CC79: =Poblacion!BO73 -> 26 | CD79: =Poblacion!BP73 -> 18 | CE79: =Poblacion!BQ73 -> 9 | CF79: =Poblacion!BR73 -> 16 | CG79: =Poblacion!BS73 -> 11 | CH79: =Poblacion!BT73 -> 15 | CI79: =Poblacion!BU73 -> 10 | CJ79: =Poblacion!BV73 -> 18 | CK79: =Poblacion!BW73 -> 27 | CL79: =Poblacion!BX73 -> 34 | CM79: =Poblacion!DM73 -> 36 | CN79: =Poblacion!DN73 -> 44 | CO79: =Poblacion!DO73 -> 9 | CP79: =Poblacion!DP73 -> 11 | CQ79: =Poblacion!DQ73 -> 79 | CR79: =Poblacion!DR73 -> 66 | CS79: =Poblacion!DS73 -> 83 | CT79: =Poblacion!DT73 -> 101
BB80: 68 | BC80: DISTRITO CAUJUL | BD80: =Poblacion!F74 -> 451 | BE80: =+SUM(Poblacion!K74,Poblacion!M74,Poblacion!O74,Poblacion!Q74,Poblacion!S74) -> 20 | BF80: =+SUM(Poblacion!L74,Poblacion!N74,Poblacion!P74,Poblacion!R74,Poblacion!T74) -> 19 | BG80: =SUM(Poblacion!U74,Poblacion!W74,Poblacion!Y74,Poblacion!AA74,Poblacion!AC74) -> 13 | BH80: =SUM(Poblacion!V74,Poblacion!X74,Poblacion!Z74,Poblacion!AB74,Poblacion!AD74) -> 15 | BI80: =+SUM(Poblacion!AE74,Poblacion!AG74,Poblacion!AI74,Poblacion!AK74,Poblacion!AM74) -> 12 | BJ80: =+SUM(Poblacion!AF74,Poblacion!AH74,Poblacion!AJ74,Poblacion!AL74,Poblacion!AN74) -> 16 | BK80: =+SUM(Poblacion!AO74,Poblacion!AQ74,Poblacion!AS74,Poblacion!AU74,Poblacion!AW74) -> 15 | BL80: =+SUM(Poblacion!AP74,Poblacion!AR74,Poblacion!AT74,Poblacion!AV74,Poblacion!AX74) -> 19 | BM80: =Poblacion!AY74 -> 14 | BN80: =Poblacion!AZ74 -> 17 | BO80: =Poblacion!BA74 -> 13 | BP80: =Poblacion!BB74 -> 18 | BQ80: =Poblacion!BC74 -> 13 | BR80: =Poblacion!BD74 -> 13 | BS80: =Poblacion!BE74 -> 12 | BT80: =Poblacion!BF74 -> 18 | BU80: =Poblacion!BG74 -> 10 | BV80: =Poblacion!BH74 -> 11 | BW80: =Poblacion!BI74 -> 19 | BX80: =Poblacion!BJ74 -> 10 | BY80: =Poblacion!BK74 -> 9 | BZ80: =Poblacion!BL74 -> 12 | CA80: =Poblacion!BM74 -> 12 | CB80: =Poblacion!BN74 -> 15 | CC80: =Poblacion!BO74 -> 13 | CD80: =Poblacion!BP74 -> 12 | CE80: =Poblacion!BQ74 -> 15 | CF80: =Poblacion!BR74 -> 8 | CG80: =Poblacion!BS74 -> 8 | CH80: =Poblacion!BT74 -> 6 | CI80: =Poblacion!BU74 -> 6 | CJ80: =Poblacion!BV74 -> 8 | CK80: =Poblacion!BW74 -> 12 | CL80: =Poblacion!BX74 -> 18 | CM80: =Poblacion!DM74 -> 43 | CN80: =Poblacion!DN74 -> 47 | CO80: =Poblacion!DO74 -> 12 | CP80: =Poblacion!DP74 -> 14 | CQ80: =Poblacion!DQ74 -> 107 | CR80: =Poblacion!DR74 -> 122 | CS80: =Poblacion!DS74 -> 54 | CT80: =Poblacion!DT74 -> 52
BA81: 05 | BB81: 69 | BC81: P.S. CAUJUL | BD81: =Poblacion!F75 -> 451 | BE81: =+SUM(Poblacion!K75,Poblacion!M75,Poblacion!O75,Poblacion!Q75,Poblacion!S75) -> 20 | BF81: =+SUM(Poblacion!L75,Poblacion!N75,Poblacion!P75,Poblacion!R75,Poblacion!T75) -> 19 | BG81: =SUM(Poblacion!U75,Poblacion!W75,Poblacion!Y75,Poblacion!AA75,Poblacion!AC75) -> 13 | BH81: =SUM(Poblacion!V75,Poblacion!X75,Poblacion!Z75,Poblacion!AB75,Poblacion!AD75) -> 15 | BI81: =+SUM(Poblacion!AE75,Poblacion!AG75,Poblacion!AI75,Poblacion!AK75,Poblacion!AM75) -> 12 | BJ81: =+SUM(Poblacion!AF75,Poblacion!AH75,Poblacion!AJ75,Poblacion!AL75,Poblacion!AN75) -> 16 | BK81: =+SUM(Poblacion!AO75,Poblacion!AQ75,Poblacion!AS75,Poblacion!AU75,Poblacion!AW75) -> 15 | BL81: =+SUM(Poblacion!AP75,Poblacion!AR75,Poblacion!AT75,Poblacion!AV75,Poblacion!AX75) -> 19 | BM81: =Poblacion!AY75 -> 14 | BN81: =Poblacion!AZ75 -> 17 | BO81: =Poblacion!BA75 -> 13 | BP81: =Poblacion!BB75 -> 18 | BQ81: =Poblacion!BC75 -> 13 | BR81: =Poblacion!BD75 -> 13 | BS81: =Poblacion!BE75 -> 12 | BT81: =Poblacion!BF75 -> 18 | BU81: =Poblacion!BG75 -> 10 | BV81: =Poblacion!BH75 -> 11 | BW81: =Poblacion!BI75 -> 19 | BX81: =Poblacion!BJ75 -> 10 | BY81: =Poblacion!BK75 -> 9 | BZ81: =Poblacion!BL75 -> 12 | CA81: =Poblacion!BM75 -> 12 | CB81: =Poblacion!BN75 -> 15 | CC81: =Poblacion!BO75 -> 13 | CD81: =Poblacion!BP75 -> 12 | CE81: =Poblacion!BQ75 -> 15 | CF81: =Poblacion!BR75 -> 8 | CG81: =Poblacion!BS75 -> 8 | CH81: =Poblacion!BT75 -> 6 | CI81: =Poblacion!BU75 -> 6 | CJ81: =Poblacion!BV75 -> 8 | CK81: =Poblacion!BW75 -> 12 | CL81: =Poblacion!BX75 -> 18 | CM81: =Poblacion!DM75 -> 43 | CN81: =Poblacion!DN75 -> 47 | CO81: =Poblacion!DO75 -> 12 | CP81: =Poblacion!DP75 -> 14 | CQ81: =Poblacion!DQ75 -> 107 | CR81: =Poblacion!DR75 -> 122 | CS81: =Poblacion!DS75 -> 54 | CT81: =Poblacion!DT75 -> 52
BB82: 70 | BC82: DISTRITO COCHAMARCA | BD82: =Poblacion!F76 -> 1093 | BE82: =+SUM(Poblacion!K76,Poblacion!M76,Poblacion!O76,Poblacion!Q76,Poblacion!S76) -> 43 | BF82: =+SUM(Poblacion!L76,Poblacion!N76,Poblacion!P76,Poblacion!R76,Poblacion!T76) -> 56 | BG82: =SUM(Poblacion!U76,Poblacion!W76,Poblacion!Y76,Poblacion!AA76,Poblacion!AC76) -> 29 | BH82: =SUM(Poblacion!V76,Poblacion!X76,Poblacion!Z76,Poblacion!AB76,Poblacion!AD76) -> 36 | BI82: =+SUM(Poblacion!AE76,Poblacion!AG76,Poblacion!AI76,Poblacion!AK76,Poblacion!AM76) -> 43 | BJ82: =+SUM(Poblacion!AF76,Poblacion!AH76,Poblacion!AJ76,Poblacion!AL76,Poblacion!AN76) -> 63 | BK82: =+SUM(Poblacion!AO76,Poblacion!AQ76,Poblacion!AS76,Poblacion!AU76,Poblacion!AW76) -> 72 | BL82: =+SUM(Poblacion!AP76,Poblacion!AR76,Poblacion!AT76,Poblacion!AV76,Poblacion!AX76) -> 66 | BM82: =Poblacion!AY76 -> 55 | BN82: =Poblacion!AZ76 -> 54 | BO82: =Poblacion!BA76 -> 44 | BP82: =Poblacion!BB76 -> 45 | BQ82: =Poblacion!BC76 -> 38 | BR82: =Poblacion!BD76 -> 32 | BS82: =Poblacion!BE76 -> 28 | BT82: =Poblacion!BF76 -> 31 | BU82: =Poblacion!BG76 -> 23 | BV82: =Poblacion!BH76 -> 22 | BW82: =Poblacion!BI76 -> 34 | BX82: =Poblacion!BJ76 -> 36 | BY82: =Poblacion!BK76 -> 26 | BZ82: =Poblacion!BL76 -> 27 | CA82: =Poblacion!BM76 -> 30 | CB82: =Poblacion!BN76 -> 20 | CC82: =Poblacion!BO76 -> 17 | CD82: =Poblacion!BP76 -> 19 | CE82: =Poblacion!BQ76 -> 11 | CF82: =Poblacion!BR76 -> 12 | CG82: =Poblacion!BS76 -> 13 | CH82: =Poblacion!BT76 -> 17 | CI82: =Poblacion!BU76 -> 6 | CJ82: =Poblacion!BV76 -> 10 | CK82: =Poblacion!BW76 -> 16 | CL82: =Poblacion!BX76 -> 19 | CM82: =Poblacion!DM76 -> 109 | CN82: =Poblacion!DN76 -> 141 | CO82: =Poblacion!DO76 -> 47 | CP82: =Poblacion!DP76 -> 53 | CQ82: =Poblacion!DQ76 -> 309 | CR82: =Poblacion!DR76 -> 294 | CS82: =Poblacion!DS76 -> 63 | CT82: =Poblacion!DT76 -> 77
BA83: 03 | BB83: 71 | BC83: P.S. COCHAMARCA | BD83: =Poblacion!F77 -> 463 | BE83: =+SUM(Poblacion!K77,Poblacion!M77,Poblacion!O77,Poblacion!Q77,Poblacion!S77) -> 17 | BF83: =+SUM(Poblacion!L77,Poblacion!N77,Poblacion!P77,Poblacion!R77,Poblacion!T77) -> 24 | BG83: =SUM(Poblacion!U77,Poblacion!W77,Poblacion!Y77,Poblacion!AA77,Poblacion!AC77) -> 12 | BH83: =SUM(Poblacion!V77,Poblacion!X77,Poblacion!Z77,Poblacion!AB77,Poblacion!AD77) -> 14 | BI83: =+SUM(Poblacion!AE77,Poblacion!AG77,Poblacion!AI77,Poblacion!AK77,Poblacion!AM77) -> 17 | BJ83: =+SUM(Poblacion!AF77,Poblacion!AH77,Poblacion!AJ77,Poblacion!AL77,Poblacion!AN77) -> 27 | BK83: =+SUM(Poblacion!AO77,Poblacion!AQ77,Poblacion!AS77,Poblacion!AU77,Poblacion!AW77) -> 31 | BL83: =+SUM(Poblacion!AP77,Poblacion!AR77,Poblacion!AT77,Poblacion!AV77,Poblacion!AX77) -> 29 | BM83: =Poblacion!AY77 -> 24 | BN83: =Poblacion!AZ77 -> 23 | BO83: =Poblacion!BA77 -> 19 | BP83: =Poblacion!BB77 -> 19 | BQ83: =Poblacion!BC77 -> 16 | BR83: =Poblacion!BD77 -> 14 | BS83: =Poblacion!BE77 -> 12 | BT83: =Poblacion!BF77 -> 13 | BU83: =Poblacion!BG77 -> 10 | BV83: =Poblacion!BH77 -> 9 | BW83: =Poblacion!BI77 -> 15 | BX83: =Poblacion!BJ77 -> 15 | BY83: =Poblacion!BK77 -> 11 | BZ83: =Poblacion!BL77 -> 12 | CA83: =Poblacion!BM77 -> 13 | CB83: =Poblacion!BN77 -> 8 | CC83: =Poblacion!BO77 -> 7 | CD83: =Poblacion!BP77 -> 8 | CE83: =Poblacion!BQ77 -> 5 | CF83: =Poblacion!BR77 -> 5 | CG83: =Poblacion!BS77 -> 6 | CH83: =Poblacion!BT77 -> 7 | CI83: =Poblacion!BU77 -> 2 | CJ83: =Poblacion!BV77 -> 4 | CK83: =Poblacion!BW77 -> 7 | CL83: =Poblacion!BX77 -> 8 | CM83: =Poblacion!DM77 -> 44 | CN83: =Poblacion!DN77 -> 59 | CO83: =Poblacion!DO77 -> 19 | CP83: =Poblacion!DP77 -> 23 | CQ83: =Poblacion!DQ77 -> 134 | CR83: =Poblacion!DR77 -> 125 | CS83: =Poblacion!DS77 -> 27 | CT83: =Poblacion!DT77 -> 32
BA84: 03 | BB84: 72 | BC84: P.S. COLCAPAMPA | BD84: =Poblacion!F78 -> 529 | BE84: =+SUM(Poblacion!K78,Poblacion!M78,Poblacion!O78,Poblacion!Q78,Poblacion!S78) -> 21 | BF84: =+SUM(Poblacion!L78,Poblacion!N78,Poblacion!P78,Poblacion!R78,Poblacion!T78) -> 27 | BG84: =SUM(Poblacion!U78,Poblacion!W78,Poblacion!Y78,Poblacion!AA78,Poblacion!AC78) -> 16 | BH84: =SUM(Poblacion!V78,Poblacion!X78,Poblacion!Z78,Poblacion!AB78,Poblacion!AD78) -> 18 | BI84: =+SUM(Poblacion!AE78,Poblacion!AG78,Poblacion!AI78,Poblacion!AK78,Poblacion!AM78) -> 21 | BJ84: =+SUM(Poblacion!AF78,Poblacion!AH78,Poblacion!AJ78,Poblacion!AL78,Poblacion!AN78) -> 31 | BK84: =+SUM(Poblacion!AO78,Poblacion!AQ78,Poblacion!AS78,Poblacion!AU78,Poblacion!AW78) -> 35 | BL84: =+SUM(Poblacion!AP78,Poblacion!AR78,Poblacion!AT78,Poblacion!AV78,Poblacion!AX78) -> 31 | BM84: =Poblacion!AY78 -> 26 | BN84: =Poblacion!AZ78 -> 26 | BO84: =Poblacion!BA78 -> 21 | BP84: =Poblacion!BB78 -> 22 | BQ84: =Poblacion!BC78 -> 19 | BR84: =Poblacion!BD78 -> 15 | BS84: =Poblacion!BE78 -> 13 | BT84: =Poblacion!BF78 -> 15 | BU84: =Poblacion!BG78 -> 11 | BV84: =Poblacion!BH78 -> 11 | BW84: =Poblacion!BI78 -> 16 | BX84: =Poblacion!BJ78 -> 18 | BY84: =Poblacion!BK78 -> 13 | BZ84: =Poblacion!BL78 -> 13 | CA84: =Poblacion!BM78 -> 14 | CB84: =Poblacion!BN78 -> 10 | CC84: =Poblacion!BO78 -> 8 | CD84: =Poblacion!BP78 -> 9 | CE84: =Poblacion!BQ78 -> 5 | CF84: =Poblacion!BR78 -> 6 | CG84: =Poblacion!BS78 -> 6 | CH84: =Poblacion!BT78 -> 8 | CI84: =Poblacion!BU78 -> 3 | CJ84: =Poblacion!BV78 -> 5 | CK84: =Poblacion!BW78 -> 7 | CL84: =Poblacion!BX78 -> 9 | CM84: =Poblacion!DM78 -> 55 | CN84: =Poblacion!DN78 -> 69 | CO84: =Poblacion!DO78 -> 24 | CP84: =Poblacion!DP78 -> 25 | CQ84: =Poblacion!DQ78 -> 147 | CR84: =Poblacion!DR78 -> 143 | CS84: =Poblacion!DS78 -> 29 | CT84: =Poblacion!DT78 -> 37
BA85: 03 | BB85: 73 | BC85: P.S. YARUCAYA | BD85: =Poblacion!F79 -> 101 | BE85: =+SUM(Poblacion!K79,Poblacion!M79,Poblacion!O79,Poblacion!Q79,Poblacion!S79) -> 5 | BF85: =+SUM(Poblacion!L79,Poblacion!N79,Poblacion!P79,Poblacion!R79,Poblacion!T79) -> 5 | BG85: =SUM(Poblacion!U79,Poblacion!W79,Poblacion!Y79,Poblacion!AA79,Poblacion!AC79) -> 1 | BH85: =SUM(Poblacion!V79,Poblacion!X79,Poblacion!Z79,Poblacion!AB79,Poblacion!AD79) -> 4 | BI85: =+SUM(Poblacion!AE79,Poblacion!AG79,Poblacion!AI79,Poblacion!AK79,Poblacion!AM79) -> 5 | BJ85: =+SUM(Poblacion!AF79,Poblacion!AH79,Poblacion!AJ79,Poblacion!AL79,Poblacion!AN79) -> 5 | BK85: =+SUM(Poblacion!AO79,Poblacion!AQ79,Poblacion!AS79,Poblacion!AU79,Poblacion!AW79) -> 6 | BL85: =+SUM(Poblacion!AP79,Poblacion!AR79,Poblacion!AT79,Poblacion!AV79,Poblacion!AX79) -> 6 | BM85: =Poblacion!AY79 -> 5 | BN85: =Poblacion!AZ79 -> 5 | BO85: =Poblacion!BA79 -> 4 | BP85: =Poblacion!BB79 -> 4 | BQ85: =Poblacion!BC79 -> 3 | BR85: =Poblacion!BD79 -> 3 | BS85: =Poblacion!BE79 -> 3 | BT85: =Poblacion!BF79 -> 3 | BU85: =Poblacion!BG79 -> 2 | BV85: =Poblacion!BH79 -> 2 | BW85: =Poblacion!BI79 -> 3 | BX85: =Poblacion!BJ79 -> 3 | BY85: =Poblacion!BK79 -> 2 | BZ85: =Poblacion!BL79 -> 2 | CA85: =Poblacion!BM79 -> 3 | CB85: =Poblacion!BN79 -> 2 | CC85: =Poblacion!BO79 -> 2 | CD85: =Poblacion!BP79 -> 2 | CE85: =Poblacion!BQ79 -> 1 | CF85: =Poblacion!BR79 -> 1 | CG85: =Poblacion!BS79 -> 1 | CH85: =Poblacion!BT79 -> 2 | CI85: =Poblacion!BU79 -> 1 | CJ85: =Poblacion!BV79 -> 1 | CK85: =Poblacion!BW79 -> 2 | CL85: =Poblacion!BX79 -> 2 | CM85: =Poblacion!DM79 -> 10 | CN85: =Poblacion!DN79 -> 13 | CO85: =Poblacion!DO79 -> 4 | CP85: =Poblacion!DP79 -> 5 | CQ85: =Poblacion!DQ79 -> 28 | CR85: =Poblacion!DR79 -> 26 | CS85: =Poblacion!DS79 -> 7 | CT85: =Poblacion!DT79 -> 8
BB86: 74 | BC86: DISTRITO NAVAN | BD86: =Poblacion!F80 -> 776 | BE86: =+SUM(Poblacion!K80,Poblacion!M80,Poblacion!O80,Poblacion!Q80,Poblacion!S80) -> 23 | BF86: =+SUM(Poblacion!L80,Poblacion!N80,Poblacion!P80,Poblacion!R80,Poblacion!T80) -> 23 | BG86: =SUM(Poblacion!U80,Poblacion!W80,Poblacion!Y80,Poblacion!AA80,Poblacion!AC80) -> 21 | BH86: =SUM(Poblacion!V80,Poblacion!X80,Poblacion!Z80,Poblacion!AB80,Poblacion!AD80) -> 15 | BI86: =+SUM(Poblacion!AE80,Poblacion!AG80,Poblacion!AI80,Poblacion!AK80,Poblacion!AM80) -> 28 | BJ86: =+SUM(Poblacion!AF80,Poblacion!AH80,Poblacion!AJ80,Poblacion!AL80,Poblacion!AN80) -> 35 | BK86: =+SUM(Poblacion!AO80,Poblacion!AQ80,Poblacion!AS80,Poblacion!AU80,Poblacion!AW80) -> 26 | BL86: =+SUM(Poblacion!AP80,Poblacion!AR80,Poblacion!AT80,Poblacion!AV80,Poblacion!AX80) -> 42 | BM86: =Poblacion!AY80 -> 23 | BN86: =Poblacion!AZ80 -> 23 | BO86: =Poblacion!BA80 -> 16 | BP86: =Poblacion!BB80 -> 20 | BQ86: =Poblacion!BC80 -> 14 | BR86: =Poblacion!BD80 -> 28 | BS86: =Poblacion!BE80 -> 32 | BT86: =Poblacion!BF80 -> 27 | BU86: =Poblacion!BG80 -> 20 | BV86: =Poblacion!BH80 -> 23 | BW86: =Poblacion!BI80 -> 27 | BX86: =Poblacion!BJ80 -> 28 | BY86: =Poblacion!BK80 -> 35 | BZ86: =Poblacion!BL80 -> 23 | CA86: =Poblacion!BM80 -> 23 | CB86: =Poblacion!BN80 -> 26 | CC86: =Poblacion!BO80 -> 25 | CD86: =Poblacion!BP80 -> 21 | CE86: =Poblacion!BQ80 -> 19 | CF86: =Poblacion!BR80 -> 18 | CG86: =Poblacion!BS80 -> 14 | CH86: =Poblacion!BT80 -> 16 | CI86: =Poblacion!BU80 -> 10 | CJ86: =Poblacion!BV80 -> 13 | CK86: =Poblacion!BW80 -> 17 | CL86: =Poblacion!BX80 -> 22 | CM86: =Poblacion!DM80 -> 66 | CN86: =Poblacion!DN80 -> 69 | CO86: =Poblacion!DO80 -> 19 | CP86: =Poblacion!DP80 -> 33 | CQ86: =Poblacion!DQ80 -> 203 | CR86: =Poblacion!DR80 -> 211 | CS86: =Poblacion!DS80 -> 85 | CT86: =Poblacion!DT80 -> 90
BA87: 05 | BB87: 75 | BC87: P.S. NAVAN | BD87: =Poblacion!F81 -> 776 | BE87: =+SUM(Poblacion!K81,Poblacion!M81,Poblacion!O81,Poblacion!Q81,Poblacion!S81) -> 23 | BF87: =+SUM(Poblacion!L81,Poblacion!N81,Poblacion!P81,Poblacion!R81,Poblacion!T81) -> 23 | BG87: =SUM(Poblacion!U81,Poblacion!W81,Poblacion!Y81,Poblacion!AA81,Poblacion!AC81) -> 21 | BH87: =SUM(Poblacion!V81,Poblacion!X81,Poblacion!Z81,Poblacion!AB81,Poblacion!AD81) -> 15 | BI87: =+SUM(Poblacion!AE81,Poblacion!AG81,Poblacion!AI81,Poblacion!AK81,Poblacion!AM81) -> 28 | BJ87: =+SUM(Poblacion!AF81,Poblacion!AH81,Poblacion!AJ81,Poblacion!AL81,Poblacion!AN81) -> 35 | BK87: =+SUM(Poblacion!AO81,Poblacion!AQ81,Poblacion!AS81,Poblacion!AU81,Poblacion!AW81) -> 26 | BL87: =+SUM(Poblacion!AP81,Poblacion!AR81,Poblacion!AT81,Poblacion!AV81,Poblacion!AX81) -> 42 | BM87: =Poblacion!AY81 -> 23 | BN87: =Poblacion!AZ81 -> 23 | BO87: =Poblacion!BA81 -> 16 | BP87: =Poblacion!BB81 -> 20 | BQ87: =Poblacion!BC81 -> 14 | BR87: =Poblacion!BD81 -> 28 | BS87: =Poblacion!BE81 -> 32 | BT87: =Poblacion!BF81 -> 27 | BU87: =Poblacion!BG81 -> 20 | BV87: =Poblacion!BH81 -> 23 | BW87: =Poblacion!BI81 -> 27 | BX87: =Poblacion!BJ81 -> 28 | BY87: =Poblacion!BK81 -> 35 | BZ87: =Poblacion!BL81 -> 23 | CA87: =Poblacion!BM81 -> 23 | CB87: =Poblacion!BN81 -> 26 | CC87: =Poblacion!BO81 -> 25 | CD87: =Poblacion!BP81 -> 21 | CE87: =Poblacion!BQ81 -> 19 | CF87: =Poblacion!BR81 -> 18 | CG87: =Poblacion!BS81 -> 14 | CH87: =Poblacion!BT81 -> 16 | CI87: =Poblacion!BU81 -> 10 | CJ87: =Poblacion!BV81 -> 13 | CK87: =Poblacion!BW81 -> 17 | CL87: =Poblacion!BX81 -> 22 | CM87: =Poblacion!DM81 -> 66 | CN87: =Poblacion!DN81 -> 69 | CO87: =Poblacion!DO81 -> 19 | CP87: =Poblacion!DP81 -> 33 | CQ87: =Poblacion!DQ81 -> 203 | CR87: =Poblacion!DR81 -> 211 | CS87: =Poblacion!DS81 -> 85 | CT87: =Poblacion!DT81 -> 90
BB88: 76 | BC88: DISTRITO PACHANGARA | BD88: =Poblacion!F82 -> 2455 | BE88: =+SUM(Poblacion!K82,Poblacion!M82,Poblacion!O82,Poblacion!Q82,Poblacion!S82) -> 144 | BF88: =+SUM(Poblacion!L82,Poblacion!N82,Poblacion!P82,Poblacion!R82,Poblacion!T82) -> 142 | BG88: =SUM(Poblacion!U82,Poblacion!W82,Poblacion!Y82,Poblacion!AA82,Poblacion!AC82) -> 91 | BH88: =SUM(Poblacion!V82,Poblacion!X82,Poblacion!Z82,Poblacion!AB82,Poblacion!AD82) -> 94 | BI88: =+SUM(Poblacion!AE82,Poblacion!AG82,Poblacion!AI82,Poblacion!AK82,Poblacion!AM82) -> 90 | BJ88: =+SUM(Poblacion!AF82,Poblacion!AH82,Poblacion!AJ82,Poblacion!AL82,Poblacion!AN82) -> 96 | BK88: =+SUM(Poblacion!AO82,Poblacion!AQ82,Poblacion!AS82,Poblacion!AU82,Poblacion!AW82) -> 89 | BL88: =+SUM(Poblacion!AP82,Poblacion!AR82,Poblacion!AT82,Poblacion!AV82,Poblacion!AX82) -> 91 | BM88: =Poblacion!AY82 -> 76 | BN88: =Poblacion!AZ82 -> 71 | BO88: =Poblacion!BA82 -> 80 | BP88: =Poblacion!BB82 -> 107 | BQ88: =Poblacion!BC82 -> 76 | BR88: =Poblacion!BD82 -> 75 | BS88: =Poblacion!BE82 -> 69 | BT88: =Poblacion!BF82 -> 83 | BU88: =Poblacion!BG82 -> 82 | BV88: =Poblacion!BH82 -> 75 | BW88: =Poblacion!BI82 -> 72 | BX88: =Poblacion!BJ82 -> 62 | BY88: =Poblacion!BK82 -> 47 | BZ88: =Poblacion!BL82 -> 68 | CA88: =Poblacion!BM82 -> 56 | CB88: =Poblacion!BN82 -> 72 | CC88: =Poblacion!BO82 -> 54 | CD88: =Poblacion!BP82 -> 60 | CE88: =Poblacion!BQ82 -> 45 | CF88: =Poblacion!BR82 -> 54 | CG88: =Poblacion!BS82 -> 41 | CH88: =Poblacion!BT82 -> 38 | CI88: =Poblacion!BU82 -> 37 | CJ88: =Poblacion!BV82 -> 37 | CK88: =Poblacion!BW82 -> 38 | CL88: =Poblacion!BX82 -> 43 | CM88: =Poblacion!DM82 -> 309 | CN88: =Poblacion!DN82 -> 316 | CO88: =Poblacion!DO82 -> 69 | CP88: =Poblacion!DP82 -> 79 | CQ88: =Poblacion!DQ82 -> 594 | CR88: =Poblacion!DR82 -> 641 | CS88: =Poblacion!DS82 -> 215 | CT88: =Poblacion!DT82 -> 232
BA89: 05 | BB89: 77 | BC89: P.S. HUANCAHUASI | BD89: =Poblacion!F83 -> 444 | BE89: =+SUM(Poblacion!K83,Poblacion!M83,Poblacion!O83,Poblacion!Q83,Poblacion!S83) -> 26 | BF89: =+SUM(Poblacion!L83,Poblacion!N83,Poblacion!P83,Poblacion!R83,Poblacion!T83) -> 26 | BG89: =SUM(Poblacion!U83,Poblacion!W83,Poblacion!Y83,Poblacion!AA83,Poblacion!AC83) -> 17 | BH89: =SUM(Poblacion!V83,Poblacion!X83,Poblacion!Z83,Poblacion!AB83,Poblacion!AD83) -> 17 | BI89: =+SUM(Poblacion!AE83,Poblacion!AG83,Poblacion!AI83,Poblacion!AK83,Poblacion!AM83) -> 16 | BJ89: =+SUM(Poblacion!AF83,Poblacion!AH83,Poblacion!AJ83,Poblacion!AL83,Poblacion!AN83) -> 18 | BK89: =+SUM(Poblacion!AO83,Poblacion!AQ83,Poblacion!AS83,Poblacion!AU83,Poblacion!AW83) -> 15 | BL89: =+SUM(Poblacion!AP83,Poblacion!AR83,Poblacion!AT83,Poblacion!AV83,Poblacion!AX83) -> 16 | BM89: =Poblacion!AY83 -> 14 | BN89: =Poblacion!AZ83 -> 13 | BO89: =Poblacion!BA83 -> 14 | BP89: =Poblacion!BB83 -> 19 | BQ89: =Poblacion!BC83 -> 14 | BR89: =Poblacion!BD83 -> 14 | BS89: =Poblacion!BE83 -> 12 | BT89: =Poblacion!BF83 -> 15 | BU89: =Poblacion!BG83 -> 15 | BV89: =Poblacion!BH83 -> 14 | BW89: =Poblacion!BI83 -> 13 | BX89: =Poblacion!BJ83 -> 11 | BY89: =Poblacion!BK83 -> 8 | BZ89: =Poblacion!BL83 -> 12 | CA89: =Poblacion!BM83 -> 10 | CB89: =Poblacion!BN83 -> 13 | CC89: =Poblacion!BO83 -> 10 | CD89: =Poblacion!BP83 -> 11 | CE89: =Poblacion!BQ83 -> 8 | CF89: =Poblacion!BR83 -> 10 | CG89: =Poblacion!BS83 -> 7 | CH89: =Poblacion!BT83 -> 7 | CI89: =Poblacion!BU83 -> 7 | CJ89: =Poblacion!BV83 -> 7 | CK89: =Poblacion!BW83 -> 7 | CL89: =Poblacion!BX83 -> 8 | CM89: =Poblacion!DM83 -> 56 | CN89: =Poblacion!DN83 -> 58 | CO89: =Poblacion!DO83 -> 12 | CP89: =Poblacion!DP83 -> 14 | CQ89: =Poblacion!DQ83 -> 106 | CR89: =Poblacion!DR83 -> 116 | CS89: =Poblacion!DS83 -> 39 | CT89: =Poblacion!DT83 -> 43
BA90: 05 | BB90: 78 | BC90: C.S. CHURIN | BD90: =Poblacion!F84 -> 1645 | BE90: =+SUM(Poblacion!K84,Poblacion!M84,Poblacion!O84,Poblacion!Q84,Poblacion!S84) -> 96 | BF90: =+SUM(Poblacion!L84,Poblacion!N84,Poblacion!P84,Poblacion!R84,Poblacion!T84) -> 95 | BG90: =SUM(Poblacion!U84,Poblacion!W84,Poblacion!Y84,Poblacion!AA84,Poblacion!AC84) -> 59 | BH90: =SUM(Poblacion!V84,Poblacion!X84,Poblacion!Z84,Poblacion!AB84,Poblacion!AD84) -> 63 | BI90: =+SUM(Poblacion!AE84,Poblacion!AG84,Poblacion!AI84,Poblacion!AK84,Poblacion!AM84) -> 62 | BJ90: =+SUM(Poblacion!AF84,Poblacion!AH84,Poblacion!AJ84,Poblacion!AL84,Poblacion!AN84) -> 65 | BK90: =+SUM(Poblacion!AO84,Poblacion!AQ84,Poblacion!AS84,Poblacion!AU84,Poblacion!AW84) -> 60 | BL90: =+SUM(Poblacion!AP84,Poblacion!AR84,Poblacion!AT84,Poblacion!AV84,Poblacion!AX84) -> 61 | BM90: =Poblacion!AY84 -> 51 | BN90: =Poblacion!AZ84 -> 47 | BO90: =Poblacion!BA84 -> 54 | BP90: =Poblacion!BB84 -> 72 | BQ90: =Poblacion!BC84 -> 51 | BR90: =Poblacion!BD84 -> 50 | BS90: =Poblacion!BE84 -> 47 | BT90: =Poblacion!BF84 -> 56 | BU90: =Poblacion!BG84 -> 55 | BV90: =Poblacion!BH84 -> 50 | BW90: =Poblacion!BI84 -> 48 | BX90: =Poblacion!BJ84 -> 42 | BY90: =Poblacion!BK84 -> 32 | BZ90: =Poblacion!BL84 -> 46 | CA90: =Poblacion!BM84 -> 38 | CB90: =Poblacion!BN84 -> 48 | CC90: =Poblacion!BO84 -> 36 | CD90: =Poblacion!BP84 -> 40 | CE90: =Poblacion!BQ84 -> 30 | CF90: =Poblacion!BR84 -> 36 | CG90: =Poblacion!BS84 -> 28 | CH90: =Poblacion!BT84 -> 25 | CI90: =Poblacion!BU84 -> 24 | CJ90: =Poblacion!BV84 -> 24 | CK90: =Poblacion!BW84 -> 25 | CL90: =Poblacion!BX84 -> 29 | CM90: =Poblacion!DM84 -> 206 | CN90: =Poblacion!DN84 -> 212 | CO90: =Poblacion!DO84 -> 46 | CP90: =Poblacion!DP84 -> 53 | CQ90: =Poblacion!DQ84 -> 401 | CR90: =Poblacion!DR84 -> 430 | CS90: =Poblacion!DS84 -> 143 | CT90: =Poblacion!DT84 -> 154
BA91: 05 | BB91: 79 | BC91: P.S. PACHANGARA | BD91: =Poblacion!F85 -> 366 | BE91: =+SUM(Poblacion!K85,Poblacion!M85,Poblacion!O85,Poblacion!Q85,Poblacion!S85) -> 22 | BF91: =+SUM(Poblacion!L85,Poblacion!N85,Poblacion!P85,Poblacion!R85,Poblacion!T85) -> 21 | BG91: =SUM(Poblacion!U85,Poblacion!W85,Poblacion!Y85,Poblacion!AA85,Poblacion!AC85) -> 15 | BH91: =SUM(Poblacion!V85,Poblacion!X85,Poblacion!Z85,Poblacion!AB85,Poblacion!AD85) -> 14 | BI91: =+SUM(Poblacion!AE85,Poblacion!AG85,Poblacion!AI85,Poblacion!AK85,Poblacion!AM85) -> 12 | BJ91: =+SUM(Poblacion!AF85,Poblacion!AH85,Poblacion!AJ85,Poblacion!AL85,Poblacion!AN85) -> 13 | BK91: =+SUM(Poblacion!AO85,Poblacion!AQ85,Poblacion!AS85,Poblacion!AU85,Poblacion!AW85) -> 14 | BL91: =+SUM(Poblacion!AP85,Poblacion!AR85,Poblacion!AT85,Poblacion!AV85,Poblacion!AX85) -> 14 | BM91: =Poblacion!AY85 -> 11 | BN91: =Poblacion!AZ85 -> 11 | BO91: =Poblacion!BA85 -> 12 | BP91: =Poblacion!BB85 -> 16 | BQ91: =Poblacion!BC85 -> 11 | BR91: =Poblacion!BD85 -> 11 | BS91: =Poblacion!BE85 -> 10 | BT91: =Poblacion!BF85 -> 12 | BU91: =Poblacion!BG85 -> 12 | BV91: =Poblacion!BH85 -> 11 | BW91: =Poblacion!BI85 -> 11 | BX91: =Poblacion!BJ85 -> 9 | BY91: =Poblacion!BK85 -> 7 | BZ91: =Poblacion!BL85 -> 10 | CA91: =Poblacion!BM85 -> 8 | CB91: =Poblacion!BN85 -> 11 | CC91: =Poblacion!BO85 -> 8 | CD91: =Poblacion!BP85 -> 9 | CE91: =Poblacion!BQ85 -> 7 | CF91: =Poblacion!BR85 -> 8 | CG91: =Poblacion!BS85 -> 6 | CH91: =Poblacion!BT85 -> 6 | CI91: =Poblacion!BU85 -> 6 | CJ91: =Poblacion!BV85 -> 6 | CK91: =Poblacion!BW85 -> 6 | CL91: =Poblacion!BX85 -> 6 | CM91: =Poblacion!DM85 -> 47 | CN91: =Poblacion!DN85 -> 46 | CO91: =Poblacion!DO85 -> 11 | CP91: =Poblacion!DP85 -> 12 | CQ91: =Poblacion!DQ85 -> 87 | CR91: =Poblacion!DR85 -> 95 | CS91: =Poblacion!DS85 -> 33 | CT91: =Poblacion!DT85 -> 35
BB92: 80 | BC92: PROVINCIA HUARAL | BD92: =Poblacion!F86 -> 925 | BE92: =+SUM(Poblacion!K86,Poblacion!M86,Poblacion!O86,Poblacion!Q86,Poblacion!S86) -> 21 | BF92: =+SUM(Poblacion!L86,Poblacion!N86,Poblacion!P86,Poblacion!R86,Poblacion!T86) -> 21 | BG92: =SUM(Poblacion!U86,Poblacion!W86,Poblacion!Y86,Poblacion!AA86,Poblacion!AC86) -> 27 | BH92: =SUM(Poblacion!V86,Poblacion!X86,Poblacion!Z86,Poblacion!AB86,Poblacion!AD86) -> 29 | BI92: =+SUM(Poblacion!AE86,Poblacion!AG86,Poblacion!AI86,Poblacion!AK86,Poblacion!AM86) -> 30 | BJ92: =+SUM(Poblacion!AF86,Poblacion!AH86,Poblacion!AJ86,Poblacion!AL86,Poblacion!AN86) -> 36 | BK92: =+SUM(Poblacion!AO86,Poblacion!AQ86,Poblacion!AS86,Poblacion!AU86,Poblacion!AW86) -> 29 | BL92: =+SUM(Poblacion!AP86,Poblacion!AR86,Poblacion!AT86,Poblacion!AV86,Poblacion!AX86) -> 36 | BM92: =Poblacion!AY86 -> 31 | BN92: =Poblacion!AZ86 -> 34 | BO92: =Poblacion!BA86 -> 33 | BP92: =Poblacion!BB86 -> 31 | BQ92: =Poblacion!BC86 -> 43 | BR92: =Poblacion!BD86 -> 34 | BS92: =Poblacion!BE86 -> 36 | BT92: =Poblacion!BF86 -> 31 | BU92: =Poblacion!BG86 -> 22 | BV92: =Poblacion!BH86 -> 33 | BW92: =Poblacion!BI86 -> 30 | BX92: =Poblacion!BJ86 -> 29 | BY92: =Poblacion!BK86 -> 24 | BZ92: =Poblacion!BL86 -> 26 | CA92: =Poblacion!BM86 -> 26 | CB92: =Poblacion!BN86 -> 32 | CC92: =Poblacion!BO86 -> 24 | CD92: =Poblacion!BP86 -> 28 | CE92: =Poblacion!BQ86 -> 19 | CF92: =Poblacion!BR86 -> 18 | CG92: =Poblacion!BS86 -> 17 | CH92: =Poblacion!BT86 -> 15 | CI92: =Poblacion!BU86 -> 13 | CJ92: =Poblacion!BV86 -> 12 | CK92: =Poblacion!BW86 -> 23 | CL92: =Poblacion!BX86 -> 32 | CM92: =Poblacion!DM86 -> 72 | CN92: =Poblacion!DN86 -> 77 | CO92: =Poblacion!DO86 -> 23 | CP92: =Poblacion!DP86 -> 31 | CQ92: =Poblacion!DQ86 -> 257 | CR92: =Poblacion!DR86 -> 264 | CS92: =Poblacion!DS86 -> 96 | CT92: =Poblacion!DT86 -> 105
BA93: 03 | BB93: 81 | BC93: IHUARI - P.S. ACOTAMA (46.8%) | BD93: =Poblacion!F87 -> 925 | BE93: =+SUM(Poblacion!K87,Poblacion!M87,Poblacion!O87,Poblacion!Q87,Poblacion!S87) -> 21 | BF93: =+SUM(Poblacion!L87,Poblacion!N87,Poblacion!P87,Poblacion!R87,Poblacion!T87) -> 21 | BG93: =SUM(Poblacion!U87,Poblacion!W87,Poblacion!Y87,Poblacion!AA87,Poblacion!AC87) -> 27 | BH93: =SUM(Poblacion!V87,Poblacion!X87,Poblacion!Z87,Poblacion!AB87,Poblacion!AD87) -> 29 | BI93: =+SUM(Poblacion!AE87,Poblacion!AG87,Poblacion!AI87,Poblacion!AK87,Poblacion!AM87) -> 30 | BJ93: =+SUM(Poblacion!AF87,Poblacion!AH87,Poblacion!AJ87,Poblacion!AL87,Poblacion!AN87) -> 36 | BK93: =+SUM(Poblacion!AO87,Poblacion!AQ87,Poblacion!AS87,Poblacion!AU87,Poblacion!AW87) -> 29 | BL93: =+SUM(Poblacion!AP87,Poblacion!AR87,Poblacion!AT87,Poblacion!AV87,Poblacion!AX87) -> 36 | BM93: =Poblacion!AY87 -> 31 | BN93: =Poblacion!AZ87 -> 34 | BO93: =Poblacion!BA87 -> 33 | BP93: =Poblacion!BB87 -> 31 | BQ93: =Poblacion!BC87 -> 43 | BR93: =Poblacion!BD87 -> 34 | BS93: =Poblacion!BE87 -> 36 | BT93: =Poblacion!BF87 -> 31 | BU93: =Poblacion!BG87 -> 22 | BV93: =Poblacion!BH87 -> 33 | BW93: =Poblacion!BI87 -> 30 | BX93: =Poblacion!BJ87 -> 29 | BY93: =Poblacion!BK87 -> 24 | BZ93: =Poblacion!BL87 -> 26 | CA93: =Poblacion!BM87 -> 26 | CB93: =Poblacion!BN87 -> 32 | CC93: =Poblacion!BO87 -> 24 | CD93: =Poblacion!BP87 -> 28 | CE93: =Poblacion!BQ87 -> 19 | CF93: =Poblacion!BR87 -> 18 | CG93: =Poblacion!BS87 -> 17 | CH93: =Poblacion!BT87 -> 15 | CI93: =Poblacion!BU87 -> 13 | CJ93: =Poblacion!BV87 -> 12 | CK93: =Poblacion!BW87 -> 23 | CL93: =Poblacion!BX87 -> 32 | CM93: =Poblacion!DM87 -> 72 | CN93: =Poblacion!DN87 -> 77 | CO93: =Poblacion!DO87 -> 23 | CP93: =Poblacion!DP87 -> 31 | CQ93: =Poblacion!DQ87 -> 257 | CR93: =Poblacion!DR87 -> 264 | CS93: =Poblacion!DS87 -> 96 | CT93: =Poblacion!DT87 -> 105
BB94: 82 | BC94: ---
BA95: 01 | BB95: 83 | BC95: MICRORED HUAURA | BD95: =Poblacion!F89 -> 42675 | BE95: =+SUM(Poblacion!K89,Poblacion!M89,Poblacion!O89,Poblacion!Q89,Poblacion!S89) -> 1491 | BF95: =+SUM(Poblacion!L89,Poblacion!N89,Poblacion!P89,Poblacion!R89,Poblacion!T89) -> 1441 | BG95: =SUM(Poblacion!U89,Poblacion!W89,Poblacion!Y89,Poblacion!AA89,Poblacion!AC89) -> 1852 | BH95: =SUM(Poblacion!V89,Poblacion!X89,Poblacion!Z89,Poblacion!AB89,Poblacion!AD89) -> 1800 | BI95: =+SUM(Poblacion!AE89,Poblacion!AG89,Poblacion!AI89,Poblacion!AK89,Poblacion!AM89) -> 1793 | BJ95: =+SUM(Poblacion!AF89,Poblacion!AH89,Poblacion!AJ89,Poblacion!AL89,Poblacion!AN89) -> 1905 | BK95: =+SUM(Poblacion!AO89,Poblacion!AQ89,Poblacion!AS89,Poblacion!AU89,Poblacion!AW89) -> 1555 | BL95: =+SUM(Poblacion!AP89,Poblacion!AR89,Poblacion!AT89,Poblacion!AV89,Poblacion!AX89) -> 1757 | BM95: =Poblacion!AY89 -> 1543 | BN95: =Poblacion!AZ89 -> 1663 | BO95: =Poblacion!BA89 -> 1879 | BP95: =Poblacion!BB89 -> 2010 | BQ95: =Poblacion!BC89 -> 1742 | BR95: =Poblacion!BD89 -> 1807 | BS95: =Poblacion!BE89 -> 1508 | BT95: =Poblacion!BF89 -> 1695 | BU95: =Poblacion!BG89 -> 1448 | BV95: =Poblacion!BH89 -> 1495 | BW95: =Poblacion!BI89 -> 1224 | BX95: =Poblacion!BJ89 -> 1414 | BY95: =Poblacion!BK89 -> 1057 | BZ95: =Poblacion!BL89 -> 1273 | CA95: =Poblacion!BM89 -> 938 | CB95: =Poblacion!BN89 -> 1051 | CC95: =Poblacion!BO89 -> 787 | CD95: =Poblacion!BP89 -> 826 | CE95: =Poblacion!BQ89 -> 591 | CF95: =Poblacion!BR89 -> 644 | CG95: =Poblacion!BS89 -> 449 | CH95: =Poblacion!BT89 -> 473 | CI95: =Poblacion!BU89 -> 332 | CJ95: =Poblacion!BV89 -> 322 | CK95: =Poblacion!BW89 -> 407 | CL95: =Poblacion!BX89 -> 503 | CM95: =Poblacion!DM89 -> 4801 | CN95: =Poblacion!DN89 -> 4784 | CO95: =Poblacion!DO89 -> 1262 | CP95: =Poblacion!DP89 -> 1439 | CQ95: =Poblacion!DQ89 -> 11967 | CR95: =Poblacion!DR89 -> 13088 | CS95: =Poblacion!DS89 -> 2566 | CT95: =Poblacion!DT89 -> 2768
BA96: 02 | BB96: 84 | BC96: MICRORED HUALMAY | BD96: =Poblacion!F90 -> 108258 | BE96: =+SUM(Poblacion!K90,Poblacion!M90,Poblacion!O90,Poblacion!Q90,Poblacion!S90) -> 3425 | BF96: =+SUM(Poblacion!L90,Poblacion!N90,Poblacion!P90,Poblacion!R90,Poblacion!T90) -> 3371 | BG96: =SUM(Poblacion!U90,Poblacion!W90,Poblacion!Y90,Poblacion!AA90,Poblacion!AC90) -> 4326 | BH96: =SUM(Poblacion!V90,Poblacion!X90,Poblacion!Z90,Poblacion!AB90,Poblacion!AD90) -> 4536 | BI96: =+SUM(Poblacion!AE90,Poblacion!AG90,Poblacion!AI90,Poblacion!AK90,Poblacion!AM90) -> 4305 | BJ96: =+SUM(Poblacion!AF90,Poblacion!AH90,Poblacion!AJ90,Poblacion!AL90,Poblacion!AN90) -> 4320 | BK96: =+SUM(Poblacion!AO90,Poblacion!AQ90,Poblacion!AS90,Poblacion!AU90,Poblacion!AW90) -> 3828 | BL96: =+SUM(Poblacion!AP90,Poblacion!AR90,Poblacion!AT90,Poblacion!AV90,Poblacion!AX90) -> 4023 | BM96: =Poblacion!AY90 -> 3941 | BN96: =Poblacion!AZ90 -> 4006 | BO96: =Poblacion!BA90 -> 4280 | BP96: =Poblacion!BB90 -> 4723 | BQ96: =Poblacion!BC90 -> 3873 | BR96: =Poblacion!BD90 -> 4307 | BS96: =Poblacion!BE90 -> 3745 | BT96: =Poblacion!BF90 -> 4146 | BU96: =Poblacion!BG90 -> 3437 | BV96: =Poblacion!BH90 -> 3748 | BW96: =Poblacion!BI90 -> 3203 | BX96: =Poblacion!BJ90 -> 3498 | BY96: =Poblacion!BK90 -> 2835 | BZ96: =Poblacion!BL90 -> 2959 | CA96: =Poblacion!BM90 -> 2380 | CB96: =Poblacion!BN90 -> 2613 | CC96: =Poblacion!BO90 -> 1954 | CD96: =Poblacion!BP90 -> 2160 | CE96: =Poblacion!BQ90 -> 1593 | CF96: =Poblacion!BR90 -> 1840 | CG96: =Poblacion!BS90 -> 1294 | CH96: =Poblacion!BT90 -> 1476 | CI96: =Poblacion!BU90 -> 932 | CJ96: =Poblacion!BV90 -> 1123 | CK96: =Poblacion!BW90 -> 1192 | CL96: =Poblacion!BX90 -> 1463 | CM96: =Poblacion!DM90 -> 11240 | CN96: =Poblacion!DN90 -> 11386 | CO96: =Poblacion!DO90 -> 3177 | CP96: =Poblacion!DP90 -> 3299 | CQ96: =Poblacion!DQ90 -> 29161 | CR96: =Poblacion!DR90 -> 31565 | CS96: =Poblacion!DS90 -> 6965 | CT96: =Poblacion!DT90 -> 8062
BA97: 03 | BB97: 85 | BC97: MICRORED SAYAN | BD97: =Poblacion!F91 -> 31750 | BE97: =+SUM(Poblacion!K91,Poblacion!M91,Poblacion!O91,Poblacion!Q91,Poblacion!S91) -> 1144 | BF97: =+SUM(Poblacion!L91,Poblacion!N91,Poblacion!P91,Poblacion!R91,Poblacion!T91) -> 1115 | BG97: =SUM(Poblacion!U91,Poblacion!W91,Poblacion!Y91,Poblacion!AA91,Poblacion!AC91) -> 1271 | BH97: =SUM(Poblacion!V91,Poblacion!X91,Poblacion!Z91,Poblacion!AB91,Poblacion!AD91) -> 1384 | BI97: =+SUM(Poblacion!AE91,Poblacion!AG91,Poblacion!AI91,Poblacion!AK91,Poblacion!AM91) -> 1305 | BJ97: =+SUM(Poblacion!AF91,Poblacion!AH91,Poblacion!AJ91,Poblacion!AL91,Poblacion!AN91) -> 1348 | BK97: =+SUM(Poblacion!AO91,Poblacion!AQ91,Poblacion!AS91,Poblacion!AU91,Poblacion!AW91) -> 1249 | BL97: =+SUM(Poblacion!AP91,Poblacion!AR91,Poblacion!AT91,Poblacion!AV91,Poblacion!AX91) -> 1386 | BM97: =Poblacion!AY91 -> 1146 | BN97: =Poblacion!AZ91 -> 1330 | BO97: =Poblacion!BA91 -> 1265 | BP97: =Poblacion!BB91 -> 1401 | BQ97: =Poblacion!BC91 -> 1141 | BR97: =Poblacion!BD91 -> 1288 | BS97: =Poblacion!BE91 -> 1116 | BT97: =Poblacion!BF91 -> 1184 | BU97: =Poblacion!BG91 -> 979 | BV97: =Poblacion!BH91 -> 1081 | BW97: =Poblacion!BI91 -> 943 | BX97: =Poblacion!BJ91 -> 963 | BY97: =Poblacion!BK91 -> 750 | BZ97: =Poblacion!BL91 -> 811 | CA97: =Poblacion!BM91 -> 669 | CB97: =Poblacion!BN91 -> 718 | CC97: =Poblacion!BO91 -> 577 | CD97: =Poblacion!BP91 -> 552 | CE97: =Poblacion!BQ91 -> 453 | CF97: =Poblacion!BR91 -> 480 | CG97: =Poblacion!BS91 -> 366 | CH97: =Poblacion!BT91 -> 321 | CI97: =Poblacion!BU91 -> 254 | CJ97: =Poblacion!BV91 -> 270 | CK97: =Poblacion!BW91 -> 336 | CL97: =Poblacion!BX91 -> 375 | CM97: =Poblacion!DM91 -> 3461 | CN97: =Poblacion!DN91 -> 3578 | CO97: =Poblacion!DO91 -> 1004 | CP97: =Poblacion!DP91 -> 1122 | CQ97: =Poblacion!DQ91 -> 8513 | CR97: =Poblacion!DR91 -> 9309 | CS97: =Poblacion!DS91 -> 1986 | CT97: =Poblacion!DT91 -> 1998
BA98: 04 | BB98: 86 | BC98: MICRORED VEGUETA | BD98: =Poblacion!F92 -> 31556 | BE98: =+SUM(Poblacion!K92,Poblacion!M92,Poblacion!O92,Poblacion!Q92,Poblacion!S92) -> 1392 | BF98: =+SUM(Poblacion!L92,Poblacion!N92,Poblacion!P92,Poblacion!R92,Poblacion!T92) -> 1382 | BG98: =SUM(Poblacion!U92,Poblacion!W92,Poblacion!Y92,Poblacion!AA92,Poblacion!AC92) -> 1425 | BH98: =SUM(Poblacion!V92,Poblacion!X92,Poblacion!Z92,Poblacion!AB92,Poblacion!AD92) -> 1400 | BI98: =+SUM(Poblacion!AE92,Poblacion!AG92,Poblacion!AI92,Poblacion!AK92,Poblacion!AM92) -> 1378 | BJ98: =+SUM(Poblacion!AF92,Poblacion!AH92,Poblacion!AJ92,Poblacion!AL92,Poblacion!AN92) -> 1342 | BK98: =+SUM(Poblacion!AO92,Poblacion!AQ92,Poblacion!AS92,Poblacion!AU92,Poblacion!AW92) -> 1201 | BL98: =+SUM(Poblacion!AP92,Poblacion!AR92,Poblacion!AT92,Poblacion!AV92,Poblacion!AX92) -> 1210 | BM98: =Poblacion!AY92 -> 1019 | BN98: =Poblacion!AZ92 -> 1171 | BO98: =Poblacion!BA92 -> 1306 | BP98: =Poblacion!BB92 -> 1463 | BQ98: =Poblacion!BC92 -> 1187 | BR98: =Poblacion!BD92 -> 1383 | BS98: =Poblacion!BE92 -> 1107 | BT98: =Poblacion!BF92 -> 1244 | BU98: =Poblacion!BG92 -> 936 | BV98: =Poblacion!BH92 -> 1033 | BW98: =Poblacion!BI92 -> 800 | BX98: =Poblacion!BJ92 -> 900 | BY98: =Poblacion!BK92 -> 687 | BZ98: =Poblacion!BL92 -> 753 | CA98: =Poblacion!BM92 -> 589 | CB98: =Poblacion!BN92 -> 673 | CC98: =Poblacion!BO92 -> 466 | CD98: =Poblacion!BP92 -> 533 | CE98: =Poblacion!BQ92 -> 389 | CF98: =Poblacion!BR92 -> 399 | CG98: =Poblacion!BS92 -> 301 | CH98: =Poblacion!BT92 -> 292 | CI98: =Poblacion!BU92 -> 226 | CJ98: =Poblacion!BV92 -> 227 | CK98: =Poblacion!BW92 -> 259 | CL98: =Poblacion!BX92 -> 342 | CM98: =Poblacion!DM92 -> 3927 | CN98: =Poblacion!DN92 -> 3887 | CO98: =Poblacion!DO92 -> 1019 | CP98: =Poblacion!DP92 -> 964 | CQ98: =Poblacion!DQ92 -> 8081 | CR98: =Poblacion!DR92 -> 9103 | CS98: =Poblacion!DS92 -> 1641 | CT98: =Poblacion!DT92 -> 1793
BA99: 05 | BB99: 87 | BC99: MICRORED CHURIN - OYON | BD99: =Poblacion!F93 -> 19873 | BE99: =+SUM(Poblacion!K93,Poblacion!M93,Poblacion!O93,Poblacion!Q93,Poblacion!S93) -> 588 | BF99: =+SUM(Poblacion!L93,Poblacion!N93,Poblacion!P93,Poblacion!R93,Poblacion!T93) -> 575 | BG99: =SUM(Poblacion!U93,Poblacion!W93,Poblacion!Y93,Poblacion!AA93,Poblacion!AC93) -> 766 | BH99: =SUM(Poblacion!V93,Poblacion!X93,Poblacion!Z93,Poblacion!AB93,Poblacion!AD93) -> 816 | BI99: =+SUM(Poblacion!AE93,Poblacion!AG93,Poblacion!AI93,Poblacion!AK93,Poblacion!AM93) -> 932 | BJ99: =+SUM(Poblacion!AF93,Poblacion!AH93,Poblacion!AJ93,Poblacion!AL93,Poblacion!AN93) -> 977 | BK99: =+SUM(Poblacion!AO93,Poblacion!AQ93,Poblacion!AS93,Poblacion!AU93,Poblacion!AW93) -> 861 | BL99: =+SUM(Poblacion!AP93,Poblacion!AR93,Poblacion!AT93,Poblacion!AV93,Poblacion!AX93) -> 896 | BM99: =Poblacion!AY93 -> 658 | BN99: =Poblacion!AZ93 -> 712 | BO99: =Poblacion!BA93 -> 698 | BP99: =Poblacion!BB93 -> 759 | BQ99: =Poblacion!BC93 -> 594 | BR99: =Poblacion!BD93 -> 725 | BS99: =Poblacion!BE93 -> 625 | BT99: =Poblacion!BF93 -> 675 | BU99: =Poblacion!BG93 -> 546 | BV99: =Poblacion!BH93 -> 529 | BW99: =Poblacion!BI93 -> 540 | BX99: =Poblacion!BJ93 -> 527 | BY99: =Poblacion!BK93 -> 511 | BZ99: =Poblacion!BL93 -> 558 | CA99: =Poblacion!BM93 -> 437 | CB99: =Poblacion!BN93 -> 472 | CC99: =Poblacion!BO93 -> 406 | CD99: =Poblacion!BP93 -> 408 | CE99: =Poblacion!BQ93 -> 339 | CF99: =Poblacion!BR93 -> 356 | CG99: =Poblacion!BS93 -> 267 | CH99: =Poblacion!BT93 -> 280 | CI99: =Poblacion!BU93 -> 204 | CJ99: =Poblacion!BV93 -> 273 | CK99: =Poblacion!BW93 -> 301 | CL99: =Poblacion!BX93 -> 457 | CM99: =Poblacion!DM93 -> 2114 | CN99: =Poblacion!DN93 -> 2186 | CO99: =Poblacion!DO93 -> 735 | CP99: =Poblacion!DP93 -> 777 | CQ99: =Poblacion!DQ93 -> 4907 | CR99: =Poblacion!DR93 -> 5258 | CS99: =Poblacion!DS93 -> 1517 | CT99: =Poblacion!DT93 -> 1774
R101: PIRAMIDE POBLACIONAL | W101: DATOS PIRAMIDE | AB101: TOTAL | AG101: ZONA URBANA | AL101: ZONA RURAL | AQ101: DIRECCION DE SALUD | AS101: URBANA % | AT101: RURAL % | AV101: DIRECCION DE SALUD | AW101: URBANA (ABSOLUTO) | AX101: RURAL (ABSOLUTO) | AY101: TOTAL | BB101: N° | BC101: DESCRIPCION | BD101: GRUPOS DE EDADES - PIRAMIDE | CN101: DESCRIPCION | CO101: ZONA URBANA | DY101: DESCRIPCION | DZ101: ZONA RURAL
